Workbook

Sheet Planilha1
F2: MINISTÉRIO DO DESENVOLVIMETNO REGIONAL COMPANHIA DE DESENVOLVIMENTO DOS VALES DO SÃO FRANCISCO E DO PARNAÍBA 3ª Superintendência Regional
B3: EXECUÇÃO DOS SERVIÇOS RELATIVOS A IMPLANTAÇÃO DE CENTRO DE REPRODUÇÃO E MELHORAMENTO GENETICO DE CAPRINOS E OVINOS EM DIVERSOS MUNICÍPIOS, NO ESTADO DE PERNAMBUCO
B4: SERTÃO DO PAJEÚ - ITAPARICA - SÃO FRANCISCO/PERNAMBUCO - ÁREA DE ATUAÇÃO DE 3 SR | J4: AGOSTO DE 2021
B5: PLANILHA ORÇAMENTÁRIA DE SERVIÇOS E MATERIAIS | J5: VALOR R$ | K5: =K204 -> 2616232.32
B6: TABELAS DE REFERÊNCIA (SEM DESONERAÇÃO): | G6: QUANT | H6: CODEVASF | I6: FEV/2020 | J6: ORSE | K6: JUN/2021
G7: 6 | H7: SEINFRA: | I7: 27 | J7: SINAPI: | K7: JUL/2021
G8: BDI: | H8: SERVIÇOS: | I8: ='[1]BDI''s'!G31 -> 0.235 | J8: MATERIAIS: | K8: ='[1]BDI''s'!G63 -> 0.1143
B9: ITEM | C9: TIPO | D9: FONTE | E9: CÓDIGO | F9: DISCRIMINAÇÃO DOS SERVIÇOS | G9: UNID. | H9: QUANT. | I9: PREÇO (R$)
I10: SEM BDI | J10: COM BDI | K10: TOTAL
B11: 1 | C11: INSTALAÇÕES PRELIMINARES E CANTEIRO DE OBRAS | K11: =SUM(K12:K19) -> 255726.88
B12: 1.1 | C12: SERVIÇO | D12: SEINFRA | E12: C1937 | F12: =IF(C12="SERVIÇO",IF(D12="SINAPI",VLOOKUP(E12,'[1]SERVIÇOS SINAPI'!$A:$D,2,0),IF(D12="ORSE",VLOOKUP(E12,'[1]SERVIÇOS ORSE'!$A:$D,2,0),IF(D12="SEINFRA",VLOOKUP(E12,'[1]SERVIÇOS SEINFRA'!$A:$D,2,0)))),IF(C12="INSUMO",IF(D12="SINAPI",VLOOKUP(E12,'[1]INSUMOS SINAPI'!$A:$D,2,0),IF(D12="ORSE",VLOOKUP(E12,'[1]INSUMOS ORSE'!$A:$D,2,0),IF(D12="SEINFRA",VLOOKUP(E12,'[1]INSUMOS SEINFRA'!$A:$D,2,0),))))) -> PLACAS PADRÃO DE OBRA | G12: =IF(C12="SERVIÇO",IF(D12="SINAPI",VLOOKUP(E12,'[1]SERVIÇOS SINAPI'!$A:$D,3,0),IF(D12="ORSE",VLOOKUP(E12,'[1]SERVIÇOS ORSE'!$A:$D,3,0),IF(D12="SEINFRA",VLOOKUP(E12,'[1]SERVIÇOS SEINFRA'!$A:$D,3,0)))),IF(C12="INSUMO",IF(D12="SINAPI",VLOOKUP(E12,'[1]INSUMOS SINAPI'!$A:$D,3,0),IF(D12="ORSE",VLOOKUP(E12,'[1]INSUMOS ORSE'!$A:$D,3,0),IF(D12="SEINFRA",VLOOKUP(E12,'[1]INSUMOS SEINFRA'!$A:$D,3,0),))))) -> M² | H12: =12*$G$7 -> 72 | I12: =IF(C12="SERVIÇO",IF(D12="SINAPI",VLOOKUP(E12,'[1]SERVIÇOS SINAPI'!$A:$D,4,0),IF(D12="ORSE",VLOOKUP(E12,'[1]SERVIÇOS ORSE'!$A:$D,4,0),IF(D12="SEINFRA",VLOOKUP(E12,'[1]SERVIÇOS SEINFRA'!$A:$D,4,0)))),IF(C12="INSUMO",IF(D12="SINAPI",VLOOKUP(E12,'[1]INSUMOS SINAPI'!$A:$D,4,0),IF(D12="ORSE",VLOOKUP(E12,'[1]INSUMOS ORSE'!$A:$D,4,0),IF(D12="SEINFRA",VLOOKUP(E12,'[1]INSUMOS SEINFRA'!$A:$D,4,0),))))) -> 154.65 | J12: =IF(C12="SERVIÇO",I12*(1+$I$8),IF(C12="INSUMO",(I12*(1+$K$8)))) -> 190.99 | K12: =J12*H12 -> 13751.28 | L12: 6
B13: 1.2 | C13: SERVIÇO | D13: ORSE | E13: 11986 | F13: =IF(C13="SERVIÇO",IF(D13="SINAPI",VLOOKUP(E13,'[1]SERVIÇOS SINAPI'!$A:$D,2,0),IF(D13="ORSE",VLOOKUP(E13,'[1]SERVIÇOS ORSE'!$A:$D,2,0),IF(D13="SEINFRA",VLOOKUP(E13,'[1]SERVIÇOS SEINFRA'!$A:$D,2,0)))),IF(C13="INSUMO",IF(D13="SINAPI",VLOOKUP(E13,'[1]INSUMOS SINAPI'!$A:$D,2,0),IF(D13="ORSE",VLOOKUP(E13,'[1]INSUMOS ORSE'!$A:$D,2,0),IF(D13="SEINFRA",VLOOKUP(E13,'[1]INSUMOS SEINFRA'!$A:$D,2,0),))))) -> PLACA DE INAUGURAÇÃO EM ALUMÍNIO COM ACRILICO, 80X60CM,COM LOGOMARCA E MOLDUR A | G13: =IF(C13="SERVIÇO",IF(D13="SINAPI",VLOOKUP(E13,'[1]SERVIÇOS SINAPI'!$A:$D,3,0),IF(D13="ORSE",VLOOKUP(E13,'[1]SERVIÇOS ORSE'!$A:$D,3,0),IF(D13="SEINFRA",VLOOKUP(E13,'[1]SERVIÇOS SEINFRA'!$A:$D,3,0)))),IF(C13="INSUMO",IF(D13="SINAPI",VLOOKUP(E13,'[1]INSUMOS SINAPI'!$A:$D,3,0),IF(D13="ORSE",VLOOKUP(E13,'[1]INSUMOS ORSE'!$A:$D,3,0),IF(D13="SEINFRA",VLOOKUP(E13,'[1]INSUMOS SEINFRA'!$A:$D,3,0),))))) -> UN | H13: =1*$G$7 -> 6 | I13: =IF(C13="SERVIÇO",IF(D13="SINAPI",VLOOKUP(E13,'[1]SERVIÇOS SINAPI'!$A:$D,4,0),IF(D13="ORSE",VLOOKUP(E13,'[1]SERVIÇOS ORSE'!$A:$D,4,0),IF(D13="SEINFRA",VLOOKUP(E13,'[1]SERVIÇOS SEINFRA'!$A:$D,4,0)))),IF(C13="INSUMO",IF(D13="SINAPI",VLOOKUP(E13,'[1]INSUMOS SINAPI'!$A:$D,4,0),IF(D13="ORSE",VLOOKUP(E13,'[1]INSUMOS ORSE'!$A:$D,4,0),IF(D13="SEINFRA",VLOOKUP(E13,'[1]INSUMOS SEINFRA'!$A:$D,4,0),))))) -> 1137.91 | J13: 1405.32 | K13: 8431.92 | L13: 5
B14: 1.3 | C14: SERVIÇO | D14: CODEVASF | E14: =[1]Composições!I3 -> COMPO. 1 | F14: MOBILIZAÇÃO DE EQUIPAMENTOS, MATERIAIS E PESSOAL | G14: =[1]Composições!$I$2 -> UN | H14: 6 | I14: =[1]Composições!$I$14 -> 1830.93 | J14: 2261.2 | K14: 13567.2 | L14: 6
B15: 1.4 | C15: SERVIÇO | D15: CODEVASF | E15: =[1]Composições!I17 -> COMPO. 2 | F15: DESMOBILIZAÇÃO DE EQUIPAMENTOS, MATERIAIS E PESSOAL | G15: =[1]Composições!$I$16 -> UN | H15: =1 -> 1 | I15: =[1]Composições!I28 -> 1830.93 | J15: 2261.2 | K15: 2261.2 | L15: 6
B16: 1.5 | C16: SERVIÇO | D16: CODEVASF | E16: =[1]Composições!I31 -> COMPO. 3 | F16: LOCAÇÃO, ADMINISTRAÇÃO E MANUTENÇÃO DE CANTEIRO DE OBRA | G16: =[1]Composições!$I$30 -> UN | H16: 1 | I16: =[1]Composições!I53 -> 84133.8 | J16: 103905.24 | K16: 103905.24 | L16: 6
B17: 1.6 | C17: SERVIÇO | D17: CODEVASF | E17: B11 | F17: CAMINHONETE CABINE DUPLA, TRAÇÃO 4X4, ZERO QUILOMETRO, C/4 PORTAS, TRAVAS ELÉTRICAS, SOM AUTOMOTIVO,EQUIP.C/AR-COND.,QUE FICARÁ À DISP.DA FISC.,INCL.DESP.C/SEG.TOTAL, EMPLAC.,REVIS.CONS.,REP.,COMB.E LUBR.,LAV.,ETC | G17: =[1]Composições!$I$2 -> UN | H17: =2*$G$7 -> 12 | I17: ='[1]CPU Veículos'!D43 -> 6475.46 | J17: 7997.19 | K17: 95966.28 | L17: 7
B18: 1.7 | C18: SERVIÇO | D18: CODEVASF | E18: =[1]Composições!I56 -> COMPO. 4 | F18: ELABORAÇÃO/REVISÃO DO PROJETO ESTRUTURAL DO UNIDADE | G18: UN | H18: 6 | I18: =[1]Composições!I66 -> 2084.32 | J18: 2574.14 | K18: 15444.84 | L18: 6
B19: 1.8 | C19: SERVIÇO | D19: CODEVASF | E19: =[1]Composições!I69 -> COMPO. 5 | F19: PLACA DE IDENTIFICAÇÃO DAS FRENTES DE SERVIÇOS | G19: UN | H19: 6 | I19: =[1]Composições!$I$84 -> 323.74 | J19: 399.82 | K19: 2398.92 | L19: 6
B20: 2 | C20: UNIDADE DE MELHORAMENTO GENETICO | K20: =K21+K69+K92+K102+K107+K138+K152+K173+K185+K197 -> 2360505.44
B21: 2.1 | C21: CONSTRUÇÃO DA UNIDADE DE MELHORAMENTO GENETICO | K21: =SUM(K22:K68) -> 1739755.05
B22: 2.1.1 | C22: SERVIÇO | D22: SINAPI | E22: 98525 | F22: =IF(C22="SERVIÇO",IF(D22="SINAPI",VLOOKUP(E22,'[1]SERVIÇOS SINAPI'!$A:$D,2,0),IF(D22="ORSE",VLOOKUP(E22,'[1]SERVIÇOS ORSE'!$A:$D,2,0),IF(D22="SEINFRA",VLOOKUP(E22,'[1]SERVIÇOS SEINFRA'!$A:$D,2,0)))),IF(C22="INSUMO",IF(D22="SINAPI",VLOOKUP(E22,'[1]INSUMOS SINAPI'!$A:$D,2,0),IF(D22="ORSE",VLOOKUP(E22,'[1]INSUMOS ORSE'!$A:$D,2,0),IF(D22="SEINFRA",VLOOKUP(E22,'[1]INSUMOS SEINFRA'!$A:$D,2,0),))))) -> LIMPEZA MECANIZADA DE CAMADA VEGETAL, VEGETAÇÃO E PEQUENAS ÁRVORES (DIÂMETRO DE TRONCO MENOR QUE 0,20 M), COM TRATOR DE ESTEIRAS.AF_05/2018 | G22: =IF(C22="SERVIÇO",IF(D22="SINAPI",VLOOKUP(E22,'[1]SERVIÇOS SINAPI'!$A:$D,3,0),IF(D22="ORSE",VLOOKUP(E22,'[1]SERVIÇOS ORSE'!$A:$D,3,0),IF(D22="SEINFRA",VLOOKUP(E22,'[1]SERVIÇOS SEINFRA'!$A:$D,3,0)))),IF(C22="INSUMO",IF(D22="SINAPI",VLOOKUP(E22,'[1]INSUMOS SINAPI'!$A:$D,3,0),IF(D22="ORSE",VLOOKUP(E22,'[1]INSUMOS ORSE'!$A:$D,3,0),IF(D22="SEINFRA",VLOOKUP(E22,'[1]INSUMOS SEINFRA'!$A:$D,3,0),))))) -> M² | H22: ='[1]Memória de Cálculo'!$L$13*$G$7 -> 3072.3 | I22: =IF(C22="SERVIÇO",IF(D22="SINAPI",VLOOKUP(E22,'[1]SERVIÇOS SINAPI'!$A:$D,4,0),IF(D22="ORSE",VLOOKUP(E22,'[1]SERVIÇOS ORSE'!$A:$D,4,0),IF(D22="SEINFRA",VLOOKUP(E22,'[1]SERVIÇOS SEINFRA'!$A:$D,4,0)))),IF(C22="INSUMO",IF(D22="SINAPI",VLOOKUP(E22,'[1]INSUMOS SINAPI'!$A:$D,4,0),IF(D22="ORSE",VLOOKUP(E22,'[1]INSUMOS ORSE'!$A:$D,4,0),IF(D22="SEINFRA",VLOOKUP(E22,'[1]INSUMOS SEINFRA'!$A:$D,4,0),))))) -> 0.34 | J22: =IF(C22="SERVIÇO",I22*(1+$I$8),IF(C22="INSUMO",(I22*(1+$K$8)))) -> 0.42 | K22: =J22*H22 -> 1290.37 | L22: 1
B23: 2.1.2 | C23: SERVIÇO | D23: SEINFRA | E23: C1630 | F23: =IF(C23="SERVIÇO",IF(D23="SINAPI",VLOOKUP(E23,'[1]SERVIÇOS SINAPI'!$A:$D,2,0),IF(D23="ORSE",VLOOKUP(E23,'[1]SERVIÇOS ORSE'!$A:$D,2,0),IF(D23="SEINFRA",VLOOKUP(E23,'[1]SERVIÇOS SEINFRA'!$A:$D,2,0)))),IF(C23="INSUMO",IF(D23="SINAPI",VLOOKUP(E23,'[1]INSUMOS SINAPI'!$A:$D,2,0),IF(D23="ORSE",VLOOKUP(E23,'[1]INSUMOS ORSE'!$A:$D,2,0),IF(D23="SEINFRA",VLOOKUP(E23,'[1]INSUMOS SEINFRA'!$A:$D,2,0),))))) -> LOCAÇÃO DA OBRA - EXECUÇÃO DE GABARITO | G23: =IF(C23="SERVIÇO",IF(D23="SINAPI",VLOOKUP(E23,'[1]SERVIÇOS SINAPI'!$A:$D,3,0),IF(D23="ORSE",VLOOKUP(E23,'[1]SERVIÇOS ORSE'!$A:$D,3,0),IF(D23="SEINFRA",VLOOKUP(E23,'[1]SERVIÇOS SEINFRA'!$A:$D,3,0)))),IF(C23="INSUMO",IF(D23="SINAPI",VLOOKUP(E23,'[1]INSUMOS SINAPI'!$A:$D,3,0),IF(D23="ORSE",VLOOKUP(E23,'[1]INSUMOS ORSE'!$A:$D,3,0),IF(D23="SEINFRA",VLOOKUP(E23,'[1]INSUMOS SEINFRA'!$A:$D,3,0),))))) -> M² | H23: ='[1]Memória de Cálculo'!$L$45*$G$7 -> 2091 | I23: =IF(C23="SERVIÇO",IF(D23="SINAPI",VLOOKUP(E23,'[1]SERVIÇOS SINAPI'!$A:$D,4,0),IF(D23="ORSE",VLOOKUP(E23,'[1]SERVIÇOS ORSE'!$A:$D,4,0),IF(D23="SEINFRA",VLOOKUP(E23,'[1]SERVIÇOS SEINFRA'!$A:$D,4,0)))),IF(C23="INSUMO",IF(D23="SINAPI",VLOOKUP(E23,'[1]INSUMOS SINAPI'!$A:$D,4,0),IF(D23="ORSE",VLOOKUP(E23,'[1]INSUMOS ORSE'!$A:$D,4,0),IF(D23="SEINFRA",VLOOKUP(E23,'[1]INSUMOS SEINFRA'!$A:$D,4,0),))))) -> 6.6 | J23: 8.15 | K23: 17041.65 | L23: 1
B24: 2.1.3 | C24: SERVIÇO | D24: SINAPI | E24: 93358 | F24: =IF(C24="SERVIÇO",IF(D24="SINAPI",VLOOKUP(E24,'[1]SERVIÇOS SINAPI'!$A:$D,2,0),IF(D24="ORSE",VLOOKUP(E24,'[1]SERVIÇOS ORSE'!$A:$D,2,0),IF(D24="SEINFRA",VLOOKUP(E24,'[1]SERVIÇOS SEINFRA'!$A:$D,2,0)))),IF(C24="INSUMO",IF(D24="SINAPI",VLOOKUP(E24,'[1]INSUMOS SINAPI'!$A:$D,2,0),IF(D24="ORSE",VLOOKUP(E24,'[1]INSUMOS ORSE'!$A:$D,2,0),IF(D24="SEINFRA",VLOOKUP(E24,'[1]INSUMOS SEINFRA'!$A:$D,2,0),))))) -> ESCAVAÇÃO MANUAL DE VALA COM PROFUNDIDADE MENOR OU IGUAL A 1,30 M. AF_02/2021 | G24: =IF(C24="SERVIÇO",IF(D24="SINAPI",VLOOKUP(E24,'[1]SERVIÇOS SINAPI'!$A:$D,3,0),IF(D24="ORSE",VLOOKUP(E24,'[1]SERVIÇOS ORSE'!$A:$D,3,0),IF(D24="SEINFRA",VLOOKUP(E24,'[1]SERVIÇOS SEINFRA'!$A:$D,3,0)))),IF(C24="INSUMO",IF(D24="SINAPI",VLOOKUP(E24,'[1]INSUMOS SINAPI'!$A:$D,3,0),IF(D24="ORSE",VLOOKUP(E24,'[1]INSUMOS ORSE'!$A:$D,3,0),IF(D24="SEINFRA",VLOOKUP(E24,'[1]INSUMOS SEINFRA'!$A:$D,3,0),))))) -> M³ | H24: ='[1]Memória de Cálculo'!$L$49*$G$7 -> 472.02 | I24: =IF(C24="SERVIÇO",IF(D24="SINAPI",VLOOKUP(E24,'[1]SERVIÇOS SINAPI'!$A:$D,4,0),IF(D24="ORSE",VLOOKUP(E24,'[1]SERVIÇOS ORSE'!$A:$D,4,0),IF(D24="SEINFRA",VLOOKUP(E24,'[1]SERVIÇOS SEINFRA'!$A:$D,4,0)))),IF(C24="INSUMO",IF(D24="SINAPI",VLOOKUP(E24,'[1]INSUMOS SINAPI'!$A:$D,4,0),IF(D24="ORSE",VLOOKUP(E24,'[1]INSUMOS ORSE'!$A:$D,4,0),IF(D24="SEINFRA",VLOOKUP(E24,'[1]INSUMOS SEINFRA'!$A:$D,4,0),))))) -> 68.51 | J24: 84.61 | K24: 39937.61 | L24: 1
B25: 2.1.4 | C25: SERVIÇO | D25: SINAPI | E25: 95240 | F25: =IF(C25="SERVIÇO",IF(D25="SINAPI",VLOOKUP(E25,'[1]SERVIÇOS SINAPI'!$A:$D,2,0),IF(D25="ORSE",VLOOKUP(E25,'[1]SERVIÇOS ORSE'!$A:$D,2,0),IF(D25="SEINFRA",VLOOKUP(E25,'[1]SERVIÇOS SEINFRA'!$A:$D,2,0)))),IF(C25="INSUMO",IF(D25="SINAPI",VLOOKUP(E25,'[1]INSUMOS SINAPI'!$A:$D,2,0),IF(D25="ORSE",VLOOKUP(E25,'[1]INSUMOS ORSE'!$A:$D,2,0),IF(D25="SEINFRA",VLOOKUP(E25,'[1]INSUMOS SEINFRA'!$A:$D,2,0),))))) -> LASTRO DE CONCRETO MAGRO, APLICADO EM PISOS, LAJES SOBRE SOLO OU RADIERS, ESPESSURA DE 3 CM. AF_07/2016 | G25: =IF(C25="SERVIÇO",IF(D25="SINAPI",VLOOKUP(E25,'[1]SERVIÇOS SINAPI'!$A:$D,3,0),IF(D25="ORSE",VLOOKUP(E25,'[1]SERVIÇOS ORSE'!$A:$D,3,0),IF(D25="SEINFRA",VLOOKUP(E25,'[1]SERVIÇOS SEINFRA'!$A:$D,3,0)))),IF(C25="INSUMO",IF(D25="SINAPI",VLOOKUP(E25,'[1]INSUMOS SINAPI'!$A:$D,3,0),IF(D25="ORSE",VLOOKUP(E25,'[1]INSUMOS ORSE'!$A:$D,3,0),IF(D25="SEINFRA",VLOOKUP(E25,'[1]INSUMOS SEINFRA'!$A:$D,3,0),))))) -> M² | H25: ='[1]Memória de Cálculo'!$L$53*$G$7 -> 910.26 | I25: =IF(C25="SERVIÇO",IF(D25="SINAPI",VLOOKUP(E25,'[1]SERVIÇOS SINAPI'!$A:$D,4,0),IF(D25="ORSE",VLOOKUP(E25,'[1]SERVIÇOS ORSE'!$A:$D,4,0),IF(D25="SEINFRA",VLOOKUP(E25,'[1]SERVIÇOS SEINFRA'!$A:$D,4,0)))),IF(C25="INSUMO",IF(D25="SINAPI",VLOOKUP(E25,'[1]INSUMOS SINAPI'!$A:$D,4,0),IF(D25="ORSE",VLOOKUP(E25,'[1]INSUMOS ORSE'!$A:$D,4,0),IF(D25="SEINFRA",VLOOKUP(E25,'[1]INSUMOS SEINFRA'!$A:$D,4,0),))))) -> 14.97 | J25: 18.49 | K25: 16830.71 | L25: 3
B26: 2.1.5 | C26: SERVIÇO | D26: ORSE | E26: 93 | F26: =IF(C26="SERVIÇO",IF(D26="SINAPI",VLOOKUP(E26,'[1]SERVIÇOS SINAPI'!$A:$D,2,0),IF(D26="ORSE",VLOOKUP(E26,'[1]SERVIÇOS ORSE'!$A:$D,2,0),IF(D26="SEINFRA",VLOOKUP(E26,'[1]SERVIÇOS SEINFRA'!$A:$D,2,0)))),IF(C26="INSUMO",IF(D26="SINAPI",VLOOKUP(E26,'[1]INSUMOS SINAPI'!$A:$D,2,0),IF(D26="ORSE",VLOOKUP(E26,'[1]INSUMOS ORSE'!$A:$D,2,0),IF(D26="SEINFRA",VLOOKUP(E26,'[1]INSUMOS SEINFRA'!$A:$D,2,0),))))) -> ALVENARIA PEDRA GRANITICA ARGAMASSADA TRAÇO (1:5) - 1 SACO CIMENTO 50KG / 5 P ADIOLAS AREIA DIM. 0,35Z0,45X0,23M - CONFECÇÃO MECÂNICA E TRANSPORTE | G26: =IF(C26="SERVIÇO",IF(D26="SINAPI",VLOOKUP(E26,'[1]SERVIÇOS SINAPI'!$A:$D,3,0),IF(D26="ORSE",VLOOKUP(E26,'[1]SERVIÇOS ORSE'!$A:$D,3,0),IF(D26="SEINFRA",VLOOKUP(E26,'[1]SERVIÇOS SEINFRA'!$A:$D,3,0)))),IF(C26="INSUMO",IF(D26="SINAPI",VLOOKUP(E26,'[1]INSUMOS SINAPI'!$A:$D,3,0),IF(D26="ORSE",VLOOKUP(E26,'[1]INSUMOS ORSE'!$A:$D,3,0),IF(D26="SEINFRA",VLOOKUP(E26,'[1]INSUMOS SEINFRA'!$A:$D,3,0),))))) -> M³ | H26: ='[1]Memória de Cálculo'!$L$55*$G$7 -> 154.98 | I26: =IF(C26="SERVIÇO",IF(D26="SINAPI",VLOOKUP(E26,'[1]SERVIÇOS SINAPI'!$A:$D,4,0),IF(D26="ORSE",VLOOKUP(E26,'[1]SERVIÇOS ORSE'!$A:$D,4,0),IF(D26="SEINFRA",VLOOKUP(E26,'[1]SERVIÇOS SEINFRA'!$A:$D,4,0)))),IF(C26="INSUMO",IF(D26="SINAPI",VLOOKUP(E26,'[1]INSUMOS SINAPI'!$A:$D,4,0),IF(D26="ORSE",VLOOKUP(E26,'[1]INSUMOS ORSE'!$A:$D,4,0),IF(D26="SEINFRA",VLOOKUP(E26,'[1]INSUMOS SEINFRA'!$A:$D,4,0),))))) -> 386.29 | J26: 477.07 | K26: 73936.31 | L26: 2
B27: 2.1.6 | C27: SERVIÇO | D27: SINAPI | E27: 87503 | F27: =IF(C27="SERVIÇO",IF(D27="SINAPI",VLOOKUP(E27,'[1]SERVIÇOS SINAPI'!$A:$D,2,0),IF(D27="ORSE",VLOOKUP(E27,'[1]SERVIÇOS ORSE'!$A:$D,2,0),IF(D27="SEINFRA",VLOOKUP(E27,'[1]SERVIÇOS SEINFRA'!$A:$D,2,0)))),IF(C27="INSUMO",IF(D27="SINAPI",VLOOKUP(E27,'[1]INSUMOS SINAPI'!$A:$D,2,0),IF(D27="ORSE",VLOOKUP(E27,'[1]INSUMOS ORSE'!$A:$D,2,0),IF(D27="SEINFRA",VLOOKUP(E27,'[1]INSUMOS SEINFRA'!$A:$D,2,0),))))) -> ALVENARIA DE VEDAÇÃO DE BLOCOS CERÂMICOS FURADOS NA HORIZONTAL DE 9X19X19CM (ESPESSURA 9CM) DE PAREDES COM ÁREA LÍQUIDA MAIOR OU IGUAL A 6M² SEM VÃOS E ARGAMASSA DE ASSENTAMENTO COM PREPARO EM BETONEIRA. AF_06/2014 | G27: =IF(C27="SERVIÇO",IF(D27="SINAPI",VLOOKUP(E27,'[1]SERVIÇOS SINAPI'!$A:$D,3,0),IF(D27="ORSE",VLOOKUP(E27,'[1]SERVIÇOS ORSE'!$A:$D,3,0),IF(D27="SEINFRA",VLOOKUP(E27,'[1]SERVIÇOS SEINFRA'!$A:$D,3,0)))),IF(C27="INSUMO",IF(D27="SINAPI",VLOOKUP(E27,'[1]INSUMOS SINAPI'!$A:$D,3,0),IF(D27="ORSE",VLOOKUP(E27,'[1]INSUMOS ORSE'!$A:$D,3,0),IF(D27="SEINFRA",VLOOKUP(E27,'[1]INSUMOS SEINFRA'!$A:$D,3,0),))))) -> M² | H27: ='[1]Memória de Cálculo'!$L$58*$G$7 -> 198.48 | I27: =IF(C27="SERVIÇO",IF(D27="SINAPI",VLOOKUP(E27,'[1]SERVIÇOS SINAPI'!$A:$D,4,0),IF(D27="ORSE",VLOOKUP(E27,'[1]SERVIÇOS ORSE'!$A:$D,4,0),IF(D27="SEINFRA",VLOOKUP(E27,'[1]SERVIÇOS SEINFRA'!$A:$D,4,0)))),IF(C27="INSUMO",IF(D27="SINAPI",VLOOKUP(E27,'[1]INSUMOS SINAPI'!$A:$D,4,0),IF(D27="ORSE",VLOOKUP(E27,'[1]INSUMOS ORSE'!$A:$D,4,0),IF(D27="SEINFRA",VLOOKUP(E27,'[1]INSUMOS SEINFRA'!$A:$D,4,0),))))) -> 65.15 | J27: 80.46 | K27: 15969.7 | L27: 2
B28: 2.1.7 | C28: SERVIÇO | D28: SINAPI | E28: 101209 | F28: =IF(C28="SERVIÇO",IF(D28="SINAPI",VLOOKUP(E28,'[1]SERVIÇOS SINAPI'!$A:$D,2,0),IF(D28="ORSE",VLOOKUP(E28,'[1]SERVIÇOS ORSE'!$A:$D,2,0),IF(D28="SEINFRA",VLOOKUP(E28,'[1]SERVIÇOS SEINFRA'!$A:$D,2,0)))),IF(C28="INSUMO",IF(D28="SINAPI",VLOOKUP(E28,'[1]INSUMOS SINAPI'!$A:$D,2,0),IF(D28="ORSE",VLOOKUP(E28,'[1]INSUMOS ORSE'!$A:$D,2,0),IF(D28="SEINFRA",VLOOKUP(E28,'[1]INSUMOS SEINFRA'!$A:$D,2,0),))))) -> ESCAVAÇÃO VERTICAL A CÉU ABERTO, EM OBRAS DE EDIFICAÇÃO, INCLUINDO CARGA, DESCARGA E TRANSPORTE, EM SOLO DE 1ª CATEGORIA COM ESCAVADEIRA HIDRÁULICA (CAÇAMBA: 1,2 M³ / 155 HP), FROTA DE 3 CAMINHÕES BASCULANTES DE 18 M³, DMT ATÉ 1 KM E VELOCIDADE MÉDIA 14KM/H. AF_05/2020 | G28: =IF(C28="SERVIÇO",IF(D28="SINAPI",VLOOKUP(E28,'[1]SERVIÇOS SINAPI'!$A:$D,3,0),IF(D28="ORSE",VLOOKUP(E28,'[1]SERVIÇOS ORSE'!$A:$D,3,0),IF(D28="SEINFRA",VLOOKUP(E28,'[1]SERVIÇOS SEINFRA'!$A:$D,3,0)))),IF(C28="INSUMO",IF(D28="SINAPI",VLOOKUP(E28,'[1]INSUMOS SINAPI'!$A:$D,3,0),IF(D28="ORSE",VLOOKUP(E28,'[1]INSUMOS ORSE'!$A:$D,3,0),IF(D28="SEINFRA",VLOOKUP(E28,'[1]INSUMOS SEINFRA'!$A:$D,3,0),))))) -> M³ | H28: ='[1]Memória de Cálculo'!$L$41*$G$7 -> 209.04 | I28: =IF(C28="SERVIÇO",IF(D28="SINAPI",VLOOKUP(E28,'[1]SERVIÇOS SINAPI'!$A:$D,4,0),IF(D28="ORSE",VLOOKUP(E28,'[1]SERVIÇOS ORSE'!$A:$D,4,0),IF(D28="SEINFRA",VLOOKUP(E28,'[1]SERVIÇOS SEINFRA'!$A:$D,4,0)))),IF(C28="INSUMO",IF(D28="SINAPI",VLOOKUP(E28,'[1]INSUMOS SINAPI'!$A:$D,4,0),IF(D28="ORSE",VLOOKUP(E28,'[1]INSUMOS ORSE'!$A:$D,4,0),IF(D28="SEINFRA",VLOOKUP(E28,'[1]INSUMOS SEINFRA'!$A:$D,4,0),))))) -> 7.67 | J28: 9.47 | K28: 1979.61 | L28: 1
B29: 2.1.8 | C29: SERVIÇO | D29: SINAPI | E29: 96385 | F29: =IF(C29="SERVIÇO",IF(D29="SINAPI",VLOOKUP(E29,'[1]SERVIÇOS SINAPI'!$A:$D,2,0),IF(D29="ORSE",VLOOKUP(E29,'[1]SERVIÇOS ORSE'!$A:$D,2,0),IF(D29="SEINFRA",VLOOKUP(E29,'[1]SERVIÇOS SEINFRA'!$A:$D,2,0)))),IF(C29="INSUMO",IF(D29="SINAPI",VLOOKUP(E29,'[1]INSUMOS SINAPI'!$A:$D,2,0),IF(D29="ORSE",VLOOKUP(E29,'[1]INSUMOS ORSE'!$A:$D,2,0),IF(D29="SEINFRA",VLOOKUP(E29,'[1]INSUMOS SEINFRA'!$A:$D,2,0),))))) -> EXECUÇÃO E COMPACTAÇÃO DE ATERRO COM SOLO PREDOMINANTEMENTE ARGILOSO - EXCLUSIVE SOLO, ESCAVAÇÃO, CARGA E TRANSPORTE. AF_11/2019 | G29: =IF(C29="SERVIÇO",IF(D29="SINAPI",VLOOKUP(E29,'[1]SERVIÇOS SINAPI'!$A:$D,3,0),IF(D29="ORSE",VLOOKUP(E29,'[1]SERVIÇOS ORSE'!$A:$D,3,0),IF(D29="SEINFRA",VLOOKUP(E29,'[1]SERVIÇOS SEINFRA'!$A:$D,3,0)))),IF(C29="INSUMO",IF(D29="SINAPI",VLOOKUP(E29,'[1]INSUMOS SINAPI'!$A:$D,3,0),IF(D29="ORSE",VLOOKUP(E29,'[1]INSUMOS ORSE'!$A:$D,3,0),IF(D29="SEINFRA",VLOOKUP(E29,'[1]INSUMOS SEINFRA'!$A:$D,3,0),))))) -> M³ | H29: ='[1]Memória de Cálculo'!$L$26*$G$7 -> 681.06 | I29: =IF(C29="SERVIÇO",IF(D29="SINAPI",VLOOKUP(E29,'[1]SERVIÇOS SINAPI'!$A:$D,4,0),IF(D29="ORSE",VLOOKUP(E29,'[1]SERVIÇOS ORSE'!$A:$D,4,0),IF(D29="SEINFRA",VLOOKUP(E29,'[1]SERVIÇOS SEINFRA'!$A:$D,4,0)))),IF(C29="INSUMO",IF(D29="SINAPI",VLOOKUP(E29,'[1]INSUMOS SINAPI'!$A:$D,4,0),IF(D29="ORSE",VLOOKUP(E29,'[1]INSUMOS ORSE'!$A:$D,4,0),IF(D29="SEINFRA",VLOOKUP(E29,'[1]INSUMOS SEINFRA'!$A:$D,4,0),))))) -> 9.76 | J29: 12.05 | K29: 8206.77 | L29: 1
B30: 2.1.9 | C30: SERVIÇO | D30: orse | E30: 8175 | F30: =IF(C30="SERVIÇO",IF(D30="SINAPI",VLOOKUP(E30,'[1]SERVIÇOS SINAPI'!$A:$D,2,0),IF(D30="ORSE",VLOOKUP(E30,'[1]SERVIÇOS ORSE'!$A:$D,2,0),IF(D30="SEINFRA",VLOOKUP(E30,'[1]SERVIÇOS SEINFRA'!$A:$D,2,0)))),IF(C30="INSUMO",IF(D30="SINAPI",VLOOKUP(E30,'[1]INSUMOS SINAPI'!$A:$D,2,0),IF(D30="ORSE",VLOOKUP(E30,'[1]INSUMOS ORSE'!$A:$D,2,0),IF(D30="SEINFRA",VLOOKUP(E30,'[1]INSUMOS SEINFRA'!$A:$D,2,0),))))) -> CINTAS E VERGAS EM BLOCOS DE CONCRETO TIPO "U" (CALHA) 14X19X39, PREENCHIDOS COM CONCRETO ARMADO FCK=15 MPA E TRELIÇA DE FERRO PTG 81 - REV.02 | G30: =IF(C30="SERVIÇO",IF(D30="SINAPI",VLOOKUP(E30,'[1]SERVIÇOS SINAPI'!$A:$D,3,0),IF(D30="ORSE",VLOOKUP(E30,'[1]SERVIÇOS ORSE'!$A:$D,3,0),IF(D30="SEINFRA",VLOOKUP(E30,'[1]SERVIÇOS SEINFRA'!$A:$D,3,0)))),IF(C30="INSUMO",IF(D30="SINAPI",VLOOKUP(E30,'[1]INSUMOS SINAPI'!$A:$D,3,0),IF(D30="ORSE",VLOOKUP(E30,'[1]INSUMOS ORSE'!$A:$D,3,0),IF(D30="SEINFRA",VLOOKUP(E30,'[1]INSUMOS SEINFRA'!$A:$D,3,0),))))) -> M | H30: ='[1]Memória de Cálculo'!$L$58*$G$7 -> 198.48 | I30: =IF(C30="SERVIÇO",IF(D30="SINAPI",VLOOKUP(E30,'[1]SERVIÇOS SINAPI'!$A:$D,4,0),IF(D30="ORSE",VLOOKUP(E30,'[1]SERVIÇOS ORSE'!$A:$D,4,0),IF(D30="SEINFRA",VLOOKUP(E30,'[1]SERVIÇOS SEINFRA'!$A:$D,4,0)))),IF(C30="INSUMO",IF(D30="SINAPI",VLOOKUP(E30,'[1]INSUMOS SINAPI'!$A:$D,4,0),IF(D30="ORSE",VLOOKUP(E30,'[1]INSUMOS ORSE'!$A:$D,4,0),IF(D30="SEINFRA",VLOOKUP(E30,'[1]INSUMOS SEINFRA'!$A:$D,4,0),))))) -> 50.94 | J30: 62.91 | K30: 12486.38 | L30: 3
B31: 2.1.10 | C31: SERVIÇO | D31: SINAPI | E31: 92435 | F31: =IF(C31="SERVIÇO",IF(D31="SINAPI",VLOOKUP(E31,'[1]SERVIÇOS SINAPI'!$A:$D,2,0),IF(D31="ORSE",VLOOKUP(E31,'[1]SERVIÇOS ORSE'!$A:$D,2,0),IF(D31="SEINFRA",VLOOKUP(E31,'[1]SERVIÇOS SEINFRA'!$A:$D,2,0)))),IF(C31="INSUMO",IF(D31="SINAPI",VLOOKUP(E31,'[1]INSUMOS SINAPI'!$A:$D,2,0),IF(D31="ORSE",VLOOKUP(E31,'[1]INSUMOS ORSE'!$A:$D,2,0),IF(D31="SEINFRA",VLOOKUP(E31,'[1]INSUMOS SEINFRA'!$A:$D,2,0),))))) -> MONTAGEM E DESMONTAGEM DE FÔRMA DE PILARES RETANGULARES E ESTRUTURAS SIMILARES, PÉ-DIREITO SIMPLES, EM CHAPA DE MADEIRA COMPENSADA PLASTIFICADA, 12 UTILIZAÇÕES. AF_09/2020 | G31: =IF(C31="SERVIÇO",IF(D31="SINAPI",VLOOKUP(E31,'[1]SERVIÇOS SINAPI'!$A:$D,3,0),IF(D31="ORSE",VLOOKUP(E31,'[1]SERVIÇOS ORSE'!$A:$D,3,0),IF(D31="SEINFRA",VLOOKUP(E31,'[1]SERVIÇOS SEINFRA'!$A:$D,3,0)))),IF(C31="INSUMO",IF(D31="SINAPI",VLOOKUP(E31,'[1]INSUMOS SINAPI'!$A:$D,3,0),IF(D31="ORSE",VLOOKUP(E31,'[1]INSUMOS ORSE'!$A:$D,3,0),IF(D31="SEINFRA",VLOOKUP(E31,'[1]INSUMOS SEINFRA'!$A:$D,3,0),))))) -> M² | H31: ='[1]Memória de Cálculo'!$L$74*$G$7 -> 1985.34 | I31: =IF(C31="SERVIÇO",IF(D31="SINAPI",VLOOKUP(E31,'[1]SERVIÇOS SINAPI'!$A:$D,4,0),IF(D31="ORSE",VLOOKUP(E31,'[1]SERVIÇOS ORSE'!$A:$D,4,0),IF(D31="SEINFRA",VLOOKUP(E31,'[1]SERVIÇOS SEINFRA'!$A:$D,4,0)))),IF(C31="INSUMO",IF(D31="SINAPI",VLOOKUP(E31,'[1]INSUMOS SINAPI'!$A:$D,4,0),IF(D31="ORSE",VLOOKUP(E31,'[1]INSUMOS ORSE'!$A:$D,4,0),IF(D31="SEINFRA",VLOOKUP(E31,'[1]INSUMOS SEINFRA'!$A:$D,4,0),))))) -> 39.65 | J31: 48.97 | K31: 97222.1 | L31: 2
B32: 2.1.11 | C32: SERVIÇO | D32: SINAPI | E32: 94964 | F32: =IF(C32="SERVIÇO",IF(D32="SINAPI",VLOOKUP(E32,'[1]SERVIÇOS SINAPI'!$A:$D,2,0),IF(D32="ORSE",VLOOKUP(E32,'[1]SERVIÇOS ORSE'!$A:$D,2,0),IF(D32="SEINFRA",VLOOKUP(E32,'[1]SERVIÇOS SEINFRA'!$A:$D,2,0)))),IF(C32="INSUMO",IF(D32="SINAPI",VLOOKUP(E32,'[1]INSUMOS SINAPI'!$A:$D,2,0),IF(D32="ORSE",VLOOKUP(E32,'[1]INSUMOS ORSE'!$A:$D,2,0),IF(D32="SEINFRA",VLOOKUP(E32,'[1]INSUMOS SEINFRA'!$A:$D,2,0),))))) -> CONCRETO FCK = 20MPA, TRAÇO 1:2,7:3 (EM MASSA SECA DE CIMENTO/ AREIA MÉDIA/ BRITA 1) - PREPARO MECÂNICO COM BETONEIRA 400 L. AF_05/2021 | G32: =IF(C32="SERVIÇO",IF(D32="SINAPI",VLOOKUP(E32,'[1]SERVIÇOS SINAPI'!$A:$D,3,0),IF(D32="ORSE",VLOOKUP(E32,'[1]SERVIÇOS ORSE'!$A:$D,3,0),IF(D32="SEINFRA",VLOOKUP(E32,'[1]SERVIÇOS SEINFRA'!$A:$D,3,0)))),IF(C32="INSUMO",IF(D32="SINAPI",VLOOKUP(E32,'[1]INSUMOS SINAPI'!$A:$D,3,0),IF(D32="ORSE",VLOOKUP(E32,'[1]INSUMOS ORSE'!$A:$D,3,0),IF(D32="SEINFRA",VLOOKUP(E32,'[1]INSUMOS SEINFRA'!$A:$D,3,0),))))) -> M³ | H32: ='[1]Memória de Cálculo'!$L$94*$G$7 -> 136.8 | I32: =IF(C32="SERVIÇO",IF(D32="SINAPI",VLOOKUP(E32,'[1]SERVIÇOS SINAPI'!$A:$D,4,0),IF(D32="ORSE",VLOOKUP(E32,'[1]SERVIÇOS ORSE'!$A:$D,4,0),IF(D32="SEINFRA",VLOOKUP(E32,'[1]SERVIÇOS SEINFRA'!$A:$D,4,0)))),IF(C32="INSUMO",IF(D32="SINAPI",VLOOKUP(E32,'[1]INSUMOS SINAPI'!$A:$D,4,0),IF(D32="ORSE",VLOOKUP(E32,'[1]INSUMOS ORSE'!$A:$D,4,0),IF(D32="SEINFRA",VLOOKUP(E32,'[1]INSUMOS SEINFRA'!$A:$D,4,0),))))) -> 385.45 | J32: 476.03 | K32: 65120.9 | L32: 3
B33: 2.1.12 | C33: SERVIÇO | D33: SINAPI | E33: 92435 | F33: =IF(C33="SERVIÇO",IF(D33="SINAPI",VLOOKUP(E33,'[1]SERVIÇOS SINAPI'!$A:$D,2,0),IF(D33="ORSE",VLOOKUP(E33,'[1]SERVIÇOS ORSE'!$A:$D,2,0),IF(D33="SEINFRA",VLOOKUP(E33,'[1]SERVIÇOS SEINFRA'!$A:$D,2,0)))),IF(C33="INSUMO",IF(D33="SINAPI",VLOOKUP(E33,'[1]INSUMOS SINAPI'!$A:$D,2,0),IF(D33="ORSE",VLOOKUP(E33,'[1]INSUMOS ORSE'!$A:$D,2,0),IF(D33="SEINFRA",VLOOKUP(E33,'[1]INSUMOS SEINFRA'!$A:$D,2,0),))))) -> MONTAGEM E DESMONTAGEM DE FÔRMA DE PILARES RETANGULARES E ESTRUTURAS SIMILARES, PÉ-DIREITO SIMPLES, EM CHAPA DE MADEIRA COMPENSADA PLASTIFICADA, 12 UTILIZAÇÕES. AF_09/2020 | G33: =IF(C33="SERVIÇO",IF(D33="SINAPI",VLOOKUP(E33,'[1]SERVIÇOS SINAPI'!$A:$D,3,0),IF(D33="ORSE",VLOOKUP(E33,'[1]SERVIÇOS ORSE'!$A:$D,3,0),IF(D33="SEINFRA",VLOOKUP(E33,'[1]SERVIÇOS SEINFRA'!$A:$D,3,0)))),IF(C33="INSUMO",IF(D33="SINAPI",VLOOKUP(E33,'[1]INSUMOS SINAPI'!$A:$D,3,0),IF(D33="ORSE",VLOOKUP(E33,'[1]INSUMOS ORSE'!$A:$D,3,0),IF(D33="SEINFRA",VLOOKUP(E33,'[1]INSUMOS SEINFRA'!$A:$D,3,0),))))) -> M² | H33: ='[1]Memória de Cálculo'!$L$99*$G$7 -> 26.4 | I33: =IF(C33="SERVIÇO",IF(D33="SINAPI",VLOOKUP(E33,'[1]SERVIÇOS SINAPI'!$A:$D,4,0),IF(D33="ORSE",VLOOKUP(E33,'[1]SERVIÇOS ORSE'!$A:$D,4,0),IF(D33="SEINFRA",VLOOKUP(E33,'[1]SERVIÇOS SEINFRA'!$A:$D,4,0)))),IF(C33="INSUMO",IF(D33="SINAPI",VLOOKUP(E33,'[1]INSUMOS SINAPI'!$A:$D,4,0),IF(D33="ORSE",VLOOKUP(E33,'[1]INSUMOS ORSE'!$A:$D,4,0),IF(D33="SEINFRA",VLOOKUP(E33,'[1]INSUMOS SEINFRA'!$A:$D,4,0),))))) -> 39.65 | J33: 48.97 | K33: 1292.81 | L33: 3
B34: 2.1.13 | C34: SERVIÇO | D34: SINAPI | E34: 92778 | F34: =IF(C34="SERVIÇO",IF(D34="SINAPI",VLOOKUP(E34,'[1]SERVIÇOS SINAPI'!$A:$D,2,0),IF(D34="ORSE",VLOOKUP(E34,'[1]SERVIÇOS ORSE'!$A:$D,2,0),IF(D34="SEINFRA",VLOOKUP(E34,'[1]SERVIÇOS SEINFRA'!$A:$D,2,0)))),IF(C34="INSUMO",IF(D34="SINAPI",VLOOKUP(E34,'[1]INSUMOS SINAPI'!$A:$D,2,0),IF(D34="ORSE",VLOOKUP(E34,'[1]INSUMOS ORSE'!$A:$D,2,0),IF(D34="SEINFRA",VLOOKUP(E34,'[1]INSUMOS SEINFRA'!$A:$D,2,0),))))) -> ARMAÇÃO DE PILAR OU VIGA DE UMA ESTRUTURA CONVENCIONAL DE CONCRETO ARMADO EM UMA EDIFICAÇÃO TÉRREA OU SOBRADO UTILIZANDO AÇO CA-50 DE 10,0 MM - MONTAGEM. AF_12/2015 | G34: =IF(C34="SERVIÇO",IF(D34="SINAPI",VLOOKUP(E34,'[1]SERVIÇOS SINAPI'!$A:$D,3,0),IF(D34="ORSE",VLOOKUP(E34,'[1]SERVIÇOS ORSE'!$A:$D,3,0),IF(D34="SEINFRA",VLOOKUP(E34,'[1]SERVIÇOS SEINFRA'!$A:$D,3,0)))),IF(C34="INSUMO",IF(D34="SINAPI",VLOOKUP(E34,'[1]INSUMOS SINAPI'!$A:$D,3,0),IF(D34="ORSE",VLOOKUP(E34,'[1]INSUMOS ORSE'!$A:$D,3,0),IF(D34="SEINFRA",VLOOKUP(E34,'[1]INSUMOS SEINFRA'!$A:$D,3,0),))))) -> KG | H34: ='[1]Memória de Cálculo'!$L$103*$G$7 -> 7524 | I34: =IF(C34="SERVIÇO",IF(D34="SINAPI",VLOOKUP(E34,'[1]SERVIÇOS SINAPI'!$A:$D,4,0),IF(D34="ORSE",VLOOKUP(E34,'[1]SERVIÇOS ORSE'!$A:$D,4,0),IF(D34="SEINFRA",VLOOKUP(E34,'[1]SERVIÇOS SEINFRA'!$A:$D,4,0)))),IF(C34="INSUMO",IF(D34="SINAPI",VLOOKUP(E34,'[1]INSUMOS SINAPI'!$A:$D,4,0),IF(D34="ORSE",VLOOKUP(E34,'[1]INSUMOS ORSE'!$A:$D,4,0),IF(D34="SEINFRA",VLOOKUP(E34,'[1]INSUMOS SEINFRA'!$A:$D,4,0),))))) -> 17.57 | J34: 21.7 | K34: 163270.8 | L34: 5
B35: 2.1.14 | C35: SERVIÇO | D35: SINAPI | E35: 92775 | F35: =IF(C35="SERVIÇO",IF(D35="SINAPI",VLOOKUP(E35,'[1]SERVIÇOS SINAPI'!$A:$D,2,0),IF(D35="ORSE",VLOOKUP(E35,'[1]SERVIÇOS ORSE'!$A:$D,2,0),IF(D35="SEINFRA",VLOOKUP(E35,'[1]SERVIÇOS SEINFRA'!$A:$D,2,0)))),IF(C35="INSUMO",IF(D35="SINAPI",VLOOKUP(E35,'[1]INSUMOS SINAPI'!$A:$D,2,0),IF(D35="ORSE",VLOOKUP(E35,'[1]INSUMOS ORSE'!$A:$D,2,0),IF(D35="SEINFRA",VLOOKUP(E35,'[1]INSUMOS SEINFRA'!$A:$D,2,0),))))) -> ARMAÇÃO DE PILAR OU VIGA DE UMA ESTRUTURA CONVENCIONAL DE CONCRETO ARMADO EM UMA EDIFICAÇÃO TÉRREA OU SOBRADO UTILIZANDO AÇO CA-60 DE 5,0 MM - MONTAGEM. AF_12/2015 | G35: =IF(C35="SERVIÇO",IF(D35="SINAPI",VLOOKUP(E35,'[1]SERVIÇOS SINAPI'!$A:$D,3,0),IF(D35="ORSE",VLOOKUP(E35,'[1]SERVIÇOS ORSE'!$A:$D,3,0),IF(D35="SEINFRA",VLOOKUP(E35,'[1]SERVIÇOS SEINFRA'!$A:$D,3,0)))),IF(C35="INSUMO",IF(D35="SINAPI",VLOOKUP(E35,'[1]INSUMOS SINAPI'!$A:$D,3,0),IF(D35="ORSE",VLOOKUP(E35,'[1]INSUMOS ORSE'!$A:$D,3,0),IF(D35="SEINFRA",VLOOKUP(E35,'[1]INSUMOS SEINFRA'!$A:$D,3,0),))))) -> KG | H35: ='[1]Memória de Cálculo'!$L$107*$G$7 -> 4104 | I35: =IF(C35="SERVIÇO",IF(D35="SINAPI",VLOOKUP(E35,'[1]SERVIÇOS SINAPI'!$A:$D,4,0),IF(D35="ORSE",VLOOKUP(E35,'[1]SERVIÇOS ORSE'!$A:$D,4,0),IF(D35="SEINFRA",VLOOKUP(E35,'[1]SERVIÇOS SEINFRA'!$A:$D,4,0)))),IF(C35="INSUMO",IF(D35="SINAPI",VLOOKUP(E35,'[1]INSUMOS SINAPI'!$A:$D,4,0),IF(D35="ORSE",VLOOKUP(E35,'[1]INSUMOS ORSE'!$A:$D,4,0),IF(D35="SEINFRA",VLOOKUP(E35,'[1]INSUMOS SEINFRA'!$A:$D,4,0),))))) -> 21.12 | J35: 26.08 | K35: 107032.32 | L35: 5
B36: 2.1.15 | C36: SERVIÇO | D36: SINAPI | E36: 92873 | F36: =IF(C36="SERVIÇO",IF(D36="SINAPI",VLOOKUP(E36,'[1]SERVIÇOS SINAPI'!$A:$D,2,0),IF(D36="ORSE",VLOOKUP(E36,'[1]SERVIÇOS ORSE'!$A:$D,2,0),IF(D36="SEINFRA",VLOOKUP(E36,'[1]SERVIÇOS SEINFRA'!$A:$D,2,0)))),IF(C36="INSUMO",IF(D36="SINAPI",VLOOKUP(E36,'[1]INSUMOS SINAPI'!$A:$D,2,0),IF(D36="ORSE",VLOOKUP(E36,'[1]INSUMOS ORSE'!$A:$D,2,0),IF(D36="SEINFRA",VLOOKUP(E36,'[1]INSUMOS SEINFRA'!$A:$D,2,0),))))) -> LANÇAMENTO COM USO DE BALDES, ADENSAMENTO E ACABAMENTO DE CONCRETO EM ESTRUTURAS. AF_12/2015 | G36: =IF(C36="SERVIÇO",IF(D36="SINAPI",VLOOKUP(E36,'[1]SERVIÇOS SINAPI'!$A:$D,3,0),IF(D36="ORSE",VLOOKUP(E36,'[1]SERVIÇOS ORSE'!$A:$D,3,0),IF(D36="SEINFRA",VLOOKUP(E36,'[1]SERVIÇOS SEINFRA'!$A:$D,3,0)))),IF(C36="INSUMO",IF(D36="SINAPI",VLOOKUP(E36,'[1]INSUMOS SINAPI'!$A:$D,3,0),IF(D36="ORSE",VLOOKUP(E36,'[1]INSUMOS ORSE'!$A:$D,3,0),IF(D36="SEINFRA",VLOOKUP(E36,'[1]INSUMOS SEINFRA'!$A:$D,3,0),))))) -> M³ | H36: ='[1]Memória de Cálculo'!$L$111*$G$7 -> 136.8 | I36: =IF(C36="SERVIÇO",IF(D36="SINAPI",VLOOKUP(E36,'[1]SERVIÇOS SINAPI'!$A:$D,4,0),IF(D36="ORSE",VLOOKUP(E36,'[1]SERVIÇOS ORSE'!$A:$D,4,0),IF(D36="SEINFRA",VLOOKUP(E36,'[1]SERVIÇOS SEINFRA'!$A:$D,4,0)))),IF(C36="INSUMO",IF(D36="SINAPI",VLOOKUP(E36,'[1]INSUMOS SINAPI'!$A:$D,4,0),IF(D36="ORSE",VLOOKUP(E36,'[1]INSUMOS ORSE'!$A:$D,4,0),IF(D36="SEINFRA",VLOOKUP(E36,'[1]INSUMOS SEINFRA'!$A:$D,4,0),))))) -> 177.24 | J36: 218.89 | K36: 29944.15 | L36: 3
B37: 2.1.16 | C37: SERVIÇO | D37: SINAPI | E37: 95240 | F37: =IF(C37="SERVIÇO",IF(D37="SINAPI",VLOOKUP(E37,'[1]SERVIÇOS SINAPI'!$A:$D,2,0),IF(D37="ORSE",VLOOKUP(E37,'[1]SERVIÇOS ORSE'!$A:$D,2,0),IF(D37="SEINFRA",VLOOKUP(E37,'[1]SERVIÇOS SEINFRA'!$A:$D,2,0)))),IF(C37="INSUMO",IF(D37="SINAPI",VLOOKUP(E37,'[1]INSUMOS SINAPI'!$A:$D,2,0),IF(D37="ORSE",VLOOKUP(E37,'[1]INSUMOS ORSE'!$A:$D,2,0),IF(D37="SEINFRA",VLOOKUP(E37,'[1]INSUMOS SEINFRA'!$A:$D,2,0),))))) -> LASTRO DE CONCRETO MAGRO, APLICADO EM PISOS, LAJES SOBRE SOLO OU RADIERS, ESPESSURA DE 3 CM. AF_07/2016 | G37: =IF(C37="SERVIÇO",IF(D37="SINAPI",VLOOKUP(E37,'[1]SERVIÇOS SINAPI'!$A:$D,3,0),IF(D37="ORSE",VLOOKUP(E37,'[1]SERVIÇOS ORSE'!$A:$D,3,0),IF(D37="SEINFRA",VLOOKUP(E37,'[1]SERVIÇOS SEINFRA'!$A:$D,3,0)))),IF(C37="INSUMO",IF(D37="SINAPI",VLOOKUP(E37,'[1]INSUMOS SINAPI'!$A:$D,3,0),IF(D37="ORSE",VLOOKUP(E37,'[1]INSUMOS ORSE'!$A:$D,3,0),IF(D37="SEINFRA",VLOOKUP(E37,'[1]INSUMOS SEINFRA'!$A:$D,3,0),))))) -> M² | H37: ='[1]Memória de Cálculo'!$L$125*$G$7 -> 1398.72 | I37: =IF(C37="SERVIÇO",IF(D37="SINAPI",VLOOKUP(E37,'[1]SERVIÇOS SINAPI'!$A:$D,4,0),IF(D37="ORSE",VLOOKUP(E37,'[1]SERVIÇOS ORSE'!$A:$D,4,0),IF(D37="SEINFRA",VLOOKUP(E37,'[1]SERVIÇOS SEINFRA'!$A:$D,4,0)))),IF(C37="INSUMO",IF(D37="SINAPI",VLOOKUP(E37,'[1]INSUMOS SINAPI'!$A:$D,4,0),IF(D37="ORSE",VLOOKUP(E37,'[1]INSUMOS ORSE'!$A:$D,4,0),IF(D37="SEINFRA",VLOOKUP(E37,'[1]INSUMOS SEINFRA'!$A:$D,4,0),))))) -> 14.97 | J37: 18.49 | K37: 25862.33 | L37: 3
B38: 2.1.17 | C38: SERVIÇO | D38: SINAPI | E38: 94438 | F38: =IF(C38="SERVIÇO",IF(D38="SINAPI",VLOOKUP(E38,'[1]SERVIÇOS SINAPI'!$A:$D,2,0),IF(D38="ORSE",VLOOKUP(E38,'[1]SERVIÇOS ORSE'!$A:$D,2,0),IF(D38="SEINFRA",VLOOKUP(E38,'[1]SERVIÇOS SEINFRA'!$A:$D,2,0)))),IF(C38="INSUMO",IF(D38="SINAPI",VLOOKUP(E38,'[1]INSUMOS SINAPI'!$A:$D,2,0),IF(D38="ORSE",VLOOKUP(E38,'[1]INSUMOS ORSE'!$A:$D,2,0),IF(D38="SEINFRA",VLOOKUP(E38,'[1]INSUMOS SEINFRA'!$A:$D,2,0),))))) -> (COMPOSIÇÃO REPRESENTATIVA) DO SERVIÇO DE CONTRAPISO EM ARGAMASSA TRAÇO 1:4 (CIM E AREIA), EM BETONEIRA 400 L, ESPESSURA 3 CM ÁREAS SECAS E 3 CM ÁREAS MOLHADAS, PARA EDIFICAÇÃO HABITACIONAL UNIFAMILIAR (CASA) E EDIFICAÇÃO PÚBLICA PADRÃO. AF_11/2014 | G38: =IF(C38="SERVIÇO",IF(D38="SINAPI",VLOOKUP(E38,'[1]SERVIÇOS SINAPI'!$A:$D,3,0),IF(D38="ORSE",VLOOKUP(E38,'[1]SERVIÇOS ORSE'!$A:$D,3,0),IF(D38="SEINFRA",VLOOKUP(E38,'[1]SERVIÇOS SEINFRA'!$A:$D,3,0)))),IF(C38="INSUMO",IF(D38="SINAPI",VLOOKUP(E38,'[1]INSUMOS SINAPI'!$A:$D,3,0),IF(D38="ORSE",VLOOKUP(E38,'[1]INSUMOS ORSE'!$A:$D,3,0),IF(D38="SEINFRA",VLOOKUP(E38,'[1]INSUMOS SEINFRA'!$A:$D,3,0),))))) -> M² | H38: ='[1]Memória de Cálculo'!$L$134*$G$7 -> 417.9 | I38: =IF(C38="SERVIÇO",IF(D38="SINAPI",VLOOKUP(E38,'[1]SERVIÇOS SINAPI'!$A:$D,4,0),IF(D38="ORSE",VLOOKUP(E38,'[1]SERVIÇOS ORSE'!$A:$D,4,0),IF(D38="SEINFRA",VLOOKUP(E38,'[1]SERVIÇOS SEINFRA'!$A:$D,4,0)))),IF(C38="INSUMO",IF(D38="SINAPI",VLOOKUP(E38,'[1]INSUMOS SINAPI'!$A:$D,4,0),IF(D38="ORSE",VLOOKUP(E38,'[1]INSUMOS ORSE'!$A:$D,4,0),IF(D38="SEINFRA",VLOOKUP(E38,'[1]INSUMOS SEINFRA'!$A:$D,4,0),))))) -> 36.35 | J38: 44.89 | K38: 18759.53 | L38: 2
B39: 2.1.18 | C39: SERVIÇO | D39: SINAPI | E39: 98680 | F39: =IF(C39="SERVIÇO",IF(D39="SINAPI",VLOOKUP(E39,'[1]SERVIÇOS SINAPI'!$A:$D,2,0),IF(D39="ORSE",VLOOKUP(E39,'[1]SERVIÇOS ORSE'!$A:$D,2,0),IF(D39="SEINFRA",VLOOKUP(E39,'[1]SERVIÇOS SEINFRA'!$A:$D,2,0)))),IF(C39="INSUMO",IF(D39="SINAPI",VLOOKUP(E39,'[1]INSUMOS SINAPI'!$A:$D,2,0),IF(D39="ORSE",VLOOKUP(E39,'[1]INSUMOS ORSE'!$A:$D,2,0),IF(D39="SEINFRA",VLOOKUP(E39,'[1]INSUMOS SEINFRA'!$A:$D,2,0),))))) -> PISO CIMENTADO, TRAÇO 1:3 (CIMENTO E AREIA), ACABAMENTO LISO, ESPESSURA 3,0 CM, PREPARO MECÂNICO DA ARGAMASSA. AF_09/2020 | G39: =IF(C39="SERVIÇO",IF(D39="SINAPI",VLOOKUP(E39,'[1]SERVIÇOS SINAPI'!$A:$D,3,0),IF(D39="ORSE",VLOOKUP(E39,'[1]SERVIÇOS ORSE'!$A:$D,3,0),IF(D39="SEINFRA",VLOOKUP(E39,'[1]SERVIÇOS SEINFRA'!$A:$D,3,0)))),IF(C39="INSUMO",IF(D39="SINAPI",VLOOKUP(E39,'[1]INSUMOS SINAPI'!$A:$D,3,0),IF(D39="ORSE",VLOOKUP(E39,'[1]INSUMOS ORSE'!$A:$D,3,0),IF(D39="SEINFRA",VLOOKUP(E39,'[1]INSUMOS SEINFRA'!$A:$D,3,0),))))) -> M² | H39: ='[1]Memória de Cálculo'!$L$142*$G$7 -> 1012.32 | I39: =IF(C39="SERVIÇO",IF(D39="SINAPI",VLOOKUP(E39,'[1]SERVIÇOS SINAPI'!$A:$D,4,0),IF(D39="ORSE",VLOOKUP(E39,'[1]SERVIÇOS ORSE'!$A:$D,4,0),IF(D39="SEINFRA",VLOOKUP(E39,'[1]SERVIÇOS SEINFRA'!$A:$D,4,0)))),IF(C39="INSUMO",IF(D39="SINAPI",VLOOKUP(E39,'[1]INSUMOS SINAPI'!$A:$D,4,0),IF(D39="ORSE",VLOOKUP(E39,'[1]INSUMOS ORSE'!$A:$D,4,0),IF(D39="SEINFRA",VLOOKUP(E39,'[1]INSUMOS SEINFRA'!$A:$D,4,0),))))) -> 38.38 | J39: 47.4 | K39: 47983.97 | L39: 2
B40: 2.1.19 | C40: SERVIÇO | D40: ORSE | E40: 10169 | F40: =IF(C40="SERVIÇO",IF(D40="SINAPI",VLOOKUP(E40,'[1]SERVIÇOS SINAPI'!$A:$D,2,0),IF(D40="ORSE",VLOOKUP(E40,'[1]SERVIÇOS ORSE'!$A:$D,2,0),IF(D40="SEINFRA",VLOOKUP(E40,'[1]SERVIÇOS SEINFRA'!$A:$D,2,0)))),IF(C40="INSUMO",IF(D40="SINAPI",VLOOKUP(E40,'[1]INSUMOS SINAPI'!$A:$D,2,0),IF(D40="ORSE",VLOOKUP(E40,'[1]INSUMOS ORSE'!$A:$D,2,0),IF(D40="SEINFRA",VLOOKUP(E40,'[1]INSUMOS SEINFRA'!$A:$D,2,0),))))) -> PISO ALTA RESISTÊNCIA 12 MM, COR CINZA, COM JUNTAS PLÁSTICAS, POLIMENTO ATÉ O ESMERIL 400 E ENCERAMENTO, EXCLUSIVE ARGAMASSA DE REGULARIZAÇÃO, APLICADO | G40: =IF(C40="SERVIÇO",IF(D40="SINAPI",VLOOKUP(E40,'[1]SERVIÇOS SINAPI'!$A:$D,3,0),IF(D40="ORSE",VLOOKUP(E40,'[1]SERVIÇOS ORSE'!$A:$D,3,0),IF(D40="SEINFRA",VLOOKUP(E40,'[1]SERVIÇOS SEINFRA'!$A:$D,3,0)))),IF(C40="INSUMO",IF(D40="SINAPI",VLOOKUP(E40,'[1]INSUMOS SINAPI'!$A:$D,3,0),IF(D40="ORSE",VLOOKUP(E40,'[1]INSUMOS ORSE'!$A:$D,3,0),IF(D40="SEINFRA",VLOOKUP(E40,'[1]INSUMOS SEINFRA'!$A:$D,3,0),))))) -> M² | H40: ='[1]Memória de Cálculo'!$L$151*$G$7 -> 417.9 | I40: =IF(C40="SERVIÇO",IF(D40="SINAPI",VLOOKUP(E40,'[1]SERVIÇOS SINAPI'!$A:$D,4,0),IF(D40="ORSE",VLOOKUP(E40,'[1]SERVIÇOS ORSE'!$A:$D,4,0),IF(D40="SEINFRA",VLOOKUP(E40,'[1]SERVIÇOS SEINFRA'!$A:$D,4,0)))),IF(C40="INSUMO",IF(D40="SINAPI",VLOOKUP(E40,'[1]INSUMOS SINAPI'!$A:$D,4,0),IF(D40="ORSE",VLOOKUP(E40,'[1]INSUMOS ORSE'!$A:$D,4,0),IF(D40="SEINFRA",VLOOKUP(E40,'[1]INSUMOS SEINFRA'!$A:$D,4,0),))))) -> 41.8 | J40: 51.62 | K40: 21572 | L40: 2
B41: 2.1.20 | C41: SERVIÇO | D41: ORSE | E41: 11233 | F41: =IF(C41="SERVIÇO",IF(D41="SINAPI",VLOOKUP(E41,'[1]SERVIÇOS SINAPI'!$A:$D,2,0),IF(D41="ORSE",VLOOKUP(E41,'[1]SERVIÇOS ORSE'!$A:$D,2,0),IF(D41="SEINFRA",VLOOKUP(E41,'[1]SERVIÇOS SEINFRA'!$A:$D,2,0)))),IF(C41="INSUMO",IF(D41="SINAPI",VLOOKUP(E41,'[1]INSUMOS SINAPI'!$A:$D,2,0),IF(D41="ORSE",VLOOKUP(E41,'[1]INSUMOS ORSE'!$A:$D,2,0),IF(D41="SEINFRA",VLOOKUP(E41,'[1]INSUMOS SEINFRA'!$A:$D,2,0),))))) -> RODAPÉ ALTA RESISTÊNCIA, H = 10 CM, MEIA-CANA | G41: =IF(C41="SERVIÇO",IF(D41="SINAPI",VLOOKUP(E41,'[1]SERVIÇOS SINAPI'!$A:$D,3,0),IF(D41="ORSE",VLOOKUP(E41,'[1]SERVIÇOS ORSE'!$A:$D,3,0),IF(D41="SEINFRA",VLOOKUP(E41,'[1]SERVIÇOS SEINFRA'!$A:$D,3,0)))),IF(C41="INSUMO",IF(D41="SINAPI",VLOOKUP(E41,'[1]INSUMOS SINAPI'!$A:$D,3,0),IF(D41="ORSE",VLOOKUP(E41,'[1]INSUMOS ORSE'!$A:$D,3,0),IF(D41="SEINFRA",VLOOKUP(E41,'[1]INSUMOS SEINFRA'!$A:$D,3,0),))))) -> M | H41: ='[1]Memória de Cálculo'!$L$160*$G$7 -> 596.76 | I41: =IF(C41="SERVIÇO",IF(D41="SINAPI",VLOOKUP(E41,'[1]SERVIÇOS SINAPI'!$A:$D,4,0),IF(D41="ORSE",VLOOKUP(E41,'[1]SERVIÇOS ORSE'!$A:$D,4,0),IF(D41="SEINFRA",VLOOKUP(E41,'[1]SERVIÇOS SEINFRA'!$A:$D,4,0)))),IF(C41="INSUMO",IF(D41="SINAPI",VLOOKUP(E41,'[1]INSUMOS SINAPI'!$A:$D,4,0),IF(D41="ORSE",VLOOKUP(E41,'[1]INSUMOS ORSE'!$A:$D,4,0),IF(D41="SEINFRA",VLOOKUP(E41,'[1]INSUMOS SEINFRA'!$A:$D,4,0),))))) -> 18.46 | J41: 22.8 | K41: 13606.13 | L41: 2
B42: 2.1.21 | C42: SERVIÇO | D42: SINAPI | E42: 94990 | F42: =IF(C42="SERVIÇO",IF(D42="SINAPI",VLOOKUP(E42,'[1]SERVIÇOS SINAPI'!$A:$D,2,0),IF(D42="ORSE",VLOOKUP(E42,'[1]SERVIÇOS ORSE'!$A:$D,2,0),IF(D42="SEINFRA",VLOOKUP(E42,'[1]SERVIÇOS SEINFRA'!$A:$D,2,0)))),IF(C42="INSUMO",IF(D42="SINAPI",VLOOKUP(E42,'[1]INSUMOS SINAPI'!$A:$D,2,0),IF(D42="ORSE",VLOOKUP(E42,'[1]INSUMOS ORSE'!$A:$D,2,0),IF(D42="SEINFRA",VLOOKUP(E42,'[1]INSUMOS SEINFRA'!$A:$D,2,0),))))) -> EXECUÇÃO DE PASSEIO (CALÇADA) OU PISO DE CONCRETO COM CONCRETO MOLDADO IN LOCO, FEITO EM OBRA, ACABAMENTO CONVENCIONAL, NÃO ARMADO. AF_07/2016 | G42: =IF(C42="SERVIÇO",IF(D42="SINAPI",VLOOKUP(E42,'[1]SERVIÇOS SINAPI'!$A:$D,3,0),IF(D42="ORSE",VLOOKUP(E42,'[1]SERVIÇOS ORSE'!$A:$D,3,0),IF(D42="SEINFRA",VLOOKUP(E42,'[1]SERVIÇOS SEINFRA'!$A:$D,3,0)))),IF(C42="INSUMO",IF(D42="SINAPI",VLOOKUP(E42,'[1]INSUMOS SINAPI'!$A:$D,3,0),IF(D42="ORSE",VLOOKUP(E42,'[1]INSUMOS ORSE'!$A:$D,3,0),IF(D42="SEINFRA",VLOOKUP(E42,'[1]INSUMOS SEINFRA'!$A:$D,3,0),))))) -> M³ | H42: ='[1]Memória de Cálculo'!$L$166*$G$7 -> 27.54 | I42: =IF(C42="SERVIÇO",IF(D42="SINAPI",VLOOKUP(E42,'[1]SERVIÇOS SINAPI'!$A:$D,4,0),IF(D42="ORSE",VLOOKUP(E42,'[1]SERVIÇOS ORSE'!$A:$D,4,0),IF(D42="SEINFRA",VLOOKUP(E42,'[1]SERVIÇOS SEINFRA'!$A:$D,4,0)))),IF(C42="INSUMO",IF(D42="SINAPI",VLOOKUP(E42,'[1]INSUMOS SINAPI'!$A:$D,4,0),IF(D42="ORSE",VLOOKUP(E42,'[1]INSUMOS ORSE'!$A:$D,4,0),IF(D42="SEINFRA",VLOOKUP(E42,'[1]INSUMOS SEINFRA'!$A:$D,4,0),))))) -> 653.29 | J42: 806.81 | K42: 22219.55 | L42: 2
B43: 2.1.22 | C43: SERVIÇO | D43: SINAPI | E43: 87503 | F43: =IF(C43="SERVIÇO",IF(D43="SINAPI",VLOOKUP(E43,'[1]SERVIÇOS SINAPI'!$A:$D,2,0),IF(D43="ORSE",VLOOKUP(E43,'[1]SERVIÇOS ORSE'!$A:$D,2,0),IF(D43="SEINFRA",VLOOKUP(E43,'[1]SERVIÇOS SEINFRA'!$A:$D,2,0)))),IF(C43="INSUMO",IF(D43="SINAPI",VLOOKUP(E43,'[1]INSUMOS SINAPI'!$A:$D,2,0),IF(D43="ORSE",VLOOKUP(E43,'[1]INSUMOS ORSE'!$A:$D,2,0),IF(D43="SEINFRA",VLOOKUP(E43,'[1]INSUMOS SEINFRA'!$A:$D,2,0),))))) -> ALVENARIA DE VEDAÇÃO DE BLOCOS CERÂMICOS FURADOS NA HORIZONTAL DE 9X19X19CM (ESPESSURA 9CM) DE PAREDES COM ÁREA LÍQUIDA MAIOR OU IGUAL A 6M² SEM VÃOS E ARGAMASSA DE ASSENTAMENTO COM PREPARO EM BETONEIRA. AF_06/2014 | G43: =IF(C43="SERVIÇO",IF(D43="SINAPI",VLOOKUP(E43,'[1]SERVIÇOS SINAPI'!$A:$D,3,0),IF(D43="ORSE",VLOOKUP(E43,'[1]SERVIÇOS ORSE'!$A:$D,3,0),IF(D43="SEINFRA",VLOOKUP(E43,'[1]SERVIÇOS SEINFRA'!$A:$D,3,0)))),IF(C43="INSUMO",IF(D43="SINAPI",VLOOKUP(E43,'[1]INSUMOS SINAPI'!$A:$D,3,0),IF(D43="ORSE",VLOOKUP(E43,'[1]INSUMOS ORSE'!$A:$D,3,0),IF(D43="SEINFRA",VLOOKUP(E43,'[1]INSUMOS SEINFRA'!$A:$D,3,0),))))) -> M² | H43: ='[1]Memória de Cálculo'!$L$191*$G$7 -> 2508.24 | I43: =IF(C43="SERVIÇO",IF(D43="SINAPI",VLOOKUP(E43,'[1]SERVIÇOS SINAPI'!$A:$D,4,0),IF(D43="ORSE",VLOOKUP(E43,'[1]SERVIÇOS ORSE'!$A:$D,4,0),IF(D43="SEINFRA",VLOOKUP(E43,'[1]SERVIÇOS SEINFRA'!$A:$D,4,0)))),IF(C43="INSUMO",IF(D43="SINAPI",VLOOKUP(E43,'[1]INSUMOS SINAPI'!$A:$D,4,0),IF(D43="ORSE",VLOOKUP(E43,'[1]INSUMOS ORSE'!$A:$D,4,0),IF(D43="SEINFRA",VLOOKUP(E43,'[1]INSUMOS SEINFRA'!$A:$D,4,0),))))) -> 65.15 | J43: 80.46 | K43: 201812.99 | L43: 2
B44: 2.1.23 | C44: SERVIÇO | D44: SINAPI | E44: 101161 | F44: =IF(C44="SERVIÇO",IF(D44="SINAPI",VLOOKUP(E44,'[1]SERVIÇOS SINAPI'!$A:$D,2,0),IF(D44="ORSE",VLOOKUP(E44,'[1]SERVIÇOS ORSE'!$A:$D,2,0),IF(D44="SEINFRA",VLOOKUP(E44,'[1]SERVIÇOS SEINFRA'!$A:$D,2,0)))),IF(C44="INSUMO",IF(D44="SINAPI",VLOOKUP(E44,'[1]INSUMOS SINAPI'!$A:$D,2,0),IF(D44="ORSE",VLOOKUP(E44,'[1]INSUMOS ORSE'!$A:$D,2,0),IF(D44="SEINFRA",VLOOKUP(E44,'[1]INSUMOS SEINFRA'!$A:$D,2,0),))))) -> ALVENARIA DE VEDAÇÃO COM ELEMENTO VAZADO DE CONCRETO (COBOGÓ) DE 7X50X50CM E ARGAMASSA DE ASSENTAMENTO COM PREPARO EM BETONEIRA. AF_05/2020 | G44: =IF(C44="SERVIÇO",IF(D44="SINAPI",VLOOKUP(E44,'[1]SERVIÇOS SINAPI'!$A:$D,3,0),IF(D44="ORSE",VLOOKUP(E44,'[1]SERVIÇOS ORSE'!$A:$D,3,0),IF(D44="SEINFRA",VLOOKUP(E44,'[1]SERVIÇOS SEINFRA'!$A:$D,3,0)))),IF(C44="INSUMO",IF(D44="SINAPI",VLOOKUP(E44,'[1]INSUMOS SINAPI'!$A:$D,3,0),IF(D44="ORSE",VLOOKUP(E44,'[1]INSUMOS ORSE'!$A:$D,3,0),IF(D44="SEINFRA",VLOOKUP(E44,'[1]INSUMOS SEINFRA'!$A:$D,3,0),))))) -> M² | H44: ='[1]Memória de Cálculo'!$L$195*$G$7 -> 3 | I44: =IF(C44="SERVIÇO",IF(D44="SINAPI",VLOOKUP(E44,'[1]SERVIÇOS SINAPI'!$A:$D,4,0),IF(D44="ORSE",VLOOKUP(E44,'[1]SERVIÇOS ORSE'!$A:$D,4,0),IF(D44="SEINFRA",VLOOKUP(E44,'[1]SERVIÇOS SEINFRA'!$A:$D,4,0)))),IF(C44="INSUMO",IF(D44="SINAPI",VLOOKUP(E44,'[1]INSUMOS SINAPI'!$A:$D,4,0),IF(D44="ORSE",VLOOKUP(E44,'[1]INSUMOS ORSE'!$A:$D,4,0),IF(D44="SEINFRA",VLOOKUP(E44,'[1]INSUMOS SEINFRA'!$A:$D,4,0),))))) -> 168.88 | J44: 208.57 | K44: 625.71 | L44: 2
B45: 2.1.24 | C45: SERVIÇO | D45: ORSE | E45: 8970 | F45: =IF(C45="SERVIÇO",IF(D45="SINAPI",VLOOKUP(E45,'[1]SERVIÇOS SINAPI'!$A:$D,2,0),IF(D45="ORSE",VLOOKUP(E45,'[1]SERVIÇOS ORSE'!$A:$D,2,0),IF(D45="SEINFRA",VLOOKUP(E45,'[1]SERVIÇOS SEINFRA'!$A:$D,2,0)))),IF(C45="INSUMO",IF(D45="SINAPI",VLOOKUP(E45,'[1]INSUMOS SINAPI'!$A:$D,2,0),IF(D45="ORSE",VLOOKUP(E45,'[1]INSUMOS ORSE'!$A:$D,2,0),IF(D45="SEINFRA",VLOOKUP(E45,'[1]INSUMOS SEINFRA'!$A:$D,2,0),))))) -> TELA DE NYLON TIPO MOSQUITEIRO COM MOLDURA EM ALUMINIO ANODIZADO NATURAL | G45: =IF(C45="SERVIÇO",IF(D45="SINAPI",VLOOKUP(E45,'[1]SERVIÇOS SINAPI'!$A:$D,3,0),IF(D45="ORSE",VLOOKUP(E45,'[1]SERVIÇOS ORSE'!$A:$D,3,0),IF(D45="SEINFRA",VLOOKUP(E45,'[1]SERVIÇOS SEINFRA'!$A:$D,3,0)))),IF(C45="INSUMO",IF(D45="SINAPI",VLOOKUP(E45,'[1]INSUMOS SINAPI'!$A:$D,3,0),IF(D45="ORSE",VLOOKUP(E45,'[1]INSUMOS ORSE'!$A:$D,3,0),IF(D45="SEINFRA",VLOOKUP(E45,'[1]INSUMOS SEINFRA'!$A:$D,3,0),))))) -> M² | H45: ='[1]Memória de Cálculo'!$L$199*$G$7 -> 3 | I45: =IF(C45="SERVIÇO",IF(D45="SINAPI",VLOOKUP(E45,'[1]SERVIÇOS SINAPI'!$A:$D,4,0),IF(D45="ORSE",VLOOKUP(E45,'[1]SERVIÇOS ORSE'!$A:$D,4,0),IF(D45="SEINFRA",VLOOKUP(E45,'[1]SERVIÇOS SEINFRA'!$A:$D,4,0)))),IF(C45="INSUMO",IF(D45="SINAPI",VLOOKUP(E45,'[1]INSUMOS SINAPI'!$A:$D,4,0),IF(D45="ORSE",VLOOKUP(E45,'[1]INSUMOS ORSE'!$A:$D,4,0),IF(D45="SEINFRA",VLOOKUP(E45,'[1]INSUMOS SEINFRA'!$A:$D,4,0),))))) -> 84.65 | J45: 104.54 | K45: 313.62 | L45: 2 | M45: =(M43/$N$44)+0.0002 -> 
B46: 2.1.25 | C46: SERVIÇO | D46: SINAPI | E46: 96109 | F46: =IF(C46="SERVIÇO",IF(D46="SINAPI",VLOOKUP(E46,'[1]SERVIÇOS SINAPI'!$A:$D,2,0),IF(D46="ORSE",VLOOKUP(E46,'[1]SERVIÇOS ORSE'!$A:$D,2,0),IF(D46="SEINFRA",VLOOKUP(E46,'[1]SERVIÇOS SEINFRA'!$A:$D,2,0)))),IF(C46="INSUMO",IF(D46="SINAPI",VLOOKUP(E46,'[1]INSUMOS SINAPI'!$A:$D,2,0),IF(D46="ORSE",VLOOKUP(E46,'[1]INSUMOS ORSE'!$A:$D,2,0),IF(D46="SEINFRA",VLOOKUP(E46,'[1]INSUMOS SEINFRA'!$A:$D,2,0),))))) -> FORRO EM PLACAS DE GESSO, PARA AMBIENTES RESIDENCIAIS. AF_05/2017_P | G46: =IF(C46="SERVIÇO",IF(D46="SINAPI",VLOOKUP(E46,'[1]SERVIÇOS SINAPI'!$A:$D,3,0),IF(D46="ORSE",VLOOKUP(E46,'[1]SERVIÇOS ORSE'!$A:$D,3,0),IF(D46="SEINFRA",VLOOKUP(E46,'[1]SERVIÇOS SEINFRA'!$A:$D,3,0)))),IF(C46="INSUMO",IF(D46="SINAPI",VLOOKUP(E46,'[1]INSUMOS SINAPI'!$A:$D,3,0),IF(D46="ORSE",VLOOKUP(E46,'[1]INSUMOS ORSE'!$A:$D,3,0),IF(D46="SEINFRA",VLOOKUP(E46,'[1]INSUMOS SEINFRA'!$A:$D,3,0),))))) -> M² | H46: ='[1]Memória de Cálculo'!$L$208*$G$7 -> 417.9 | I46: =IF(C46="SERVIÇO",IF(D46="SINAPI",VLOOKUP(E46,'[1]SERVIÇOS SINAPI'!$A:$D,4,0),IF(D46="ORSE",VLOOKUP(E46,'[1]SERVIÇOS ORSE'!$A:$D,4,0),IF(D46="SEINFRA",VLOOKUP(E46,'[1]SERVIÇOS SEINFRA'!$A:$D,4,0)))),IF(C46="INSUMO",IF(D46="SINAPI",VLOOKUP(E46,'[1]INSUMOS SINAPI'!$A:$D,4,0),IF(D46="ORSE",VLOOKUP(E46,'[1]INSUMOS ORSE'!$A:$D,4,0),IF(D46="SEINFRA",VLOOKUP(E46,'[1]INSUMOS SEINFRA'!$A:$D,4,0),))))) -> 35.13 | J46: 43.39 | K46: 18132.68 | L46: 2
B47: 2.1.26 | C47: SERVIÇO | D47: SINAPI | E47: 92551 | F47: =IF(C47="SERVIÇO",IF(D47="SINAPI",VLOOKUP(E47,'[1]SERVIÇOS SINAPI'!$A:$D,2,0),IF(D47="ORSE",VLOOKUP(E47,'[1]SERVIÇOS ORSE'!$A:$D,2,0),IF(D47="SEINFRA",VLOOKUP(E47,'[1]SERVIÇOS SEINFRA'!$A:$D,2,0)))),IF(C47="INSUMO",IF(D47="SINAPI",VLOOKUP(E47,'[1]INSUMOS SINAPI'!$A:$D,2,0),IF(D47="ORSE",VLOOKUP(E47,'[1]INSUMOS ORSE'!$A:$D,2,0),IF(D47="SEINFRA",VLOOKUP(E47,'[1]INSUMOS SEINFRA'!$A:$D,2,0),))))) -> FABRICAÇÃO E INSTALAÇÃO DE TESOURA INTEIRA EM MADEIRA NÃO APARELHADA, VÃO DE 9 M, PARA TELHA CERÂMICA OU DE CONCRETO, INCLUSO IÇAMENTO. AF_07/2019 | G47: =IF(C47="SERVIÇO",IF(D47="SINAPI",VLOOKUP(E47,'[1]SERVIÇOS SINAPI'!$A:$D,3,0),IF(D47="ORSE",VLOOKUP(E47,'[1]SERVIÇOS ORSE'!$A:$D,3,0),IF(D47="SEINFRA",VLOOKUP(E47,'[1]SERVIÇOS SEINFRA'!$A:$D,3,0)))),IF(C47="INSUMO",IF(D47="SINAPI",VLOOKUP(E47,'[1]INSUMOS SINAPI'!$A:$D,3,0),IF(D47="ORSE",VLOOKUP(E47,'[1]INSUMOS ORSE'!$A:$D,3,0),IF(D47="SEINFRA",VLOOKUP(E47,'[1]INSUMOS SEINFRA'!$A:$D,3,0),))))) -> UN | H47: ='[1]Memória de Cálculo'!$L$212*$G$7 -> 30 | I47: =IF(C47="SERVIÇO",IF(D47="SINAPI",VLOOKUP(E47,'[1]SERVIÇOS SINAPI'!$A:$D,4,0),IF(D47="ORSE",VLOOKUP(E47,'[1]SERVIÇOS ORSE'!$A:$D,4,0),IF(D47="SEINFRA",VLOOKUP(E47,'[1]SERVIÇOS SEINFRA'!$A:$D,4,0)))),IF(C47="INSUMO",IF(D47="SINAPI",VLOOKUP(E47,'[1]INSUMOS SINAPI'!$A:$D,4,0),IF(D47="ORSE",VLOOKUP(E47,'[1]INSUMOS ORSE'!$A:$D,4,0),IF(D47="SEINFRA",VLOOKUP(E47,'[1]INSUMOS SEINFRA'!$A:$D,4,0),))))) -> 1718.48 | J47: 2122.32 | K47: 63669.6 | L47: 2
B48: 2.1.27 | C48: SERVIÇO | D48: SINAPI | E48: 92541 | F48: =IF(C48="SERVIÇO",IF(D48="SINAPI",VLOOKUP(E48,'[1]SERVIÇOS SINAPI'!$A:$D,2,0),IF(D48="ORSE",VLOOKUP(E48,'[1]SERVIÇOS ORSE'!$A:$D,2,0),IF(D48="SEINFRA",VLOOKUP(E48,'[1]SERVIÇOS SEINFRA'!$A:$D,2,0)))),IF(C48="INSUMO",IF(D48="SINAPI",VLOOKUP(E48,'[1]INSUMOS SINAPI'!$A:$D,2,0),IF(D48="ORSE",VLOOKUP(E48,'[1]INSUMOS ORSE'!$A:$D,2,0),IF(D48="SEINFRA",VLOOKUP(E48,'[1]INSUMOS SEINFRA'!$A:$D,2,0),))))) -> TRAMA DE MADEIRA COMPOSTA POR RIPAS, CAIBROS E TERÇAS PARA TELHADOS DE ATÉ 2 ÁGUAS PARA TELHA CERÂMICA CAPA-CANAL, INCLUSO TRANSPORTE VERTICAL. AF_07/2019 | G48: =IF(C48="SERVIÇO",IF(D48="SINAPI",VLOOKUP(E48,'[1]SERVIÇOS SINAPI'!$A:$D,3,0),IF(D48="ORSE",VLOOKUP(E48,'[1]SERVIÇOS ORSE'!$A:$D,3,0),IF(D48="SEINFRA",VLOOKUP(E48,'[1]SERVIÇOS SEINFRA'!$A:$D,3,0)))),IF(C48="INSUMO",IF(D48="SINAPI",VLOOKUP(E48,'[1]INSUMOS SINAPI'!$A:$D,3,0),IF(D48="ORSE",VLOOKUP(E48,'[1]INSUMOS ORSE'!$A:$D,3,0),IF(D48="SEINFRA",VLOOKUP(E48,'[1]INSUMOS SEINFRA'!$A:$D,3,0),))))) -> M² | H48: ='[1]Memória de Cálculo'!$L$219*$G$7 -> 1440.12 | I48: =IF(C48="SERVIÇO",IF(D48="SINAPI",VLOOKUP(E48,'[1]SERVIÇOS SINAPI'!$A:$D,4,0),IF(D48="ORSE",VLOOKUP(E48,'[1]SERVIÇOS ORSE'!$A:$D,4,0),IF(D48="SEINFRA",VLOOKUP(E48,'[1]SERVIÇOS SEINFRA'!$A:$D,4,0)))),IF(C48="INSUMO",IF(D48="SINAPI",VLOOKUP(E48,'[1]INSUMOS SINAPI'!$A:$D,4,0),IF(D48="ORSE",VLOOKUP(E48,'[1]INSUMOS ORSE'!$A:$D,4,0),IF(D48="SEINFRA",VLOOKUP(E48,'[1]INSUMOS SEINFRA'!$A:$D,4,0),))))) -> 55.33 | J48: 68.33 | K48: 98403.4 | L48: 2
B49: 2.1.28 | C49: SERVIÇO | D49: SINAPI | E49: 102233 | F49: =IF(C49="SERVIÇO",IF(D49="SINAPI",VLOOKUP(E49,'[1]SERVIÇOS SINAPI'!$A:$D,2,0),IF(D49="ORSE",VLOOKUP(E49,'[1]SERVIÇOS ORSE'!$A:$D,2,0),IF(D49="SEINFRA",VLOOKUP(E49,'[1]SERVIÇOS SEINFRA'!$A:$D,2,0)))),IF(C49="INSUMO",IF(D49="SINAPI",VLOOKUP(E49,'[1]INSUMOS SINAPI'!$A:$D,2,0),IF(D49="ORSE",VLOOKUP(E49,'[1]INSUMOS ORSE'!$A:$D,2,0),IF(D49="SEINFRA",VLOOKUP(E49,'[1]INSUMOS SEINFRA'!$A:$D,2,0),))))) -> PINTURA IMUNIZANTE PARA MADEIRA, 1 DEMÃO. AF_01/2021 | G49: =IF(C49="SERVIÇO",IF(D49="SINAPI",VLOOKUP(E49,'[1]SERVIÇOS SINAPI'!$A:$D,3,0),IF(D49="ORSE",VLOOKUP(E49,'[1]SERVIÇOS ORSE'!$A:$D,3,0),IF(D49="SEINFRA",VLOOKUP(E49,'[1]SERVIÇOS SEINFRA'!$A:$D,3,0)))),IF(C49="INSUMO",IF(D49="SINAPI",VLOOKUP(E49,'[1]INSUMOS SINAPI'!$A:$D,3,0),IF(D49="ORSE",VLOOKUP(E49,'[1]INSUMOS ORSE'!$A:$D,3,0),IF(D49="SEINFRA",VLOOKUP(E49,'[1]INSUMOS SEINFRA'!$A:$D,3,0),))))) -> M² | H49: ='[1]Memória de Cálculo'!$L$226*$G$7 -> 1440.12 | I49: =IF(C49="SERVIÇO",IF(D49="SINAPI",VLOOKUP(E49,'[1]SERVIÇOS SINAPI'!$A:$D,4,0),IF(D49="ORSE",VLOOKUP(E49,'[1]SERVIÇOS ORSE'!$A:$D,4,0),IF(D49="SEINFRA",VLOOKUP(E49,'[1]SERVIÇOS SEINFRA'!$A:$D,4,0)))),IF(C49="INSUMO",IF(D49="SINAPI",VLOOKUP(E49,'[1]INSUMOS SINAPI'!$A:$D,4,0),IF(D49="ORSE",VLOOKUP(E49,'[1]INSUMOS ORSE'!$A:$D,4,0),IF(D49="SEINFRA",VLOOKUP(E49,'[1]INSUMOS SEINFRA'!$A:$D,4,0),))))) -> 9.16 | J49: 11.31 | K49: 16287.76 | L49: 2
B50: 2.1.29 | C50: SERVIÇO | D50: SINAPI | E50: 94201 | F50: =IF(C50="SERVIÇO",IF(D50="SINAPI",VLOOKUP(E50,'[1]SERVIÇOS SINAPI'!$A:$D,2,0),IF(D50="ORSE",VLOOKUP(E50,'[1]SERVIÇOS ORSE'!$A:$D,2,0),IF(D50="SEINFRA",VLOOKUP(E50,'[1]SERVIÇOS SEINFRA'!$A:$D,2,0)))),IF(C50="INSUMO",IF(D50="SINAPI",VLOOKUP(E50,'[1]INSUMOS SINAPI'!$A:$D,2,0),IF(D50="ORSE",VLOOKUP(E50,'[1]INSUMOS ORSE'!$A:$D,2,0),IF(D50="SEINFRA",VLOOKUP(E50,'[1]INSUMOS SEINFRA'!$A:$D,2,0),))))) -> TELHAMENTO COM TELHA CERÂMICA CAPA-CANAL, TIPO COLONIAL, COM ATÉ 2 ÁGUAS, INCLUSO TRANSPORTE VERTICAL. AF_07/2019 | G50: =IF(C50="SERVIÇO",IF(D50="SINAPI",VLOOKUP(E50,'[1]SERVIÇOS SINAPI'!$A:$D,3,0),IF(D50="ORSE",VLOOKUP(E50,'[1]SERVIÇOS ORSE'!$A:$D,3,0),IF(D50="SEINFRA",VLOOKUP(E50,'[1]SERVIÇOS SEINFRA'!$A:$D,3,0)))),IF(C50="INSUMO",IF(D50="SINAPI",VLOOKUP(E50,'[1]INSUMOS SINAPI'!$A:$D,3,0),IF(D50="ORSE",VLOOKUP(E50,'[1]INSUMOS ORSE'!$A:$D,3,0),IF(D50="SEINFRA",VLOOKUP(E50,'[1]INSUMOS SEINFRA'!$A:$D,3,0),))))) -> M² | H50: ='[1]Memória de Cálculo'!$L$233*$G$7 -> 1440.12 | I50: =IF(C50="SERVIÇO",IF(D50="SINAPI",VLOOKUP(E50,'[1]SERVIÇOS SINAPI'!$A:$D,4,0),IF(D50="ORSE",VLOOKUP(E50,'[1]SERVIÇOS ORSE'!$A:$D,4,0),IF(D50="SEINFRA",VLOOKUP(E50,'[1]SERVIÇOS SEINFRA'!$A:$D,4,0)))),IF(C50="INSUMO",IF(D50="SINAPI",VLOOKUP(E50,'[1]INSUMOS SINAPI'!$A:$D,4,0),IF(D50="ORSE",VLOOKUP(E50,'[1]INSUMOS ORSE'!$A:$D,4,0),IF(D50="SEINFRA",VLOOKUP(E50,'[1]INSUMOS SEINFRA'!$A:$D,4,0),))))) -> 47.74 | J50: 58.96 | K50: 84909.48 | L50: 2
B51: 2.1.30 | C51: SERVIÇO | D51: orse | E51: 10821 | F51: =IF(C51="SERVIÇO",IF(D51="SINAPI",VLOOKUP(E51,'[1]SERVIÇOS SINAPI'!$A:$D,2,0),IF(D51="ORSE",VLOOKUP(E51,'[1]SERVIÇOS ORSE'!$A:$D,2,0),IF(D51="SEINFRA",VLOOKUP(E51,'[1]SERVIÇOS SEINFRA'!$A:$D,2,0)))),IF(C51="INSUMO",IF(D51="SINAPI",VLOOKUP(E51,'[1]INSUMOS SINAPI'!$A:$D,2,0),IF(D51="ORSE",VLOOKUP(E51,'[1]INSUMOS ORSE'!$A:$D,2,0),IF(D51="SEINFRA",VLOOKUP(E51,'[1]INSUMOS SEINFRA'!$A:$D,2,0),))))) -> CUMEEIRA PARA TELHA CANAL REDONDA, DIMENSÕES 20 X 41,5CM, INCLUSIVE EMASSAMEN TO | G51: =IF(C51="SERVIÇO",IF(D51="SINAPI",VLOOKUP(E51,'[1]SERVIÇOS SINAPI'!$A:$D,3,0),IF(D51="ORSE",VLOOKUP(E51,'[1]SERVIÇOS ORSE'!$A:$D,3,0),IF(D51="SEINFRA",VLOOKUP(E51,'[1]SERVIÇOS SEINFRA'!$A:$D,3,0)))),IF(C51="INSUMO",IF(D51="SINAPI",VLOOKUP(E51,'[1]INSUMOS SINAPI'!$A:$D,3,0),IF(D51="ORSE",VLOOKUP(E51,'[1]INSUMOS ORSE'!$A:$D,3,0),IF(D51="SEINFRA",VLOOKUP(E51,'[1]INSUMOS SEINFRA'!$A:$D,3,0),))))) -> M | H51: ='[1]Memória de Cálculo'!$L$237*$G$7 -> 129 | I51: =IF(C51="SERVIÇO",IF(D51="SINAPI",VLOOKUP(E51,'[1]SERVIÇOS SINAPI'!$A:$D,4,0),IF(D51="ORSE",VLOOKUP(E51,'[1]SERVIÇOS ORSE'!$A:$D,4,0),IF(D51="SEINFRA",VLOOKUP(E51,'[1]SERVIÇOS SEINFRA'!$A:$D,4,0)))),IF(C51="INSUMO",IF(D51="SINAPI",VLOOKUP(E51,'[1]INSUMOS SINAPI'!$A:$D,4,0),IF(D51="ORSE",VLOOKUP(E51,'[1]INSUMOS ORSE'!$A:$D,4,0),IF(D51="SEINFRA",VLOOKUP(E51,'[1]INSUMOS SEINFRA'!$A:$D,4,0),))))) -> 49.67 | J51: 61.34 | K51: 7912.86 | L51: 2
B52: 2.1.31 | C52: SERVIÇO | D52: ORSE | E52: 248 | F52: =IF(C52="SERVIÇO",IF(D52="SINAPI",VLOOKUP(E52,'[1]SERVIÇOS SINAPI'!$A:$D,2,0),IF(D52="ORSE",VLOOKUP(E52,'[1]SERVIÇOS ORSE'!$A:$D,2,0),IF(D52="SEINFRA",VLOOKUP(E52,'[1]SERVIÇOS SEINFRA'!$A:$D,2,0)))),IF(C52="INSUMO",IF(D52="SINAPI",VLOOKUP(E52,'[1]INSUMOS SINAPI'!$A:$D,2,0),IF(D52="ORSE",VLOOKUP(E52,'[1]INSUMOS ORSE'!$A:$D,2,0),IF(D52="SEINFRA",VLOOKUP(E52,'[1]INSUMOS SEINFRA'!$A:$D,2,0),))))) -> EMASSAMENTO DE BEIRAL DE TELHA CERAMICA | G52: =IF(C52="SERVIÇO",IF(D52="SINAPI",VLOOKUP(E52,'[1]SERVIÇOS SINAPI'!$A:$D,3,0),IF(D52="ORSE",VLOOKUP(E52,'[1]SERVIÇOS ORSE'!$A:$D,3,0),IF(D52="SEINFRA",VLOOKUP(E52,'[1]SERVIÇOS SEINFRA'!$A:$D,3,0)))),IF(C52="INSUMO",IF(D52="SINAPI",VLOOKUP(E52,'[1]INSUMOS SINAPI'!$A:$D,3,0),IF(D52="ORSE",VLOOKUP(E52,'[1]INSUMOS ORSE'!$A:$D,3,0),IF(D52="SEINFRA",VLOOKUP(E52,'[1]INSUMOS SEINFRA'!$A:$D,3,0),))))) -> M | H52: ='[1]Memória de Cálculo'!$L$247*$G$7 -> 400.2 | I52: =IF(C52="SERVIÇO",IF(D52="SINAPI",VLOOKUP(E52,'[1]SERVIÇOS SINAPI'!$A:$D,4,0),IF(D52="ORSE",VLOOKUP(E52,'[1]SERVIÇOS ORSE'!$A:$D,4,0),IF(D52="SEINFRA",VLOOKUP(E52,'[1]SERVIÇOS SEINFRA'!$A:$D,4,0)))),IF(C52="INSUMO",IF(D52="SINAPI",VLOOKUP(E52,'[1]INSUMOS SINAPI'!$A:$D,4,0),IF(D52="ORSE",VLOOKUP(E52,'[1]INSUMOS ORSE'!$A:$D,4,0),IF(D52="SEINFRA",VLOOKUP(E52,'[1]INSUMOS SEINFRA'!$A:$D,4,0),))))) -> 5.85 | J52: 7.22 | K52: 2889.44 | L52: 2
B53: 2.1.32 | C53: SERVIÇO | D53: SINAPI | E53: 98557 | F53: =IF(C53="SERVIÇO",IF(D53="SINAPI",VLOOKUP(E53,'[1]SERVIÇOS SINAPI'!$A:$D,2,0),IF(D53="ORSE",VLOOKUP(E53,'[1]SERVIÇOS ORSE'!$A:$D,2,0),IF(D53="SEINFRA",VLOOKUP(E53,'[1]SERVIÇOS SEINFRA'!$A:$D,2,0)))),IF(C53="INSUMO",IF(D53="SINAPI",VLOOKUP(E53,'[1]INSUMOS SINAPI'!$A:$D,2,0),IF(D53="ORSE",VLOOKUP(E53,'[1]INSUMOS ORSE'!$A:$D,2,0),IF(D53="SEINFRA",VLOOKUP(E53,'[1]INSUMOS SEINFRA'!$A:$D,2,0),))))) -> IMPERMEABILIZAÇÃO DE SUPERFÍCIE COM EMULSÃO ASFÁLTICA, 2 DEMÃOS AF_06/2018 | G53: =IF(C53="SERVIÇO",IF(D53="SINAPI",VLOOKUP(E53,'[1]SERVIÇOS SINAPI'!$A:$D,3,0),IF(D53="ORSE",VLOOKUP(E53,'[1]SERVIÇOS ORSE'!$A:$D,3,0),IF(D53="SEINFRA",VLOOKUP(E53,'[1]SERVIÇOS SEINFRA'!$A:$D,3,0)))),IF(C53="INSUMO",IF(D53="SINAPI",VLOOKUP(E53,'[1]INSUMOS SINAPI'!$A:$D,3,0),IF(D53="ORSE",VLOOKUP(E53,'[1]INSUMOS ORSE'!$A:$D,3,0),IF(D53="SEINFRA",VLOOKUP(E53,'[1]INSUMOS SEINFRA'!$A:$D,3,0),))))) -> M² | H53: ='[1]Memória de Cálculo'!$L$255*$G$7 -> 516.6 | I53: =IF(C53="SERVIÇO",IF(D53="SINAPI",VLOOKUP(E53,'[1]SERVIÇOS SINAPI'!$A:$D,4,0),IF(D53="ORSE",VLOOKUP(E53,'[1]SERVIÇOS ORSE'!$A:$D,4,0),IF(D53="SEINFRA",VLOOKUP(E53,'[1]SERVIÇOS SEINFRA'!$A:$D,4,0)))),IF(C53="INSUMO",IF(D53="SINAPI",VLOOKUP(E53,'[1]INSUMOS SINAPI'!$A:$D,4,0),IF(D53="ORSE",VLOOKUP(E53,'[1]INSUMOS ORSE'!$A:$D,4,0),IF(D53="SEINFRA",VLOOKUP(E53,'[1]INSUMOS SEINFRA'!$A:$D,4,0),))))) -> 35.52 | J53: 43.87 | K53: 22663.24 | L53: 2
B54: 2.1.33 | C54: SERVIÇO | D54: SINAPI | E54: 87897 | F54: =IF(C54="SERVIÇO",IF(D54="SINAPI",VLOOKUP(E54,'[1]SERVIÇOS SINAPI'!$A:$D,2,0),IF(D54="ORSE",VLOOKUP(E54,'[1]SERVIÇOS ORSE'!$A:$D,2,0),IF(D54="SEINFRA",VLOOKUP(E54,'[1]SERVIÇOS SEINFRA'!$A:$D,2,0)))),IF(C54="INSUMO",IF(D54="SINAPI",VLOOKUP(E54,'[1]INSUMOS SINAPI'!$A:$D,2,0),IF(D54="ORSE",VLOOKUP(E54,'[1]INSUMOS ORSE'!$A:$D,2,0),IF(D54="SEINFRA",VLOOKUP(E54,'[1]INSUMOS SEINFRA'!$A:$D,2,0),))))) -> CHAPISCO APLICADO EM ALVENARIA (SEM PRESENÇA DE VÃOS) E ESTRUTURAS DE CONCRETO DE FACHADA, COM EQUIPAMENTO DE PROJEÇÃO. ARGAMASSA TRAÇO 1:3 COM PREPARO EM BETONEIRA 400 L. AF_06/2014 | G54: =IF(C54="SERVIÇO",IF(D54="SINAPI",VLOOKUP(E54,'[1]SERVIÇOS SINAPI'!$A:$D,3,0),IF(D54="ORSE",VLOOKUP(E54,'[1]SERVIÇOS ORSE'!$A:$D,3,0),IF(D54="SEINFRA",VLOOKUP(E54,'[1]SERVIÇOS SEINFRA'!$A:$D,3,0)))),IF(C54="INSUMO",IF(D54="SINAPI",VLOOKUP(E54,'[1]INSUMOS SINAPI'!$A:$D,3,0),IF(D54="ORSE",VLOOKUP(E54,'[1]INSUMOS ORSE'!$A:$D,3,0),IF(D54="SEINFRA",VLOOKUP(E54,'[1]INSUMOS SEINFRA'!$A:$D,3,0),))))) -> M² | H54: ='[1]Memória de Cálculo'!$L$280*$G$7 -> 4956.42 | I54: =IF(C54="SERVIÇO",IF(D54="SINAPI",VLOOKUP(E54,'[1]SERVIÇOS SINAPI'!$A:$D,4,0),IF(D54="ORSE",VLOOKUP(E54,'[1]SERVIÇOS ORSE'!$A:$D,4,0),IF(D54="SEINFRA",VLOOKUP(E54,'[1]SERVIÇOS SEINFRA'!$A:$D,4,0)))),IF(C54="INSUMO",IF(D54="SINAPI",VLOOKUP(E54,'[1]INSUMOS SINAPI'!$A:$D,4,0),IF(D54="ORSE",VLOOKUP(E54,'[1]INSUMOS ORSE'!$A:$D,4,0),IF(D54="SEINFRA",VLOOKUP(E54,'[1]INSUMOS SEINFRA'!$A:$D,4,0),))))) -> 5.22 | J54: 6.45 | K54: 31968.91 | L54: 2
B55: 2.1.34 | C55: SERVIÇO | D55: SINAPI | E55: 87553 | F55: =IF(C55="SERVIÇO",IF(D55="SINAPI",VLOOKUP(E55,'[1]SERVIÇOS SINAPI'!$A:$D,2,0),IF(D55="ORSE",VLOOKUP(E55,'[1]SERVIÇOS ORSE'!$A:$D,2,0),IF(D55="SEINFRA",VLOOKUP(E55,'[1]SERVIÇOS SEINFRA'!$A:$D,2,0)))),IF(C55="INSUMO",IF(D55="SINAPI",VLOOKUP(E55,'[1]INSUMOS SINAPI'!$A:$D,2,0),IF(D55="ORSE",VLOOKUP(E55,'[1]INSUMOS ORSE'!$A:$D,2,0),IF(D55="SEINFRA",VLOOKUP(E55,'[1]INSUMOS SEINFRA'!$A:$D,2,0),))))) -> EMBOÇO, PARA RECEBIMENTO DE CERÂMICA, EM ARGAMASSA TRAÇO 1:2:8, PREPARO MECÂNICO COM BETONEIRA 400L, APLICADO MANUALMENTE EM FACES INTERNAS DE PAREDES, PARA AMBIENTE COM ÁREA MAIOR QUE 10M2, ESPESSURA DE 10MM, COM EXECUÇÃO DE TALISCAS. AF_06/2014 | G55: =IF(C55="SERVIÇO",IF(D55="SINAPI",VLOOKUP(E55,'[1]SERVIÇOS SINAPI'!$A:$D,3,0),IF(D55="ORSE",VLOOKUP(E55,'[1]SERVIÇOS ORSE'!$A:$D,3,0),IF(D55="SEINFRA",VLOOKUP(E55,'[1]SERVIÇOS SEINFRA'!$A:$D,3,0)))),IF(C55="INSUMO",IF(D55="SINAPI",VLOOKUP(E55,'[1]INSUMOS SINAPI'!$A:$D,3,0),IF(D55="ORSE",VLOOKUP(E55,'[1]INSUMOS ORSE'!$A:$D,3,0),IF(D55="SEINFRA",VLOOKUP(E55,'[1]INSUMOS SEINFRA'!$A:$D,3,0),))))) -> M² | H55: ='[1]Memória de Cálculo'!$L$294*$G$7 -> 1263.96 | I55: =IF(C55="SERVIÇO",IF(D55="SINAPI",VLOOKUP(E55,'[1]SERVIÇOS SINAPI'!$A:$D,4,0),IF(D55="ORSE",VLOOKUP(E55,'[1]SERVIÇOS ORSE'!$A:$D,4,0),IF(D55="SEINFRA",VLOOKUP(E55,'[1]SERVIÇOS SEINFRA'!$A:$D,4,0)))),IF(C55="INSUMO",IF(D55="SINAPI",VLOOKUP(E55,'[1]INSUMOS SINAPI'!$A:$D,4,0),IF(D55="ORSE",VLOOKUP(E55,'[1]INSUMOS ORSE'!$A:$D,4,0),IF(D55="SEINFRA",VLOOKUP(E55,'[1]INSUMOS SEINFRA'!$A:$D,4,0),))))) -> 16.82 | J55: 20.77 | K55: 26252.45 | L55: 2
B56: 2.1.35 | C56: SERVIÇO | D56: SINAPI | E56: 87547 | F56: =IF(C56="SERVIÇO",IF(D56="SINAPI",VLOOKUP(E56,'[1]SERVIÇOS SINAPI'!$A:$D,2,0),IF(D56="ORSE",VLOOKUP(E56,'[1]SERVIÇOS ORSE'!$A:$D,2,0),IF(D56="SEINFRA",VLOOKUP(E56,'[1]SERVIÇOS SEINFRA'!$A:$D,2,0)))),IF(C56="INSUMO",IF(D56="SINAPI",VLOOKUP(E56,'[1]INSUMOS SINAPI'!$A:$D,2,0),IF(D56="ORSE",VLOOKUP(E56,'[1]INSUMOS ORSE'!$A:$D,2,0),IF(D56="SEINFRA",VLOOKUP(E56,'[1]INSUMOS SEINFRA'!$A:$D,2,0),))))) -> MASSA ÚNICA, PARA RECEBIMENTO DE PINTURA, EM ARGAMASSA TRAÇO 1:2:8, PREPARO MECÂNICO COM BETONEIRA 400L, APLICADA MANUALMENTE EM FACES INTERNAS DE PAREDES, ESPESSURA DE 10MM, COM EXECUÇÃO DE TALISCAS. AF_06/2014 | G56: =IF(C56="SERVIÇO",IF(D56="SINAPI",VLOOKUP(E56,'[1]SERVIÇOS SINAPI'!$A:$D,3,0),IF(D56="ORSE",VLOOKUP(E56,'[1]SERVIÇOS ORSE'!$A:$D,3,0),IF(D56="SEINFRA",VLOOKUP(E56,'[1]SERVIÇOS SEINFRA'!$A:$D,3,0)))),IF(C56="INSUMO",IF(D56="SINAPI",VLOOKUP(E56,'[1]INSUMOS SINAPI'!$A:$D,3,0),IF(D56="ORSE",VLOOKUP(E56,'[1]INSUMOS ORSE'!$A:$D,3,0),IF(D56="SEINFRA",VLOOKUP(E56,'[1]INSUMOS SEINFRA'!$A:$D,3,0),))))) -> M² | H56: ='[1]Memória de Cálculo'!$L$313*$G$7 -> 3099.06 | I56: =IF(C56="SERVIÇO",IF(D56="SINAPI",VLOOKUP(E56,'[1]SERVIÇOS SINAPI'!$A:$D,4,0),IF(D56="ORSE",VLOOKUP(E56,'[1]SERVIÇOS ORSE'!$A:$D,4,0),IF(D56="SEINFRA",VLOOKUP(E56,'[1]SERVIÇOS SEINFRA'!$A:$D,4,0)))),IF(C56="INSUMO",IF(D56="SINAPI",VLOOKUP(E56,'[1]INSUMOS SINAPI'!$A:$D,4,0),IF(D56="ORSE",VLOOKUP(E56,'[1]INSUMOS ORSE'!$A:$D,4,0),IF(D56="SEINFRA",VLOOKUP(E56,'[1]INSUMOS SEINFRA'!$A:$D,4,0),))))) -> 20.99 | J56: 25.92 | K56: 80327.64 | L56: 2
B57: 2.1.36 | C57: SERVIÇO | D57: SINAPI | E57: 93392 | F57: =IF(C57="SERVIÇO",IF(D57="SINAPI",VLOOKUP(E57,'[1]SERVIÇOS SINAPI'!$A:$D,2,0),IF(D57="ORSE",VLOOKUP(E57,'[1]SERVIÇOS ORSE'!$A:$D,2,0),IF(D57="SEINFRA",VLOOKUP(E57,'[1]SERVIÇOS SEINFRA'!$A:$D,2,0)))),IF(C57="INSUMO",IF(D57="SINAPI",VLOOKUP(E57,'[1]INSUMOS SINAPI'!$A:$D,2,0),IF(D57="ORSE",VLOOKUP(E57,'[1]INSUMOS ORSE'!$A:$D,2,0),IF(D57="SEINFRA",VLOOKUP(E57,'[1]INSUMOS SEINFRA'!$A:$D,2,0),))))) -> REVESTIMENTO CERÂMICO PARA PAREDES INTERNAS COM PLACAS TIPO ESMALTADA PADRÃO POPULAR DE DIMENSÕES 20X20 CM, ARGAMASSA TIPO AC I, APLICADAS EM AMBIENTES DE ÁREA MENOR QUE 5 M2 NA ALTURA INTEIRA DAS PAREDES. AF_06/2014 | G57: =IF(C57="SERVIÇO",IF(D57="SINAPI",VLOOKUP(E57,'[1]SERVIÇOS SINAPI'!$A:$D,3,0),IF(D57="ORSE",VLOOKUP(E57,'[1]SERVIÇOS ORSE'!$A:$D,3,0),IF(D57="SEINFRA",VLOOKUP(E57,'[1]SERVIÇOS SEINFRA'!$A:$D,3,0)))),IF(C57="INSUMO",IF(D57="SINAPI",VLOOKUP(E57,'[1]INSUMOS SINAPI'!$A:$D,3,0),IF(D57="ORSE",VLOOKUP(E57,'[1]INSUMOS ORSE'!$A:$D,3,0),IF(D57="SEINFRA",VLOOKUP(E57,'[1]INSUMOS SEINFRA'!$A:$D,3,0),))))) -> M² | H57: ='[1]Memória de Cálculo'!$L$327*$G$7 -> 1263.96 | I57: =IF(C57="SERVIÇO",IF(D57="SINAPI",VLOOKUP(E57,'[1]SERVIÇOS SINAPI'!$A:$D,4,0),IF(D57="ORSE",VLOOKUP(E57,'[1]SERVIÇOS ORSE'!$A:$D,4,0),IF(D57="SEINFRA",VLOOKUP(E57,'[1]SERVIÇOS SEINFRA'!$A:$D,4,0)))),IF(C57="INSUMO",IF(D57="SINAPI",VLOOKUP(E57,'[1]INSUMOS SINAPI'!$A:$D,4,0),IF(D57="ORSE",VLOOKUP(E57,'[1]INSUMOS ORSE'!$A:$D,4,0),IF(D57="SEINFRA",VLOOKUP(E57,'[1]INSUMOS SEINFRA'!$A:$D,4,0),))))) -> 58.98 | J57: 72.84 | K57: 92066.85 | L57: 2
B58: 2.1.37 | C58: SERVIÇO | D58: SINAPI | E58: 88489 | F58: =IF(C58="SERVIÇO",IF(D58="SINAPI",VLOOKUP(E58,'[1]SERVIÇOS SINAPI'!$A:$D,2,0),IF(D58="ORSE",VLOOKUP(E58,'[1]SERVIÇOS ORSE'!$A:$D,2,0),IF(D58="SEINFRA",VLOOKUP(E58,'[1]SERVIÇOS SEINFRA'!$A:$D,2,0)))),IF(C58="INSUMO",IF(D58="SINAPI",VLOOKUP(E58,'[1]INSUMOS SINAPI'!$A:$D,2,0),IF(D58="ORSE",VLOOKUP(E58,'[1]INSUMOS ORSE'!$A:$D,2,0),IF(D58="SEINFRA",VLOOKUP(E58,'[1]INSUMOS SEINFRA'!$A:$D,2,0),))))) -> APLICAÇÃO MANUAL DE PINTURA COM TINTA LÁTEX ACRÍLICA EM PAREDES, DUAS DEMÃOS. AF_06/2014 | G58: =IF(C58="SERVIÇO",IF(D58="SINAPI",VLOOKUP(E58,'[1]SERVIÇOS SINAPI'!$A:$D,3,0),IF(D58="ORSE",VLOOKUP(E58,'[1]SERVIÇOS ORSE'!$A:$D,3,0),IF(D58="SEINFRA",VLOOKUP(E58,'[1]SERVIÇOS SEINFRA'!$A:$D,3,0)))),IF(C58="INSUMO",IF(D58="SINAPI",VLOOKUP(E58,'[1]INSUMOS SINAPI'!$A:$D,3,0),IF(D58="ORSE",VLOOKUP(E58,'[1]INSUMOS ORSE'!$A:$D,3,0),IF(D58="SEINFRA",VLOOKUP(E58,'[1]INSUMOS SEINFRA'!$A:$D,3,0),))))) -> M² | H58: ='[1]Memória de Cálculo'!$L$347*$G$7 -> 3099.06 | I58: =IF(C58="SERVIÇO",IF(D58="SINAPI",VLOOKUP(E58,'[1]SERVIÇOS SINAPI'!$A:$D,4,0),IF(D58="ORSE",VLOOKUP(E58,'[1]SERVIÇOS ORSE'!$A:$D,4,0),IF(D58="SEINFRA",VLOOKUP(E58,'[1]SERVIÇOS SEINFRA'!$A:$D,4,0)))),IF(C58="INSUMO",IF(D58="SINAPI",VLOOKUP(E58,'[1]INSUMOS SINAPI'!$A:$D,4,0),IF(D58="ORSE",VLOOKUP(E58,'[1]INSUMOS ORSE'!$A:$D,4,0),IF(D58="SEINFRA",VLOOKUP(E58,'[1]INSUMOS SEINFRA'!$A:$D,4,0),))))) -> 13.67 | J58: 16.88 | K58: 52312.13 | L58: 2
B59: 2.1.38 | C59: SERVIÇO | D59: SINAPI | E59: 88488 | F59: =IF(C59="SERVIÇO",IF(D59="SINAPI",VLOOKUP(E59,'[1]SERVIÇOS SINAPI'!$A:$D,2,0),IF(D59="ORSE",VLOOKUP(E59,'[1]SERVIÇOS ORSE'!$A:$D,2,0),IF(D59="SEINFRA",VLOOKUP(E59,'[1]SERVIÇOS SEINFRA'!$A:$D,2,0)))),IF(C59="INSUMO",IF(D59="SINAPI",VLOOKUP(E59,'[1]INSUMOS SINAPI'!$A:$D,2,0),IF(D59="ORSE",VLOOKUP(E59,'[1]INSUMOS ORSE'!$A:$D,2,0),IF(D59="SEINFRA",VLOOKUP(E59,'[1]INSUMOS SEINFRA'!$A:$D,2,0),))))) -> APLICAÇÃO MANUAL DE PINTURA COM TINTA LÁTEX ACRÍLICA EM TETO, DUAS DEMÃOS. AF_06/2014 | G59: =IF(C59="SERVIÇO",IF(D59="SINAPI",VLOOKUP(E59,'[1]SERVIÇOS SINAPI'!$A:$D,3,0),IF(D59="ORSE",VLOOKUP(E59,'[1]SERVIÇOS ORSE'!$A:$D,3,0),IF(D59="SEINFRA",VLOOKUP(E59,'[1]SERVIÇOS SEINFRA'!$A:$D,3,0)))),IF(C59="INSUMO",IF(D59="SINAPI",VLOOKUP(E59,'[1]INSUMOS SINAPI'!$A:$D,3,0),IF(D59="ORSE",VLOOKUP(E59,'[1]INSUMOS ORSE'!$A:$D,3,0),IF(D59="SEINFRA",VLOOKUP(E59,'[1]INSUMOS SEINFRA'!$A:$D,3,0),))))) -> M² | H59: ='[1]Memória de Cálculo'!$L$356*$G$7 -> 417.9 | I59: =IF(C59="SERVIÇO",IF(D59="SINAPI",VLOOKUP(E59,'[1]SERVIÇOS SINAPI'!$A:$D,4,0),IF(D59="ORSE",VLOOKUP(E59,'[1]SERVIÇOS ORSE'!$A:$D,4,0),IF(D59="SEINFRA",VLOOKUP(E59,'[1]SERVIÇOS SEINFRA'!$A:$D,4,0)))),IF(C59="INSUMO",IF(D59="SINAPI",VLOOKUP(E59,'[1]INSUMOS SINAPI'!$A:$D,4,0),IF(D59="ORSE",VLOOKUP(E59,'[1]INSUMOS ORSE'!$A:$D,4,0),IF(D59="SEINFRA",VLOOKUP(E59,'[1]INSUMOS SEINFRA'!$A:$D,4,0),))))) -> 15.31 | J59: 18.91 | K59: 7902.49 | L59: 2
B60: 2.1.39 | C60: SERVIÇO | D60: SEINFRA | E60: C2899 | F60: =IF(C60="SERVIÇO",IF(D60="SINAPI",VLOOKUP(E60,'[1]SERVIÇOS SINAPI'!$A:$D,2,0),IF(D60="ORSE",VLOOKUP(E60,'[1]SERVIÇOS ORSE'!$A:$D,2,0),IF(D60="SEINFRA",VLOOKUP(E60,'[1]SERVIÇOS SEINFRA'!$A:$D,2,0)))),IF(C60="INSUMO",IF(D60="SINAPI",VLOOKUP(E60,'[1]INSUMOS SINAPI'!$A:$D,2,0),IF(D60="ORSE",VLOOKUP(E60,'[1]INSUMOS ORSE'!$A:$D,2,0),IF(D60="SEINFRA",VLOOKUP(E60,'[1]INSUMOS SEINFRA'!$A:$D,2,0),))))) -> PINTURA LOGOTIPO CAGECE - PROJETO PADRÃO | G60: =IF(C60="SERVIÇO",IF(D60="SINAPI",VLOOKUP(E60,'[1]SERVIÇOS SINAPI'!$A:$D,3,0),IF(D60="ORSE",VLOOKUP(E60,'[1]SERVIÇOS ORSE'!$A:$D,3,0),IF(D60="SEINFRA",VLOOKUP(E60,'[1]SERVIÇOS SEINFRA'!$A:$D,3,0)))),IF(C60="INSUMO",IF(D60="SINAPI",VLOOKUP(E60,'[1]INSUMOS SINAPI'!$A:$D,3,0),IF(D60="ORSE",VLOOKUP(E60,'[1]INSUMOS ORSE'!$A:$D,3,0),IF(D60="SEINFRA",VLOOKUP(E60,'[1]INSUMOS SEINFRA'!$A:$D,3,0),))))) -> UN | H60: ='[1]Memória de Cálculo'!$L$360*$G$7 -> 6 | I60: =IF(C60="SERVIÇO",IF(D60="SINAPI",VLOOKUP(E60,'[1]SERVIÇOS SINAPI'!$A:$D,4,0),IF(D60="ORSE",VLOOKUP(E60,'[1]SERVIÇOS ORSE'!$A:$D,4,0),IF(D60="SEINFRA",VLOOKUP(E60,'[1]SERVIÇOS SEINFRA'!$A:$D,4,0)))),IF(C60="INSUMO",IF(D60="SINAPI",VLOOKUP(E60,'[1]INSUMOS SINAPI'!$A:$D,4,0),IF(D60="ORSE",VLOOKUP(E60,'[1]INSUMOS ORSE'!$A:$D,4,0),IF(D60="SEINFRA",VLOOKUP(E60,'[1]INSUMOS SEINFRA'!$A:$D,4,0),))))) -> 284.28 | J60: 351.09 | K60: 2106.54 | L60: 6
B61: 2.1.40 | C61: SERVIÇO | D61: SINAPI | E61: 100701 | F61: =IF(C61="SERVIÇO",IF(D61="SINAPI",VLOOKUP(E61,'[1]SERVIÇOS SINAPI'!$A:$D,2,0),IF(D61="ORSE",VLOOKUP(E61,'[1]SERVIÇOS ORSE'!$A:$D,2,0),IF(D61="SEINFRA",VLOOKUP(E61,'[1]SERVIÇOS SEINFRA'!$A:$D,2,0)))),IF(C61="INSUMO",IF(D61="SINAPI",VLOOKUP(E61,'[1]INSUMOS SINAPI'!$A:$D,2,0),IF(D61="ORSE",VLOOKUP(E61,'[1]INSUMOS ORSE'!$A:$D,2,0),IF(D61="SEINFRA",VLOOKUP(E61,'[1]INSUMOS SEINFRA'!$A:$D,2,0),))))) -> PORTA DE FERRO, DE ABRIR, TIPO GRADE COM CHAPA, COM GUARNIÇÕES. AF_12/2019 | G61: =IF(C61="SERVIÇO",IF(D61="SINAPI",VLOOKUP(E61,'[1]SERVIÇOS SINAPI'!$A:$D,3,0),IF(D61="ORSE",VLOOKUP(E61,'[1]SERVIÇOS ORSE'!$A:$D,3,0),IF(D61="SEINFRA",VLOOKUP(E61,'[1]SERVIÇOS SEINFRA'!$A:$D,3,0)))),IF(C61="INSUMO",IF(D61="SINAPI",VLOOKUP(E61,'[1]INSUMOS SINAPI'!$A:$D,3,0),IF(D61="ORSE",VLOOKUP(E61,'[1]INSUMOS ORSE'!$A:$D,3,0),IF(D61="SEINFRA",VLOOKUP(E61,'[1]INSUMOS SEINFRA'!$A:$D,3,0),))))) -> M² | H61: ='[1]Memória de Cálculo'!$L$373*$G$7 -> 108.36 | I61: =IF(C61="SERVIÇO",IF(D61="SINAPI",VLOOKUP(E61,'[1]SERVIÇOS SINAPI'!$A:$D,4,0),IF(D61="ORSE",VLOOKUP(E61,'[1]SERVIÇOS ORSE'!$A:$D,4,0),IF(D61="SEINFRA",VLOOKUP(E61,'[1]SERVIÇOS SEINFRA'!$A:$D,4,0)))),IF(C61="INSUMO",IF(D61="SINAPI",VLOOKUP(E61,'[1]INSUMOS SINAPI'!$A:$D,4,0),IF(D61="ORSE",VLOOKUP(E61,'[1]INSUMOS ORSE'!$A:$D,4,0),IF(D61="SEINFRA",VLOOKUP(E61,'[1]INSUMOS SEINFRA'!$A:$D,4,0),))))) -> 407.33 | J61: 503.05 | K61: 54510.5 | L61: 5
B62: 2.1.41 | C62: SERVIÇO | D62: SINAPI | E62: 94559 | F62: =IF(C62="SERVIÇO",IF(D62="SINAPI",VLOOKUP(E62,'[1]SERVIÇOS SINAPI'!$A:$D,2,0),IF(D62="ORSE",VLOOKUP(E62,'[1]SERVIÇOS ORSE'!$A:$D,2,0),IF(D62="SEINFRA",VLOOKUP(E62,'[1]SERVIÇOS SEINFRA'!$A:$D,2,0)))),IF(C62="INSUMO",IF(D62="SINAPI",VLOOKUP(E62,'[1]INSUMOS SINAPI'!$A:$D,2,0),IF(D62="ORSE",VLOOKUP(E62,'[1]INSUMOS ORSE'!$A:$D,2,0),IF(D62="SEINFRA",VLOOKUP(E62,'[1]INSUMOS SEINFRA'!$A:$D,2,0),))))) -> JANELA DE AÇO TIPO BASCULANTE PARA VIDROS, COM BATENTE, FERRAGENS E PINTURA ANTICORROSIVA. EXCLUSIVE VIDROS, ACABAMENTO, ALIZAR E CONTRAMARCO. FORNECIMENTO E INSTALAÇÃO. AF_12/2019 | G62: =IF(C62="SERVIÇO",IF(D62="SINAPI",VLOOKUP(E62,'[1]SERVIÇOS SINAPI'!$A:$D,3,0),IF(D62="ORSE",VLOOKUP(E62,'[1]SERVIÇOS ORSE'!$A:$D,3,0),IF(D62="SEINFRA",VLOOKUP(E62,'[1]SERVIÇOS SEINFRA'!$A:$D,3,0)))),IF(C62="INSUMO",IF(D62="SINAPI",VLOOKUP(E62,'[1]INSUMOS SINAPI'!$A:$D,3,0),IF(D62="ORSE",VLOOKUP(E62,'[1]INSUMOS ORSE'!$A:$D,3,0),IF(D62="SEINFRA",VLOOKUP(E62,'[1]INSUMOS SEINFRA'!$A:$D,3,0),))))) -> M² | H62: ='[1]Memória de Cálculo'!$L$380*$G$7 -> 26.1 | I62: =IF(C62="SERVIÇO",IF(D62="SINAPI",VLOOKUP(E62,'[1]SERVIÇOS SINAPI'!$A:$D,4,0),IF(D62="ORSE",VLOOKUP(E62,'[1]SERVIÇOS ORSE'!$A:$D,4,0),IF(D62="SEINFRA",VLOOKUP(E62,'[1]SERVIÇOS SEINFRA'!$A:$D,4,0)))),IF(C62="INSUMO",IF(D62="SINAPI",VLOOKUP(E62,'[1]INSUMOS SINAPI'!$A:$D,4,0),IF(D62="ORSE",VLOOKUP(E62,'[1]INSUMOS ORSE'!$A:$D,4,0),IF(D62="SEINFRA",VLOOKUP(E62,'[1]INSUMOS SEINFRA'!$A:$D,4,0),))))) -> 719.18 | J62: 888.19 | K62: 23181.76 | L62: 5
B63: 2.1.42 | C63: SERVIÇO | D63: ORSE | E63: 1883 | F63: =IF(C63="SERVIÇO",IF(D63="SINAPI",VLOOKUP(E63,'[1]SERVIÇOS SINAPI'!$A:$D,2,0),IF(D63="ORSE",VLOOKUP(E63,'[1]SERVIÇOS ORSE'!$A:$D,2,0),IF(D63="SEINFRA",VLOOKUP(E63,'[1]SERVIÇOS SEINFRA'!$A:$D,2,0)))),IF(C63="INSUMO",IF(D63="SINAPI",VLOOKUP(E63,'[1]INSUMOS SINAPI'!$A:$D,2,0),IF(D63="ORSE",VLOOKUP(E63,'[1]INSUMOS ORSE'!$A:$D,2,0),IF(D63="SEINFRA",VLOOKUP(E63,'[1]INSUMOS SEINFRA'!$A:$D,2,0),))))) -> VIDRO FANTASIA CANELADO 4 MM | G63: =IF(C63="SERVIÇO",IF(D63="SINAPI",VLOOKUP(E63,'[1]SERVIÇOS SINAPI'!$A:$D,3,0),IF(D63="ORSE",VLOOKUP(E63,'[1]SERVIÇOS ORSE'!$A:$D,3,0),IF(D63="SEINFRA",VLOOKUP(E63,'[1]SERVIÇOS SEINFRA'!$A:$D,3,0)))),IF(C63="INSUMO",IF(D63="SINAPI",VLOOKUP(E63,'[1]INSUMOS SINAPI'!$A:$D,3,0),IF(D63="ORSE",VLOOKUP(E63,'[1]INSUMOS ORSE'!$A:$D,3,0),IF(D63="SEINFRA",VLOOKUP(E63,'[1]INSUMOS SEINFRA'!$A:$D,3,0),))))) -> M² | H63: ='[1]Memória de Cálculo'!$L$387*$G$7 -> 26.1 | I63: =IF(C63="SERVIÇO",IF(D63="SINAPI",VLOOKUP(E63,'[1]SERVIÇOS SINAPI'!$A:$D,4,0),IF(D63="ORSE",VLOOKUP(E63,'[1]SERVIÇOS ORSE'!$A:$D,4,0),IF(D63="SEINFRA",VLOOKUP(E63,'[1]SERVIÇOS SEINFRA'!$A:$D,4,0)))),IF(C63="INSUMO",IF(D63="SINAPI",VLOOKUP(E63,'[1]INSUMOS SINAPI'!$A:$D,4,0),IF(D63="ORSE",VLOOKUP(E63,'[1]INSUMOS ORSE'!$A:$D,4,0),IF(D63="SEINFRA",VLOOKUP(E63,'[1]INSUMOS SEINFRA'!$A:$D,4,0),))))) -> 133.33 | J63: 164.66 | K63: 4297.63 | L63: 2
B64: 2.1.43 | C64: SERVIÇO | D64: SEINFRA | E64: C1426 | F64: =IF(C64="SERVIÇO",IF(D64="SINAPI",VLOOKUP(E64,'[1]SERVIÇOS SINAPI'!$A:$D,2,0),IF(D64="ORSE",VLOOKUP(E64,'[1]SERVIÇOS ORSE'!$A:$D,2,0),IF(D64="SEINFRA",VLOOKUP(E64,'[1]SERVIÇOS SEINFRA'!$A:$D,2,0)))),IF(C64="INSUMO",IF(D64="SINAPI",VLOOKUP(E64,'[1]INSUMOS SINAPI'!$A:$D,2,0),IF(D64="ORSE",VLOOKUP(E64,'[1]INSUMOS ORSE'!$A:$D,2,0),IF(D64="SEINFRA",VLOOKUP(E64,'[1]INSUMOS SEINFRA'!$A:$D,2,0),))))) -> GRADE DE FERRO DE PROTEÇÃO | G64: =IF(C64="SERVIÇO",IF(D64="SINAPI",VLOOKUP(E64,'[1]SERVIÇOS SINAPI'!$A:$D,3,0),IF(D64="ORSE",VLOOKUP(E64,'[1]SERVIÇOS ORSE'!$A:$D,3,0),IF(D64="SEINFRA",VLOOKUP(E64,'[1]SERVIÇOS SEINFRA'!$A:$D,3,0)))),IF(C64="INSUMO",IF(D64="SINAPI",VLOOKUP(E64,'[1]INSUMOS SINAPI'!$A:$D,3,0),IF(D64="ORSE",VLOOKUP(E64,'[1]INSUMOS ORSE'!$A:$D,3,0),IF(D64="SEINFRA",VLOOKUP(E64,'[1]INSUMOS SEINFRA'!$A:$D,3,0),))))) -> M² | H64: ='[1]Memória de Cálculo'!$L$394*$G$7 -> 85.68 | I64: =IF(C64="SERVIÇO",IF(D64="SINAPI",VLOOKUP(E64,'[1]SERVIÇOS SINAPI'!$A:$D,4,0),IF(D64="ORSE",VLOOKUP(E64,'[1]SERVIÇOS ORSE'!$A:$D,4,0),IF(D64="SEINFRA",VLOOKUP(E64,'[1]SERVIÇOS SEINFRA'!$A:$D,4,0)))),IF(C64="INSUMO",IF(D64="SINAPI",VLOOKUP(E64,'[1]INSUMOS SINAPI'!$A:$D,4,0),IF(D64="ORSE",VLOOKUP(E64,'[1]INSUMOS ORSE'!$A:$D,4,0),IF(D64="SEINFRA",VLOOKUP(E64,'[1]INSUMOS SEINFRA'!$A:$D,4,0),))))) -> 222.31 | J64: 274.55 | K64: 23523.44 | L64: 5
B65: 2.1.44 | C65: SERVIÇO | D65: SINAPI | E65: 91304 | F65: =IF(C65="SERVIÇO",IF(D65="SINAPI",VLOOKUP(E65,'[1]SERVIÇOS SINAPI'!$A:$D,2,0),IF(D65="ORSE",VLOOKUP(E65,'[1]SERVIÇOS ORSE'!$A:$D,2,0),IF(D65="SEINFRA",VLOOKUP(E65,'[1]SERVIÇOS SEINFRA'!$A:$D,2,0)))),IF(C65="INSUMO",IF(D65="SINAPI",VLOOKUP(E65,'[1]INSUMOS SINAPI'!$A:$D,2,0),IF(D65="ORSE",VLOOKUP(E65,'[1]INSUMOS ORSE'!$A:$D,2,0),IF(D65="SEINFRA",VLOOKUP(E65,'[1]INSUMOS SEINFRA'!$A:$D,2,0),))))) -> FECHADURA DE EMBUTIR COM CILINDRO, EXTERNA, COMPLETA, ACABAMENTO PADRÃO POPULAR, INCLUSO EXECUÇÃO DE FURO - FORNECIMENTO E INSTALAÇÃO. AF_12/2019 | G65: =IF(C65="SERVIÇO",IF(D65="SINAPI",VLOOKUP(E65,'[1]SERVIÇOS SINAPI'!$A:$D,3,0),IF(D65="ORSE",VLOOKUP(E65,'[1]SERVIÇOS ORSE'!$A:$D,3,0),IF(D65="SEINFRA",VLOOKUP(E65,'[1]SERVIÇOS SEINFRA'!$A:$D,3,0)))),IF(C65="INSUMO",IF(D65="SINAPI",VLOOKUP(E65,'[1]INSUMOS SINAPI'!$A:$D,3,0),IF(D65="ORSE",VLOOKUP(E65,'[1]INSUMOS ORSE'!$A:$D,3,0),IF(D65="SEINFRA",VLOOKUP(E65,'[1]INSUMOS SEINFRA'!$A:$D,3,0),))))) -> UN | H65: ='[1]Memória de Cálculo'!$L$410*$G$7 -> 78 | I65: =IF(C65="SERVIÇO",IF(D65="SINAPI",VLOOKUP(E65,'[1]SERVIÇOS SINAPI'!$A:$D,4,0),IF(D65="ORSE",VLOOKUP(E65,'[1]SERVIÇOS ORSE'!$A:$D,4,0),IF(D65="SEINFRA",VLOOKUP(E65,'[1]SERVIÇOS SEINFRA'!$A:$D,4,0)))),IF(C65="INSUMO",IF(D65="SINAPI",VLOOKUP(E65,'[1]INSUMOS SINAPI'!$A:$D,4,0),IF(D65="ORSE",VLOOKUP(E65,'[1]INSUMOS ORSE'!$A:$D,4,0),IF(D65="SEINFRA",VLOOKUP(E65,'[1]INSUMOS SEINFRA'!$A:$D,4,0),))))) -> 87.09 | J65: 107.56 | K65: 8389.68 | L65: 5
B66: 2.1.45 | C66: SERVIÇO | D66: SINAPI | E66: 100719 | F66: =IF(C66="SERVIÇO",IF(D66="SINAPI",VLOOKUP(E66,'[1]SERVIÇOS SINAPI'!$A:$D,2,0),IF(D66="ORSE",VLOOKUP(E66,'[1]SERVIÇOS ORSE'!$A:$D,2,0),IF(D66="SEINFRA",VLOOKUP(E66,'[1]SERVIÇOS SEINFRA'!$A:$D,2,0)))),IF(C66="INSUMO",IF(D66="SINAPI",VLOOKUP(E66,'[1]INSUMOS SINAPI'!$A:$D,2,0),IF(D66="ORSE",VLOOKUP(E66,'[1]INSUMOS ORSE'!$A:$D,2,0),IF(D66="SEINFRA",VLOOKUP(E66,'[1]INSUMOS SEINFRA'!$A:$D,2,0),))))) -> PINTURA COM TINTA ALQUÍDICA DE FUNDO (TIPO ZARCÃO) PULVERIZADA SOBRE PERFIL METÁLICO EXECUTADO EM FÁBRICA (POR DEMÃO). AF_01/2020_P | G66: =IF(C66="SERVIÇO",IF(D66="SINAPI",VLOOKUP(E66,'[1]SERVIÇOS SINAPI'!$A:$D,3,0),IF(D66="ORSE",VLOOKUP(E66,'[1]SERVIÇOS ORSE'!$A:$D,3,0),IF(D66="SEINFRA",VLOOKUP(E66,'[1]SERVIÇOS SEINFRA'!$A:$D,3,0)))),IF(C66="INSUMO",IF(D66="SINAPI",VLOOKUP(E66,'[1]INSUMOS SINAPI'!$A:$D,3,0),IF(D66="ORSE",VLOOKUP(E66,'[1]INSUMOS ORSE'!$A:$D,3,0),IF(D66="SEINFRA",VLOOKUP(E66,'[1]INSUMOS SEINFRA'!$A:$D,3,0),))))) -> M² | H66: ='[1]Memória de Cálculo'!$L$450*$G$7 -> 420.12 | I66: =IF(C66="SERVIÇO",IF(D66="SINAPI",VLOOKUP(E66,'[1]SERVIÇOS SINAPI'!$A:$D,4,0),IF(D66="ORSE",VLOOKUP(E66,'[1]SERVIÇOS ORSE'!$A:$D,4,0),IF(D66="SEINFRA",VLOOKUP(E66,'[1]SERVIÇOS SEINFRA'!$A:$D,4,0)))),IF(C66="INSUMO",IF(D66="SINAPI",VLOOKUP(E66,'[1]INSUMOS SINAPI'!$A:$D,4,0),IF(D66="ORSE",VLOOKUP(E66,'[1]INSUMOS ORSE'!$A:$D,4,0),IF(D66="SEINFRA",VLOOKUP(E66,'[1]INSUMOS SEINFRA'!$A:$D,4,0),))))) -> 8.05 | J66: 9.94 | K66: 4175.99 | L66: 2
B67: 2.1.46 | C67: SERVIÇO | D67: SINAPI | E67: 100745 | F67: =IF(C67="SERVIÇO",IF(D67="SINAPI",VLOOKUP(E67,'[1]SERVIÇOS SINAPI'!$A:$D,2,0),IF(D67="ORSE",VLOOKUP(E67,'[1]SERVIÇOS ORSE'!$A:$D,2,0),IF(D67="SEINFRA",VLOOKUP(E67,'[1]SERVIÇOS SEINFRA'!$A:$D,2,0)))),IF(C67="INSUMO",IF(D67="SINAPI",VLOOKUP(E67,'[1]INSUMOS SINAPI'!$A:$D,2,0),IF(D67="ORSE",VLOOKUP(E67,'[1]INSUMOS ORSE'!$A:$D,2,0),IF(D67="SEINFRA",VLOOKUP(E67,'[1]INSUMOS SEINFRA'!$A:$D,2,0),))))) -> PINTURA COM TINTA ALQUÍDICA DE ACABAMENTO (ESMALTE SINTÉTICO BRILHANTE) PULVERIZADA SOBRE SUPERFÍCIES METÁLICAS (EXCETO PERFIL) EXECUTADO EM OBRA (POR DEMÃO). AF_01/2020_P | G67: =IF(C67="SERVIÇO",IF(D67="SINAPI",VLOOKUP(E67,'[1]SERVIÇOS SINAPI'!$A:$D,3,0),IF(D67="ORSE",VLOOKUP(E67,'[1]SERVIÇOS ORSE'!$A:$D,3,0),IF(D67="SEINFRA",VLOOKUP(E67,'[1]SERVIÇOS SEINFRA'!$A:$D,3,0)))),IF(C67="INSUMO",IF(D67="SINAPI",VLOOKUP(E67,'[1]INSUMOS SINAPI'!$A:$D,3,0),IF(D67="ORSE",VLOOKUP(E67,'[1]INSUMOS ORSE'!$A:$D,3,0),IF(D67="SEINFRA",VLOOKUP(E67,'[1]INSUMOS SEINFRA'!$A:$D,3,0),))))) -> M² | H67: ='[1]Memória de Cálculo'!$L$455*$G$7 -> 17.28 | I67: =IF(C67="SERVIÇO",IF(D67="SINAPI",VLOOKUP(E67,'[1]SERVIÇOS SINAPI'!$A:$D,4,0),IF(D67="ORSE",VLOOKUP(E67,'[1]SERVIÇOS ORSE'!$A:$D,4,0),IF(D67="SEINFRA",VLOOKUP(E67,'[1]SERVIÇOS SEINFRA'!$A:$D,4,0)))),IF(C67="INSUMO",IF(D67="SINAPI",VLOOKUP(E67,'[1]INSUMOS SINAPI'!$A:$D,4,0),IF(D67="ORSE",VLOOKUP(E67,'[1]INSUMOS ORSE'!$A:$D,4,0),IF(D67="SEINFRA",VLOOKUP(E67,'[1]INSUMOS SEINFRA'!$A:$D,4,0),))))) -> 18.64 | J67: 23.02 | K67: 397.79 | L67: 2
B68: 2.1.47 | C68: SERVIÇO | D68: ORSE | E68: 11363 | F68: =IF(C68="SERVIÇO",IF(D68="SINAPI",VLOOKUP(E68,'[1]SERVIÇOS SINAPI'!$A:$D,2,0),IF(D68="ORSE",VLOOKUP(E68,'[1]SERVIÇOS ORSE'!$A:$D,2,0),IF(D68="SEINFRA",VLOOKUP(E68,'[1]SERVIÇOS SEINFRA'!$A:$D,2,0)))),IF(C68="INSUMO",IF(D68="SINAPI",VLOOKUP(E68,'[1]INSUMOS SINAPI'!$A:$D,2,0),IF(D68="ORSE",VLOOKUP(E68,'[1]INSUMOS ORSE'!$A:$D,2,0),IF(D68="SEINFRA",VLOOKUP(E68,'[1]INSUMOS SEINFRA'!$A:$D,2,0),))))) -> PRATELEIRA EM GRANITO VERDE UBATUBA, ESP=2CM, INCLUSIVE TESTEIRA DE 10CM | G68: =IF(C68="SERVIÇO",IF(D68="SINAPI",VLOOKUP(E68,'[1]SERVIÇOS SINAPI'!$A:$D,3,0),IF(D68="ORSE",VLOOKUP(E68,'[1]SERVIÇOS ORSE'!$A:$D,3,0),IF(D68="SEINFRA",VLOOKUP(E68,'[1]SERVIÇOS SEINFRA'!$A:$D,3,0)))),IF(C68="INSUMO",IF(D68="SINAPI",VLOOKUP(E68,'[1]INSUMOS SINAPI'!$A:$D,3,0),IF(D68="ORSE",VLOOKUP(E68,'[1]INSUMOS ORSE'!$A:$D,3,0),IF(D68="SEINFRA",VLOOKUP(E68,'[1]INSUMOS SEINFRA'!$A:$D,3,0),))))) -> M² | H68: ='[1]Memória de Cálculo'!$L$455*$G$7 -> 17.28 | I68: =IF(C68="SERVIÇO",IF(D68="SINAPI",VLOOKUP(E68,'[1]SERVIÇOS SINAPI'!$A:$D,4,0),IF(D68="ORSE",VLOOKUP(E68,'[1]SERVIÇOS ORSE'!$A:$D,4,0),IF(D68="SEINFRA",VLOOKUP(E68,'[1]SERVIÇOS SEINFRA'!$A:$D,4,0)))),IF(C68="INSUMO",IF(D68="SINAPI",VLOOKUP(E68,'[1]INSUMOS SINAPI'!$A:$D,4,0),IF(D68="ORSE",VLOOKUP(E68,'[1]INSUMOS ORSE'!$A:$D,4,0),IF(D68="SEINFRA",VLOOKUP(E68,'[1]INSUMOS SEINFRA'!$A:$D,4,0),))))) -> 428.98 | J68: 529.79 | K68: 9154.77 | L68: 2
B69: 2.2 | C69: INSTALAÇÕES HIDRAULICAS | K69: =SUM(K70:K91) -> 193003.66
B70: 2.2.1 | C70: SERVIÇO | D70: ORSE | E70: 4545 | F70: =IF(C70="SERVIÇO",IF(D70="SINAPI",VLOOKUP(E70,'[1]SERVIÇOS SINAPI'!$A:$D,2,0),IF(D70="ORSE",VLOOKUP(E70,'[1]SERVIÇOS ORSE'!$A:$D,2,0),IF(D70="SEINFRA",VLOOKUP(E70,'[1]SERVIÇOS SEINFRA'!$A:$D,2,0)))),IF(C70="INSUMO",IF(D70="SINAPI",VLOOKUP(E70,'[1]INSUMOS SINAPI'!$A:$D,2,0),IF(D70="ORSE",VLOOKUP(E70,'[1]INSUMOS ORSE'!$A:$D,2,0),IF(D70="SEINFRA",VLOOKUP(E70,'[1]INSUMOS SEINFRA'!$A:$D,2,0),))))) -> KIT DE ACESSÓRIOS PARA BANHEIRO EM ABS/ALUMÍNIO COM 5 PEÇAS (01 CABIDE, 01 SA BONETEIRA, 01 PAPELEIRA, 01 PORTA-TOALHA ROSTO E 01 PORTA-TOALHA BANHO) | G70: =IF(C70="SERVIÇO",IF(D70="SINAPI",VLOOKUP(E70,'[1]SERVIÇOS SINAPI'!$A:$D,3,0),IF(D70="ORSE",VLOOKUP(E70,'[1]SERVIÇOS ORSE'!$A:$D,3,0),IF(D70="SEINFRA",VLOOKUP(E70,'[1]SERVIÇOS SEINFRA'!$A:$D,3,0)))),IF(C70="INSUMO",IF(D70="SINAPI",VLOOKUP(E70,'[1]INSUMOS SINAPI'!$A:$D,3,0),IF(D70="ORSE",VLOOKUP(E70,'[1]INSUMOS ORSE'!$A:$D,3,0),IF(D70="SEINFRA",VLOOKUP(E70,'[1]INSUMOS SEINFRA'!$A:$D,3,0),))))) -> UN | H70: ='[1]Memória de Cálculo'!$L$462*$G$7 -> 18 | I70: =IF(C70="SERVIÇO",IF(D70="SINAPI",VLOOKUP(E70,'[1]SERVIÇOS SINAPI'!$A:$D,4,0),IF(D70="ORSE",VLOOKUP(E70,'[1]SERVIÇOS ORSE'!$A:$D,4,0),IF(D70="SEINFRA",VLOOKUP(E70,'[1]SERVIÇOS SEINFRA'!$A:$D,4,0)))),IF(C70="INSUMO",IF(D70="SINAPI",VLOOKUP(E70,'[1]INSUMOS SINAPI'!$A:$D,4,0),IF(D70="ORSE",VLOOKUP(E70,'[1]INSUMOS ORSE'!$A:$D,4,0),IF(D70="SEINFRA",VLOOKUP(E70,'[1]INSUMOS SEINFRA'!$A:$D,4,0),))))) -> 49.66 | J70: =IF(C70="SERVIÇO",I70*(1+$I$8),IF(C70="INSUMO",(I70*(1+$K$8)))) -> 61.33 | K70: =J70*H70 -> 1103.94 | L70: 7
B71: 2.2.2 | C71: SERVIÇO | D71: SINAPI | E71: 86939 | F71: =IF(C71="SERVIÇO",IF(D71="SINAPI",VLOOKUP(E71,'[1]SERVIÇOS SINAPI'!$A:$D,2,0),IF(D71="ORSE",VLOOKUP(E71,'[1]SERVIÇOS ORSE'!$A:$D,2,0),IF(D71="SEINFRA",VLOOKUP(E71,'[1]SERVIÇOS SEINFRA'!$A:$D,2,0)))),IF(C71="INSUMO",IF(D71="SINAPI",VLOOKUP(E71,'[1]INSUMOS SINAPI'!$A:$D,2,0),IF(D71="ORSE",VLOOKUP(E71,'[1]INSUMOS ORSE'!$A:$D,2,0),IF(D71="SEINFRA",VLOOKUP(E71,'[1]INSUMOS SEINFRA'!$A:$D,2,0),))))) -> LAVATÓRIO LOUÇA BRANCA COM COLUNA, *44 X 35,5* CM, PADRÃO POPULAR, INCLUSO SIFÃO FLEXÍVEL EM PVC, VÁLVULA E ENGATE FLEXÍVEL 30CM EM PLÁSTICO E COM TORNEIRA CROMADA PADRÃO POPULAR - FORNECIMENTO E INSTALAÇÃO. AF_01/2020 | G71: =IF(C71="SERVIÇO",IF(D71="SINAPI",VLOOKUP(E71,'[1]SERVIÇOS SINAPI'!$A:$D,3,0),IF(D71="ORSE",VLOOKUP(E71,'[1]SERVIÇOS ORSE'!$A:$D,3,0),IF(D71="SEINFRA",VLOOKUP(E71,'[1]SERVIÇOS SEINFRA'!$A:$D,3,0)))),IF(C71="INSUMO",IF(D71="SINAPI",VLOOKUP(E71,'[1]INSUMOS SINAPI'!$A:$D,3,0),IF(D71="ORSE",VLOOKUP(E71,'[1]INSUMOS ORSE'!$A:$D,3,0),IF(D71="SEINFRA",VLOOKUP(E71,'[1]INSUMOS SEINFRA'!$A:$D,3,0),))))) -> UN | H71: ='[1]Memória de Cálculo'!$L$468*$G$7 -> 18 | I71: =IF(C71="SERVIÇO",IF(D71="SINAPI",VLOOKUP(E71,'[1]SERVIÇOS SINAPI'!$A:$D,4,0),IF(D71="ORSE",VLOOKUP(E71,'[1]SERVIÇOS ORSE'!$A:$D,4,0),IF(D71="SEINFRA",VLOOKUP(E71,'[1]SERVIÇOS SEINFRA'!$A:$D,4,0)))),IF(C71="INSUMO",IF(D71="SINAPI",VLOOKUP(E71,'[1]INSUMOS SINAPI'!$A:$D,4,0),IF(D71="ORSE",VLOOKUP(E71,'[1]INSUMOS ORSE'!$A:$D,4,0),IF(D71="SEINFRA",VLOOKUP(E71,'[1]INSUMOS SEINFRA'!$A:$D,4,0),))))) -> 305.85 | J71: 377.72 | K71: 6798.96 | L71: 2
B72: 2.2.3 | C72: SERVIÇO | D72: SINAPI | E72: 86888 | F72: =IF(C72="SERVIÇO",IF(D72="SINAPI",VLOOKUP(E72,'[1]SERVIÇOS SINAPI'!$A:$D,2,0),IF(D72="ORSE",VLOOKUP(E72,'[1]SERVIÇOS ORSE'!$A:$D,2,0),IF(D72="SEINFRA",VLOOKUP(E72,'[1]SERVIÇOS SEINFRA'!$A:$D,2,0)))),IF(C72="INSUMO",IF(D72="SINAPI",VLOOKUP(E72,'[1]INSUMOS SINAPI'!$A:$D,2,0),IF(D72="ORSE",VLOOKUP(E72,'[1]INSUMOS ORSE'!$A:$D,2,0),IF(D72="SEINFRA",VLOOKUP(E72,'[1]INSUMOS SEINFRA'!$A:$D,2,0),))))) -> VASO SANITÁRIO SIFONADO COM CAIXA ACOPLADA LOUÇA BRANCA - FORNECIMENTO E INSTALAÇÃO. AF_01/2020 | G72: =IF(C72="SERVIÇO",IF(D72="SINAPI",VLOOKUP(E72,'[1]SERVIÇOS SINAPI'!$A:$D,3,0),IF(D72="ORSE",VLOOKUP(E72,'[1]SERVIÇOS ORSE'!$A:$D,3,0),IF(D72="SEINFRA",VLOOKUP(E72,'[1]SERVIÇOS SEINFRA'!$A:$D,3,0)))),IF(C72="INSUMO",IF(D72="SINAPI",VLOOKUP(E72,'[1]INSUMOS SINAPI'!$A:$D,3,0),IF(D72="ORSE",VLOOKUP(E72,'[1]INSUMOS ORSE'!$A:$D,3,0),IF(D72="SEINFRA",VLOOKUP(E72,'[1]INSUMOS SEINFRA'!$A:$D,3,0),))))) -> UN | H72: ='[1]Memória de Cálculo'!$L$474*$G$7 -> 18 | I72: =IF(C72="SERVIÇO",IF(D72="SINAPI",VLOOKUP(E72,'[1]SERVIÇOS SINAPI'!$A:$D,4,0),IF(D72="ORSE",VLOOKUP(E72,'[1]SERVIÇOS ORSE'!$A:$D,4,0),IF(D72="SEINFRA",VLOOKUP(E72,'[1]SERVIÇOS SEINFRA'!$A:$D,4,0)))),IF(C72="INSUMO",IF(D72="SINAPI",VLOOKUP(E72,'[1]INSUMOS SINAPI'!$A:$D,4,0),IF(D72="ORSE",VLOOKUP(E72,'[1]INSUMOS ORSE'!$A:$D,4,0),IF(D72="SEINFRA",VLOOKUP(E72,'[1]INSUMOS SEINFRA'!$A:$D,4,0),))))) -> 297.16 | J72: 366.99 | K72: 6605.82 | L72: 2
B73: 2.2.4 | C73: SERVIÇO | D73: SEINFRA | E73: C0797 | F73: =IF(C73="SERVIÇO",IF(D73="SINAPI",VLOOKUP(E73,'[1]SERVIÇOS SINAPI'!$A:$D,2,0),IF(D73="ORSE",VLOOKUP(E73,'[1]SERVIÇOS ORSE'!$A:$D,2,0),IF(D73="SEINFRA",VLOOKUP(E73,'[1]SERVIÇOS SEINFRA'!$A:$D,2,0)))),IF(C73="INSUMO",IF(D73="SINAPI",VLOOKUP(E73,'[1]INSUMOS SINAPI'!$A:$D,2,0),IF(D73="ORSE",VLOOKUP(E73,'[1]INSUMOS ORSE'!$A:$D,2,0),IF(D73="SEINFRA",VLOOKUP(E73,'[1]INSUMOS SEINFRA'!$A:$D,2,0),))))) -> CHUVEIRO PLÁSTICO (INSTALADO) | G73: =IF(C73="SERVIÇO",IF(D73="SINAPI",VLOOKUP(E73,'[1]SERVIÇOS SINAPI'!$A:$D,3,0),IF(D73="ORSE",VLOOKUP(E73,'[1]SERVIÇOS ORSE'!$A:$D,3,0),IF(D73="SEINFRA",VLOOKUP(E73,'[1]SERVIÇOS SEINFRA'!$A:$D,3,0)))),IF(C73="INSUMO",IF(D73="SINAPI",VLOOKUP(E73,'[1]INSUMOS SINAPI'!$A:$D,3,0),IF(D73="ORSE",VLOOKUP(E73,'[1]INSUMOS ORSE'!$A:$D,3,0),IF(D73="SEINFRA",VLOOKUP(E73,'[1]INSUMOS SEINFRA'!$A:$D,3,0),))))) -> UN | H73: ='[1]Memória de Cálculo'!$L$480*$G$7 -> 18 | I73: =IF(C73="SERVIÇO",IF(D73="SINAPI",VLOOKUP(E73,'[1]SERVIÇOS SINAPI'!$A:$D,4,0),IF(D73="ORSE",VLOOKUP(E73,'[1]SERVIÇOS ORSE'!$A:$D,4,0),IF(D73="SEINFRA",VLOOKUP(E73,'[1]SERVIÇOS SEINFRA'!$A:$D,4,0)))),IF(C73="INSUMO",IF(D73="SINAPI",VLOOKUP(E73,'[1]INSUMOS SINAPI'!$A:$D,4,0),IF(D73="ORSE",VLOOKUP(E73,'[1]INSUMOS ORSE'!$A:$D,4,0),IF(D73="SEINFRA",VLOOKUP(E73,'[1]INSUMOS SEINFRA'!$A:$D,4,0),))))) -> 10.93 | J73: 13.5 | K73: 243 | L73: 4
B74: 2.2.5 | C74: SERVIÇO | D74: ORSE | E74: 12287 | F74: =IF(C74="SERVIÇO",IF(D74="SINAPI",VLOOKUP(E74,'[1]SERVIÇOS SINAPI'!$A:$D,2,0),IF(D74="ORSE",VLOOKUP(E74,'[1]SERVIÇOS ORSE'!$A:$D,2,0),IF(D74="SEINFRA",VLOOKUP(E74,'[1]SERVIÇOS SEINFRA'!$A:$D,2,0)))),IF(C74="INSUMO",IF(D74="SINAPI",VLOOKUP(E74,'[1]INSUMOS SINAPI'!$A:$D,2,0),IF(D74="ORSE",VLOOKUP(E74,'[1]INSUMOS ORSE'!$A:$D,2,0),IF(D74="SEINFRA",VLOOKUP(E74,'[1]INSUMOS SEINFRA'!$A:$D,2,0),))))) -> PIA DE COZINHA COM BANCADA EM GRANITO CINZA ANDORINHA, E = 2CM, DIM 3.45X0.60 , COM 01 CUBA DE AÇO INOX, SIFÃO CROMADO, VÁLVULA CROMADA, TORNEIRA CROMADA, INCLUSIVE RODOPIA 10 CM, ASSENTADA | G74: =IF(C74="SERVIÇO",IF(D74="SINAPI",VLOOKUP(E74,'[1]SERVIÇOS SINAPI'!$A:$D,3,0),IF(D74="ORSE",VLOOKUP(E74,'[1]SERVIÇOS ORSE'!$A:$D,3,0),IF(D74="SEINFRA",VLOOKUP(E74,'[1]SERVIÇOS SEINFRA'!$A:$D,3,0)))),IF(C74="INSUMO",IF(D74="SINAPI",VLOOKUP(E74,'[1]INSUMOS SINAPI'!$A:$D,3,0),IF(D74="ORSE",VLOOKUP(E74,'[1]INSUMOS ORSE'!$A:$D,3,0),IF(D74="SEINFRA",VLOOKUP(E74,'[1]INSUMOS SEINFRA'!$A:$D,3,0),))))) -> UN | H74: ='[1]Memória de Cálculo'!$L$484*$G$7 -> 6 | I74: =IF(C74="SERVIÇO",IF(D74="SINAPI",VLOOKUP(E74,'[1]SERVIÇOS SINAPI'!$A:$D,4,0),IF(D74="ORSE",VLOOKUP(E74,'[1]SERVIÇOS ORSE'!$A:$D,4,0),IF(D74="SEINFRA",VLOOKUP(E74,'[1]SERVIÇOS SEINFRA'!$A:$D,4,0)))),IF(C74="INSUMO",IF(D74="SINAPI",VLOOKUP(E74,'[1]INSUMOS SINAPI'!$A:$D,4,0),IF(D74="ORSE",VLOOKUP(E74,'[1]INSUMOS ORSE'!$A:$D,4,0),IF(D74="SEINFRA",VLOOKUP(E74,'[1]INSUMOS SEINFRA'!$A:$D,4,0),))))) -> 1647.55 | J74: 2034.72 | K74: 12208.32 | L74: 6
B75: 2.2.6 | C75: SERVIÇO | D75: ORSE | E75: 2794 | F75: =IF(C75="SERVIÇO",IF(D75="SINAPI",VLOOKUP(E75,'[1]SERVIÇOS SINAPI'!$A:$D,2,0),IF(D75="ORSE",VLOOKUP(E75,'[1]SERVIÇOS ORSE'!$A:$D,2,0),IF(D75="SEINFRA",VLOOKUP(E75,'[1]SERVIÇOS SEINFRA'!$A:$D,2,0)))),IF(C75="INSUMO",IF(D75="SINAPI",VLOOKUP(E75,'[1]INSUMOS SINAPI'!$A:$D,2,0),IF(D75="ORSE",VLOOKUP(E75,'[1]INSUMOS ORSE'!$A:$D,2,0),IF(D75="SEINFRA",VLOOKUP(E75,'[1]INSUMOS SEINFRA'!$A:$D,2,0),))))) -> CAIXA DE PASSAGEM EM ALVENARIA DE TIJOLOS MACIÇOS ESP. = 0,12M, DIM. INT. = 0.40 X 0.40 X 0.60M, INCLUSIVE TAMPA | G75: =IF(C75="SERVIÇO",IF(D75="SINAPI",VLOOKUP(E75,'[1]SERVIÇOS SINAPI'!$A:$D,3,0),IF(D75="ORSE",VLOOKUP(E75,'[1]SERVIÇOS ORSE'!$A:$D,3,0),IF(D75="SEINFRA",VLOOKUP(E75,'[1]SERVIÇOS SEINFRA'!$A:$D,3,0)))),IF(C75="INSUMO",IF(D75="SINAPI",VLOOKUP(E75,'[1]INSUMOS SINAPI'!$A:$D,3,0),IF(D75="ORSE",VLOOKUP(E75,'[1]INSUMOS ORSE'!$A:$D,3,0),IF(D75="SEINFRA",VLOOKUP(E75,'[1]INSUMOS SEINFRA'!$A:$D,3,0),))))) -> UN | H75: ='[1]Memória de Cálculo'!$L$488*$G$7 -> 12 | I75: =IF(C75="SERVIÇO",IF(D75="SINAPI",VLOOKUP(E75,'[1]SERVIÇOS SINAPI'!$A:$D,4,0),IF(D75="ORSE",VLOOKUP(E75,'[1]SERVIÇOS ORSE'!$A:$D,4,0),IF(D75="SEINFRA",VLOOKUP(E75,'[1]SERVIÇOS SEINFRA'!$A:$D,4,0)))),IF(C75="INSUMO",IF(D75="SINAPI",VLOOKUP(E75,'[1]INSUMOS SINAPI'!$A:$D,4,0),IF(D75="ORSE",VLOOKUP(E75,'[1]INSUMOS ORSE'!$A:$D,4,0),IF(D75="SEINFRA",VLOOKUP(E75,'[1]INSUMOS SEINFRA'!$A:$D,4,0),))))) -> 213.6 | J75: 263.8 | K75: 3165.6 | L75: 2
B76: 2.2.7 | C76: SERVIÇO | D76: SINAPI | E76: 89957 | F76: =IF(C76="SERVIÇO",IF(D76="SINAPI",VLOOKUP(E76,'[1]SERVIÇOS SINAPI'!$A:$D,2,0),IF(D76="ORSE",VLOOKUP(E76,'[1]SERVIÇOS ORSE'!$A:$D,2,0),IF(D76="SEINFRA",VLOOKUP(E76,'[1]SERVIÇOS SEINFRA'!$A:$D,2,0)))),IF(C76="INSUMO",IF(D76="SINAPI",VLOOKUP(E76,'[1]INSUMOS SINAPI'!$A:$D,2,0),IF(D76="ORSE",VLOOKUP(E76,'[1]INSUMOS ORSE'!$A:$D,2,0),IF(D76="SEINFRA",VLOOKUP(E76,'[1]INSUMOS SEINFRA'!$A:$D,2,0),))))) -> PONTO DE CONSUMO TERMINAL DE ÁGUA FRIA (SUBRAMAL) COM TUBULAÇÃO DE PVC, DN 25 MM, INSTALADO EM RAMAL DE ÁGUA, INCLUSOS RASGO E CHUMBAMENTO EM ALVENARIA. AF_12/2014 | G76: =IF(C76="SERVIÇO",IF(D76="SINAPI",VLOOKUP(E76,'[1]SERVIÇOS SINAPI'!$A:$D,3,0),IF(D76="ORSE",VLOOKUP(E76,'[1]SERVIÇOS ORSE'!$A:$D,3,0),IF(D76="SEINFRA",VLOOKUP(E76,'[1]SERVIÇOS SEINFRA'!$A:$D,3,0)))),IF(C76="INSUMO",IF(D76="SINAPI",VLOOKUP(E76,'[1]INSUMOS SINAPI'!$A:$D,3,0),IF(D76="ORSE",VLOOKUP(E76,'[1]INSUMOS ORSE'!$A:$D,3,0),IF(D76="SEINFRA",VLOOKUP(E76,'[1]INSUMOS SEINFRA'!$A:$D,3,0),))))) -> UN | H76: ='[1]Memória de Cálculo'!$L$498*$G$7 -> 144 | I76: =IF(C76="SERVIÇO",IF(D76="SINAPI",VLOOKUP(E76,'[1]SERVIÇOS SINAPI'!$A:$D,4,0),IF(D76="ORSE",VLOOKUP(E76,'[1]SERVIÇOS ORSE'!$A:$D,4,0),IF(D76="SEINFRA",VLOOKUP(E76,'[1]SERVIÇOS SEINFRA'!$A:$D,4,0)))),IF(C76="INSUMO",IF(D76="SINAPI",VLOOKUP(E76,'[1]INSUMOS SINAPI'!$A:$D,4,0),IF(D76="ORSE",VLOOKUP(E76,'[1]INSUMOS ORSE'!$A:$D,4,0),IF(D76="SEINFRA",VLOOKUP(E76,'[1]INSUMOS SEINFRA'!$A:$D,4,0),))))) -> 119.5 | J76: 147.58 | K76: 21251.52 | L76: 6
B77: 2.2.8 | C77: SERVIÇO | D77: ORSE | E77: 1683 | F77: =IF(C77="SERVIÇO",IF(D77="SINAPI",VLOOKUP(E77,'[1]SERVIÇOS SINAPI'!$A:$D,2,0),IF(D77="ORSE",VLOOKUP(E77,'[1]SERVIÇOS ORSE'!$A:$D,2,0),IF(D77="SEINFRA",VLOOKUP(E77,'[1]SERVIÇOS SEINFRA'!$A:$D,2,0)))),IF(C77="INSUMO",IF(D77="SINAPI",VLOOKUP(E77,'[1]INSUMOS SINAPI'!$A:$D,2,0),IF(D77="ORSE",VLOOKUP(E77,'[1]INSUMOS ORSE'!$A:$D,2,0),IF(D77="SEINFRA",VLOOKUP(E77,'[1]INSUMOS SEINFRA'!$A:$D,2,0),))))) -> PONTO DE ESGOTO COM TUBO DE PVC RÍGIDO SOLDÁVEL DE Ø 100 MM (VASO SANITÁRIO) | G77: =IF(C77="SERVIÇO",IF(D77="SINAPI",VLOOKUP(E77,'[1]SERVIÇOS SINAPI'!$A:$D,3,0),IF(D77="ORSE",VLOOKUP(E77,'[1]SERVIÇOS ORSE'!$A:$D,3,0),IF(D77="SEINFRA",VLOOKUP(E77,'[1]SERVIÇOS SEINFRA'!$A:$D,3,0)))),IF(C77="INSUMO",IF(D77="SINAPI",VLOOKUP(E77,'[1]INSUMOS SINAPI'!$A:$D,3,0),IF(D77="ORSE",VLOOKUP(E77,'[1]INSUMOS ORSE'!$A:$D,3,0),IF(D77="SEINFRA",VLOOKUP(E77,'[1]INSUMOS SEINFRA'!$A:$D,3,0),))))) -> PT | H77: ='[1]Memória de Cálculo'!$L$504*$G$7 -> 18 | I77: =IF(C77="SERVIÇO",IF(D77="SINAPI",VLOOKUP(E77,'[1]SERVIÇOS SINAPI'!$A:$D,4,0),IF(D77="ORSE",VLOOKUP(E77,'[1]SERVIÇOS ORSE'!$A:$D,4,0),IF(D77="SEINFRA",VLOOKUP(E77,'[1]SERVIÇOS SEINFRA'!$A:$D,4,0)))),IF(C77="INSUMO",IF(D77="SINAPI",VLOOKUP(E77,'[1]INSUMOS SINAPI'!$A:$D,4,0),IF(D77="ORSE",VLOOKUP(E77,'[1]INSUMOS ORSE'!$A:$D,4,0),IF(D77="SEINFRA",VLOOKUP(E77,'[1]INSUMOS SEINFRA'!$A:$D,4,0),))))) -> 114.24 | J77: 141.09 | K77: 2539.62 | L77: 6
B78: 2.2.9 | C78: SERVIÇO | D78: ORSE | E78: 1678 | F78: =IF(C78="SERVIÇO",IF(D78="SINAPI",VLOOKUP(E78,'[1]SERVIÇOS SINAPI'!$A:$D,2,0),IF(D78="ORSE",VLOOKUP(E78,'[1]SERVIÇOS ORSE'!$A:$D,2,0),IF(D78="SEINFRA",VLOOKUP(E78,'[1]SERVIÇOS SEINFRA'!$A:$D,2,0)))),IF(C78="INSUMO",IF(D78="SINAPI",VLOOKUP(E78,'[1]INSUMOS SINAPI'!$A:$D,2,0),IF(D78="ORSE",VLOOKUP(E78,'[1]INSUMOS ORSE'!$A:$D,2,0),IF(D78="SEINFRA",VLOOKUP(E78,'[1]INSUMOS SEINFRA'!$A:$D,2,0),))))) -> PONTO DE ESGOTO COM TUBO DE PVC RÍGIDO SOLDÁVEL DE Ø 50 MM (PIAS DE COZINHA, MÁQUINAS DE LAVAR, ETC...) | G78: =IF(C78="SERVIÇO",IF(D78="SINAPI",VLOOKUP(E78,'[1]SERVIÇOS SINAPI'!$A:$D,3,0),IF(D78="ORSE",VLOOKUP(E78,'[1]SERVIÇOS ORSE'!$A:$D,3,0),IF(D78="SEINFRA",VLOOKUP(E78,'[1]SERVIÇOS SEINFRA'!$A:$D,3,0)))),IF(C78="INSUMO",IF(D78="SINAPI",VLOOKUP(E78,'[1]INSUMOS SINAPI'!$A:$D,3,0),IF(D78="ORSE",VLOOKUP(E78,'[1]INSUMOS ORSE'!$A:$D,3,0),IF(D78="SEINFRA",VLOOKUP(E78,'[1]INSUMOS SEINFRA'!$A:$D,3,0),))))) -> UN | H78: ='[1]Memória de Cálculo'!$L$511*$G$7 -> 72 | I78: =IF(C78="SERVIÇO",IF(D78="SINAPI",VLOOKUP(E78,'[1]SERVIÇOS SINAPI'!$A:$D,4,0),IF(D78="ORSE",VLOOKUP(E78,'[1]SERVIÇOS ORSE'!$A:$D,4,0),IF(D78="SEINFRA",VLOOKUP(E78,'[1]SERVIÇOS SEINFRA'!$A:$D,4,0)))),IF(C78="INSUMO",IF(D78="SINAPI",VLOOKUP(E78,'[1]INSUMOS SINAPI'!$A:$D,4,0),IF(D78="ORSE",VLOOKUP(E78,'[1]INSUMOS ORSE'!$A:$D,4,0),IF(D78="SEINFRA",VLOOKUP(E78,'[1]INSUMOS SEINFRA'!$A:$D,4,0),))))) -> 112.07 | J78: 138.41 | K78: 9965.52 | L78: 6
B79: 2.2.10 | C79: SERVIÇO | D79: ORSE | E79: 1469 | F79: =IF(C79="SERVIÇO",IF(D79="SINAPI",VLOOKUP(E79,'[1]SERVIÇOS SINAPI'!$A:$D,2,0),IF(D79="ORSE",VLOOKUP(E79,'[1]SERVIÇOS ORSE'!$A:$D,2,0),IF(D79="SEINFRA",VLOOKUP(E79,'[1]SERVIÇOS SEINFRA'!$A:$D,2,0)))),IF(C79="INSUMO",IF(D79="SINAPI",VLOOKUP(E79,'[1]INSUMOS SINAPI'!$A:$D,2,0),IF(D79="ORSE",VLOOKUP(E79,'[1]INSUMOS ORSE'!$A:$D,2,0),IF(D79="SEINFRA",VLOOKUP(E79,'[1]INSUMOS SEINFRA'!$A:$D,2,0),))))) -> REGISTRO DE PRESSÃO 1/2" C/CANOPLA CROMADA, LINHA STANDARD C39 - REF 1416, DE CA OU SIMILAR | G79: =IF(C79="SERVIÇO",IF(D79="SINAPI",VLOOKUP(E79,'[1]SERVIÇOS SINAPI'!$A:$D,3,0),IF(D79="ORSE",VLOOKUP(E79,'[1]SERVIÇOS ORSE'!$A:$D,3,0),IF(D79="SEINFRA",VLOOKUP(E79,'[1]SERVIÇOS SEINFRA'!$A:$D,3,0)))),IF(C79="INSUMO",IF(D79="SINAPI",VLOOKUP(E79,'[1]INSUMOS SINAPI'!$A:$D,3,0),IF(D79="ORSE",VLOOKUP(E79,'[1]INSUMOS ORSE'!$A:$D,3,0),IF(D79="SEINFRA",VLOOKUP(E79,'[1]INSUMOS SEINFRA'!$A:$D,3,0),))))) -> UN | H79: ='[1]Memória de Cálculo'!$L$516*$G$7 -> 12 | I79: =IF(C79="SERVIÇO",IF(D79="SINAPI",VLOOKUP(E79,'[1]SERVIÇOS SINAPI'!$A:$D,4,0),IF(D79="ORSE",VLOOKUP(E79,'[1]SERVIÇOS ORSE'!$A:$D,4,0),IF(D79="SEINFRA",VLOOKUP(E79,'[1]SERVIÇOS SEINFRA'!$A:$D,4,0)))),IF(C79="INSUMO",IF(D79="SINAPI",VLOOKUP(E79,'[1]INSUMOS SINAPI'!$A:$D,4,0),IF(D79="ORSE",VLOOKUP(E79,'[1]INSUMOS ORSE'!$A:$D,4,0),IF(D79="SEINFRA",VLOOKUP(E79,'[1]INSUMOS SEINFRA'!$A:$D,4,0),))))) -> 79.14 | J79: 97.74 | K79: 1172.88 | L79: 2
B80: 2.2.11 | C80: SERVIÇO | D80: ORSE | E80: 1469 | F80: =IF(C80="SERVIÇO",IF(D80="SINAPI",VLOOKUP(E80,'[1]SERVIÇOS SINAPI'!$A:$D,2,0),IF(D80="ORSE",VLOOKUP(E80,'[1]SERVIÇOS ORSE'!$A:$D,2,0),IF(D80="SEINFRA",VLOOKUP(E80,'[1]SERVIÇOS SEINFRA'!$A:$D,2,0)))),IF(C80="INSUMO",IF(D80="SINAPI",VLOOKUP(E80,'[1]INSUMOS SINAPI'!$A:$D,2,0),IF(D80="ORSE",VLOOKUP(E80,'[1]INSUMOS ORSE'!$A:$D,2,0),IF(D80="SEINFRA",VLOOKUP(E80,'[1]INSUMOS SEINFRA'!$A:$D,2,0),))))) -> REGISTRO DE PRESSÃO 1/2" C/CANOPLA CROMADA, LINHA STANDARD C39 - REF 1416, DE CA OU SIMILAR | G80: =IF(C80="SERVIÇO",IF(D80="SINAPI",VLOOKUP(E80,'[1]SERVIÇOS SINAPI'!$A:$D,3,0),IF(D80="ORSE",VLOOKUP(E80,'[1]SERVIÇOS ORSE'!$A:$D,3,0),IF(D80="SEINFRA",VLOOKUP(E80,'[1]SERVIÇOS SEINFRA'!$A:$D,3,0)))),IF(C80="INSUMO",IF(D80="SINAPI",VLOOKUP(E80,'[1]INSUMOS SINAPI'!$A:$D,3,0),IF(D80="ORSE",VLOOKUP(E80,'[1]INSUMOS ORSE'!$A:$D,3,0),IF(D80="SEINFRA",VLOOKUP(E80,'[1]INSUMOS SEINFRA'!$A:$D,3,0),))))) -> UN | H80: ='[1]Memória de Cálculo'!$L$488*$G$7 -> 12 | I80: =IF(C80="SERVIÇO",IF(D80="SINAPI",VLOOKUP(E80,'[1]SERVIÇOS SINAPI'!$A:$D,4,0),IF(D80="ORSE",VLOOKUP(E80,'[1]SERVIÇOS ORSE'!$A:$D,4,0),IF(D80="SEINFRA",VLOOKUP(E80,'[1]SERVIÇOS SEINFRA'!$A:$D,4,0)))),IF(C80="INSUMO",IF(D80="SINAPI",VLOOKUP(E80,'[1]INSUMOS SINAPI'!$A:$D,4,0),IF(D80="ORSE",VLOOKUP(E80,'[1]INSUMOS ORSE'!$A:$D,4,0),IF(D80="SEINFRA",VLOOKUP(E80,'[1]INSUMOS SEINFRA'!$A:$D,4,0),))))) -> 79.14 | J80: 97.74 | K80: 1172.88 | L80: 2
B81: 2.2.12 | C81: SERVIÇO | D81: ORSE | E81: 1470 | F81: =IF(C81="SERVIÇO",IF(D81="SINAPI",VLOOKUP(E81,'[1]SERVIÇOS SINAPI'!$A:$D,2,0),IF(D81="ORSE",VLOOKUP(E81,'[1]SERVIÇOS ORSE'!$A:$D,2,0),IF(D81="SEINFRA",VLOOKUP(E81,'[1]SERVIÇOS SEINFRA'!$A:$D,2,0)))),IF(C81="INSUMO",IF(D81="SINAPI",VLOOKUP(E81,'[1]INSUMOS SINAPI'!$A:$D,2,0),IF(D81="ORSE",VLOOKUP(E81,'[1]INSUMOS ORSE'!$A:$D,2,0),IF(D81="SEINFRA",VLOOKUP(E81,'[1]INSUMOS SEINFRA'!$A:$D,2,0),))))) -> REGISTRO DE PRESSÃO 3/4" C/CANOPLA CROMADA, LINHA TARGA C40 - REF.1416, DECA OU SIMILAR | G81: =IF(C81="SERVIÇO",IF(D81="SINAPI",VLOOKUP(E81,'[1]SERVIÇOS SINAPI'!$A:$D,3,0),IF(D81="ORSE",VLOOKUP(E81,'[1]SERVIÇOS ORSE'!$A:$D,3,0),IF(D81="SEINFRA",VLOOKUP(E81,'[1]SERVIÇOS SEINFRA'!$A:$D,3,0)))),IF(C81="INSUMO",IF(D81="SINAPI",VLOOKUP(E81,'[1]INSUMOS SINAPI'!$A:$D,3,0),IF(D81="ORSE",VLOOKUP(E81,'[1]INSUMOS ORSE'!$A:$D,3,0),IF(D81="SEINFRA",VLOOKUP(E81,'[1]INSUMOS SEINFRA'!$A:$D,3,0),))))) -> UN | H81: ='[1]Memória de Cálculo'!$L$522*$G$7 -> 18 | I81: =IF(C81="SERVIÇO",IF(D81="SINAPI",VLOOKUP(E81,'[1]SERVIÇOS SINAPI'!$A:$D,4,0),IF(D81="ORSE",VLOOKUP(E81,'[1]SERVIÇOS ORSE'!$A:$D,4,0),IF(D81="SEINFRA",VLOOKUP(E81,'[1]SERVIÇOS SEINFRA'!$A:$D,4,0)))),IF(C81="INSUMO",IF(D81="SINAPI",VLOOKUP(E81,'[1]INSUMOS SINAPI'!$A:$D,4,0),IF(D81="ORSE",VLOOKUP(E81,'[1]INSUMOS ORSE'!$A:$D,4,0),IF(D81="SEINFRA",VLOOKUP(E81,'[1]INSUMOS SEINFRA'!$A:$D,4,0),))))) -> 84.2 | J81: 103.99 | K81: 1871.82 | L81: 2
B82: 2.2.13 | C82: SERVIÇO | D82: ORSE | E82: 1702 | F82: =IF(C82="SERVIÇO",IF(D82="SINAPI",VLOOKUP(E82,'[1]SERVIÇOS SINAPI'!$A:$D,2,0),IF(D82="ORSE",VLOOKUP(E82,'[1]SERVIÇOS ORSE'!$A:$D,2,0),IF(D82="SEINFRA",VLOOKUP(E82,'[1]SERVIÇOS SEINFRA'!$A:$D,2,0)))),IF(C82="INSUMO",IF(D82="SINAPI",VLOOKUP(E82,'[1]INSUMOS SINAPI'!$A:$D,2,0),IF(D82="ORSE",VLOOKUP(E82,'[1]INSUMOS ORSE'!$A:$D,2,0),IF(D82="SEINFRA",VLOOKUP(E82,'[1]INSUMOS SEINFRA'!$A:$D,2,0),))))) -> RALO SIFONADO EM PVC D = 100 MM ALTURA REGULÁVEL, SAÍDA 40 MM, COM GRELHA RED ONDA ACABAMENTO CROMADO | G82: =IF(C82="SERVIÇO",IF(D82="SINAPI",VLOOKUP(E82,'[1]SERVIÇOS SINAPI'!$A:$D,3,0),IF(D82="ORSE",VLOOKUP(E82,'[1]SERVIÇOS ORSE'!$A:$D,3,0),IF(D82="SEINFRA",VLOOKUP(E82,'[1]SERVIÇOS SEINFRA'!$A:$D,3,0)))),IF(C82="INSUMO",IF(D82="SINAPI",VLOOKUP(E82,'[1]INSUMOS SINAPI'!$A:$D,3,0),IF(D82="ORSE",VLOOKUP(E82,'[1]INSUMOS ORSE'!$A:$D,3,0),IF(D82="SEINFRA",VLOOKUP(E82,'[1]INSUMOS SEINFRA'!$A:$D,3,0),))))) -> UN | H82: ='[1]Memória de Cálculo'!$L$536*$G$7 -> 48 | I82: =IF(C82="SERVIÇO",IF(D82="SINAPI",VLOOKUP(E82,'[1]SERVIÇOS SINAPI'!$A:$D,4,0),IF(D82="ORSE",VLOOKUP(E82,'[1]SERVIÇOS ORSE'!$A:$D,4,0),IF(D82="SEINFRA",VLOOKUP(E82,'[1]SERVIÇOS SEINFRA'!$A:$D,4,0)))),IF(C82="INSUMO",IF(D82="SINAPI",VLOOKUP(E82,'[1]INSUMOS SINAPI'!$A:$D,4,0),IF(D82="ORSE",VLOOKUP(E82,'[1]INSUMOS ORSE'!$A:$D,4,0),IF(D82="SEINFRA",VLOOKUP(E82,'[1]INSUMOS SEINFRA'!$A:$D,4,0),))))) -> 30.08 | J82: 37.15 | K82: 1783.2 | L82: 2
B83: 2.2.14 | C83: SERVIÇO | D83: ORSE | E83: 10203 | F83: =IF(C83="SERVIÇO",IF(D83="SINAPI",VLOOKUP(E83,'[1]SERVIÇOS SINAPI'!$A:$D,2,0),IF(D83="ORSE",VLOOKUP(E83,'[1]SERVIÇOS ORSE'!$A:$D,2,0),IF(D83="SEINFRA",VLOOKUP(E83,'[1]SERVIÇOS SEINFRA'!$A:$D,2,0)))),IF(C83="INSUMO",IF(D83="SINAPI",VLOOKUP(E83,'[1]INSUMOS SINAPI'!$A:$D,2,0),IF(D83="ORSE",VLOOKUP(E83,'[1]INSUMOS ORSE'!$A:$D,2,0),IF(D83="SEINFRA",VLOOKUP(E83,'[1]INSUMOS SEINFRA'!$A:$D,2,0),))))) -> RESERVATORIO ELEVADO C/ CAIXA D'AGUA EM FIBRA DE VIDRO DE 5.000 LITROS APOIAD O EM ESTRUTURA PRE-MOLDADA CONCRETO, COMPOSTA DE CAPITEL P/APOIO DA CAIXA E P ILAR CILINDRICO C/ALTURA UTIL = 6,00M, INCLUSO FRETE E MONTAGEM NO LOCAL, EXC ETO INST.HIDRAULICA | G83: =IF(C83="SERVIÇO",IF(D83="SINAPI",VLOOKUP(E83,'[1]SERVIÇOS SINAPI'!$A:$D,3,0),IF(D83="ORSE",VLOOKUP(E83,'[1]SERVIÇOS ORSE'!$A:$D,3,0),IF(D83="SEINFRA",VLOOKUP(E83,'[1]SERVIÇOS SEINFRA'!$A:$D,3,0)))),IF(C83="INSUMO",IF(D83="SINAPI",VLOOKUP(E83,'[1]INSUMOS SINAPI'!$A:$D,3,0),IF(D83="ORSE",VLOOKUP(E83,'[1]INSUMOS ORSE'!$A:$D,3,0),IF(D83="SEINFRA",VLOOKUP(E83,'[1]INSUMOS SEINFRA'!$A:$D,3,0),))))) -> UN | H83: ='[1]Memória de Cálculo'!$L$540*$G$7 -> 6 | I83: =IF(C83="SERVIÇO",IF(D83="SINAPI",VLOOKUP(E83,'[1]SERVIÇOS SINAPI'!$A:$D,4,0),IF(D83="ORSE",VLOOKUP(E83,'[1]SERVIÇOS ORSE'!$A:$D,4,0),IF(D83="SEINFRA",VLOOKUP(E83,'[1]SERVIÇOS SEINFRA'!$A:$D,4,0)))),IF(C83="INSUMO",IF(D83="SINAPI",VLOOKUP(E83,'[1]INSUMOS SINAPI'!$A:$D,4,0),IF(D83="ORSE",VLOOKUP(E83,'[1]INSUMOS ORSE'!$A:$D,4,0),IF(D83="SEINFRA",VLOOKUP(E83,'[1]INSUMOS SEINFRA'!$A:$D,4,0),))))) -> 8688.69 | J83: 10730.53 | K83: 64383.18 | L83: 6
B84: 2.2.15 | C84: SERVIÇO | D84: SINAPI | E84: 102264 | F84: =IF(C84="SERVIÇO",IF(D84="SINAPI",VLOOKUP(E84,'[1]SERVIÇOS SINAPI'!$A:$D,2,0),IF(D84="ORSE",VLOOKUP(E84,'[1]SERVIÇOS ORSE'!$A:$D,2,0),IF(D84="SEINFRA",VLOOKUP(E84,'[1]SERVIÇOS SEINFRA'!$A:$D,2,0)))),IF(C84="INSUMO",IF(D84="SINAPI",VLOOKUP(E84,'[1]INSUMOS SINAPI'!$A:$D,2,0),IF(D84="ORSE",VLOOKUP(E84,'[1]INSUMOS ORSE'!$A:$D,2,0),IF(D84="SEINFRA",VLOOKUP(E84,'[1]INSUMOS SEINFRA'!$A:$D,2,0),))))) -> TUBO DE PVC BRANCO PARA REDE COLETORA DE ESGOTO CONDOMINIAL DE PAREDE MACIÇA, DN 100 MM, JUNTA ELÁSTICA - FORNECIMENTO E ASSENTAMENTO. AF_01/2021 | G84: =IF(C84="SERVIÇO",IF(D84="SINAPI",VLOOKUP(E84,'[1]SERVIÇOS SINAPI'!$A:$D,3,0),IF(D84="ORSE",VLOOKUP(E84,'[1]SERVIÇOS ORSE'!$A:$D,3,0),IF(D84="SEINFRA",VLOOKUP(E84,'[1]SERVIÇOS SEINFRA'!$A:$D,3,0)))),IF(C84="INSUMO",IF(D84="SINAPI",VLOOKUP(E84,'[1]INSUMOS SINAPI'!$A:$D,3,0),IF(D84="ORSE",VLOOKUP(E84,'[1]INSUMOS ORSE'!$A:$D,3,0),IF(D84="SEINFRA",VLOOKUP(E84,'[1]INSUMOS SEINFRA'!$A:$D,3,0),))))) -> M | H84: ='[1]Memória de Cálculo'!$L$544*$G$7 -> 72 | I84: =IF(C84="SERVIÇO",IF(D84="SINAPI",VLOOKUP(E84,'[1]SERVIÇOS SINAPI'!$A:$D,4,0),IF(D84="ORSE",VLOOKUP(E84,'[1]SERVIÇOS ORSE'!$A:$D,4,0),IF(D84="SEINFRA",VLOOKUP(E84,'[1]SERVIÇOS SEINFRA'!$A:$D,4,0)))),IF(C84="INSUMO",IF(D84="SINAPI",VLOOKUP(E84,'[1]INSUMOS SINAPI'!$A:$D,4,0),IF(D84="ORSE",VLOOKUP(E84,'[1]INSUMOS ORSE'!$A:$D,4,0),IF(D84="SEINFRA",VLOOKUP(E84,'[1]INSUMOS SEINFRA'!$A:$D,4,0),))))) -> 21.79 | J84: 26.91 | K84: 1937.52 | L84: 4
B85: 2.2.16 | C85: SERVIÇO | D85: ORSE | E85: 1029 | F85: =IF(C85="SERVIÇO",IF(D85="SINAPI",VLOOKUP(E85,'[1]SERVIÇOS SINAPI'!$A:$D,2,0),IF(D85="ORSE",VLOOKUP(E85,'[1]SERVIÇOS ORSE'!$A:$D,2,0),IF(D85="SEINFRA",VLOOKUP(E85,'[1]SERVIÇOS SEINFRA'!$A:$D,2,0)))),IF(C85="INSUMO",IF(D85="SINAPI",VLOOKUP(E85,'[1]INSUMOS SINAPI'!$A:$D,2,0),IF(D85="ORSE",VLOOKUP(E85,'[1]INSUMOS ORSE'!$A:$D,2,0),IF(D85="SEINFRA",VLOOKUP(E85,'[1]INSUMOS SEINFRA'!$A:$D,2,0),))))) -> TUBO PVC RÍGIDO SOLDÁVEL MARROM P/ ÁGUA, D = 32 MM (1") | G85: =IF(C85="SERVIÇO",IF(D85="SINAPI",VLOOKUP(E85,'[1]SERVIÇOS SINAPI'!$A:$D,3,0),IF(D85="ORSE",VLOOKUP(E85,'[1]SERVIÇOS ORSE'!$A:$D,3,0),IF(D85="SEINFRA",VLOOKUP(E85,'[1]SERVIÇOS SEINFRA'!$A:$D,3,0)))),IF(C85="INSUMO",IF(D85="SINAPI",VLOOKUP(E85,'[1]INSUMOS SINAPI'!$A:$D,3,0),IF(D85="ORSE",VLOOKUP(E85,'[1]INSUMOS ORSE'!$A:$D,3,0),IF(D85="SEINFRA",VLOOKUP(E85,'[1]INSUMOS SEINFRA'!$A:$D,3,0),))))) -> M | H85: ='[1]Memória de Cálculo'!$L$548*$G$7 -> 114 | I85: =IF(C85="SERVIÇO",IF(D85="SINAPI",VLOOKUP(E85,'[1]SERVIÇOS SINAPI'!$A:$D,4,0),IF(D85="ORSE",VLOOKUP(E85,'[1]SERVIÇOS ORSE'!$A:$D,4,0),IF(D85="SEINFRA",VLOOKUP(E85,'[1]SERVIÇOS SEINFRA'!$A:$D,4,0)))),IF(C85="INSUMO",IF(D85="SINAPI",VLOOKUP(E85,'[1]INSUMOS SINAPI'!$A:$D,4,0),IF(D85="ORSE",VLOOKUP(E85,'[1]INSUMOS ORSE'!$A:$D,4,0),IF(D85="SEINFRA",VLOOKUP(E85,'[1]INSUMOS SEINFRA'!$A:$D,4,0),))))) -> 18.08 | J85: 22.33 | K85: 2545.62 | L85: 4
B86: 2.2.17 | C86: SERVIÇO | D86: SINAPI | E86: 98052 | F86: =IF(C86="SERVIÇO",IF(D86="SINAPI",VLOOKUP(E86,'[1]SERVIÇOS SINAPI'!$A:$D,2,0),IF(D86="ORSE",VLOOKUP(E86,'[1]SERVIÇOS ORSE'!$A:$D,2,0),IF(D86="SEINFRA",VLOOKUP(E86,'[1]SERVIÇOS SEINFRA'!$A:$D,2,0)))),IF(C86="INSUMO",IF(D86="SINAPI",VLOOKUP(E86,'[1]INSUMOS SINAPI'!$A:$D,2,0),IF(D86="ORSE",VLOOKUP(E86,'[1]INSUMOS ORSE'!$A:$D,2,0),IF(D86="SEINFRA",VLOOKUP(E86,'[1]INSUMOS SEINFRA'!$A:$D,2,0),))))) -> TANQUE SÉPTICO CIRCULAR, EM CONCRETO PRÉ-MOLDADO, DIÂMETRO INTERNO = 1,10 M, ALTURA INTERNA = 2,50 M, VOLUME ÚTIL: 2138,2 L (PARA 5 CONTRIBUINTES). AF_12/2020 | G86: =IF(C86="SERVIÇO",IF(D86="SINAPI",VLOOKUP(E86,'[1]SERVIÇOS SINAPI'!$A:$D,3,0),IF(D86="ORSE",VLOOKUP(E86,'[1]SERVIÇOS ORSE'!$A:$D,3,0),IF(D86="SEINFRA",VLOOKUP(E86,'[1]SERVIÇOS SEINFRA'!$A:$D,3,0)))),IF(C86="INSUMO",IF(D86="SINAPI",VLOOKUP(E86,'[1]INSUMOS SINAPI'!$A:$D,3,0),IF(D86="ORSE",VLOOKUP(E86,'[1]INSUMOS ORSE'!$A:$D,3,0),IF(D86="SEINFRA",VLOOKUP(E86,'[1]INSUMOS SEINFRA'!$A:$D,3,0),))))) -> UN | H86: ='[1]Memória de Cálculo'!$L$552*$G$7 -> 6 | I86: =IF(C86="SERVIÇO",IF(D86="SINAPI",VLOOKUP(E86,'[1]SERVIÇOS SINAPI'!$A:$D,4,0),IF(D86="ORSE",VLOOKUP(E86,'[1]SERVIÇOS ORSE'!$A:$D,4,0),IF(D86="SEINFRA",VLOOKUP(E86,'[1]SERVIÇOS SEINFRA'!$A:$D,4,0)))),IF(C86="INSUMO",IF(D86="SINAPI",VLOOKUP(E86,'[1]INSUMOS SINAPI'!$A:$D,4,0),IF(D86="ORSE",VLOOKUP(E86,'[1]INSUMOS ORSE'!$A:$D,4,0),IF(D86="SEINFRA",VLOOKUP(E86,'[1]INSUMOS SEINFRA'!$A:$D,4,0),))))) -> 1741.26 | J86: 2150.46 | K86: 12902.76 | L86: 2
B87: 2.2.18 | C87: SERVIÇO | D87: SINAPI | E87: 98094 | F87: =IF(C87="SERVIÇO",IF(D87="SINAPI",VLOOKUP(E87,'[1]SERVIÇOS SINAPI'!$A:$D,2,0),IF(D87="ORSE",VLOOKUP(E87,'[1]SERVIÇOS ORSE'!$A:$D,2,0),IF(D87="SEINFRA",VLOOKUP(E87,'[1]SERVIÇOS SEINFRA'!$A:$D,2,0)))),IF(C87="INSUMO",IF(D87="SINAPI",VLOOKUP(E87,'[1]INSUMOS SINAPI'!$A:$D,2,0),IF(D87="ORSE",VLOOKUP(E87,'[1]INSUMOS ORSE'!$A:$D,2,0),IF(D87="SEINFRA",VLOOKUP(E87,'[1]INSUMOS SEINFRA'!$A:$D,2,0),))))) -> SUMIDOURO RETANGULAR, EM ALVENARIA COM BLOCOS DE CONCRETO, DIMENSÕES INTERNAS: 0,8 X 1,4 X 3,0 M, ÁREA DE INFILTRAÇÃO: 13,2 M² (PARA 5 CONTRIBUINTES). AF_12/2020 | G87: =IF(C87="SERVIÇO",IF(D87="SINAPI",VLOOKUP(E87,'[1]SERVIÇOS SINAPI'!$A:$D,3,0),IF(D87="ORSE",VLOOKUP(E87,'[1]SERVIÇOS ORSE'!$A:$D,3,0),IF(D87="SEINFRA",VLOOKUP(E87,'[1]SERVIÇOS SEINFRA'!$A:$D,3,0)))),IF(C87="INSUMO",IF(D87="SINAPI",VLOOKUP(E87,'[1]INSUMOS SINAPI'!$A:$D,3,0),IF(D87="ORSE",VLOOKUP(E87,'[1]INSUMOS ORSE'!$A:$D,3,0),IF(D87="SEINFRA",VLOOKUP(E87,'[1]INSUMOS SEINFRA'!$A:$D,3,0),))))) -> UN | H87: ='[1]Memória de Cálculo'!$L$556*$G$7 -> 6 | I87: =IF(C87="SERVIÇO",IF(D87="SINAPI",VLOOKUP(E87,'[1]SERVIÇOS SINAPI'!$A:$D,4,0),IF(D87="ORSE",VLOOKUP(E87,'[1]SERVIÇOS ORSE'!$A:$D,4,0),IF(D87="SEINFRA",VLOOKUP(E87,'[1]SERVIÇOS SEINFRA'!$A:$D,4,0)))),IF(C87="INSUMO",IF(D87="SINAPI",VLOOKUP(E87,'[1]INSUMOS SINAPI'!$A:$D,4,0),IF(D87="ORSE",VLOOKUP(E87,'[1]INSUMOS ORSE'!$A:$D,4,0),IF(D87="SEINFRA",VLOOKUP(E87,'[1]INSUMOS SEINFRA'!$A:$D,4,0),))))) -> 2460.07 | J87: 3038.19 | K87: 18229.14 | L87: 2
B88: 2.2.19 | C88: SERVIÇO | D88: SINAPI | E88: 90105 | F88: =IF(C88="SERVIÇO",IF(D88="SINAPI",VLOOKUP(E88,'[1]SERVIÇOS SINAPI'!$A:$D,2,0),IF(D88="ORSE",VLOOKUP(E88,'[1]SERVIÇOS ORSE'!$A:$D,2,0),IF(D88="SEINFRA",VLOOKUP(E88,'[1]SERVIÇOS SEINFRA'!$A:$D,2,0)))),IF(C88="INSUMO",IF(D88="SINAPI",VLOOKUP(E88,'[1]INSUMOS SINAPI'!$A:$D,2,0),IF(D88="ORSE",VLOOKUP(E88,'[1]INSUMOS ORSE'!$A:$D,2,0),IF(D88="SEINFRA",VLOOKUP(E88,'[1]INSUMOS SEINFRA'!$A:$D,2,0),))))) -> ESCAVAÇÃO MECANIZADA DE VALA COM PROFUNDIDADE ATÉ 1,5 M (MÉDIA ENTRE MONTANTE E JUSANTE/UMA COMPOSIÇÃO POR TRECHO) COM RETROESCAVADEIRA (CAPACIDADE DA CAÇAMBA DA RETRO: 0,26 M3 / POTÊNCIA: 88 HP), LARGURA MENOR QUE 0,8 M, EM SOLO DE 1A CATEGORIA, LOCAISCOM BAIXO NÍVEL DE INTERFERÊNCIA. AF_02/2021 | G88: =IF(C88="SERVIÇO",IF(D88="SINAPI",VLOOKUP(E88,'[1]SERVIÇOS SINAPI'!$A:$D,3,0),IF(D88="ORSE",VLOOKUP(E88,'[1]SERVIÇOS ORSE'!$A:$D,3,0),IF(D88="SEINFRA",VLOOKUP(E88,'[1]SERVIÇOS SEINFRA'!$A:$D,3,0)))),IF(C88="INSUMO",IF(D88="SINAPI",VLOOKUP(E88,'[1]INSUMOS SINAPI'!$A:$D,3,0),IF(D88="ORSE",VLOOKUP(E88,'[1]INSUMOS ORSE'!$A:$D,3,0),IF(D88="SEINFRA",VLOOKUP(E88,'[1]INSUMOS SEINFRA'!$A:$D,3,0),))))) -> M³ | H88: ='[1]Memória de Cálculo'!$L$561*$G$7 -> 36 | I88: =IF(C88="SERVIÇO",IF(D88="SINAPI",VLOOKUP(E88,'[1]SERVIÇOS SINAPI'!$A:$D,4,0),IF(D88="ORSE",VLOOKUP(E88,'[1]SERVIÇOS ORSE'!$A:$D,4,0),IF(D88="SEINFRA",VLOOKUP(E88,'[1]SERVIÇOS SEINFRA'!$A:$D,4,0)))),IF(C88="INSUMO",IF(D88="SINAPI",VLOOKUP(E88,'[1]INSUMOS SINAPI'!$A:$D,4,0),IF(D88="ORSE",VLOOKUP(E88,'[1]INSUMOS ORSE'!$A:$D,4,0),IF(D88="SEINFRA",VLOOKUP(E88,'[1]INSUMOS SEINFRA'!$A:$D,4,0),))))) -> 7.3 | J88: 9.02 | K88: 324.72 | L88: 1
B89: 2.2.20 | C89: SERVIÇO | D89: ORSE | E89: 5103 | F89: =IF(C89="SERVIÇO",IF(D89="SINAPI",VLOOKUP(E89,'[1]SERVIÇOS SINAPI'!$A:$D,2,0),IF(D89="ORSE",VLOOKUP(E89,'[1]SERVIÇOS ORSE'!$A:$D,2,0),IF(D89="SEINFRA",VLOOKUP(E89,'[1]SERVIÇOS SEINFRA'!$A:$D,2,0)))),IF(C89="INSUMO",IF(D89="SINAPI",VLOOKUP(E89,'[1]INSUMOS SINAPI'!$A:$D,2,0),IF(D89="ORSE",VLOOKUP(E89,'[1]INSUMOS ORSE'!$A:$D,2,0),IF(D89="SEINFRA",VLOOKUP(E89,'[1]INSUMOS SEINFRA'!$A:$D,2,0),))))) -> REGULARIZAÇÃO MANUAL | G89: =IF(C89="SERVIÇO",IF(D89="SINAPI",VLOOKUP(E89,'[1]SERVIÇOS SINAPI'!$A:$D,3,0),IF(D89="ORSE",VLOOKUP(E89,'[1]SERVIÇOS ORSE'!$A:$D,3,0),IF(D89="SEINFRA",VLOOKUP(E89,'[1]SERVIÇOS SEINFRA'!$A:$D,3,0)))),IF(C89="INSUMO",IF(D89="SINAPI",VLOOKUP(E89,'[1]INSUMOS SINAPI'!$A:$D,3,0),IF(D89="ORSE",VLOOKUP(E89,'[1]INSUMOS ORSE'!$A:$D,3,0),IF(D89="SEINFRA",VLOOKUP(E89,'[1]INSUMOS SEINFRA'!$A:$D,3,0),))))) -> M² | H89: ='[1]Memória de Cálculo'!$L$566*$G$7 -> 64.8 | I89: =IF(C89="SERVIÇO",IF(D89="SINAPI",VLOOKUP(E89,'[1]SERVIÇOS SINAPI'!$A:$D,4,0),IF(D89="ORSE",VLOOKUP(E89,'[1]SERVIÇOS ORSE'!$A:$D,4,0),IF(D89="SEINFRA",VLOOKUP(E89,'[1]SERVIÇOS SEINFRA'!$A:$D,4,0)))),IF(C89="INSUMO",IF(D89="SINAPI",VLOOKUP(E89,'[1]INSUMOS SINAPI'!$A:$D,4,0),IF(D89="ORSE",VLOOKUP(E89,'[1]INSUMOS ORSE'!$A:$D,4,0),IF(D89="SEINFRA",VLOOKUP(E89,'[1]INSUMOS SEINFRA'!$A:$D,4,0),))))) -> 4.08 | J89: 5.04 | K89: 326.59 | L89: 1
B90: 2.2.21 | C90: SERVIÇO | D90: SINAPI | E90: 93379 | F90: =IF(C90="SERVIÇO",IF(D90="SINAPI",VLOOKUP(E90,'[1]SERVIÇOS SINAPI'!$A:$D,2,0),IF(D90="ORSE",VLOOKUP(E90,'[1]SERVIÇOS ORSE'!$A:$D,2,0),IF(D90="SEINFRA",VLOOKUP(E90,'[1]SERVIÇOS SEINFRA'!$A:$D,2,0)))),IF(C90="INSUMO",IF(D90="SINAPI",VLOOKUP(E90,'[1]INSUMOS SINAPI'!$A:$D,2,0),IF(D90="ORSE",VLOOKUP(E90,'[1]INSUMOS ORSE'!$A:$D,2,0),IF(D90="SEINFRA",VLOOKUP(E90,'[1]INSUMOS SEINFRA'!$A:$D,2,0),))))) -> REATERRO MECANIZADO DE VALA COM RETROESCAVADEIRA (CAPACIDADE DA CAÇAMBA DA RETRO: 0,26 M³ / POTÊNCIA: 88 HP), LARGURA DE 0,8 A 1,5 M, PROFUNDIDADE ATÉ 1,5 M, COM SOLO DE 1ª CATEGORIA EM LOCAIS COM BAIXO NÍVEL DE INTERFERÊNCIA. AF_04/2016 | G90: =IF(C90="SERVIÇO",IF(D90="SINAPI",VLOOKUP(E90,'[1]SERVIÇOS SINAPI'!$A:$D,3,0),IF(D90="ORSE",VLOOKUP(E90,'[1]SERVIÇOS ORSE'!$A:$D,3,0),IF(D90="SEINFRA",VLOOKUP(E90,'[1]SERVIÇOS SEINFRA'!$A:$D,3,0)))),IF(C90="INSUMO",IF(D90="SINAPI",VLOOKUP(E90,'[1]INSUMOS SINAPI'!$A:$D,3,0),IF(D90="ORSE",VLOOKUP(E90,'[1]INSUMOS ORSE'!$A:$D,3,0),IF(D90="SEINFRA",VLOOKUP(E90,'[1]INSUMOS SEINFRA'!$A:$D,3,0),))))) -> M³ | H90: ='[1]Memória de Cálculo'!$L$571*$G$7 -> 36 | I90: =IF(C90="SERVIÇO",IF(D90="SINAPI",VLOOKUP(E90,'[1]SERVIÇOS SINAPI'!$A:$D,4,0),IF(D90="ORSE",VLOOKUP(E90,'[1]SERVIÇOS ORSE'!$A:$D,4,0),IF(D90="SEINFRA",VLOOKUP(E90,'[1]SERVIÇOS SEINFRA'!$A:$D,4,0)))),IF(C90="INSUMO",IF(D90="SINAPI",VLOOKUP(E90,'[1]INSUMOS SINAPI'!$A:$D,4,0),IF(D90="ORSE",VLOOKUP(E90,'[1]INSUMOS ORSE'!$A:$D,4,0),IF(D90="SEINFRA",VLOOKUP(E90,'[1]INSUMOS SEINFRA'!$A:$D,4,0),))))) -> 18.95 | J90: 23.4 | K90: 842.4 | L90: 1
B91: 2.2.22 | C91: SERVIÇO | D91: SINAPI | E91: 100434 | F91: =IF(C91="SERVIÇO",IF(D91="SINAPI",VLOOKUP(E91,'[1]SERVIÇOS SINAPI'!$A:$D,2,0),IF(D91="ORSE",VLOOKUP(E91,'[1]SERVIÇOS ORSE'!$A:$D,2,0),IF(D91="SEINFRA",VLOOKUP(E91,'[1]SERVIÇOS SEINFRA'!$A:$D,2,0)))),IF(C91="INSUMO",IF(D91="SINAPI",VLOOKUP(E91,'[1]INSUMOS SINAPI'!$A:$D,2,0),IF(D91="ORSE",VLOOKUP(E91,'[1]INSUMOS ORSE'!$A:$D,2,0),IF(D91="SEINFRA",VLOOKUP(E91,'[1]INSUMOS SEINFRA'!$A:$D,2,0),))))) -> CALHA DE BEIRAL, SEMICIRCULAR DE PVC, DIAMETRO 125 MM, INCLUINDO CABECEIRAS, EMENDAS, BOCAIS, SUPORTES E VEDAÇÕES, EXCLUINDO CONDUTORES, INCLUSO TRANSPORTE VERTICAL. AF_07/2019 | G91: =IF(C91="SERVIÇO",IF(D91="SINAPI",VLOOKUP(E91,'[1]SERVIÇOS SINAPI'!$A:$D,3,0),IF(D91="ORSE",VLOOKUP(E91,'[1]SERVIÇOS ORSE'!$A:$D,3,0),IF(D91="SEINFRA",VLOOKUP(E91,'[1]SERVIÇOS SEINFRA'!$A:$D,3,0)))),IF(C91="INSUMO",IF(D91="SINAPI",VLOOKUP(E91,'[1]INSUMOS SINAPI'!$A:$D,3,0),IF(D91="ORSE",VLOOKUP(E91,'[1]INSUMOS ORSE'!$A:$D,3,0),IF(D91="SEINFRA",VLOOKUP(E91,'[1]INSUMOS SEINFRA'!$A:$D,3,0),))))) -> M | H91: ='[1]Memória de Cálculo'!$L$580*$G$7 -> 285 | I91: =IF(C91="SERVIÇO",IF(D91="SINAPI",VLOOKUP(E91,'[1]SERVIÇOS SINAPI'!$A:$D,4,0),IF(D91="ORSE",VLOOKUP(E91,'[1]SERVIÇOS ORSE'!$A:$D,4,0),IF(D91="SEINFRA",VLOOKUP(E91,'[1]SERVIÇOS SEINFRA'!$A:$D,4,0)))),IF(C91="INSUMO",IF(D91="SINAPI",VLOOKUP(E91,'[1]INSUMOS SINAPI'!$A:$D,4,0),IF(D91="ORSE",VLOOKUP(E91,'[1]INSUMOS ORSE'!$A:$D,4,0),IF(D91="SEINFRA",VLOOKUP(E91,'[1]INSUMOS SEINFRA'!$A:$D,4,0),))))) -> 61.45 | J91: 75.89 | K91: 21628.65 | L91: 2
B92: 2.3 | C92: URBANIZAÇÃO | K92: =SUM(K93:K101) -> 183432.07
B93: 2.3.1 | C93: SERVIÇO | D93: SINAPI | E93: 98525 | F93: =IF(C93="SERVIÇO",IF(D93="SINAPI",VLOOKUP(E93,'[1]SERVIÇOS SINAPI'!$A:$D,2,0),IF(D93="ORSE",VLOOKUP(E93,'[1]SERVIÇOS ORSE'!$A:$D,2,0),IF(D93="SEINFRA",VLOOKUP(E93,'[1]SERVIÇOS SEINFRA'!$A:$D,2,0)))),IF(C93="INSUMO",IF(D93="SINAPI",VLOOKUP(E93,'[1]INSUMOS SINAPI'!$A:$D,2,0),IF(D93="ORSE",VLOOKUP(E93,'[1]INSUMOS ORSE'!$A:$D,2,0),IF(D93="SEINFRA",VLOOKUP(E93,'[1]INSUMOS SEINFRA'!$A:$D,2,0),))))) -> LIMPEZA MECANIZADA DE CAMADA VEGETAL, VEGETAÇÃO E PEQUENAS ÁRVORES (DIÂMETRO DE TRONCO MENOR QUE 0,20 M), COM TRATOR DE ESTEIRAS.AF_05/2018 | G93: =IF(C93="SERVIÇO",IF(D93="SINAPI",VLOOKUP(E93,'[1]SERVIÇOS SINAPI'!$A:$D,3,0),IF(D93="ORSE",VLOOKUP(E93,'[1]SERVIÇOS ORSE'!$A:$D,3,0),IF(D93="SEINFRA",VLOOKUP(E93,'[1]SERVIÇOS SEINFRA'!$A:$D,3,0)))),IF(C93="INSUMO",IF(D93="SINAPI",VLOOKUP(E93,'[1]INSUMOS SINAPI'!$A:$D,3,0),IF(D93="ORSE",VLOOKUP(E93,'[1]INSUMOS ORSE'!$A:$D,3,0),IF(D93="SEINFRA",VLOOKUP(E93,'[1]INSUMOS SEINFRA'!$A:$D,3,0),))))) -> M² | H93: ='[1]Memória de Cálculo'!$L$588*$G$7 -> 3410.4 | I93: =IF(C93="SERVIÇO",IF(D93="SINAPI",VLOOKUP(E93,'[1]SERVIÇOS SINAPI'!$A:$D,4,0),IF(D93="ORSE",VLOOKUP(E93,'[1]SERVIÇOS ORSE'!$A:$D,4,0),IF(D93="SEINFRA",VLOOKUP(E93,'[1]SERVIÇOS SEINFRA'!$A:$D,4,0)))),IF(C93="INSUMO",IF(D93="SINAPI",VLOOKUP(E93,'[1]INSUMOS SINAPI'!$A:$D,4,0),IF(D93="ORSE",VLOOKUP(E93,'[1]INSUMOS ORSE'!$A:$D,4,0),IF(D93="SEINFRA",VLOOKUP(E93,'[1]INSUMOS SEINFRA'!$A:$D,4,0),))))) -> 0.34 | J93: =IF(C93="SERVIÇO",I93*(1+$I$8),IF(C93="INSUMO",(I93*(1+$K$8)))) -> 0.42 | K93: =J93*H93 -> 1432.37 | L93: 1
B94: 2.3.2 | C94: SERVIÇO | D94: SINAPI | E94: 101197 | F94: =IF(C94="SERVIÇO",IF(D94="SINAPI",VLOOKUP(E94,'[1]SERVIÇOS SINAPI'!$A:$D,2,0),IF(D94="ORSE",VLOOKUP(E94,'[1]SERVIÇOS ORSE'!$A:$D,2,0),IF(D94="SEINFRA",VLOOKUP(E94,'[1]SERVIÇOS SEINFRA'!$A:$D,2,0)))),IF(C94="INSUMO",IF(D94="SINAPI",VLOOKUP(E94,'[1]INSUMOS SINAPI'!$A:$D,2,0),IF(D94="ORSE",VLOOKUP(E94,'[1]INSUMOS ORSE'!$A:$D,2,0),IF(D94="SEINFRA",VLOOKUP(E94,'[1]INSUMOS SEINFRA'!$A:$D,2,0),))))) -> CERCA COM MOURÕES DE CONCRETO, SEÇÃO "T" PONTA INCLINADA, 10X10 CM, ESPAÇAMENTO DE 2,5 M, CRAVADOS 0,5 M, COM 11 FIOS DE ARAME FARPADO Nº 14 - FORNECIMENTO E INSTALAÇÃO. AF_05/2020 | G94: =IF(C94="SERVIÇO",IF(D94="SINAPI",VLOOKUP(E94,'[1]SERVIÇOS SINAPI'!$A:$D,3,0),IF(D94="ORSE",VLOOKUP(E94,'[1]SERVIÇOS ORSE'!$A:$D,3,0),IF(D94="SEINFRA",VLOOKUP(E94,'[1]SERVIÇOS SEINFRA'!$A:$D,3,0)))),IF(C94="INSUMO",IF(D94="SINAPI",VLOOKUP(E94,'[1]INSUMOS SINAPI'!$A:$D,3,0),IF(D94="ORSE",VLOOKUP(E94,'[1]INSUMOS ORSE'!$A:$D,3,0),IF(D94="SEINFRA",VLOOKUP(E94,'[1]INSUMOS SEINFRA'!$A:$D,3,0),))))) -> M | H94: ='[1]Memória de Cálculo'!$L$595*$G$7 -> 533.4 | I94: =IF(C94="SERVIÇO",IF(D94="SINAPI",VLOOKUP(E94,'[1]SERVIÇOS SINAPI'!$A:$D,4,0),IF(D94="ORSE",VLOOKUP(E94,'[1]SERVIÇOS ORSE'!$A:$D,4,0),IF(D94="SEINFRA",VLOOKUP(E94,'[1]SERVIÇOS SEINFRA'!$A:$D,4,0)))),IF(C94="INSUMO",IF(D94="SINAPI",VLOOKUP(E94,'[1]INSUMOS SINAPI'!$A:$D,4,0),IF(D94="ORSE",VLOOKUP(E94,'[1]INSUMOS ORSE'!$A:$D,4,0),IF(D94="SEINFRA",VLOOKUP(E94,'[1]INSUMOS SEINFRA'!$A:$D,4,0),))))) -> 107.93 | J94: 133.29 | K94: 71096.89 | L94: 2
B95: 2.3.3 | C95: SERVIÇO | D95: ORSE | E95: 2374 | F95: =IF(C95="SERVIÇO",IF(D95="SINAPI",VLOOKUP(E95,'[1]SERVIÇOS SINAPI'!$A:$D,2,0),IF(D95="ORSE",VLOOKUP(E95,'[1]SERVIÇOS ORSE'!$A:$D,2,0),IF(D95="SEINFRA",VLOOKUP(E95,'[1]SERVIÇOS SEINFRA'!$A:$D,2,0)))),IF(C95="INSUMO",IF(D95="SINAPI",VLOOKUP(E95,'[1]INSUMOS SINAPI'!$A:$D,2,0),IF(D95="ORSE",VLOOKUP(E95,'[1]INSUMOS ORSE'!$A:$D,2,0),IF(D95="SEINFRA",VLOOKUP(E95,'[1]INSUMOS SEINFRA'!$A:$D,2,0),))))) -> MURO EM ALVENARIA BLOCO CERÂMICO, E= 0,09M, C/ ALV DE PEDRA 0,35 X 0,60M, COL UNAS (9X20CM) E CINTAMENTO (9X15CM) SUPERIOR E INFERIOR CONCRETO ARMADO FCK = 15,0 MPA CADA 3,00M, CHAPISCO E REBOCO | G95: =IF(C95="SERVIÇO",IF(D95="SINAPI",VLOOKUP(E95,'[1]SERVIÇOS SINAPI'!$A:$D,3,0),IF(D95="ORSE",VLOOKUP(E95,'[1]SERVIÇOS ORSE'!$A:$D,3,0),IF(D95="SEINFRA",VLOOKUP(E95,'[1]SERVIÇOS SEINFRA'!$A:$D,3,0)))),IF(C95="INSUMO",IF(D95="SINAPI",VLOOKUP(E95,'[1]INSUMOS SINAPI'!$A:$D,3,0),IF(D95="ORSE",VLOOKUP(E95,'[1]INSUMOS ORSE'!$A:$D,3,0),IF(D95="SEINFRA",VLOOKUP(E95,'[1]INSUMOS SEINFRA'!$A:$D,3,0),))))) -> M² | H95: ='[1]Memória de Cálculo'!$L$599*$G$7 -> 263.34 | I95: =IF(C95="SERVIÇO",IF(D95="SINAPI",VLOOKUP(E95,'[1]SERVIÇOS SINAPI'!$A:$D,4,0),IF(D95="ORSE",VLOOKUP(E95,'[1]SERVIÇOS ORSE'!$A:$D,4,0),IF(D95="SEINFRA",VLOOKUP(E95,'[1]SERVIÇOS SEINFRA'!$A:$D,4,0)))),IF(C95="INSUMO",IF(D95="SINAPI",VLOOKUP(E95,'[1]INSUMOS SINAPI'!$A:$D,4,0),IF(D95="ORSE",VLOOKUP(E95,'[1]INSUMOS ORSE'!$A:$D,4,0),IF(D95="SEINFRA",VLOOKUP(E95,'[1]INSUMOS SEINFRA'!$A:$D,4,0),))))) -> 172.29 | J95: 212.78 | K95: 56033.49 | L95: 2
B96: 2.3.4 | C96: SERVIÇO | D96: SEINFRA | E96: C2904 | F96: =IF(C96="SERVIÇO",IF(D96="SINAPI",VLOOKUP(E96,'[1]SERVIÇOS SINAPI'!$A:$D,2,0),IF(D96="ORSE",VLOOKUP(E96,'[1]SERVIÇOS ORSE'!$A:$D,2,0),IF(D96="SEINFRA",VLOOKUP(E96,'[1]SERVIÇOS SEINFRA'!$A:$D,2,0)))),IF(C96="INSUMO",IF(D96="SINAPI",VLOOKUP(E96,'[1]INSUMOS SINAPI'!$A:$D,2,0),IF(D96="ORSE",VLOOKUP(E96,'[1]INSUMOS ORSE'!$A:$D,2,0),IF(D96="SEINFRA",VLOOKUP(E96,'[1]INSUMOS SEINFRA'!$A:$D,2,0),))))) -> PORTÃO DE TUBO DE AÇO GALVANIZADO DE 2" (4X2)m, INCL.. PILARES DE SUSTENTAÇÃO | G96: =IF(C96="SERVIÇO",IF(D96="SINAPI",VLOOKUP(E96,'[1]SERVIÇOS SINAPI'!$A:$D,3,0),IF(D96="ORSE",VLOOKUP(E96,'[1]SERVIÇOS ORSE'!$A:$D,3,0),IF(D96="SEINFRA",VLOOKUP(E96,'[1]SERVIÇOS SEINFRA'!$A:$D,3,0)))),IF(C96="INSUMO",IF(D96="SINAPI",VLOOKUP(E96,'[1]INSUMOS SINAPI'!$A:$D,3,0),IF(D96="ORSE",VLOOKUP(E96,'[1]INSUMOS ORSE'!$A:$D,3,0),IF(D96="SEINFRA",VLOOKUP(E96,'[1]INSUMOS SEINFRA'!$A:$D,3,0),))))) -> UN | H96: ='[1]Memória de Cálculo'!$L$603*$G$7 -> 6 | I96: =IF(C96="SERVIÇO",IF(D96="SINAPI",VLOOKUP(E96,'[1]SERVIÇOS SINAPI'!$A:$D,4,0),IF(D96="ORSE",VLOOKUP(E96,'[1]SERVIÇOS ORSE'!$A:$D,4,0),IF(D96="SEINFRA",VLOOKUP(E96,'[1]SERVIÇOS SEINFRA'!$A:$D,4,0)))),IF(C96="INSUMO",IF(D96="SINAPI",VLOOKUP(E96,'[1]INSUMOS SINAPI'!$A:$D,4,0),IF(D96="ORSE",VLOOKUP(E96,'[1]INSUMOS ORSE'!$A:$D,4,0),IF(D96="SEINFRA",VLOOKUP(E96,'[1]INSUMOS SEINFRA'!$A:$D,4,0),))))) -> 4026.92 | J96: 4973.25 | K96: 29839.5 | L96: 5
B97: 2.3.5 | C97: SERVIÇO | D97: SEINFRA | E97: C2903 | F97: =IF(C97="SERVIÇO",IF(D97="SINAPI",VLOOKUP(E97,'[1]SERVIÇOS SINAPI'!$A:$D,2,0),IF(D97="ORSE",VLOOKUP(E97,'[1]SERVIÇOS ORSE'!$A:$D,2,0),IF(D97="SEINFRA",VLOOKUP(E97,'[1]SERVIÇOS SEINFRA'!$A:$D,2,0)))),IF(C97="INSUMO",IF(D97="SINAPI",VLOOKUP(E97,'[1]INSUMOS SINAPI'!$A:$D,2,0),IF(D97="ORSE",VLOOKUP(E97,'[1]INSUMOS ORSE'!$A:$D,2,0),IF(D97="SEINFRA",VLOOKUP(E97,'[1]INSUMOS SEINFRA'!$A:$D,2,0),))))) -> PORTÃO DE TUBO DE AÇO GALVANIZADO DE 2" (1X2)m, INCL. PILARES DE SUSTENTAÇÃO | G97: =IF(C97="SERVIÇO",IF(D97="SINAPI",VLOOKUP(E97,'[1]SERVIÇOS SINAPI'!$A:$D,3,0),IF(D97="ORSE",VLOOKUP(E97,'[1]SERVIÇOS ORSE'!$A:$D,3,0),IF(D97="SEINFRA",VLOOKUP(E97,'[1]SERVIÇOS SEINFRA'!$A:$D,3,0)))),IF(C97="INSUMO",IF(D97="SINAPI",VLOOKUP(E97,'[1]INSUMOS SINAPI'!$A:$D,3,0),IF(D97="ORSE",VLOOKUP(E97,'[1]INSUMOS ORSE'!$A:$D,3,0),IF(D97="SEINFRA",VLOOKUP(E97,'[1]INSUMOS SEINFRA'!$A:$D,3,0),))))) -> UN | H97: ='[1]Memória de Cálculo'!$L$607*$G$7 -> 6 | I97: =IF(C97="SERVIÇO",IF(D97="SINAPI",VLOOKUP(E97,'[1]SERVIÇOS SINAPI'!$A:$D,4,0),IF(D97="ORSE",VLOOKUP(E97,'[1]SERVIÇOS ORSE'!$A:$D,4,0),IF(D97="SEINFRA",VLOOKUP(E97,'[1]SERVIÇOS SEINFRA'!$A:$D,4,0)))),IF(C97="INSUMO",IF(D97="SINAPI",VLOOKUP(E97,'[1]INSUMOS SINAPI'!$A:$D,4,0),IF(D97="ORSE",VLOOKUP(E97,'[1]INSUMOS ORSE'!$A:$D,4,0),IF(D97="SEINFRA",VLOOKUP(E97,'[1]INSUMOS SEINFRA'!$A:$D,4,0),))))) -> 1360.02 | J97: 1679.62 | K97: 10077.72 | L97: 5
B98: 2.3.6 | C98: SERVIÇO | D98: SEINFRA | E98: C2899 | F98: =IF(C98="SERVIÇO",IF(D98="SINAPI",VLOOKUP(E98,'[1]SERVIÇOS SINAPI'!$A:$D,2,0),IF(D98="ORSE",VLOOKUP(E98,'[1]SERVIÇOS ORSE'!$A:$D,2,0),IF(D98="SEINFRA",VLOOKUP(E98,'[1]SERVIÇOS SEINFRA'!$A:$D,2,0)))),IF(C98="INSUMO",IF(D98="SINAPI",VLOOKUP(E98,'[1]INSUMOS SINAPI'!$A:$D,2,0),IF(D98="ORSE",VLOOKUP(E98,'[1]INSUMOS ORSE'!$A:$D,2,0),IF(D98="SEINFRA",VLOOKUP(E98,'[1]INSUMOS SEINFRA'!$A:$D,2,0),))))) -> PINTURA LOGOTIPO CAGECE - PROJETO PADRÃO | G98: =IF(C98="SERVIÇO",IF(D98="SINAPI",VLOOKUP(E98,'[1]SERVIÇOS SINAPI'!$A:$D,3,0),IF(D98="ORSE",VLOOKUP(E98,'[1]SERVIÇOS ORSE'!$A:$D,3,0),IF(D98="SEINFRA",VLOOKUP(E98,'[1]SERVIÇOS SEINFRA'!$A:$D,3,0)))),IF(C98="INSUMO",IF(D98="SINAPI",VLOOKUP(E98,'[1]INSUMOS SINAPI'!$A:$D,3,0),IF(D98="ORSE",VLOOKUP(E98,'[1]INSUMOS ORSE'!$A:$D,3,0),IF(D98="SEINFRA",VLOOKUP(E98,'[1]INSUMOS SEINFRA'!$A:$D,3,0),))))) -> UN | H98: ='[1]Memória de Cálculo'!$L$610*$G$7 -> 6 | I98: =IF(C98="SERVIÇO",IF(D98="SINAPI",VLOOKUP(E98,'[1]SERVIÇOS SINAPI'!$A:$D,4,0),IF(D98="ORSE",VLOOKUP(E98,'[1]SERVIÇOS ORSE'!$A:$D,4,0),IF(D98="SEINFRA",VLOOKUP(E98,'[1]SERVIÇOS SEINFRA'!$A:$D,4,0)))),IF(C98="INSUMO",IF(D98="SINAPI",VLOOKUP(E98,'[1]INSUMOS SINAPI'!$A:$D,4,0),IF(D98="ORSE",VLOOKUP(E98,'[1]INSUMOS ORSE'!$A:$D,4,0),IF(D98="SEINFRA",VLOOKUP(E98,'[1]INSUMOS SEINFRA'!$A:$D,4,0),))))) -> 284.28 | J98: 351.09 | K98: 2106.54 | L98: 6
B99: 2.3.7 | C99: SERVIÇO | D99: SINAPI | E99: 100745 | F99: =IF(C99="SERVIÇO",IF(D99="SINAPI",VLOOKUP(E99,'[1]SERVIÇOS SINAPI'!$A:$D,2,0),IF(D99="ORSE",VLOOKUP(E99,'[1]SERVIÇOS ORSE'!$A:$D,2,0),IF(D99="SEINFRA",VLOOKUP(E99,'[1]SERVIÇOS SEINFRA'!$A:$D,2,0)))),IF(C99="INSUMO",IF(D99="SINAPI",VLOOKUP(E99,'[1]INSUMOS SINAPI'!$A:$D,2,0),IF(D99="ORSE",VLOOKUP(E99,'[1]INSUMOS ORSE'!$A:$D,2,0),IF(D99="SEINFRA",VLOOKUP(E99,'[1]INSUMOS SEINFRA'!$A:$D,2,0),))))) -> PINTURA COM TINTA ALQUÍDICA DE ACABAMENTO (ESMALTE SINTÉTICO BRILHANTE) PULVERIZADA SOBRE SUPERFÍCIES METÁLICAS (EXCETO PERFIL) EXECUTADO EM OBRA (POR DEMÃO). AF_01/2020_P | G99: =IF(C99="SERVIÇO",IF(D99="SINAPI",VLOOKUP(E99,'[1]SERVIÇOS SINAPI'!$A:$D,3,0),IF(D99="ORSE",VLOOKUP(E99,'[1]SERVIÇOS ORSE'!$A:$D,3,0),IF(D99="SEINFRA",VLOOKUP(E99,'[1]SERVIÇOS SEINFRA'!$A:$D,3,0)))),IF(C99="INSUMO",IF(D99="SINAPI",VLOOKUP(E99,'[1]INSUMOS SINAPI'!$A:$D,3,0),IF(D99="ORSE",VLOOKUP(E99,'[1]INSUMOS ORSE'!$A:$D,3,0),IF(D99="SEINFRA",VLOOKUP(E99,'[1]INSUMOS SEINFRA'!$A:$D,3,0),))))) -> M² | H99: ='[1]Memória de Cálculo'!$L$619*$G$7 -> 120 | I99: =IF(C99="SERVIÇO",IF(D99="SINAPI",VLOOKUP(E99,'[1]SERVIÇOS SINAPI'!$A:$D,4,0),IF(D99="ORSE",VLOOKUP(E99,'[1]SERVIÇOS ORSE'!$A:$D,4,0),IF(D99="SEINFRA",VLOOKUP(E99,'[1]SERVIÇOS SEINFRA'!$A:$D,4,0)))),IF(C99="INSUMO",IF(D99="SINAPI",VLOOKUP(E99,'[1]INSUMOS SINAPI'!$A:$D,4,0),IF(D99="ORSE",VLOOKUP(E99,'[1]INSUMOS ORSE'!$A:$D,4,0),IF(D99="SEINFRA",VLOOKUP(E99,'[1]INSUMOS SEINFRA'!$A:$D,4,0),))))) -> 18.64 | J99: 23.02 | K99: 2762.4 | L99: 2
B100: 2.3.8 | C100: SERVIÇO | D100: SINAPI | E100: 100719 | F100: =IF(C100="SERVIÇO",IF(D100="SINAPI",VLOOKUP(E100,'[1]SERVIÇOS SINAPI'!$A:$D,2,0),IF(D100="ORSE",VLOOKUP(E100,'[1]SERVIÇOS ORSE'!$A:$D,2,0),IF(D100="SEINFRA",VLOOKUP(E100,'[1]SERVIÇOS SEINFRA'!$A:$D,2,0)))),IF(C100="INSUMO",IF(D100="SINAPI",VLOOKUP(E100,'[1]INSUMOS SINAPI'!$A:$D,2,0),IF(D100="ORSE",VLOOKUP(E100,'[1]INSUMOS ORSE'!$A:$D,2,0),IF(D100="SEINFRA",VLOOKUP(E100,'[1]INSUMOS SEINFRA'!$A:$D,2,0),))))) -> PINTURA COM TINTA ALQUÍDICA DE FUNDO (TIPO ZARCÃO) PULVERIZADA SOBRE PERFIL METÁLICO EXECUTADO EM FÁBRICA (POR DEMÃO). AF_01/2020_P | G100: =IF(C100="SERVIÇO",IF(D100="SINAPI",VLOOKUP(E100,'[1]SERVIÇOS SINAPI'!$A:$D,3,0),IF(D100="ORSE",VLOOKUP(E100,'[1]SERVIÇOS ORSE'!$A:$D,3,0),IF(D100="SEINFRA",VLOOKUP(E100,'[1]SERVIÇOS SEINFRA'!$A:$D,3,0)))),IF(C100="INSUMO",IF(D100="SINAPI",VLOOKUP(E100,'[1]INSUMOS SINAPI'!$A:$D,3,0),IF(D100="ORSE",VLOOKUP(E100,'[1]INSUMOS ORSE'!$A:$D,3,0),IF(D100="SEINFRA",VLOOKUP(E100,'[1]INSUMOS SEINFRA'!$A:$D,3,0),))))) -> M² | H100: ='[1]Memória de Cálculo'!$L$615*$G$7 -> 120 | I100: =IF(C100="SERVIÇO",IF(D100="SINAPI",VLOOKUP(E100,'[1]SERVIÇOS SINAPI'!$A:$D,4,0),IF(D100="ORSE",VLOOKUP(E100,'[1]SERVIÇOS ORSE'!$A:$D,4,0),IF(D100="SEINFRA",VLOOKUP(E100,'[1]SERVIÇOS SEINFRA'!$A:$D,4,0)))),IF(C100="INSUMO",IF(D100="SINAPI",VLOOKUP(E100,'[1]INSUMOS SINAPI'!$A:$D,4,0),IF(D100="ORSE",VLOOKUP(E100,'[1]INSUMOS ORSE'!$A:$D,4,0),IF(D100="SEINFRA",VLOOKUP(E100,'[1]INSUMOS SEINFRA'!$A:$D,4,0),))))) -> 8.05 | J100: 9.94 | K100: 1192.8 | L100: 2
B101: 2.3.9 | C101: SERVIÇO | D101: SINAPI | E101: 88489 | F101: =IF(C101="SERVIÇO",IF(D101="SINAPI",VLOOKUP(E101,'[1]SERVIÇOS SINAPI'!$A:$D,2,0),IF(D101="ORSE",VLOOKUP(E101,'[1]SERVIÇOS ORSE'!$A:$D,2,0),IF(D101="SEINFRA",VLOOKUP(E101,'[1]SERVIÇOS SEINFRA'!$A:$D,2,0)))),IF(C101="INSUMO",IF(D101="SINAPI",VLOOKUP(E101,'[1]INSUMOS SINAPI'!$A:$D,2,0),IF(D101="ORSE",VLOOKUP(E101,'[1]INSUMOS ORSE'!$A:$D,2,0),IF(D101="SEINFRA",VLOOKUP(E101,'[1]INSUMOS SEINFRA'!$A:$D,2,0),))))) -> APLICAÇÃO MANUAL DE PINTURA COM TINTA LÁTEX ACRÍLICA EM PAREDES, DUAS DEMÃOS. AF_06/2014 | G101: =IF(C101="SERVIÇO",IF(D101="SINAPI",VLOOKUP(E101,'[1]SERVIÇOS SINAPI'!$A:$D,3,0),IF(D101="ORSE",VLOOKUP(E101,'[1]SERVIÇOS ORSE'!$A:$D,3,0),IF(D101="SEINFRA",VLOOKUP(E101,'[1]SERVIÇOS SEINFRA'!$A:$D,3,0)))),IF(C101="INSUMO",IF(D101="SINAPI",VLOOKUP(E101,'[1]INSUMOS SINAPI'!$A:$D,3,0),IF(D101="ORSE",VLOOKUP(E101,'[1]INSUMOS ORSE'!$A:$D,3,0),IF(D101="SEINFRA",VLOOKUP(E101,'[1]INSUMOS SEINFRA'!$A:$D,3,0),))))) -> M² | H101: ='[1]Memória de Cálculo'!$L$623*$G$7 -> 526.68 | I101: =IF(C101="SERVIÇO",IF(D101="SINAPI",VLOOKUP(E101,'[1]SERVIÇOS SINAPI'!$A:$D,4,0),IF(D101="ORSE",VLOOKUP(E101,'[1]SERVIÇOS ORSE'!$A:$D,4,0),IF(D101="SEINFRA",VLOOKUP(E101,'[1]SERVIÇOS SEINFRA'!$A:$D,4,0)))),IF(C101="INSUMO",IF(D101="SINAPI",VLOOKUP(E101,'[1]INSUMOS SINAPI'!$A:$D,4,0),IF(D101="ORSE",VLOOKUP(E101,'[1]INSUMOS ORSE'!$A:$D,4,0),IF(D101="SEINFRA",VLOOKUP(E101,'[1]INSUMOS SEINFRA'!$A:$D,4,0),))))) -> 13.67 | J101: 16.88 | K101: 8890.36 | L101: 2
B102: 2.4 | C102: SERVIÇOS DE INSTALAÇÕES ELÉTRICAS PARA UNIDADE DE MELHORAMENTO GENETICO | K102: =SUM(K103:K106) -> 17225.16
B103: 2.4.1 | C103: SERVIÇO | D103: CODEVASF | E103: =[1]Composições!I87 -> COMPO. 6 | F103: INSTALAÇÃO ELÉTRICA DA UNIDADE DE REPRODUÇÃO E MELHORAMENTO GENEICO | G103: =[1]Composições!$I$86 -> UN | H103: =1*$G$7 -> 6 | I103: =[1]Composições!I98 -> 1759.92 | J103: =IF(C103="SERVIÇO",I103*(1+$I$8),IF(C103="INSUMO",(I103*(1+$K$8)))) -> 2173.5 | K103: =J103*H103 -> 13041 | L103: 6
B104: 2.4.2 | C104: SERVIÇO | D104: CODEVASF | E104: =[1]Composições!I101 -> COMPO. 7 | F104: INSTALAÇÃO DE PAINEL ELÉTRICO DE DISTRIBUIÇÃO DA UNIDADE DE REPRODUÇÃO E MELHORAMENTO GENEICO | G104: =[1]Composições!$I$100 -> UN | H104: 6 | I104: =[1]Composições!I112 -> 113.44 | J104: 140.1 | K104: 840.6 | L104: 6
B105: 2.4.3 | C105: SERVIÇO | D105: CODEVASF | E105: =[1]Composições!I115 -> COMPO. 8 | F105: INSTALAÇÃO ELÉTRICA DA ILUMINAÇÃO DO PÁTIO EXTERNO DA UNIDADE DE REPRODUÇÃO E MELHORAMENTO GENEICO | G105: =[1]Composições!$I$114 -> UN | H105: 6 | I105: =[1]Composições!I126 -> 199.75 | J105: 246.69 | K105: 1480.14 | L105: 6
B106: 2.4.4 | C106: SERVIÇO | D106: CODEVASF | E106: =[1]Composições!I130 -> COMPO. 9 | F106: TESTE DE PARTIDA DO SISTEMA ELETRICO DA UNIDADE DE REPRODUÇÃO E MELHORAMENTO GENEICO | G106: =[1]Composições!$I$129 -> UN | H106: 6 | I106: =[1]Composições!I142 -> 251.47 | J106: 310.57 | K106: 1863.42 | L106: 6
B107: 2.5 | C107: INSUMOS DE INSTALAÇÕES ELÉTRICAS PARA UNIDADE DE MELHORAMENTO GENETICO | K107: =SUM(K108:K137) -> 42205.88
B108: 2.5.1 | C108: INSUMO | D108: SINAPI | E108: 2687 | F108: =IF(C108="SERVIÇO",IF(D108="SINAPI",VLOOKUP(E108,'[1]SERVIÇOS SINAPI'!$A:$D,2,0),IF(D108="ORSE",VLOOKUP(E108,'[1]SERVIÇOS ORSE'!$A:$D,2,0),IF(D108="SEINFRA",VLOOKUP(E108,'[1]SERVIÇOS SEINFRA'!$A:$D,2,0)))),IF(C108="INSUMO",IF(D108="SINAPI",VLOOKUP(E108,'[1]INSUMOS SINAPI'!$A:$D,2,0),IF(D108="ORSE",VLOOKUP(E108,'[1]INSUMOS ORSE'!$A:$D,2,0),IF(D108="SEINFRA",VLOOKUP(E108,'[1]INSUMOS SEINFRA'!$A:$D,2,0),))))) -> ELETRODUTO PVC FLEXIVEL CORRUGADO, COR AMARELA, DE 16 MM | G108: =IF(C108="SERVIÇO",IF(D108="SINAPI",VLOOKUP(E108,'[1]SERVIÇOS SINAPI'!$A:$D,3,0),IF(D108="ORSE",VLOOKUP(E108,'[1]SERVIÇOS ORSE'!$A:$D,3,0),IF(D108="SEINFRA",VLOOKUP(E108,'[1]SERVIÇOS SEINFRA'!$A:$D,3,0)))),IF(C108="INSUMO",IF(D108="SINAPI",VLOOKUP(E108,'[1]INSUMOS SINAPI'!$A:$D,3,0),IF(D108="ORSE",VLOOKUP(E108,'[1]INSUMOS ORSE'!$A:$D,3,0),IF(D108="SEINFRA",VLOOKUP(E108,'[1]INSUMOS SEINFRA'!$A:$D,3,0),))))) -> M | H108: ='[1]Memória de Cálculo'!$L$633*$G$7 -> 582 | I108: =IF(C108="SERVIÇO",IF(D108="SINAPI",VLOOKUP(E108,'[1]SERVIÇOS SINAPI'!$A:$D,4,0),IF(D108="ORSE",VLOOKUP(E108,'[1]SERVIÇOS ORSE'!$A:$D,4,0),IF(D108="SEINFRA",VLOOKUP(E108,'[1]SERVIÇOS SEINFRA'!$A:$D,4,0)))),IF(C108="INSUMO",IF(D108="SINAPI",VLOOKUP(E108,'[1]INSUMOS SINAPI'!$A:$D,4,0),IF(D108="ORSE",VLOOKUP(E108,'[1]INSUMOS ORSE'!$A:$D,4,0),IF(D108="SEINFRA",VLOOKUP(E108,'[1]INSUMOS SEINFRA'!$A:$D,4,0),))))) -> 1.94 | J108: =IF(C108="SERVIÇO",I108*(1+$I$8),IF(C108="INSUMO",(I108*(1+$K$8)))) -> 2.16 | K108: =J108*H108 -> 1257.12 | L108: 4
B109: 2.5.2 | C109: INSUMO | D109: SINAPI | E109: 2674 | F109: =IF(C109="SERVIÇO",IF(D109="SINAPI",VLOOKUP(E109,'[1]SERVIÇOS SINAPI'!$A:$D,2,0),IF(D109="ORSE",VLOOKUP(E109,'[1]SERVIÇOS ORSE'!$A:$D,2,0),IF(D109="SEINFRA",VLOOKUP(E109,'[1]SERVIÇOS SEINFRA'!$A:$D,2,0)))),IF(C109="INSUMO",IF(D109="SINAPI",VLOOKUP(E109,'[1]INSUMOS SINAPI'!$A:$D,2,0),IF(D109="ORSE",VLOOKUP(E109,'[1]INSUMOS ORSE'!$A:$D,2,0),IF(D109="SEINFRA",VLOOKUP(E109,'[1]INSUMOS SEINFRA'!$A:$D,2,0),))))) -> ELETRODUTO DE PVC RIGIDO ROSCAVEL DE 3/4 ", SEM LUVA | G109: =IF(C109="SERVIÇO",IF(D109="SINAPI",VLOOKUP(E109,'[1]SERVIÇOS SINAPI'!$A:$D,3,0),IF(D109="ORSE",VLOOKUP(E109,'[1]SERVIÇOS ORSE'!$A:$D,3,0),IF(D109="SEINFRA",VLOOKUP(E109,'[1]SERVIÇOS SEINFRA'!$A:$D,3,0)))),IF(C109="INSUMO",IF(D109="SINAPI",VLOOKUP(E109,'[1]INSUMOS SINAPI'!$A:$D,3,0),IF(D109="ORSE",VLOOKUP(E109,'[1]INSUMOS ORSE'!$A:$D,3,0),IF(D109="SEINFRA",VLOOKUP(E109,'[1]INSUMOS SEINFRA'!$A:$D,3,0),))))) -> M | H109: ='[1]Memória de Cálculo'!$L$638*$G$7 -> 433.8 | I109: =IF(C109="SERVIÇO",IF(D109="SINAPI",VLOOKUP(E109,'[1]SERVIÇOS SINAPI'!$A:$D,4,0),IF(D109="ORSE",VLOOKUP(E109,'[1]SERVIÇOS ORSE'!$A:$D,4,0),IF(D109="SEINFRA",VLOOKUP(E109,'[1]SERVIÇOS SEINFRA'!$A:$D,4,0)))),IF(C109="INSUMO",IF(D109="SINAPI",VLOOKUP(E109,'[1]INSUMOS SINAPI'!$A:$D,4,0),IF(D109="ORSE",VLOOKUP(E109,'[1]INSUMOS ORSE'!$A:$D,4,0),IF(D109="SEINFRA",VLOOKUP(E109,'[1]INSUMOS SEINFRA'!$A:$D,4,0),))))) -> 4.77 | J109: 5.32 | K109: 2307.82 | L109: 4
B110: 2.5.3 | C110: INSUMO | D110: SINAPI | E110: 2675 | F110: =IF(C110="SERVIÇO",IF(D110="SINAPI",VLOOKUP(E110,'[1]SERVIÇOS SINAPI'!$A:$D,2,0),IF(D110="ORSE",VLOOKUP(E110,'[1]SERVIÇOS ORSE'!$A:$D,2,0),IF(D110="SEINFRA",VLOOKUP(E110,'[1]SERVIÇOS SEINFRA'!$A:$D,2,0)))),IF(C110="INSUMO",IF(D110="SINAPI",VLOOKUP(E110,'[1]INSUMOS SINAPI'!$A:$D,2,0),IF(D110="ORSE",VLOOKUP(E110,'[1]INSUMOS ORSE'!$A:$D,2,0),IF(D110="SEINFRA",VLOOKUP(E110,'[1]INSUMOS SEINFRA'!$A:$D,2,0),))))) -> ELETRODUTO DE PVC RIGIDO SOLDAVEL, CLASSE B, DE 50 MM | G110: =IF(C110="SERVIÇO",IF(D110="SINAPI",VLOOKUP(E110,'[1]SERVIÇOS SINAPI'!$A:$D,3,0),IF(D110="ORSE",VLOOKUP(E110,'[1]SERVIÇOS ORSE'!$A:$D,3,0),IF(D110="SEINFRA",VLOOKUP(E110,'[1]SERVIÇOS SEINFRA'!$A:$D,3,0)))),IF(C110="INSUMO",IF(D110="SINAPI",VLOOKUP(E110,'[1]INSUMOS SINAPI'!$A:$D,3,0),IF(D110="ORSE",VLOOKUP(E110,'[1]INSUMOS ORSE'!$A:$D,3,0),IF(D110="SEINFRA",VLOOKUP(E110,'[1]INSUMOS SEINFRA'!$A:$D,3,0),))))) -> M | H110: ='[1]Memória de Cálculo'!$L$643*$G$7 -> 108 | I110: =IF(C110="SERVIÇO",IF(D110="SINAPI",VLOOKUP(E110,'[1]SERVIÇOS SINAPI'!$A:$D,4,0),IF(D110="ORSE",VLOOKUP(E110,'[1]SERVIÇOS ORSE'!$A:$D,4,0),IF(D110="SEINFRA",VLOOKUP(E110,'[1]SERVIÇOS SEINFRA'!$A:$D,4,0)))),IF(C110="INSUMO",IF(D110="SINAPI",VLOOKUP(E110,'[1]INSUMOS SINAPI'!$A:$D,4,0),IF(D110="ORSE",VLOOKUP(E110,'[1]INSUMOS ORSE'!$A:$D,4,0),IF(D110="SEINFRA",VLOOKUP(E110,'[1]INSUMOS SEINFRA'!$A:$D,4,0),))))) -> 7.78 | J110: 8.67 | K110: 936.36 | L110: 4
B111: 2.5.4 | C111: INSUMO | D111: SINAPI | E111: 2689 | F111: =IF(C111="SERVIÇO",IF(D111="SINAPI",VLOOKUP(E111,'[1]SERVIÇOS SINAPI'!$A:$D,2,0),IF(D111="ORSE",VLOOKUP(E111,'[1]SERVIÇOS ORSE'!$A:$D,2,0),IF(D111="SEINFRA",VLOOKUP(E111,'[1]SERVIÇOS SEINFRA'!$A:$D,2,0)))),IF(C111="INSUMO",IF(D111="SINAPI",VLOOKUP(E111,'[1]INSUMOS SINAPI'!$A:$D,2,0),IF(D111="ORSE",VLOOKUP(E111,'[1]INSUMOS ORSE'!$A:$D,2,0),IF(D111="SEINFRA",VLOOKUP(E111,'[1]INSUMOS SEINFRA'!$A:$D,2,0),))))) -> ELETRODUTO PVC FLEXIVEL CORRUGADO, COR AMARELA, DE 20 MM | G111: =IF(C111="SERVIÇO",IF(D111="SINAPI",VLOOKUP(E111,'[1]SERVIÇOS SINAPI'!$A:$D,3,0),IF(D111="ORSE",VLOOKUP(E111,'[1]SERVIÇOS ORSE'!$A:$D,3,0),IF(D111="SEINFRA",VLOOKUP(E111,'[1]SERVIÇOS SEINFRA'!$A:$D,3,0)))),IF(C111="INSUMO",IF(D111="SINAPI",VLOOKUP(E111,'[1]INSUMOS SINAPI'!$A:$D,3,0),IF(D111="ORSE",VLOOKUP(E111,'[1]INSUMOS ORSE'!$A:$D,3,0),IF(D111="SEINFRA",VLOOKUP(E111,'[1]INSUMOS SEINFRA'!$A:$D,3,0),))))) -> M | H111: ='[1]Memória de Cálculo'!$L$648*$G$7 -> 90 | I111: =IF(C111="SERVIÇO",IF(D111="SINAPI",VLOOKUP(E111,'[1]SERVIÇOS SINAPI'!$A:$D,4,0),IF(D111="ORSE",VLOOKUP(E111,'[1]SERVIÇOS ORSE'!$A:$D,4,0),IF(D111="SEINFRA",VLOOKUP(E111,'[1]SERVIÇOS SEINFRA'!$A:$D,4,0)))),IF(C111="INSUMO",IF(D111="SINAPI",VLOOKUP(E111,'[1]INSUMOS SINAPI'!$A:$D,4,0),IF(D111="ORSE",VLOOKUP(E111,'[1]INSUMOS ORSE'!$A:$D,4,0),IF(D111="SEINFRA",VLOOKUP(E111,'[1]INSUMOS SEINFRA'!$A:$D,4,0),))))) -> 2.31 | J111: 2.57 | K111: 231.3 | L111: 4
B112: 2.5.5 | C112: INSUMO | D112: SINAPI | E112: 1891 | F112: =IF(C112="SERVIÇO",IF(D112="SINAPI",VLOOKUP(E112,'[1]SERVIÇOS SINAPI'!$A:$D,2,0),IF(D112="ORSE",VLOOKUP(E112,'[1]SERVIÇOS ORSE'!$A:$D,2,0),IF(D112="SEINFRA",VLOOKUP(E112,'[1]SERVIÇOS SEINFRA'!$A:$D,2,0)))),IF(C112="INSUMO",IF(D112="SINAPI",VLOOKUP(E112,'[1]INSUMOS SINAPI'!$A:$D,2,0),IF(D112="ORSE",VLOOKUP(E112,'[1]INSUMOS ORSE'!$A:$D,2,0),IF(D112="SEINFRA",VLOOKUP(E112,'[1]INSUMOS SEINFRA'!$A:$D,2,0),))))) -> LUVA EM PVC RIGIDO ROSCAVEL, DE 3/4", PARA ELETRODUTO | G112: =IF(C112="SERVIÇO",IF(D112="SINAPI",VLOOKUP(E112,'[1]SERVIÇOS SINAPI'!$A:$D,3,0),IF(D112="ORSE",VLOOKUP(E112,'[1]SERVIÇOS ORSE'!$A:$D,3,0),IF(D112="SEINFRA",VLOOKUP(E112,'[1]SERVIÇOS SEINFRA'!$A:$D,3,0)))),IF(C112="INSUMO",IF(D112="SINAPI",VLOOKUP(E112,'[1]INSUMOS SINAPI'!$A:$D,3,0),IF(D112="ORSE",VLOOKUP(E112,'[1]INSUMOS ORSE'!$A:$D,3,0),IF(D112="SEINFRA",VLOOKUP(E112,'[1]INSUMOS SEINFRA'!$A:$D,3,0),))))) -> UN | H112: ='[1]Memória de Cálculo'!$L$653*$G$7 -> 144 | I112: =IF(C112="SERVIÇO",IF(D112="SINAPI",VLOOKUP(E112,'[1]SERVIÇOS SINAPI'!$A:$D,4,0),IF(D112="ORSE",VLOOKUP(E112,'[1]SERVIÇOS ORSE'!$A:$D,4,0),IF(D112="SEINFRA",VLOOKUP(E112,'[1]SERVIÇOS SEINFRA'!$A:$D,4,0)))),IF(C112="INSUMO",IF(D112="SINAPI",VLOOKUP(E112,'[1]INSUMOS SINAPI'!$A:$D,4,0),IF(D112="ORSE",VLOOKUP(E112,'[1]INSUMOS ORSE'!$A:$D,4,0),IF(D112="SEINFRA",VLOOKUP(E112,'[1]INSUMOS SEINFRA'!$A:$D,4,0),))))) -> 1.31 | J112: 1.46 | K112: 210.24 | L112: 4
B113: 2.5.6 | C113: INSUMO | D113: SINAPI | E113: 1892 | F113: =IF(C113="SERVIÇO",IF(D113="SINAPI",VLOOKUP(E113,'[1]SERVIÇOS SINAPI'!$A:$D,2,0),IF(D113="ORSE",VLOOKUP(E113,'[1]SERVIÇOS ORSE'!$A:$D,2,0),IF(D113="SEINFRA",VLOOKUP(E113,'[1]SERVIÇOS SEINFRA'!$A:$D,2,0)))),IF(C113="INSUMO",IF(D113="SINAPI",VLOOKUP(E113,'[1]INSUMOS SINAPI'!$A:$D,2,0),IF(D113="ORSE",VLOOKUP(E113,'[1]INSUMOS ORSE'!$A:$D,2,0),IF(D113="SEINFRA",VLOOKUP(E113,'[1]INSUMOS SEINFRA'!$A:$D,2,0),))))) -> LUVA EM PVC RIGIDO ROSCAVEL, DE 1", PARA ELETRODUTO | G113: =IF(C113="SERVIÇO",IF(D113="SINAPI",VLOOKUP(E113,'[1]SERVIÇOS SINAPI'!$A:$D,3,0),IF(D113="ORSE",VLOOKUP(E113,'[1]SERVIÇOS ORSE'!$A:$D,3,0),IF(D113="SEINFRA",VLOOKUP(E113,'[1]SERVIÇOS SEINFRA'!$A:$D,3,0)))),IF(C113="INSUMO",IF(D113="SINAPI",VLOOKUP(E113,'[1]INSUMOS SINAPI'!$A:$D,3,0),IF(D113="ORSE",VLOOKUP(E113,'[1]INSUMOS ORSE'!$A:$D,3,0),IF(D113="SEINFRA",VLOOKUP(E113,'[1]INSUMOS SEINFRA'!$A:$D,3,0),))))) -> UN | H113: ='[1]Memória de Cálculo'!$L$662*$G$7 -> 6 | I113: =IF(C113="SERVIÇO",IF(D113="SINAPI",VLOOKUP(E113,'[1]SERVIÇOS SINAPI'!$A:$D,4,0),IF(D113="ORSE",VLOOKUP(E113,'[1]SERVIÇOS ORSE'!$A:$D,4,0),IF(D113="SEINFRA",VLOOKUP(E113,'[1]SERVIÇOS SEINFRA'!$A:$D,4,0)))),IF(C113="INSUMO",IF(D113="SINAPI",VLOOKUP(E113,'[1]INSUMOS SINAPI'!$A:$D,4,0),IF(D113="ORSE",VLOOKUP(E113,'[1]INSUMOS ORSE'!$A:$D,4,0),IF(D113="SEINFRA",VLOOKUP(E113,'[1]INSUMOS SEINFRA'!$A:$D,4,0),))))) -> 1.83 | J113: 2.04 | K113: 12.24 | L113: 4
B114: 2.5.7 | C114: INSUMO | D114: SINAPI | E114: 1879 | F114: =IF(C114="SERVIÇO",IF(D114="SINAPI",VLOOKUP(E114,'[1]SERVIÇOS SINAPI'!$A:$D,2,0),IF(D114="ORSE",VLOOKUP(E114,'[1]SERVIÇOS ORSE'!$A:$D,2,0),IF(D114="SEINFRA",VLOOKUP(E114,'[1]SERVIÇOS SEINFRA'!$A:$D,2,0)))),IF(C114="INSUMO",IF(D114="SINAPI",VLOOKUP(E114,'[1]INSUMOS SINAPI'!$A:$D,2,0),IF(D114="ORSE",VLOOKUP(E114,'[1]INSUMOS ORSE'!$A:$D,2,0),IF(D114="SEINFRA",VLOOKUP(E114,'[1]INSUMOS SEINFRA'!$A:$D,2,0),))))) -> CURVA 90 GRAUS, LONGA, DE PVC RIGIDO ROSCAVEL, DE 3/4", PARA ELETRODUTO | G114: =IF(C114="SERVIÇO",IF(D114="SINAPI",VLOOKUP(E114,'[1]SERVIÇOS SINAPI'!$A:$D,3,0),IF(D114="ORSE",VLOOKUP(E114,'[1]SERVIÇOS ORSE'!$A:$D,3,0),IF(D114="SEINFRA",VLOOKUP(E114,'[1]SERVIÇOS SEINFRA'!$A:$D,3,0)))),IF(C114="INSUMO",IF(D114="SINAPI",VLOOKUP(E114,'[1]INSUMOS SINAPI'!$A:$D,3,0),IF(D114="ORSE",VLOOKUP(E114,'[1]INSUMOS ORSE'!$A:$D,3,0),IF(D114="SEINFRA",VLOOKUP(E114,'[1]INSUMOS SEINFRA'!$A:$D,3,0),))))) -> UN | H114: ='[1]Memória de Cálculo'!$L$658*$G$7 -> 36 | I114: =IF(C114="SERVIÇO",IF(D114="SINAPI",VLOOKUP(E114,'[1]SERVIÇOS SINAPI'!$A:$D,4,0),IF(D114="ORSE",VLOOKUP(E114,'[1]SERVIÇOS ORSE'!$A:$D,4,0),IF(D114="SEINFRA",VLOOKUP(E114,'[1]SERVIÇOS SEINFRA'!$A:$D,4,0)))),IF(C114="INSUMO",IF(D114="SINAPI",VLOOKUP(E114,'[1]INSUMOS SINAPI'!$A:$D,4,0),IF(D114="ORSE",VLOOKUP(E114,'[1]INSUMOS ORSE'!$A:$D,4,0),IF(D114="SEINFRA",VLOOKUP(E114,'[1]INSUMOS SEINFRA'!$A:$D,4,0),))))) -> 3.03 | J114: 3.38 | K114: 121.68 | L114: 4
B115: 2.5.8 | C115: INSUMO | D115: SINAPI | E115: 939 | F115: =IF(C115="SERVIÇO",IF(D115="SINAPI",VLOOKUP(E115,'[1]SERVIÇOS SINAPI'!$A:$D,2,0),IF(D115="ORSE",VLOOKUP(E115,'[1]SERVIÇOS ORSE'!$A:$D,2,0),IF(D115="SEINFRA",VLOOKUP(E115,'[1]SERVIÇOS SEINFRA'!$A:$D,2,0)))),IF(C115="INSUMO",IF(D115="SINAPI",VLOOKUP(E115,'[1]INSUMOS SINAPI'!$A:$D,2,0),IF(D115="ORSE",VLOOKUP(E115,'[1]INSUMOS ORSE'!$A:$D,2,0),IF(D115="SEINFRA",VLOOKUP(E115,'[1]INSUMOS SEINFRA'!$A:$D,2,0),))))) -> FIO DE COBRE, SOLIDO, CLASSE 1, ISOLACAO EM PVC/A, ANTICHAMA BWF-B, 450/750V, SECAO NOMINAL 2,5 MM2 | G115: =IF(C115="SERVIÇO",IF(D115="SINAPI",VLOOKUP(E115,'[1]SERVIÇOS SINAPI'!$A:$D,3,0),IF(D115="ORSE",VLOOKUP(E115,'[1]SERVIÇOS ORSE'!$A:$D,3,0),IF(D115="SEINFRA",VLOOKUP(E115,'[1]SERVIÇOS SEINFRA'!$A:$D,3,0)))),IF(C115="INSUMO",IF(D115="SINAPI",VLOOKUP(E115,'[1]INSUMOS SINAPI'!$A:$D,3,0),IF(D115="ORSE",VLOOKUP(E115,'[1]INSUMOS ORSE'!$A:$D,3,0),IF(D115="SEINFRA",VLOOKUP(E115,'[1]INSUMOS SEINFRA'!$A:$D,3,0),))))) -> M | H115: ='[1]Memória de Cálculo'!$L$671*$G$7 -> 1382.4 | I115: =IF(C115="SERVIÇO",IF(D115="SINAPI",VLOOKUP(E115,'[1]SERVIÇOS SINAPI'!$A:$D,4,0),IF(D115="ORSE",VLOOKUP(E115,'[1]SERVIÇOS ORSE'!$A:$D,4,0),IF(D115="SEINFRA",VLOOKUP(E115,'[1]SERVIÇOS SEINFRA'!$A:$D,4,0)))),IF(C115="INSUMO",IF(D115="SINAPI",VLOOKUP(E115,'[1]INSUMOS SINAPI'!$A:$D,4,0),IF(D115="ORSE",VLOOKUP(E115,'[1]INSUMOS ORSE'!$A:$D,4,0),IF(D115="SEINFRA",VLOOKUP(E115,'[1]INSUMOS SEINFRA'!$A:$D,4,0),))))) -> 2.52 | J115: 2.81 | K115: 3884.54 | L115: 5
B116: 2.5.9 | C116: INSUMO | D116: SINAPI | E116: 938 | F116: =IF(C116="SERVIÇO",IF(D116="SINAPI",VLOOKUP(E116,'[1]SERVIÇOS SINAPI'!$A:$D,2,0),IF(D116="ORSE",VLOOKUP(E116,'[1]SERVIÇOS ORSE'!$A:$D,2,0),IF(D116="SEINFRA",VLOOKUP(E116,'[1]SERVIÇOS SEINFRA'!$A:$D,2,0)))),IF(C116="INSUMO",IF(D116="SINAPI",VLOOKUP(E116,'[1]INSUMOS SINAPI'!$A:$D,2,0),IF(D116="ORSE",VLOOKUP(E116,'[1]INSUMOS ORSE'!$A:$D,2,0),IF(D116="SEINFRA",VLOOKUP(E116,'[1]INSUMOS SEINFRA'!$A:$D,2,0),))))) -> FIO DE COBRE, SOLIDO, CLASSE 1, ISOLACAO EM PVC/A, ANTICHAMA BWF-B, 450/750V, SECAO NOMINAL 1,5 MM2 | G116: =IF(C116="SERVIÇO",IF(D116="SINAPI",VLOOKUP(E116,'[1]SERVIÇOS SINAPI'!$A:$D,3,0),IF(D116="ORSE",VLOOKUP(E116,'[1]SERVIÇOS ORSE'!$A:$D,3,0),IF(D116="SEINFRA",VLOOKUP(E116,'[1]SERVIÇOS SEINFRA'!$A:$D,3,0)))),IF(C116="INSUMO",IF(D116="SINAPI",VLOOKUP(E116,'[1]INSUMOS SINAPI'!$A:$D,3,0),IF(D116="ORSE",VLOOKUP(E116,'[1]INSUMOS ORSE'!$A:$D,3,0),IF(D116="SEINFRA",VLOOKUP(E116,'[1]INSUMOS SEINFRA'!$A:$D,3,0),))))) -> M | H116: ='[1]Memória de Cálculo'!$L$682*$G$7 -> 3047.4 | I116: =IF(C116="SERVIÇO",IF(D116="SINAPI",VLOOKUP(E116,'[1]SERVIÇOS SINAPI'!$A:$D,4,0),IF(D116="ORSE",VLOOKUP(E116,'[1]SERVIÇOS ORSE'!$A:$D,4,0),IF(D116="SEINFRA",VLOOKUP(E116,'[1]SERVIÇOS SEINFRA'!$A:$D,4,0)))),IF(C116="INSUMO",IF(D116="SINAPI",VLOOKUP(E116,'[1]INSUMOS SINAPI'!$A:$D,4,0),IF(D116="ORSE",VLOOKUP(E116,'[1]INSUMOS ORSE'!$A:$D,4,0),IF(D116="SEINFRA",VLOOKUP(E116,'[1]INSUMOS SEINFRA'!$A:$D,4,0),))))) -> 1.58 | J116: 1.76 | K116: 5363.42 | L116: 5
B117: 2.5.10 | C117: INSUMO | D117: SINAPI | E117: 944 | F117: =IF(C117="SERVIÇO",IF(D117="SINAPI",VLOOKUP(E117,'[1]SERVIÇOS SINAPI'!$A:$D,2,0),IF(D117="ORSE",VLOOKUP(E117,'[1]SERVIÇOS ORSE'!$A:$D,2,0),IF(D117="SEINFRA",VLOOKUP(E117,'[1]SERVIÇOS SEINFRA'!$A:$D,2,0)))),IF(C117="INSUMO",IF(D117="SINAPI",VLOOKUP(E117,'[1]INSUMOS SINAPI'!$A:$D,2,0),IF(D117="ORSE",VLOOKUP(E117,'[1]INSUMOS ORSE'!$A:$D,2,0),IF(D117="SEINFRA",VLOOKUP(E117,'[1]INSUMOS SEINFRA'!$A:$D,2,0),))))) -> FIO DE COBRE, SOLIDO, CLASSE 1, ISOLACAO EM PVC/A, ANTICHAMA BWF-B, 450/750V, SECAO NOMINAL 4 MM2 | G117: =IF(C117="SERVIÇO",IF(D117="SINAPI",VLOOKUP(E117,'[1]SERVIÇOS SINAPI'!$A:$D,3,0),IF(D117="ORSE",VLOOKUP(E117,'[1]SERVIÇOS ORSE'!$A:$D,3,0),IF(D117="SEINFRA",VLOOKUP(E117,'[1]SERVIÇOS SEINFRA'!$A:$D,3,0)))),IF(C117="INSUMO",IF(D117="SINAPI",VLOOKUP(E117,'[1]INSUMOS SINAPI'!$A:$D,3,0),IF(D117="ORSE",VLOOKUP(E117,'[1]INSUMOS ORSE'!$A:$D,3,0),IF(D117="SEINFRA",VLOOKUP(E117,'[1]INSUMOS SEINFRA'!$A:$D,3,0),))))) -> M | H117: ='[1]Memória de Cálculo'!$L$689*$G$7 -> 432 | I117: =IF(C117="SERVIÇO",IF(D117="SINAPI",VLOOKUP(E117,'[1]SERVIÇOS SINAPI'!$A:$D,4,0),IF(D117="ORSE",VLOOKUP(E117,'[1]SERVIÇOS ORSE'!$A:$D,4,0),IF(D117="SEINFRA",VLOOKUP(E117,'[1]SERVIÇOS SEINFRA'!$A:$D,4,0)))),IF(C117="INSUMO",IF(D117="SINAPI",VLOOKUP(E117,'[1]INSUMOS SINAPI'!$A:$D,4,0),IF(D117="ORSE",VLOOKUP(E117,'[1]INSUMOS ORSE'!$A:$D,4,0),IF(D117="SEINFRA",VLOOKUP(E117,'[1]INSUMOS SEINFRA'!$A:$D,4,0),))))) -> 4.31 | J117: 4.8 | K117: 2073.6 | L117: 5
B118: 2.5.11 | C118: INSUMO | D118: SINAPI | E118: 12294 | F118: =IF(C118="SERVIÇO",IF(D118="SINAPI",VLOOKUP(E118,'[1]SERVIÇOS SINAPI'!$A:$D,2,0),IF(D118="ORSE",VLOOKUP(E118,'[1]SERVIÇOS ORSE'!$A:$D,2,0),IF(D118="SEINFRA",VLOOKUP(E118,'[1]SERVIÇOS SEINFRA'!$A:$D,2,0)))),IF(C118="INSUMO",IF(D118="SINAPI",VLOOKUP(E118,'[1]INSUMOS SINAPI'!$A:$D,2,0),IF(D118="ORSE",VLOOKUP(E118,'[1]INSUMOS ORSE'!$A:$D,2,0),IF(D118="SEINFRA",VLOOKUP(E118,'[1]INSUMOS SEINFRA'!$A:$D,2,0),))))) -> SOQUETE DE PORCELANA BASE E27, PARA USO AO TEMPO, PARA LAMPADAS | G118: =IF(C118="SERVIÇO",IF(D118="SINAPI",VLOOKUP(E118,'[1]SERVIÇOS SINAPI'!$A:$D,3,0),IF(D118="ORSE",VLOOKUP(E118,'[1]SERVIÇOS ORSE'!$A:$D,3,0),IF(D118="SEINFRA",VLOOKUP(E118,'[1]SERVIÇOS SEINFRA'!$A:$D,3,0)))),IF(C118="INSUMO",IF(D118="SINAPI",VLOOKUP(E118,'[1]INSUMOS SINAPI'!$A:$D,3,0),IF(D118="ORSE",VLOOKUP(E118,'[1]INSUMOS ORSE'!$A:$D,3,0),IF(D118="SEINFRA",VLOOKUP(E118,'[1]INSUMOS SEINFRA'!$A:$D,3,0),))))) -> UN | H118: ='[1]Memória de Cálculo'!$L$711*$G$7 -> 156 | I118: =IF(C118="SERVIÇO",IF(D118="SINAPI",VLOOKUP(E118,'[1]SERVIÇOS SINAPI'!$A:$D,4,0),IF(D118="ORSE",VLOOKUP(E118,'[1]SERVIÇOS ORSE'!$A:$D,4,0),IF(D118="SEINFRA",VLOOKUP(E118,'[1]SERVIÇOS SEINFRA'!$A:$D,4,0)))),IF(C118="INSUMO",IF(D118="SINAPI",VLOOKUP(E118,'[1]INSUMOS SINAPI'!$A:$D,4,0),IF(D118="ORSE",VLOOKUP(E118,'[1]INSUMOS ORSE'!$A:$D,4,0),IF(D118="SEINFRA",VLOOKUP(E118,'[1]INSUMOS SEINFRA'!$A:$D,4,0),))))) -> 9.42 | J118: 10.5 | K118: 1638 | L118: 2
B119: 2.5.12 | C119: INSUMO | D119: SINAPI | E119: 38194 | F119: =IF(C119="SERVIÇO",IF(D119="SINAPI",VLOOKUP(E119,'[1]SERVIÇOS SINAPI'!$A:$D,2,0),IF(D119="ORSE",VLOOKUP(E119,'[1]SERVIÇOS ORSE'!$A:$D,2,0),IF(D119="SEINFRA",VLOOKUP(E119,'[1]SERVIÇOS SEINFRA'!$A:$D,2,0)))),IF(C119="INSUMO",IF(D119="SINAPI",VLOOKUP(E119,'[1]INSUMOS SINAPI'!$A:$D,2,0),IF(D119="ORSE",VLOOKUP(E119,'[1]INSUMOS ORSE'!$A:$D,2,0),IF(D119="SEINFRA",VLOOKUP(E119,'[1]INSUMOS SEINFRA'!$A:$D,2,0),))))) -> LAMPADA LED 10 W BIVOLT BRANCA, FORMATO TRADICIONAL (BASE E27) | G119: =IF(C119="SERVIÇO",IF(D119="SINAPI",VLOOKUP(E119,'[1]SERVIÇOS SINAPI'!$A:$D,3,0),IF(D119="ORSE",VLOOKUP(E119,'[1]SERVIÇOS ORSE'!$A:$D,3,0),IF(D119="SEINFRA",VLOOKUP(E119,'[1]SERVIÇOS SEINFRA'!$A:$D,3,0)))),IF(C119="INSUMO",IF(D119="SINAPI",VLOOKUP(E119,'[1]INSUMOS SINAPI'!$A:$D,3,0),IF(D119="ORSE",VLOOKUP(E119,'[1]INSUMOS ORSE'!$A:$D,3,0),IF(D119="SEINFRA",VLOOKUP(E119,'[1]INSUMOS SEINFRA'!$A:$D,3,0),))))) -> UN | H119: ='[1]Memória de Cálculo'!$L$700*$G$7 -> 156 | I119: =IF(C119="SERVIÇO",IF(D119="SINAPI",VLOOKUP(E119,'[1]SERVIÇOS SINAPI'!$A:$D,4,0),IF(D119="ORSE",VLOOKUP(E119,'[1]SERVIÇOS ORSE'!$A:$D,4,0),IF(D119="SEINFRA",VLOOKUP(E119,'[1]SERVIÇOS SEINFRA'!$A:$D,4,0)))),IF(C119="INSUMO",IF(D119="SINAPI",VLOOKUP(E119,'[1]INSUMOS SINAPI'!$A:$D,4,0),IF(D119="ORSE",VLOOKUP(E119,'[1]INSUMOS ORSE'!$A:$D,4,0),IF(D119="SEINFRA",VLOOKUP(E119,'[1]INSUMOS SEINFRA'!$A:$D,4,0),))))) -> 10.75 | J119: 11.98 | K119: 1868.88 | L119: 2
B120: 2.5.13 | C120: INSUMO | D120: SINAPI | E120: 39334 | F120: =IF(C120="SERVIÇO",IF(D120="SINAPI",VLOOKUP(E120,'[1]SERVIÇOS SINAPI'!$A:$D,2,0),IF(D120="ORSE",VLOOKUP(E120,'[1]SERVIÇOS ORSE'!$A:$D,2,0),IF(D120="SEINFRA",VLOOKUP(E120,'[1]SERVIÇOS SEINFRA'!$A:$D,2,0)))),IF(C120="INSUMO",IF(D120="SINAPI",VLOOKUP(E120,'[1]INSUMOS SINAPI'!$A:$D,2,0),IF(D120="ORSE",VLOOKUP(E120,'[1]INSUMOS ORSE'!$A:$D,2,0),IF(D120="SEINFRA",VLOOKUP(E120,'[1]INSUMOS SEINFRA'!$A:$D,2,0),))))) -> CONDULETE EM PVC, TIPO "E", SEM TAMPA, DE 3/4" | G120: =IF(C120="SERVIÇO",IF(D120="SINAPI",VLOOKUP(E120,'[1]SERVIÇOS SINAPI'!$A:$D,3,0),IF(D120="ORSE",VLOOKUP(E120,'[1]SERVIÇOS ORSE'!$A:$D,3,0),IF(D120="SEINFRA",VLOOKUP(E120,'[1]SERVIÇOS SEINFRA'!$A:$D,3,0)))),IF(C120="INSUMO",IF(D120="SINAPI",VLOOKUP(E120,'[1]INSUMOS SINAPI'!$A:$D,3,0),IF(D120="ORSE",VLOOKUP(E120,'[1]INSUMOS ORSE'!$A:$D,3,0),IF(D120="SEINFRA",VLOOKUP(E120,'[1]INSUMOS SEINFRA'!$A:$D,3,0),))))) -> UN | H120: ='[1]Memória de Cálculo'!$L$716*$G$7 -> 36 | I120: =IF(C120="SERVIÇO",IF(D120="SINAPI",VLOOKUP(E120,'[1]SERVIÇOS SINAPI'!$A:$D,4,0),IF(D120="ORSE",VLOOKUP(E120,'[1]SERVIÇOS ORSE'!$A:$D,4,0),IF(D120="SEINFRA",VLOOKUP(E120,'[1]SERVIÇOS SEINFRA'!$A:$D,4,0)))),IF(C120="INSUMO",IF(D120="SINAPI",VLOOKUP(E120,'[1]INSUMOS SINAPI'!$A:$D,4,0),IF(D120="ORSE",VLOOKUP(E120,'[1]INSUMOS ORSE'!$A:$D,4,0),IF(D120="SEINFRA",VLOOKUP(E120,'[1]INSUMOS SEINFRA'!$A:$D,4,0),))))) -> 9.64 | J120: 10.74 | K120: 386.64 | L120: 4
B121: 2.5.14 | C121: INSUMO | D121: SINAPI | E121: 1872 | F121: =IF(C121="SERVIÇO",IF(D121="SINAPI",VLOOKUP(E121,'[1]SERVIÇOS SINAPI'!$A:$D,2,0),IF(D121="ORSE",VLOOKUP(E121,'[1]SERVIÇOS ORSE'!$A:$D,2,0),IF(D121="SEINFRA",VLOOKUP(E121,'[1]SERVIÇOS SEINFRA'!$A:$D,2,0)))),IF(C121="INSUMO",IF(D121="SINAPI",VLOOKUP(E121,'[1]INSUMOS SINAPI'!$A:$D,2,0),IF(D121="ORSE",VLOOKUP(E121,'[1]INSUMOS ORSE'!$A:$D,2,0),IF(D121="SEINFRA",VLOOKUP(E121,'[1]INSUMOS SEINFRA'!$A:$D,2,0),))))) -> CAIXA DE PASSAGEM, EM PVC, DE 4" X 2", PARA ELETRODUTO FLEXIVEL CORRUGADO | G121: =IF(C121="SERVIÇO",IF(D121="SINAPI",VLOOKUP(E121,'[1]SERVIÇOS SINAPI'!$A:$D,3,0),IF(D121="ORSE",VLOOKUP(E121,'[1]SERVIÇOS ORSE'!$A:$D,3,0),IF(D121="SEINFRA",VLOOKUP(E121,'[1]SERVIÇOS SEINFRA'!$A:$D,3,0)))),IF(C121="INSUMO",IF(D121="SINAPI",VLOOKUP(E121,'[1]INSUMOS SINAPI'!$A:$D,3,0),IF(D121="ORSE",VLOOKUP(E121,'[1]INSUMOS ORSE'!$A:$D,3,0),IF(D121="SEINFRA",VLOOKUP(E121,'[1]INSUMOS SEINFRA'!$A:$D,3,0),))))) -> UN | H121: ='[1]Memória de Cálculo'!$L$727*$G$7 -> 294 | I121: =IF(C121="SERVIÇO",IF(D121="SINAPI",VLOOKUP(E121,'[1]SERVIÇOS SINAPI'!$A:$D,4,0),IF(D121="ORSE",VLOOKUP(E121,'[1]SERVIÇOS ORSE'!$A:$D,4,0),IF(D121="SEINFRA",VLOOKUP(E121,'[1]SERVIÇOS SEINFRA'!$A:$D,4,0)))),IF(C121="INSUMO",IF(D121="SINAPI",VLOOKUP(E121,'[1]INSUMOS SINAPI'!$A:$D,4,0),IF(D121="ORSE",VLOOKUP(E121,'[1]INSUMOS ORSE'!$A:$D,4,0),IF(D121="SEINFRA",VLOOKUP(E121,'[1]INSUMOS SEINFRA'!$A:$D,4,0),))))) -> 2.61 | J121: 2.91 | K121: 855.54 | L121: 4
B122: 2.5.15 | C122: INSUMO | D122: SINAPI | E122: 39175 | F122: =IF(C122="SERVIÇO",IF(D122="SINAPI",VLOOKUP(E122,'[1]SERVIÇOS SINAPI'!$A:$D,2,0),IF(D122="ORSE",VLOOKUP(E122,'[1]SERVIÇOS ORSE'!$A:$D,2,0),IF(D122="SEINFRA",VLOOKUP(E122,'[1]SERVIÇOS SEINFRA'!$A:$D,2,0)))),IF(C122="INSUMO",IF(D122="SINAPI",VLOOKUP(E122,'[1]INSUMOS SINAPI'!$A:$D,2,0),IF(D122="ORSE",VLOOKUP(E122,'[1]INSUMOS ORSE'!$A:$D,2,0),IF(D122="SEINFRA",VLOOKUP(E122,'[1]INSUMOS SEINFRA'!$A:$D,2,0),))))) -> BUCHA EM ALUMINIO, COM ROSCA, DE 3/4", PARA ELETRODUTO | G122: =IF(C122="SERVIÇO",IF(D122="SINAPI",VLOOKUP(E122,'[1]SERVIÇOS SINAPI'!$A:$D,3,0),IF(D122="ORSE",VLOOKUP(E122,'[1]SERVIÇOS ORSE'!$A:$D,3,0),IF(D122="SEINFRA",VLOOKUP(E122,'[1]SERVIÇOS SEINFRA'!$A:$D,3,0)))),IF(C122="INSUMO",IF(D122="SINAPI",VLOOKUP(E122,'[1]INSUMOS SINAPI'!$A:$D,3,0),IF(D122="ORSE",VLOOKUP(E122,'[1]INSUMOS ORSE'!$A:$D,3,0),IF(D122="SEINFRA",VLOOKUP(E122,'[1]INSUMOS SEINFRA'!$A:$D,3,0),))))) -> UN | H122: ='[1]Memória de Cálculo'!$L$738*$G$7 -> 642 | I122: =IF(C122="SERVIÇO",IF(D122="SINAPI",VLOOKUP(E122,'[1]SERVIÇOS SINAPI'!$A:$D,4,0),IF(D122="ORSE",VLOOKUP(E122,'[1]SERVIÇOS ORSE'!$A:$D,4,0),IF(D122="SEINFRA",VLOOKUP(E122,'[1]SERVIÇOS SEINFRA'!$A:$D,4,0)))),IF(C122="INSUMO",IF(D122="SINAPI",VLOOKUP(E122,'[1]INSUMOS SINAPI'!$A:$D,4,0),IF(D122="ORSE",VLOOKUP(E122,'[1]INSUMOS ORSE'!$A:$D,4,0),IF(D122="SEINFRA",VLOOKUP(E122,'[1]INSUMOS SEINFRA'!$A:$D,4,0),))))) -> 0.84 | J122: 0.94 | K122: 603.48 | L122: 4
B123: 2.5.16 | C123: INSUMO | D123: SINAPI | E123: 39209 | F123: =IF(C123="SERVIÇO",IF(D123="SINAPI",VLOOKUP(E123,'[1]SERVIÇOS SINAPI'!$A:$D,2,0),IF(D123="ORSE",VLOOKUP(E123,'[1]SERVIÇOS ORSE'!$A:$D,2,0),IF(D123="SEINFRA",VLOOKUP(E123,'[1]SERVIÇOS SEINFRA'!$A:$D,2,0)))),IF(C123="INSUMO",IF(D123="SINAPI",VLOOKUP(E123,'[1]INSUMOS SINAPI'!$A:$D,2,0),IF(D123="ORSE",VLOOKUP(E123,'[1]INSUMOS ORSE'!$A:$D,2,0),IF(D123="SEINFRA",VLOOKUP(E123,'[1]INSUMOS SEINFRA'!$A:$D,2,0),))))) -> ARRUELA EM ALUMINIO, COM ROSCA, DE 3/4", PARA ELETRODUTO | G123: =IF(C123="SERVIÇO",IF(D123="SINAPI",VLOOKUP(E123,'[1]SERVIÇOS SINAPI'!$A:$D,3,0),IF(D123="ORSE",VLOOKUP(E123,'[1]SERVIÇOS ORSE'!$A:$D,3,0),IF(D123="SEINFRA",VLOOKUP(E123,'[1]SERVIÇOS SEINFRA'!$A:$D,3,0)))),IF(C123="INSUMO",IF(D123="SINAPI",VLOOKUP(E123,'[1]INSUMOS SINAPI'!$A:$D,3,0),IF(D123="ORSE",VLOOKUP(E123,'[1]INSUMOS ORSE'!$A:$D,3,0),IF(D123="SEINFRA",VLOOKUP(E123,'[1]INSUMOS SEINFRA'!$A:$D,3,0),))))) -> UN | H123: ='[1]Memória de Cálculo'!$L$749*$G$7 -> 642 | I123: =IF(C123="SERVIÇO",IF(D123="SINAPI",VLOOKUP(E123,'[1]SERVIÇOS SINAPI'!$A:$D,4,0),IF(D123="ORSE",VLOOKUP(E123,'[1]SERVIÇOS ORSE'!$A:$D,4,0),IF(D123="SEINFRA",VLOOKUP(E123,'[1]SERVIÇOS SEINFRA'!$A:$D,4,0)))),IF(C123="INSUMO",IF(D123="SINAPI",VLOOKUP(E123,'[1]INSUMOS SINAPI'!$A:$D,4,0),IF(D123="ORSE",VLOOKUP(E123,'[1]INSUMOS ORSE'!$A:$D,4,0),IF(D123="SEINFRA",VLOOKUP(E123,'[1]INSUMOS SEINFRA'!$A:$D,4,0),))))) -> 0.43 | J123: 0.48 | K123: 308.16 | L123: 5
B124: 2.5.17 | C124: INSUMO | D124: SINAPI | E124: 38062 | F124: =IF(C124="SERVIÇO",IF(D124="SINAPI",VLOOKUP(E124,'[1]SERVIÇOS SINAPI'!$A:$D,2,0),IF(D124="ORSE",VLOOKUP(E124,'[1]SERVIÇOS ORSE'!$A:$D,2,0),IF(D124="SEINFRA",VLOOKUP(E124,'[1]SERVIÇOS SEINFRA'!$A:$D,2,0)))),IF(C124="INSUMO",IF(D124="SINAPI",VLOOKUP(E124,'[1]INSUMOS SINAPI'!$A:$D,2,0),IF(D124="ORSE",VLOOKUP(E124,'[1]INSUMOS ORSE'!$A:$D,2,0),IF(D124="SEINFRA",VLOOKUP(E124,'[1]INSUMOS SEINFRA'!$A:$D,2,0),))))) -> INTERRUPTOR SIMPLES 10A, 250V, CONJUNTO MONTADO PARA EMBUTIR 4" X 2" (PLACA + SUPORTE + MODULO) | G124: =IF(C124="SERVIÇO",IF(D124="SINAPI",VLOOKUP(E124,'[1]SERVIÇOS SINAPI'!$A:$D,3,0),IF(D124="ORSE",VLOOKUP(E124,'[1]SERVIÇOS ORSE'!$A:$D,3,0),IF(D124="SEINFRA",VLOOKUP(E124,'[1]SERVIÇOS SEINFRA'!$A:$D,3,0)))),IF(C124="INSUMO",IF(D124="SINAPI",VLOOKUP(E124,'[1]INSUMOS SINAPI'!$A:$D,3,0),IF(D124="ORSE",VLOOKUP(E124,'[1]INSUMOS ORSE'!$A:$D,3,0),IF(D124="SEINFRA",VLOOKUP(E124,'[1]INSUMOS SEINFRA'!$A:$D,3,0),))))) -> UN | H124: ='[1]Memória de Cálculo'!$L$758*$G$7 -> 60 | I124: =IF(C124="SERVIÇO",IF(D124="SINAPI",VLOOKUP(E124,'[1]SERVIÇOS SINAPI'!$A:$D,4,0),IF(D124="ORSE",VLOOKUP(E124,'[1]SERVIÇOS ORSE'!$A:$D,4,0),IF(D124="SEINFRA",VLOOKUP(E124,'[1]SERVIÇOS SEINFRA'!$A:$D,4,0)))),IF(C124="INSUMO",IF(D124="SINAPI",VLOOKUP(E124,'[1]INSUMOS SINAPI'!$A:$D,4,0),IF(D124="ORSE",VLOOKUP(E124,'[1]INSUMOS ORSE'!$A:$D,4,0),IF(D124="SEINFRA",VLOOKUP(E124,'[1]INSUMOS SEINFRA'!$A:$D,4,0),))))) -> 8.37 | J124: 9.33 | K124: 559.8 | L124: 4
B125: 2.5.18 | C125: INSUMO | D125: SINAPI | E125: 38071 | F125: =IF(C125="SERVIÇO",IF(D125="SINAPI",VLOOKUP(E125,'[1]SERVIÇOS SINAPI'!$A:$D,2,0),IF(D125="ORSE",VLOOKUP(E125,'[1]SERVIÇOS ORSE'!$A:$D,2,0),IF(D125="SEINFRA",VLOOKUP(E125,'[1]SERVIÇOS SEINFRA'!$A:$D,2,0)))),IF(C125="INSUMO",IF(D125="SINAPI",VLOOKUP(E125,'[1]INSUMOS SINAPI'!$A:$D,2,0),IF(D125="ORSE",VLOOKUP(E125,'[1]INSUMOS ORSE'!$A:$D,2,0),IF(D125="SEINFRA",VLOOKUP(E125,'[1]INSUMOS SEINFRA'!$A:$D,2,0),))))) -> INTERRUPTORES SIMPLES (3 MODULOS) 10A, 250V, CONJUNTO MONTADO PARA EMBUTIR 4" X 2" (PLACA + SUPORTE + MODULOS) | G125: =IF(C125="SERVIÇO",IF(D125="SINAPI",VLOOKUP(E125,'[1]SERVIÇOS SINAPI'!$A:$D,3,0),IF(D125="ORSE",VLOOKUP(E125,'[1]SERVIÇOS ORSE'!$A:$D,3,0),IF(D125="SEINFRA",VLOOKUP(E125,'[1]SERVIÇOS SEINFRA'!$A:$D,3,0)))),IF(C125="INSUMO",IF(D125="SINAPI",VLOOKUP(E125,'[1]INSUMOS SINAPI'!$A:$D,3,0),IF(D125="ORSE",VLOOKUP(E125,'[1]INSUMOS ORSE'!$A:$D,3,0),IF(D125="SEINFRA",VLOOKUP(E125,'[1]INSUMOS SEINFRA'!$A:$D,3,0),))))) -> UN | H125: ='[1]Memória de Cálculo'!$L$762*$G$7 -> 30 | I125: =IF(C125="SERVIÇO",IF(D125="SINAPI",VLOOKUP(E125,'[1]SERVIÇOS SINAPI'!$A:$D,4,0),IF(D125="ORSE",VLOOKUP(E125,'[1]SERVIÇOS ORSE'!$A:$D,4,0),IF(D125="SEINFRA",VLOOKUP(E125,'[1]SERVIÇOS SEINFRA'!$A:$D,4,0)))),IF(C125="INSUMO",IF(D125="SINAPI",VLOOKUP(E125,'[1]INSUMOS SINAPI'!$A:$D,4,0),IF(D125="ORSE",VLOOKUP(E125,'[1]INSUMOS ORSE'!$A:$D,4,0),IF(D125="SEINFRA",VLOOKUP(E125,'[1]INSUMOS SEINFRA'!$A:$D,4,0),))))) -> 20.54 | J125: 22.89 | K125: 686.7 | L125: 4
B126: 2.5.19 | C126: INSUMO | D126: SINAPI | E126: 7528 | F126: =IF(C126="SERVIÇO",IF(D126="SINAPI",VLOOKUP(E126,'[1]SERVIÇOS SINAPI'!$A:$D,2,0),IF(D126="ORSE",VLOOKUP(E126,'[1]SERVIÇOS ORSE'!$A:$D,2,0),IF(D126="SEINFRA",VLOOKUP(E126,'[1]SERVIÇOS SEINFRA'!$A:$D,2,0)))),IF(C126="INSUMO",IF(D126="SINAPI",VLOOKUP(E126,'[1]INSUMOS SINAPI'!$A:$D,2,0),IF(D126="ORSE",VLOOKUP(E126,'[1]INSUMOS ORSE'!$A:$D,2,0),IF(D126="SEINFRA",VLOOKUP(E126,'[1]INSUMOS SEINFRA'!$A:$D,2,0),))))) -> TOMADA 2P+T 10A, 250V, CONJUNTO MONTADO PARA EMBUTIR 4" X 2" (PLACA + SUPORTE + MODULO) | G126: =IF(C126="SERVIÇO",IF(D126="SINAPI",VLOOKUP(E126,'[1]SERVIÇOS SINAPI'!$A:$D,3,0),IF(D126="ORSE",VLOOKUP(E126,'[1]SERVIÇOS ORSE'!$A:$D,3,0),IF(D126="SEINFRA",VLOOKUP(E126,'[1]SERVIÇOS SEINFRA'!$A:$D,3,0)))),IF(C126="INSUMO",IF(D126="SINAPI",VLOOKUP(E126,'[1]INSUMOS SINAPI'!$A:$D,3,0),IF(D126="ORSE",VLOOKUP(E126,'[1]INSUMOS ORSE'!$A:$D,3,0),IF(D126="SEINFRA",VLOOKUP(E126,'[1]INSUMOS SEINFRA'!$A:$D,3,0),))))) -> UN | H126: ='[1]Memória de Cálculo'!$L$771*$G$7 -> 90 | I126: =IF(C126="SERVIÇO",IF(D126="SINAPI",VLOOKUP(E126,'[1]SERVIÇOS SINAPI'!$A:$D,4,0),IF(D126="ORSE",VLOOKUP(E126,'[1]SERVIÇOS ORSE'!$A:$D,4,0),IF(D126="SEINFRA",VLOOKUP(E126,'[1]SERVIÇOS SEINFRA'!$A:$D,4,0)))),IF(C126="INSUMO",IF(D126="SINAPI",VLOOKUP(E126,'[1]INSUMOS SINAPI'!$A:$D,4,0),IF(D126="ORSE",VLOOKUP(E126,'[1]INSUMOS ORSE'!$A:$D,4,0),IF(D126="SEINFRA",VLOOKUP(E126,'[1]INSUMOS SEINFRA'!$A:$D,4,0),))))) -> 10.9 | J126: 12.15 | K126: 1093.5 | L126: 4
B127: 2.5.20 | C127: INSUMO | D127: ORSE | E127: 7406 | F127: =IF(C127="SERVIÇO",IF(D127="SINAPI",VLOOKUP(E127,'[1]SERVIÇOS SINAPI'!$A:$D,2,0),IF(D127="ORSE",VLOOKUP(E127,'[1]SERVIÇOS ORSE'!$A:$D,2,0),IF(D127="SEINFRA",VLOOKUP(E127,'[1]SERVIÇOS SEINFRA'!$A:$D,2,0)))),IF(C127="INSUMO",IF(D127="SINAPI",VLOOKUP(E127,'[1]INSUMOS SINAPI'!$A:$D,2,0),IF(D127="ORSE",VLOOKUP(E127,'[1]INSUMOS ORSE'!$A:$D,2,0),IF(D127="SEINFRA",VLOOKUP(E127,'[1]INSUMOS SEINFRA'!$A:$D,2,0),))))) -> CABO DE COBRE NÚ 10 MM2 - CLASSE 2A | G127: =IF(C127="SERVIÇO",IF(D127="SINAPI",VLOOKUP(E127,'[1]SERVIÇOS SINAPI'!$A:$D,3,0),IF(D127="ORSE",VLOOKUP(E127,'[1]SERVIÇOS ORSE'!$A:$D,3,0),IF(D127="SEINFRA",VLOOKUP(E127,'[1]SERVIÇOS SEINFRA'!$A:$D,3,0)))),IF(C127="INSUMO",IF(D127="SINAPI",VLOOKUP(E127,'[1]INSUMOS SINAPI'!$A:$D,3,0),IF(D127="ORSE",VLOOKUP(E127,'[1]INSUMOS ORSE'!$A:$D,3,0),IF(D127="SEINFRA",VLOOKUP(E127,'[1]INSUMOS SEINFRA'!$A:$D,3,0),))))) -> KG | H127: ='[1]Memória de Cálculo'!$L$776*$G$7 -> 90 | I127: =IF(C127="SERVIÇO",IF(D127="SINAPI",VLOOKUP(E127,'[1]SERVIÇOS SINAPI'!$A:$D,4,0),IF(D127="ORSE",VLOOKUP(E127,'[1]SERVIÇOS ORSE'!$A:$D,4,0),IF(D127="SEINFRA",VLOOKUP(E127,'[1]SERVIÇOS SEINFRA'!$A:$D,4,0)))),IF(C127="INSUMO",IF(D127="SINAPI",VLOOKUP(E127,'[1]INSUMOS SINAPI'!$A:$D,4,0),IF(D127="ORSE",VLOOKUP(E127,'[1]INSUMOS ORSE'!$A:$D,4,0),IF(D127="SEINFRA",VLOOKUP(E127,'[1]INSUMOS SEINFRA'!$A:$D,4,0),))))) -> 107.33 | J127: 119.6 | K127: 10764 | L127: 5
B128: 2.5.21 | C128: INSUMO | D128: SINAPI | E128: 39128 | F128: =IF(C128="SERVIÇO",IF(D128="SINAPI",VLOOKUP(E128,'[1]SERVIÇOS SINAPI'!$A:$D,2,0),IF(D128="ORSE",VLOOKUP(E128,'[1]SERVIÇOS ORSE'!$A:$D,2,0),IF(D128="SEINFRA",VLOOKUP(E128,'[1]SERVIÇOS SEINFRA'!$A:$D,2,0)))),IF(C128="INSUMO",IF(D128="SINAPI",VLOOKUP(E128,'[1]INSUMOS SINAPI'!$A:$D,2,0),IF(D128="ORSE",VLOOKUP(E128,'[1]INSUMOS ORSE'!$A:$D,2,0),IF(D128="SEINFRA",VLOOKUP(E128,'[1]INSUMOS SEINFRA'!$A:$D,2,0),))))) -> ABRACADEIRA EM ACO PARA AMARRACAO DE ELETRODUTOS, TIPO D, COM 3/4" E CUNHA DE FIXACAO | G128: =IF(C128="SERVIÇO",IF(D128="SINAPI",VLOOKUP(E128,'[1]SERVIÇOS SINAPI'!$A:$D,3,0),IF(D128="ORSE",VLOOKUP(E128,'[1]SERVIÇOS ORSE'!$A:$D,3,0),IF(D128="SEINFRA",VLOOKUP(E128,'[1]SERVIÇOS SEINFRA'!$A:$D,3,0)))),IF(C128="INSUMO",IF(D128="SINAPI",VLOOKUP(E128,'[1]INSUMOS SINAPI'!$A:$D,3,0),IF(D128="ORSE",VLOOKUP(E128,'[1]INSUMOS ORSE'!$A:$D,3,0),IF(D128="SEINFRA",VLOOKUP(E128,'[1]INSUMOS SEINFRA'!$A:$D,3,0),))))) -> UN | H128: ='[1]Memória de Cálculo'!$L$781*$G$7 -> 288 | I128: =IF(C128="SERVIÇO",IF(D128="SINAPI",VLOOKUP(E128,'[1]SERVIÇOS SINAPI'!$A:$D,4,0),IF(D128="ORSE",VLOOKUP(E128,'[1]SERVIÇOS ORSE'!$A:$D,4,0),IF(D128="SEINFRA",VLOOKUP(E128,'[1]SERVIÇOS SEINFRA'!$A:$D,4,0)))),IF(C128="INSUMO",IF(D128="SINAPI",VLOOKUP(E128,'[1]INSUMOS SINAPI'!$A:$D,4,0),IF(D128="ORSE",VLOOKUP(E128,'[1]INSUMOS ORSE'!$A:$D,4,0),IF(D128="SEINFRA",VLOOKUP(E128,'[1]INSUMOS SEINFRA'!$A:$D,4,0),))))) -> 1.41 | J128: 1.57 | K128: 452.16 | L128: 5
B129: 2.5.22 | C129: INSUMO | D129: SINAPI | E129: 20111 | F129: =IF(C129="SERVIÇO",IF(D129="SINAPI",VLOOKUP(E129,'[1]SERVIÇOS SINAPI'!$A:$D,2,0),IF(D129="ORSE",VLOOKUP(E129,'[1]SERVIÇOS ORSE'!$A:$D,2,0),IF(D129="SEINFRA",VLOOKUP(E129,'[1]SERVIÇOS SEINFRA'!$A:$D,2,0)))),IF(C129="INSUMO",IF(D129="SINAPI",VLOOKUP(E129,'[1]INSUMOS SINAPI'!$A:$D,2,0),IF(D129="ORSE",VLOOKUP(E129,'[1]INSUMOS ORSE'!$A:$D,2,0),IF(D129="SEINFRA",VLOOKUP(E129,'[1]INSUMOS SEINFRA'!$A:$D,2,0),))))) -> FITA ISOLANTE ADESIVA ANTICHAMA, USO ATE 750 V, EM ROLO DE 19 MM X 20 M | G129: =IF(C129="SERVIÇO",IF(D129="SINAPI",VLOOKUP(E129,'[1]SERVIÇOS SINAPI'!$A:$D,3,0),IF(D129="ORSE",VLOOKUP(E129,'[1]SERVIÇOS ORSE'!$A:$D,3,0),IF(D129="SEINFRA",VLOOKUP(E129,'[1]SERVIÇOS SEINFRA'!$A:$D,3,0)))),IF(C129="INSUMO",IF(D129="SINAPI",VLOOKUP(E129,'[1]INSUMOS SINAPI'!$A:$D,3,0),IF(D129="ORSE",VLOOKUP(E129,'[1]INSUMOS ORSE'!$A:$D,3,0),IF(D129="SEINFRA",VLOOKUP(E129,'[1]INSUMOS SEINFRA'!$A:$D,3,0),))))) -> UN | H129: ='[1]Memória de Cálculo'!$L$785*$G$7 -> 24 | I129: =IF(C129="SERVIÇO",IF(D129="SINAPI",VLOOKUP(E129,'[1]SERVIÇOS SINAPI'!$A:$D,4,0),IF(D129="ORSE",VLOOKUP(E129,'[1]SERVIÇOS ORSE'!$A:$D,4,0),IF(D129="SEINFRA",VLOOKUP(E129,'[1]SERVIÇOS SEINFRA'!$A:$D,4,0)))),IF(C129="INSUMO",IF(D129="SINAPI",VLOOKUP(E129,'[1]INSUMOS SINAPI'!$A:$D,4,0),IF(D129="ORSE",VLOOKUP(E129,'[1]INSUMOS ORSE'!$A:$D,4,0),IF(D129="SEINFRA",VLOOKUP(E129,'[1]INSUMOS SEINFRA'!$A:$D,4,0),))))) -> 13.5 | J129: 15.04 | K129: 360.96 | L129: 2
B130: 2.5.23 | C130: INSUMO | D130: SINAPI | E130: 404 | F130: =IF(C130="SERVIÇO",IF(D130="SINAPI",VLOOKUP(E130,'[1]SERVIÇOS SINAPI'!$A:$D,2,0),IF(D130="ORSE",VLOOKUP(E130,'[1]SERVIÇOS ORSE'!$A:$D,2,0),IF(D130="SEINFRA",VLOOKUP(E130,'[1]SERVIÇOS SEINFRA'!$A:$D,2,0)))),IF(C130="INSUMO",IF(D130="SINAPI",VLOOKUP(E130,'[1]INSUMOS SINAPI'!$A:$D,2,0),IF(D130="ORSE",VLOOKUP(E130,'[1]INSUMOS ORSE'!$A:$D,2,0),IF(D130="SEINFRA",VLOOKUP(E130,'[1]INSUMOS SEINFRA'!$A:$D,2,0),))))) -> FITA ISOLANTE DE BORRACHA AUTOFUSAO, USO ATE 69 KV (ALTA TENSAO) | G130: =IF(C130="SERVIÇO",IF(D130="SINAPI",VLOOKUP(E130,'[1]SERVIÇOS SINAPI'!$A:$D,3,0),IF(D130="ORSE",VLOOKUP(E130,'[1]SERVIÇOS ORSE'!$A:$D,3,0),IF(D130="SEINFRA",VLOOKUP(E130,'[1]SERVIÇOS SEINFRA'!$A:$D,3,0)))),IF(C130="INSUMO",IF(D130="SINAPI",VLOOKUP(E130,'[1]INSUMOS SINAPI'!$A:$D,3,0),IF(D130="ORSE",VLOOKUP(E130,'[1]INSUMOS ORSE'!$A:$D,3,0),IF(D130="SEINFRA",VLOOKUP(E130,'[1]INSUMOS SEINFRA'!$A:$D,3,0),))))) -> M | H130: ='[1]Memória de Cálculo'!$L$789*$G$7 -> 18 | I130: =IF(C130="SERVIÇO",IF(D130="SINAPI",VLOOKUP(E130,'[1]SERVIÇOS SINAPI'!$A:$D,4,0),IF(D130="ORSE",VLOOKUP(E130,'[1]SERVIÇOS ORSE'!$A:$D,4,0),IF(D130="SEINFRA",VLOOKUP(E130,'[1]SERVIÇOS SEINFRA'!$A:$D,4,0)))),IF(C130="INSUMO",IF(D130="SINAPI",VLOOKUP(E130,'[1]INSUMOS SINAPI'!$A:$D,4,0),IF(D130="ORSE",VLOOKUP(E130,'[1]INSUMOS ORSE'!$A:$D,4,0),IF(D130="SEINFRA",VLOOKUP(E130,'[1]INSUMOS SEINFRA'!$A:$D,4,0),))))) -> 1.84 | J130: 2.05 | K130: 36.9 | L130: 2
B131: 2.5.24 | C131: INSUMO | D131: SINAPI | E131: 39806 | F131: =IF(C131="SERVIÇO",IF(D131="SINAPI",VLOOKUP(E131,'[1]SERVIÇOS SINAPI'!$A:$D,2,0),IF(D131="ORSE",VLOOKUP(E131,'[1]SERVIÇOS ORSE'!$A:$D,2,0),IF(D131="SEINFRA",VLOOKUP(E131,'[1]SERVIÇOS SEINFRA'!$A:$D,2,0)))),IF(C131="INSUMO",IF(D131="SINAPI",VLOOKUP(E131,'[1]INSUMOS SINAPI'!$A:$D,2,0),IF(D131="ORSE",VLOOKUP(E131,'[1]INSUMOS ORSE'!$A:$D,2,0),IF(D131="SEINFRA",VLOOKUP(E131,'[1]INSUMOS SEINFRA'!$A:$D,2,0),))))) -> QUADRO DE DISTRIBUICAO, EM PVC, DE EMBUTIR, COM BARRAMENTO TERRA / NEUTRO, PARA 18 DISJUNTORES NEMA OU 24 DISJUNTORES DIN | G131: =IF(C131="SERVIÇO",IF(D131="SINAPI",VLOOKUP(E131,'[1]SERVIÇOS SINAPI'!$A:$D,3,0),IF(D131="ORSE",VLOOKUP(E131,'[1]SERVIÇOS ORSE'!$A:$D,3,0),IF(D131="SEINFRA",VLOOKUP(E131,'[1]SERVIÇOS SEINFRA'!$A:$D,3,0)))),IF(C131="INSUMO",IF(D131="SINAPI",VLOOKUP(E131,'[1]INSUMOS SINAPI'!$A:$D,3,0),IF(D131="ORSE",VLOOKUP(E131,'[1]INSUMOS ORSE'!$A:$D,3,0),IF(D131="SEINFRA",VLOOKUP(E131,'[1]INSUMOS SEINFRA'!$A:$D,3,0),))))) -> UN | H131: ='[1]Memória de Cálculo'!$L$793*$G$7 -> 6 | I131: =IF(C131="SERVIÇO",IF(D131="SINAPI",VLOOKUP(E131,'[1]SERVIÇOS SINAPI'!$A:$D,4,0),IF(D131="ORSE",VLOOKUP(E131,'[1]SERVIÇOS ORSE'!$A:$D,4,0),IF(D131="SEINFRA",VLOOKUP(E131,'[1]SERVIÇOS SEINFRA'!$A:$D,4,0)))),IF(C131="INSUMO",IF(D131="SINAPI",VLOOKUP(E131,'[1]INSUMOS SINAPI'!$A:$D,4,0),IF(D131="ORSE",VLOOKUP(E131,'[1]INSUMOS ORSE'!$A:$D,4,0),IF(D131="SEINFRA",VLOOKUP(E131,'[1]INSUMOS SEINFRA'!$A:$D,4,0),))))) -> 213.46 | J131: 237.86 | K131: 1427.16 | L131: 4
B132: 2.5.25 | C132: INSUMO | D132: SINAPI | E132: 34653 | F132: =IF(C132="SERVIÇO",IF(D132="SINAPI",VLOOKUP(E132,'[1]SERVIÇOS SINAPI'!$A:$D,2,0),IF(D132="ORSE",VLOOKUP(E132,'[1]SERVIÇOS ORSE'!$A:$D,2,0),IF(D132="SEINFRA",VLOOKUP(E132,'[1]SERVIÇOS SEINFRA'!$A:$D,2,0)))),IF(C132="INSUMO",IF(D132="SINAPI",VLOOKUP(E132,'[1]INSUMOS SINAPI'!$A:$D,2,0),IF(D132="ORSE",VLOOKUP(E132,'[1]INSUMOS ORSE'!$A:$D,2,0),IF(D132="SEINFRA",VLOOKUP(E132,'[1]INSUMOS SEINFRA'!$A:$D,2,0),))))) -> DISJUNTOR TIPO DIN/IEC, MONOPOLAR DE 6 ATE 32A | G132: =IF(C132="SERVIÇO",IF(D132="SINAPI",VLOOKUP(E132,'[1]SERVIÇOS SINAPI'!$A:$D,3,0),IF(D132="ORSE",VLOOKUP(E132,'[1]SERVIÇOS ORSE'!$A:$D,3,0),IF(D132="SEINFRA",VLOOKUP(E132,'[1]SERVIÇOS SEINFRA'!$A:$D,3,0)))),IF(C132="INSUMO",IF(D132="SINAPI",VLOOKUP(E132,'[1]INSUMOS SINAPI'!$A:$D,3,0),IF(D132="ORSE",VLOOKUP(E132,'[1]INSUMOS ORSE'!$A:$D,3,0),IF(D132="SEINFRA",VLOOKUP(E132,'[1]INSUMOS SEINFRA'!$A:$D,3,0),))))) -> UN | H132: ='[1]Memória de Cálculo'!$L$797*$G$7 -> 48 | I132: =IF(C132="SERVIÇO",IF(D132="SINAPI",VLOOKUP(E132,'[1]SERVIÇOS SINAPI'!$A:$D,4,0),IF(D132="ORSE",VLOOKUP(E132,'[1]SERVIÇOS ORSE'!$A:$D,4,0),IF(D132="SEINFRA",VLOOKUP(E132,'[1]SERVIÇOS SEINFRA'!$A:$D,4,0)))),IF(C132="INSUMO",IF(D132="SINAPI",VLOOKUP(E132,'[1]INSUMOS SINAPI'!$A:$D,4,0),IF(D132="ORSE",VLOOKUP(E132,'[1]INSUMOS ORSE'!$A:$D,4,0),IF(D132="SEINFRA",VLOOKUP(E132,'[1]INSUMOS SEINFRA'!$A:$D,4,0),))))) -> 9.96 | J132: 11.1 | K132: 532.8 | L132: 4
B133: 2.5.26 | C133: INSUMO | D133: SINAPI | E133: 34688 | F133: =IF(C133="SERVIÇO",IF(D133="SINAPI",VLOOKUP(E133,'[1]SERVIÇOS SINAPI'!$A:$D,2,0),IF(D133="ORSE",VLOOKUP(E133,'[1]SERVIÇOS ORSE'!$A:$D,2,0),IF(D133="SEINFRA",VLOOKUP(E133,'[1]SERVIÇOS SEINFRA'!$A:$D,2,0)))),IF(C133="INSUMO",IF(D133="SINAPI",VLOOKUP(E133,'[1]INSUMOS SINAPI'!$A:$D,2,0),IF(D133="ORSE",VLOOKUP(E133,'[1]INSUMOS ORSE'!$A:$D,2,0),IF(D133="SEINFRA",VLOOKUP(E133,'[1]INSUMOS SEINFRA'!$A:$D,2,0),))))) -> DISJUNTOR TIPO DIN/IEC, MONOPOLAR DE 63 A | G133: =IF(C133="SERVIÇO",IF(D133="SINAPI",VLOOKUP(E133,'[1]SERVIÇOS SINAPI'!$A:$D,3,0),IF(D133="ORSE",VLOOKUP(E133,'[1]SERVIÇOS ORSE'!$A:$D,3,0),IF(D133="SEINFRA",VLOOKUP(E133,'[1]SERVIÇOS SEINFRA'!$A:$D,3,0)))),IF(C133="INSUMO",IF(D133="SINAPI",VLOOKUP(E133,'[1]INSUMOS SINAPI'!$A:$D,3,0),IF(D133="ORSE",VLOOKUP(E133,'[1]INSUMOS ORSE'!$A:$D,3,0),IF(D133="SEINFRA",VLOOKUP(E133,'[1]INSUMOS SEINFRA'!$A:$D,3,0),))))) -> UN | H133: ='[1]Memória de Cálculo'!$L$801*$G$7 -> 6 | I133: =IF(C133="SERVIÇO",IF(D133="SINAPI",VLOOKUP(E133,'[1]SERVIÇOS SINAPI'!$A:$D,4,0),IF(D133="ORSE",VLOOKUP(E133,'[1]SERVIÇOS ORSE'!$A:$D,4,0),IF(D133="SEINFRA",VLOOKUP(E133,'[1]SERVIÇOS SEINFRA'!$A:$D,4,0)))),IF(C133="INSUMO",IF(D133="SINAPI",VLOOKUP(E133,'[1]INSUMOS SINAPI'!$A:$D,4,0),IF(D133="ORSE",VLOOKUP(E133,'[1]INSUMOS ORSE'!$A:$D,4,0),IF(D133="SEINFRA",VLOOKUP(E133,'[1]INSUMOS SEINFRA'!$A:$D,4,0),))))) -> 18.05 | J133: 20.11 | K133: 120.66 | L133: 4
B134: 2.5.27 | C134: INSUMO | D134: SINAPI | E134: 39447 | F134: =IF(C134="SERVIÇO",IF(D134="SINAPI",VLOOKUP(E134,'[1]SERVIÇOS SINAPI'!$A:$D,2,0),IF(D134="ORSE",VLOOKUP(E134,'[1]SERVIÇOS ORSE'!$A:$D,2,0),IF(D134="SEINFRA",VLOOKUP(E134,'[1]SERVIÇOS SEINFRA'!$A:$D,2,0)))),IF(C134="INSUMO",IF(D134="SINAPI",VLOOKUP(E134,'[1]INSUMOS SINAPI'!$A:$D,2,0),IF(D134="ORSE",VLOOKUP(E134,'[1]INSUMOS ORSE'!$A:$D,2,0),IF(D134="SEINFRA",VLOOKUP(E134,'[1]INSUMOS SEINFRA'!$A:$D,2,0),))))) -> DISPOSITIVO DR, 2 POLOS, SENSIBILIDADE DE 30 MA, CORRENTE DE 63 A, TIPO AC | G134: =IF(C134="SERVIÇO",IF(D134="SINAPI",VLOOKUP(E134,'[1]SERVIÇOS SINAPI'!$A:$D,3,0),IF(D134="ORSE",VLOOKUP(E134,'[1]SERVIÇOS ORSE'!$A:$D,3,0),IF(D134="SEINFRA",VLOOKUP(E134,'[1]SERVIÇOS SEINFRA'!$A:$D,3,0)))),IF(C134="INSUMO",IF(D134="SINAPI",VLOOKUP(E134,'[1]INSUMOS SINAPI'!$A:$D,3,0),IF(D134="ORSE",VLOOKUP(E134,'[1]INSUMOS ORSE'!$A:$D,3,0),IF(D134="SEINFRA",VLOOKUP(E134,'[1]INSUMOS SEINFRA'!$A:$D,3,0),))))) -> UN | H134: ='[1]Memória de Cálculo'!$L$805*$G$7 -> 6 | I134: =IF(C134="SERVIÇO",IF(D134="SINAPI",VLOOKUP(E134,'[1]SERVIÇOS SINAPI'!$A:$D,4,0),IF(D134="ORSE",VLOOKUP(E134,'[1]SERVIÇOS ORSE'!$A:$D,4,0),IF(D134="SEINFRA",VLOOKUP(E134,'[1]SERVIÇOS SEINFRA'!$A:$D,4,0)))),IF(C134="INSUMO",IF(D134="SINAPI",VLOOKUP(E134,'[1]INSUMOS SINAPI'!$A:$D,4,0),IF(D134="ORSE",VLOOKUP(E134,'[1]INSUMOS ORSE'!$A:$D,4,0),IF(D134="SEINFRA",VLOOKUP(E134,'[1]INSUMOS SEINFRA'!$A:$D,4,0),))))) -> 166.92 | J134: 186 | K134: 1116 | L134: 4
B135: 2.5.28 | C135: INSUMO | D135: SINAPI | E135: 868 | F135: =IF(C135="SERVIÇO",IF(D135="SINAPI",VLOOKUP(E135,'[1]SERVIÇOS SINAPI'!$A:$D,2,0),IF(D135="ORSE",VLOOKUP(E135,'[1]SERVIÇOS ORSE'!$A:$D,2,0),IF(D135="SEINFRA",VLOOKUP(E135,'[1]SERVIÇOS SEINFRA'!$A:$D,2,0)))),IF(C135="INSUMO",IF(D135="SINAPI",VLOOKUP(E135,'[1]INSUMOS SINAPI'!$A:$D,2,0),IF(D135="ORSE",VLOOKUP(E135,'[1]INSUMOS ORSE'!$A:$D,2,0),IF(D135="SEINFRA",VLOOKUP(E135,'[1]INSUMOS SEINFRA'!$A:$D,2,0),))))) -> CABO DE COBRE NU 25 MM2 MEIO-DURO | G135: =IF(C135="SERVIÇO",IF(D135="SINAPI",VLOOKUP(E135,'[1]SERVIÇOS SINAPI'!$A:$D,3,0),IF(D135="ORSE",VLOOKUP(E135,'[1]SERVIÇOS ORSE'!$A:$D,3,0),IF(D135="SEINFRA",VLOOKUP(E135,'[1]SERVIÇOS SEINFRA'!$A:$D,3,0)))),IF(C135="INSUMO",IF(D135="SINAPI",VLOOKUP(E135,'[1]INSUMOS SINAPI'!$A:$D,3,0),IF(D135="ORSE",VLOOKUP(E135,'[1]INSUMOS ORSE'!$A:$D,3,0),IF(D135="SEINFRA",VLOOKUP(E135,'[1]INSUMOS SEINFRA'!$A:$D,3,0),))))) -> M | H135: ='[1]Memória de Cálculo'!$L$809*$G$7 -> 54 | I135: =IF(C135="SERVIÇO",IF(D135="SINAPI",VLOOKUP(E135,'[1]SERVIÇOS SINAPI'!$A:$D,4,0),IF(D135="ORSE",VLOOKUP(E135,'[1]SERVIÇOS ORSE'!$A:$D,4,0),IF(D135="SEINFRA",VLOOKUP(E135,'[1]SERVIÇOS SEINFRA'!$A:$D,4,0)))),IF(C135="INSUMO",IF(D135="SINAPI",VLOOKUP(E135,'[1]INSUMOS SINAPI'!$A:$D,4,0),IF(D135="ORSE",VLOOKUP(E135,'[1]INSUMOS ORSE'!$A:$D,4,0),IF(D135="SEINFRA",VLOOKUP(E135,'[1]INSUMOS SEINFRA'!$A:$D,4,0),))))) -> 28.17 | J135: 31.39 | K135: 1695.06 | L135: 5
B136: 2.5.29 | C136: INSUMO | D136: SINAPI | E136: 38055 | F136: =IF(C136="SERVIÇO",IF(D136="SINAPI",VLOOKUP(E136,'[1]SERVIÇOS SINAPI'!$A:$D,2,0),IF(D136="ORSE",VLOOKUP(E136,'[1]SERVIÇOS ORSE'!$A:$D,2,0),IF(D136="SEINFRA",VLOOKUP(E136,'[1]SERVIÇOS SEINFRA'!$A:$D,2,0)))),IF(C136="INSUMO",IF(D136="SINAPI",VLOOKUP(E136,'[1]INSUMOS SINAPI'!$A:$D,2,0),IF(D136="ORSE",VLOOKUP(E136,'[1]INSUMOS ORSE'!$A:$D,2,0),IF(D136="SEINFRA",VLOOKUP(E136,'[1]INSUMOS SEINFRA'!$A:$D,2,0),))))) -> GRAMPO METALICO TIPO OLHAL PARA HASTE DE ATERRAMENTO DE 1/2'', CONDUTOR DE *10* A 50 MM2 | G136: =IF(C136="SERVIÇO",IF(D136="SINAPI",VLOOKUP(E136,'[1]SERVIÇOS SINAPI'!$A:$D,3,0),IF(D136="ORSE",VLOOKUP(E136,'[1]SERVIÇOS ORSE'!$A:$D,3,0),IF(D136="SEINFRA",VLOOKUP(E136,'[1]SERVIÇOS SEINFRA'!$A:$D,3,0)))),IF(C136="INSUMO",IF(D136="SINAPI",VLOOKUP(E136,'[1]INSUMOS SINAPI'!$A:$D,3,0),IF(D136="ORSE",VLOOKUP(E136,'[1]INSUMOS ORSE'!$A:$D,3,0),IF(D136="SEINFRA",VLOOKUP(E136,'[1]INSUMOS SEINFRA'!$A:$D,3,0),))))) -> UN | H136: ='[1]Memória de Cálculo'!$L$813*$G$7 -> 6 | I136: =IF(C136="SERVIÇO",IF(D136="SINAPI",VLOOKUP(E136,'[1]SERVIÇOS SINAPI'!$A:$D,4,0),IF(D136="ORSE",VLOOKUP(E136,'[1]SERVIÇOS ORSE'!$A:$D,4,0),IF(D136="SEINFRA",VLOOKUP(E136,'[1]SERVIÇOS SEINFRA'!$A:$D,4,0)))),IF(C136="INSUMO",IF(D136="SINAPI",VLOOKUP(E136,'[1]INSUMOS SINAPI'!$A:$D,4,0),IF(D136="ORSE",VLOOKUP(E136,'[1]INSUMOS ORSE'!$A:$D,4,0),IF(D136="SEINFRA",VLOOKUP(E136,'[1]INSUMOS SEINFRA'!$A:$D,4,0),))))) -> 5.62 | J136: 6.26 | K136: 37.56 | L136: 5
B137: 2.5.30 | C137: INSUMO | D137: SINAPI | E137: 3380 | F137: =IF(C137="SERVIÇO",IF(D137="SINAPI",VLOOKUP(E137,'[1]SERVIÇOS SINAPI'!$A:$D,2,0),IF(D137="ORSE",VLOOKUP(E137,'[1]SERVIÇOS ORSE'!$A:$D,2,0),IF(D137="SEINFRA",VLOOKUP(E137,'[1]SERVIÇOS SEINFRA'!$A:$D,2,0)))),IF(C137="INSUMO",IF(D137="SINAPI",VLOOKUP(E137,'[1]INSUMOS SINAPI'!$A:$D,2,0),IF(D137="ORSE",VLOOKUP(E137,'[1]INSUMOS ORSE'!$A:$D,2,0),IF(D137="SEINFRA",VLOOKUP(E137,'[1]INSUMOS SEINFRA'!$A:$D,2,0),))))) -> !EM PROCESSO DE DESATIVACAO! HASTE DE ATERRAMENTO EM ACO COM 3,00 M DE COMPRIMENTO E DN = 5/8", REVESTIDA COM BAIXA CAMADA DE COBRE, COM CONECTOR TIPO GRAMPO | G137: =IF(C137="SERVIÇO",IF(D137="SINAPI",VLOOKUP(E137,'[1]SERVIÇOS SINAPI'!$A:$D,3,0),IF(D137="ORSE",VLOOKUP(E137,'[1]SERVIÇOS ORSE'!$A:$D,3,0),IF(D137="SEINFRA",VLOOKUP(E137,'[1]SERVIÇOS SEINFRA'!$A:$D,3,0)))),IF(C137="INSUMO",IF(D137="SINAPI",VLOOKUP(E137,'[1]INSUMOS SINAPI'!$A:$D,3,0),IF(D137="ORSE",VLOOKUP(E137,'[1]INSUMOS ORSE'!$A:$D,3,0),IF(D137="SEINFRA",VLOOKUP(E137,'[1]INSUMOS SEINFRA'!$A:$D,3,0),))))) -> UN | H137: ='[1]Memória de Cálculo'!$L$817*$G$7 -> 18 | I137: =IF(C137="SERVIÇO",IF(D137="SINAPI",VLOOKUP(E137,'[1]SERVIÇOS SINAPI'!$A:$D,4,0),IF(D137="ORSE",VLOOKUP(E137,'[1]SERVIÇOS ORSE'!$A:$D,4,0),IF(D137="SEINFRA",VLOOKUP(E137,'[1]SERVIÇOS SEINFRA'!$A:$D,4,0)))),IF(C137="INSUMO",IF(D137="SINAPI",VLOOKUP(E137,'[1]INSUMOS SINAPI'!$A:$D,4,0),IF(D137="ORSE",VLOOKUP(E137,'[1]INSUMOS ORSE'!$A:$D,4,0),IF(D137="SEINFRA",VLOOKUP(E137,'[1]INSUMOS SEINFRA'!$A:$D,4,0),))))) -> 63 | J137: 70.2 | K137: 1263.6 | L137: 5
B138: 2.6 | C138: INSUMOS PARA INSTALAÇÃO ELÉTRICA DA ILUMINAÇÃO EXTERNA DA UNIDADE DE MELHORAMENTO GENETICO | K138: =SUM(K139:K151) -> 19279.65
B139: 2.6.1 | C139: INSUMO | D139: SINAPI | E139: 2689 | F139: =IF(C139="SERVIÇO",IF(D139="SINAPI",VLOOKUP(E139,'[1]SERVIÇOS SINAPI'!$A:$D,2,0),IF(D139="ORSE",VLOOKUP(E139,'[1]SERVIÇOS ORSE'!$A:$D,2,0),IF(D139="SEINFRA",VLOOKUP(E139,'[1]SERVIÇOS SEINFRA'!$A:$D,2,0)))),IF(C139="INSUMO",IF(D139="SINAPI",VLOOKUP(E139,'[1]INSUMOS SINAPI'!$A:$D,2,0),IF(D139="ORSE",VLOOKUP(E139,'[1]INSUMOS ORSE'!$A:$D,2,0),IF(D139="SEINFRA",VLOOKUP(E139,'[1]INSUMOS SEINFRA'!$A:$D,2,0),))))) -> ELETRODUTO PVC FLEXIVEL CORRUGADO, COR AMARELA, DE 20 MM | G139: =IF(C139="SERVIÇO",IF(D139="SINAPI",VLOOKUP(E139,'[1]SERVIÇOS SINAPI'!$A:$D,3,0),IF(D139="ORSE",VLOOKUP(E139,'[1]SERVIÇOS ORSE'!$A:$D,3,0),IF(D139="SEINFRA",VLOOKUP(E139,'[1]SERVIÇOS SEINFRA'!$A:$D,3,0)))),IF(C139="INSUMO",IF(D139="SINAPI",VLOOKUP(E139,'[1]INSUMOS SINAPI'!$A:$D,3,0),IF(D139="ORSE",VLOOKUP(E139,'[1]INSUMOS ORSE'!$A:$D,3,0),IF(D139="SEINFRA",VLOOKUP(E139,'[1]INSUMOS SEINFRA'!$A:$D,3,0),))))) -> M | H139: ='[1]Memória de Cálculo'!$L$823*$G$7 -> 72 | I139: =IF(C139="SERVIÇO",IF(D139="SINAPI",VLOOKUP(E139,'[1]SERVIÇOS SINAPI'!$A:$D,4,0),IF(D139="ORSE",VLOOKUP(E139,'[1]SERVIÇOS ORSE'!$A:$D,4,0),IF(D139="SEINFRA",VLOOKUP(E139,'[1]SERVIÇOS SEINFRA'!$A:$D,4,0)))),IF(C139="INSUMO",IF(D139="SINAPI",VLOOKUP(E139,'[1]INSUMOS SINAPI'!$A:$D,4,0),IF(D139="ORSE",VLOOKUP(E139,'[1]INSUMOS ORSE'!$A:$D,4,0),IF(D139="SEINFRA",VLOOKUP(E139,'[1]INSUMOS SEINFRA'!$A:$D,4,0),))))) -> 2.31 | J139: =IF(C139="SERVIÇO",I139*(1+$I$8),IF(C139="INSUMO",(I139*(1+$K$8)))) -> 2.57 | K139: =J139*H139 -> 185.04 | L139: 4
B140: 2.6.2 | C140: INSUMO | D140: SINAPI | E140: 1891 | F140: =IF(C140="SERVIÇO",IF(D140="SINAPI",VLOOKUP(E140,'[1]SERVIÇOS SINAPI'!$A:$D,2,0),IF(D140="ORSE",VLOOKUP(E140,'[1]SERVIÇOS ORSE'!$A:$D,2,0),IF(D140="SEINFRA",VLOOKUP(E140,'[1]SERVIÇOS SEINFRA'!$A:$D,2,0)))),IF(C140="INSUMO",IF(D140="SINAPI",VLOOKUP(E140,'[1]INSUMOS SINAPI'!$A:$D,2,0),IF(D140="ORSE",VLOOKUP(E140,'[1]INSUMOS ORSE'!$A:$D,2,0),IF(D140="SEINFRA",VLOOKUP(E140,'[1]INSUMOS SEINFRA'!$A:$D,2,0),))))) -> LUVA EM PVC RIGIDO ROSCAVEL, DE 3/4", PARA ELETRODUTO | G140: =IF(C140="SERVIÇO",IF(D140="SINAPI",VLOOKUP(E140,'[1]SERVIÇOS SINAPI'!$A:$D,3,0),IF(D140="ORSE",VLOOKUP(E140,'[1]SERVIÇOS ORSE'!$A:$D,3,0),IF(D140="SEINFRA",VLOOKUP(E140,'[1]SERVIÇOS SEINFRA'!$A:$D,3,0)))),IF(C140="INSUMO",IF(D140="SINAPI",VLOOKUP(E140,'[1]INSUMOS SINAPI'!$A:$D,3,0),IF(D140="ORSE",VLOOKUP(E140,'[1]INSUMOS ORSE'!$A:$D,3,0),IF(D140="SEINFRA",VLOOKUP(E140,'[1]INSUMOS SEINFRA'!$A:$D,3,0),))))) -> UN | H140: ='[1]Memória de Cálculo'!$L$827*$G$7 -> 6 | I140: =IF(C140="SERVIÇO",IF(D140="SINAPI",VLOOKUP(E140,'[1]SERVIÇOS SINAPI'!$A:$D,4,0),IF(D140="ORSE",VLOOKUP(E140,'[1]SERVIÇOS ORSE'!$A:$D,4,0),IF(D140="SEINFRA",VLOOKUP(E140,'[1]SERVIÇOS SEINFRA'!$A:$D,4,0)))),IF(C140="INSUMO",IF(D140="SINAPI",VLOOKUP(E140,'[1]INSUMOS SINAPI'!$A:$D,4,0),IF(D140="ORSE",VLOOKUP(E140,'[1]INSUMOS ORSE'!$A:$D,4,0),IF(D140="SEINFRA",VLOOKUP(E140,'[1]INSUMOS SEINFRA'!$A:$D,4,0),))))) -> 1.31 | J140: 1.46 | K140: 8.76 | L140: 4
B141: 2.6.3 | C141: INSUMO | D141: SINAPI | E141: 1879 | F141: =IF(C141="SERVIÇO",IF(D141="SINAPI",VLOOKUP(E141,'[1]SERVIÇOS SINAPI'!$A:$D,2,0),IF(D141="ORSE",VLOOKUP(E141,'[1]SERVIÇOS ORSE'!$A:$D,2,0),IF(D141="SEINFRA",VLOOKUP(E141,'[1]SERVIÇOS SEINFRA'!$A:$D,2,0)))),IF(C141="INSUMO",IF(D141="SINAPI",VLOOKUP(E141,'[1]INSUMOS SINAPI'!$A:$D,2,0),IF(D141="ORSE",VLOOKUP(E141,'[1]INSUMOS ORSE'!$A:$D,2,0),IF(D141="SEINFRA",VLOOKUP(E141,'[1]INSUMOS SEINFRA'!$A:$D,2,0),))))) -> CURVA 90 GRAUS, LONGA, DE PVC RIGIDO ROSCAVEL, DE 3/4", PARA ELETRODUTO | G141: =IF(C141="SERVIÇO",IF(D141="SINAPI",VLOOKUP(E141,'[1]SERVIÇOS SINAPI'!$A:$D,3,0),IF(D141="ORSE",VLOOKUP(E141,'[1]SERVIÇOS ORSE'!$A:$D,3,0),IF(D141="SEINFRA",VLOOKUP(E141,'[1]SERVIÇOS SEINFRA'!$A:$D,3,0)))),IF(C141="INSUMO",IF(D141="SINAPI",VLOOKUP(E141,'[1]INSUMOS SINAPI'!$A:$D,3,0),IF(D141="ORSE",VLOOKUP(E141,'[1]INSUMOS ORSE'!$A:$D,3,0),IF(D141="SEINFRA",VLOOKUP(E141,'[1]INSUMOS SEINFRA'!$A:$D,3,0),))))) -> UN | H141: ='[1]Memória de Cálculo'!$L$831*$G$7 -> 6 | I141: =IF(C141="SERVIÇO",IF(D141="SINAPI",VLOOKUP(E141,'[1]SERVIÇOS SINAPI'!$A:$D,4,0),IF(D141="ORSE",VLOOKUP(E141,'[1]SERVIÇOS ORSE'!$A:$D,4,0),IF(D141="SEINFRA",VLOOKUP(E141,'[1]SERVIÇOS SEINFRA'!$A:$D,4,0)))),IF(C141="INSUMO",IF(D141="SINAPI",VLOOKUP(E141,'[1]INSUMOS SINAPI'!$A:$D,4,0),IF(D141="ORSE",VLOOKUP(E141,'[1]INSUMOS ORSE'!$A:$D,4,0),IF(D141="SEINFRA",VLOOKUP(E141,'[1]INSUMOS SEINFRA'!$A:$D,4,0),))))) -> 3.03 | J141: 3.38 | K141: 20.28 | L141: 4
B142: 2.6.4 | C142: INSUMO | D142: SINAPI | E142: 39175 | F142: =IF(C142="SERVIÇO",IF(D142="SINAPI",VLOOKUP(E142,'[1]SERVIÇOS SINAPI'!$A:$D,2,0),IF(D142="ORSE",VLOOKUP(E142,'[1]SERVIÇOS ORSE'!$A:$D,2,0),IF(D142="SEINFRA",VLOOKUP(E142,'[1]SERVIÇOS SEINFRA'!$A:$D,2,0)))),IF(C142="INSUMO",IF(D142="SINAPI",VLOOKUP(E142,'[1]INSUMOS SINAPI'!$A:$D,2,0),IF(D142="ORSE",VLOOKUP(E142,'[1]INSUMOS ORSE'!$A:$D,2,0),IF(D142="SEINFRA",VLOOKUP(E142,'[1]INSUMOS SEINFRA'!$A:$D,2,0),))))) -> BUCHA EM ALUMINIO, COM ROSCA, DE 3/4", PARA ELETRODUTO | G142: =IF(C142="SERVIÇO",IF(D142="SINAPI",VLOOKUP(E142,'[1]SERVIÇOS SINAPI'!$A:$D,3,0),IF(D142="ORSE",VLOOKUP(E142,'[1]SERVIÇOS ORSE'!$A:$D,3,0),IF(D142="SEINFRA",VLOOKUP(E142,'[1]SERVIÇOS SEINFRA'!$A:$D,3,0)))),IF(C142="INSUMO",IF(D142="SINAPI",VLOOKUP(E142,'[1]INSUMOS SINAPI'!$A:$D,3,0),IF(D142="ORSE",VLOOKUP(E142,'[1]INSUMOS ORSE'!$A:$D,3,0),IF(D142="SEINFRA",VLOOKUP(E142,'[1]INSUMOS SEINFRA'!$A:$D,3,0),))))) -> UN | H142: ='[1]Memória de Cálculo'!$L$835*$G$7 -> 6 | I142: =IF(C142="SERVIÇO",IF(D142="SINAPI",VLOOKUP(E142,'[1]SERVIÇOS SINAPI'!$A:$D,4,0),IF(D142="ORSE",VLOOKUP(E142,'[1]SERVIÇOS ORSE'!$A:$D,4,0),IF(D142="SEINFRA",VLOOKUP(E142,'[1]SERVIÇOS SEINFRA'!$A:$D,4,0)))),IF(C142="INSUMO",IF(D142="SINAPI",VLOOKUP(E142,'[1]INSUMOS SINAPI'!$A:$D,4,0),IF(D142="ORSE",VLOOKUP(E142,'[1]INSUMOS ORSE'!$A:$D,4,0),IF(D142="SEINFRA",VLOOKUP(E142,'[1]INSUMOS SEINFRA'!$A:$D,4,0),))))) -> 0.84 | J142: 0.94 | K142: 5.64 | L142: 5
B143: 2.6.5 | C143: INSUMO | D143: SINAPI | E143: 39209 | F143: =IF(C143="SERVIÇO",IF(D143="SINAPI",VLOOKUP(E143,'[1]SERVIÇOS SINAPI'!$A:$D,2,0),IF(D143="ORSE",VLOOKUP(E143,'[1]SERVIÇOS ORSE'!$A:$D,2,0),IF(D143="SEINFRA",VLOOKUP(E143,'[1]SERVIÇOS SEINFRA'!$A:$D,2,0)))),IF(C143="INSUMO",IF(D143="SINAPI",VLOOKUP(E143,'[1]INSUMOS SINAPI'!$A:$D,2,0),IF(D143="ORSE",VLOOKUP(E143,'[1]INSUMOS ORSE'!$A:$D,2,0),IF(D143="SEINFRA",VLOOKUP(E143,'[1]INSUMOS SEINFRA'!$A:$D,2,0),))))) -> ARRUELA EM ALUMINIO, COM ROSCA, DE 3/4", PARA ELETRODUTO | G143: =IF(C143="SERVIÇO",IF(D143="SINAPI",VLOOKUP(E143,'[1]SERVIÇOS SINAPI'!$A:$D,3,0),IF(D143="ORSE",VLOOKUP(E143,'[1]SERVIÇOS ORSE'!$A:$D,3,0),IF(D143="SEINFRA",VLOOKUP(E143,'[1]SERVIÇOS SEINFRA'!$A:$D,3,0)))),IF(C143="INSUMO",IF(D143="SINAPI",VLOOKUP(E143,'[1]INSUMOS SINAPI'!$A:$D,3,0),IF(D143="ORSE",VLOOKUP(E143,'[1]INSUMOS ORSE'!$A:$D,3,0),IF(D143="SEINFRA",VLOOKUP(E143,'[1]INSUMOS SEINFRA'!$A:$D,3,0),))))) -> UN | H143: ='[1]Memória de Cálculo'!$L$838*$G$7 -> 6 | I143: =IF(C143="SERVIÇO",IF(D143="SINAPI",VLOOKUP(E143,'[1]SERVIÇOS SINAPI'!$A:$D,4,0),IF(D143="ORSE",VLOOKUP(E143,'[1]SERVIÇOS ORSE'!$A:$D,4,0),IF(D143="SEINFRA",VLOOKUP(E143,'[1]SERVIÇOS SEINFRA'!$A:$D,4,0)))),IF(C143="INSUMO",IF(D143="SINAPI",VLOOKUP(E143,'[1]INSUMOS SINAPI'!$A:$D,4,0),IF(D143="ORSE",VLOOKUP(E143,'[1]INSUMOS ORSE'!$A:$D,4,0),IF(D143="SEINFRA",VLOOKUP(E143,'[1]INSUMOS SEINFRA'!$A:$D,4,0),))))) -> 0.43 | J143: 0.48 | K143: 2.88 | L143: 5
B144: 2.6.6 | C144: INSUMO | D144: SINAPI | E144: 5051 | F144: =IF(C144="SERVIÇO",IF(D144="SINAPI",VLOOKUP(E144,'[1]SERVIÇOS SINAPI'!$A:$D,2,0),IF(D144="ORSE",VLOOKUP(E144,'[1]SERVIÇOS ORSE'!$A:$D,2,0),IF(D144="SEINFRA",VLOOKUP(E144,'[1]SERVIÇOS SEINFRA'!$A:$D,2,0)))),IF(C144="INSUMO",IF(D144="SINAPI",VLOOKUP(E144,'[1]INSUMOS SINAPI'!$A:$D,2,0),IF(D144="ORSE",VLOOKUP(E144,'[1]INSUMOS ORSE'!$A:$D,2,0),IF(D144="SEINFRA",VLOOKUP(E144,'[1]INSUMOS SEINFRA'!$A:$D,2,0),))))) -> POSTE CONICO CONTINUO EM ACO GALVANIZADO, CURVO, BRACO SIMPLES, ENGASTADO, H = 9 M, DIAMETRO INFERIOR = *135* MM | G144: =IF(C144="SERVIÇO",IF(D144="SINAPI",VLOOKUP(E144,'[1]SERVIÇOS SINAPI'!$A:$D,3,0),IF(D144="ORSE",VLOOKUP(E144,'[1]SERVIÇOS ORSE'!$A:$D,3,0),IF(D144="SEINFRA",VLOOKUP(E144,'[1]SERVIÇOS SEINFRA'!$A:$D,3,0)))),IF(C144="INSUMO",IF(D144="SINAPI",VLOOKUP(E144,'[1]INSUMOS SINAPI'!$A:$D,3,0),IF(D144="ORSE",VLOOKUP(E144,'[1]INSUMOS ORSE'!$A:$D,3,0),IF(D144="SEINFRA",VLOOKUP(E144,'[1]INSUMOS SEINFRA'!$A:$D,3,0),))))) -> UN | H144: ='[1]Memória de Cálculo'!$L$843*$G$7 -> 6 | I144: =IF(C144="SERVIÇO",IF(D144="SINAPI",VLOOKUP(E144,'[1]SERVIÇOS SINAPI'!$A:$D,4,0),IF(D144="ORSE",VLOOKUP(E144,'[1]SERVIÇOS ORSE'!$A:$D,4,0),IF(D144="SEINFRA",VLOOKUP(E144,'[1]SERVIÇOS SEINFRA'!$A:$D,4,0)))),IF(C144="INSUMO",IF(D144="SINAPI",VLOOKUP(E144,'[1]INSUMOS SINAPI'!$A:$D,4,0),IF(D144="ORSE",VLOOKUP(E144,'[1]INSUMOS ORSE'!$A:$D,4,0),IF(D144="SEINFRA",VLOOKUP(E144,'[1]INSUMOS SEINFRA'!$A:$D,4,0),))))) -> 2189.5 | J144: 2439.76 | K144: 14638.56 | L144: 5
B145: 2.6.7 | C145: INSUMO | D145: SINAPI | E145: 39746 | F145: =IF(C145="SERVIÇO",IF(D145="SINAPI",VLOOKUP(E145,'[1]SERVIÇOS SINAPI'!$A:$D,2,0),IF(D145="ORSE",VLOOKUP(E145,'[1]SERVIÇOS ORSE'!$A:$D,2,0),IF(D145="SEINFRA",VLOOKUP(E145,'[1]SERVIÇOS SEINFRA'!$A:$D,2,0)))),IF(C145="INSUMO",IF(D145="SINAPI",VLOOKUP(E145,'[1]INSUMOS SINAPI'!$A:$D,2,0),IF(D145="ORSE",VLOOKUP(E145,'[1]INSUMOS ORSE'!$A:$D,2,0),IF(D145="SEINFRA",VLOOKUP(E145,'[1]INSUMOS SEINFRA'!$A:$D,2,0),))))) -> CHUMBADOR DE ACO, 1" X 600 MM, PARA POSTES DE ACO COM BASE, INCLUSO PORCA E ARRUELA | G145: =IF(C145="SERVIÇO",IF(D145="SINAPI",VLOOKUP(E145,'[1]SERVIÇOS SINAPI'!$A:$D,3,0),IF(D145="ORSE",VLOOKUP(E145,'[1]SERVIÇOS ORSE'!$A:$D,3,0),IF(D145="SEINFRA",VLOOKUP(E145,'[1]SERVIÇOS SEINFRA'!$A:$D,3,0)))),IF(C145="INSUMO",IF(D145="SINAPI",VLOOKUP(E145,'[1]INSUMOS SINAPI'!$A:$D,3,0),IF(D145="ORSE",VLOOKUP(E145,'[1]INSUMOS ORSE'!$A:$D,3,0),IF(D145="SEINFRA",VLOOKUP(E145,'[1]INSUMOS SEINFRA'!$A:$D,3,0),))))) -> UN | H145: ='[1]Memória de Cálculo'!$L$847*$G$7 -> 6 | I145: =IF(C145="SERVIÇO",IF(D145="SINAPI",VLOOKUP(E145,'[1]SERVIÇOS SINAPI'!$A:$D,4,0),IF(D145="ORSE",VLOOKUP(E145,'[1]SERVIÇOS ORSE'!$A:$D,4,0),IF(D145="SEINFRA",VLOOKUP(E145,'[1]SERVIÇOS SEINFRA'!$A:$D,4,0)))),IF(C145="INSUMO",IF(D145="SINAPI",VLOOKUP(E145,'[1]INSUMOS SINAPI'!$A:$D,4,0),IF(D145="ORSE",VLOOKUP(E145,'[1]INSUMOS ORSE'!$A:$D,4,0),IF(D145="SEINFRA",VLOOKUP(E145,'[1]INSUMOS SEINFRA'!$A:$D,4,0),))))) -> 228.4 | J145: 254.51 | K145: 1527.06 | L145: 5
B146: 2.6.8 | C146: INSUMO | D146: ORSE | E146: 13284 | F146: =IF(C146="SERVIÇO",IF(D146="SINAPI",VLOOKUP(E146,'[1]SERVIÇOS SINAPI'!$A:$D,2,0),IF(D146="ORSE",VLOOKUP(E146,'[1]SERVIÇOS ORSE'!$A:$D,2,0),IF(D146="SEINFRA",VLOOKUP(E146,'[1]SERVIÇOS SEINFRA'!$A:$D,2,0)))),IF(C146="INSUMO",IF(D146="SINAPI",VLOOKUP(E146,'[1]INSUMOS SINAPI'!$A:$D,2,0),IF(D146="ORSE",VLOOKUP(E146,'[1]INSUMOS ORSE'!$A:$D,2,0),IF(D146="SEINFRA",VLOOKUP(E146,'[1]INSUMOS SEINFRA'!$A:$D,2,0),))))) -> LÂMPADA LED 100W, LUZ BRANCA 6500K, TLN190 - E40, 120º DE ÂNGULO DE ABERTURA, MARCA GLIGHT OU SIMILAR | G146: =IF(C146="SERVIÇO",IF(D146="SINAPI",VLOOKUP(E146,'[1]SERVIÇOS SINAPI'!$A:$D,3,0),IF(D146="ORSE",VLOOKUP(E146,'[1]SERVIÇOS ORSE'!$A:$D,3,0),IF(D146="SEINFRA",VLOOKUP(E146,'[1]SERVIÇOS SEINFRA'!$A:$D,3,0)))),IF(C146="INSUMO",IF(D146="SINAPI",VLOOKUP(E146,'[1]INSUMOS SINAPI'!$A:$D,3,0),IF(D146="ORSE",VLOOKUP(E146,'[1]INSUMOS ORSE'!$A:$D,3,0),IF(D146="SEINFRA",VLOOKUP(E146,'[1]INSUMOS SEINFRA'!$A:$D,3,0),))))) -> UN | H146: ='[1]Memória de Cálculo'!$L$851*$G$7 -> 6 | I146: =IF(C146="SERVIÇO",IF(D146="SINAPI",VLOOKUP(E146,'[1]SERVIÇOS SINAPI'!$A:$D,4,0),IF(D146="ORSE",VLOOKUP(E146,'[1]SERVIÇOS ORSE'!$A:$D,4,0),IF(D146="SEINFRA",VLOOKUP(E146,'[1]SERVIÇOS SEINFRA'!$A:$D,4,0)))),IF(C146="INSUMO",IF(D146="SINAPI",VLOOKUP(E146,'[1]INSUMOS SINAPI'!$A:$D,4,0),IF(D146="ORSE",VLOOKUP(E146,'[1]INSUMOS ORSE'!$A:$D,4,0),IF(D146="SEINFRA",VLOOKUP(E146,'[1]INSUMOS SEINFRA'!$A:$D,4,0),))))) -> 248.99 | J146: 277.45 | K146: 1664.7 | L146: 2
B147: 2.6.9 | C147: INSUMO | D147: SINAPI | E147: 3798 | F147: =IF(C147="SERVIÇO",IF(D147="SINAPI",VLOOKUP(E147,'[1]SERVIÇOS SINAPI'!$A:$D,2,0),IF(D147="ORSE",VLOOKUP(E147,'[1]SERVIÇOS ORSE'!$A:$D,2,0),IF(D147="SEINFRA",VLOOKUP(E147,'[1]SERVIÇOS SEINFRA'!$A:$D,2,0)))),IF(C147="INSUMO",IF(D147="SINAPI",VLOOKUP(E147,'[1]INSUMOS SINAPI'!$A:$D,2,0),IF(D147="ORSE",VLOOKUP(E147,'[1]INSUMOS ORSE'!$A:$D,2,0),IF(D147="SEINFRA",VLOOKUP(E147,'[1]INSUMOS SEINFRA'!$A:$D,2,0),))))) -> LUMINARIA ABERTA P/ ILUMINACAO PUBLICA, TIPO X-57 PETERCO OU EQUIV | G147: =IF(C147="SERVIÇO",IF(D147="SINAPI",VLOOKUP(E147,'[1]SERVIÇOS SINAPI'!$A:$D,3,0),IF(D147="ORSE",VLOOKUP(E147,'[1]SERVIÇOS ORSE'!$A:$D,3,0),IF(D147="SEINFRA",VLOOKUP(E147,'[1]SERVIÇOS SEINFRA'!$A:$D,3,0)))),IF(C147="INSUMO",IF(D147="SINAPI",VLOOKUP(E147,'[1]INSUMOS SINAPI'!$A:$D,3,0),IF(D147="ORSE",VLOOKUP(E147,'[1]INSUMOS ORSE'!$A:$D,3,0),IF(D147="SEINFRA",VLOOKUP(E147,'[1]INSUMOS SEINFRA'!$A:$D,3,0),))))) -> UN | H147: ='[1]Memória de Cálculo'!$L$855*$G$7 -> 6 | I147: =IF(C147="SERVIÇO",IF(D147="SINAPI",VLOOKUP(E147,'[1]SERVIÇOS SINAPI'!$A:$D,4,0),IF(D147="ORSE",VLOOKUP(E147,'[1]SERVIÇOS ORSE'!$A:$D,4,0),IF(D147="SEINFRA",VLOOKUP(E147,'[1]SERVIÇOS SEINFRA'!$A:$D,4,0)))),IF(C147="INSUMO",IF(D147="SINAPI",VLOOKUP(E147,'[1]INSUMOS SINAPI'!$A:$D,4,0),IF(D147="ORSE",VLOOKUP(E147,'[1]INSUMOS ORSE'!$A:$D,4,0),IF(D147="SEINFRA",VLOOKUP(E147,'[1]INSUMOS SEINFRA'!$A:$D,4,0),))))) -> 56.77 | J147: 63.26 | K147: 379.56 | L147: 5
B148: 2.6.10 | C148: INSUMO | D148: SINAPI | E148: 2510 | F148: =IF(C148="SERVIÇO",IF(D148="SINAPI",VLOOKUP(E148,'[1]SERVIÇOS SINAPI'!$A:$D,2,0),IF(D148="ORSE",VLOOKUP(E148,'[1]SERVIÇOS ORSE'!$A:$D,2,0),IF(D148="SEINFRA",VLOOKUP(E148,'[1]SERVIÇOS SEINFRA'!$A:$D,2,0)))),IF(C148="INSUMO",IF(D148="SINAPI",VLOOKUP(E148,'[1]INSUMOS SINAPI'!$A:$D,2,0),IF(D148="ORSE",VLOOKUP(E148,'[1]INSUMOS ORSE'!$A:$D,2,0),IF(D148="SEINFRA",VLOOKUP(E148,'[1]INSUMOS SEINFRA'!$A:$D,2,0),))))) -> RELE FOTOELETRICO INTERNO E EXTERNO BIVOLT 1000 W, DE CONECTOR, SEM BASE | G148: =IF(C148="SERVIÇO",IF(D148="SINAPI",VLOOKUP(E148,'[1]SERVIÇOS SINAPI'!$A:$D,3,0),IF(D148="ORSE",VLOOKUP(E148,'[1]SERVIÇOS ORSE'!$A:$D,3,0),IF(D148="SEINFRA",VLOOKUP(E148,'[1]SERVIÇOS SEINFRA'!$A:$D,3,0)))),IF(C148="INSUMO",IF(D148="SINAPI",VLOOKUP(E148,'[1]INSUMOS SINAPI'!$A:$D,3,0),IF(D148="ORSE",VLOOKUP(E148,'[1]INSUMOS ORSE'!$A:$D,3,0),IF(D148="SEINFRA",VLOOKUP(E148,'[1]INSUMOS SEINFRA'!$A:$D,3,0),))))) -> UN | H148: ='[1]Memória de Cálculo'!$L$859*$G$7 -> 6 | I148: =IF(C148="SERVIÇO",IF(D148="SINAPI",VLOOKUP(E148,'[1]SERVIÇOS SINAPI'!$A:$D,4,0),IF(D148="ORSE",VLOOKUP(E148,'[1]SERVIÇOS ORSE'!$A:$D,4,0),IF(D148="SEINFRA",VLOOKUP(E148,'[1]SERVIÇOS SEINFRA'!$A:$D,4,0)))),IF(C148="INSUMO",IF(D148="SINAPI",VLOOKUP(E148,'[1]INSUMOS SINAPI'!$A:$D,4,0),IF(D148="ORSE",VLOOKUP(E148,'[1]INSUMOS ORSE'!$A:$D,4,0),IF(D148="SEINFRA",VLOOKUP(E148,'[1]INSUMOS SEINFRA'!$A:$D,4,0),))))) -> 24.09 | J148: 26.84 | K148: 161.04 | L148: 5
B149: 2.6.11 | C149: INSUMO | D149: SINAPI | E149: 1021 | F149: =IF(C149="SERVIÇO",IF(D149="SINAPI",VLOOKUP(E149,'[1]SERVIÇOS SINAPI'!$A:$D,2,0),IF(D149="ORSE",VLOOKUP(E149,'[1]SERVIÇOS ORSE'!$A:$D,2,0),IF(D149="SEINFRA",VLOOKUP(E149,'[1]SERVIÇOS SEINFRA'!$A:$D,2,0)))),IF(C149="INSUMO",IF(D149="SINAPI",VLOOKUP(E149,'[1]INSUMOS SINAPI'!$A:$D,2,0),IF(D149="ORSE",VLOOKUP(E149,'[1]INSUMOS ORSE'!$A:$D,2,0),IF(D149="SEINFRA",VLOOKUP(E149,'[1]INSUMOS SEINFRA'!$A:$D,2,0),))))) -> CABO DE COBRE, FLEXIVEL, CLASSE 4 OU 5, ISOLACAO EM PVC/A, ANTICHAMA BWF-B, COBERTURA PVC-ST1, ANTICHAMA BWF-B, 1 CONDUTOR, 0,6/1 KV, SECAO NOMINAL 4 MM2 | G149: =IF(C149="SERVIÇO",IF(D149="SINAPI",VLOOKUP(E149,'[1]SERVIÇOS SINAPI'!$A:$D,3,0),IF(D149="ORSE",VLOOKUP(E149,'[1]SERVIÇOS ORSE'!$A:$D,3,0),IF(D149="SEINFRA",VLOOKUP(E149,'[1]SERVIÇOS SEINFRA'!$A:$D,3,0)))),IF(C149="INSUMO",IF(D149="SINAPI",VLOOKUP(E149,'[1]INSUMOS SINAPI'!$A:$D,3,0),IF(D149="ORSE",VLOOKUP(E149,'[1]INSUMOS ORSE'!$A:$D,3,0),IF(D149="SEINFRA",VLOOKUP(E149,'[1]INSUMOS SEINFRA'!$A:$D,3,0),))))) -> M | H149: ='[1]Memória de Cálculo'!$L$863*$G$7 -> 39 | I149: =IF(C149="SERVIÇO",IF(D149="SINAPI",VLOOKUP(E149,'[1]SERVIÇOS SINAPI'!$A:$D,4,0),IF(D149="ORSE",VLOOKUP(E149,'[1]SERVIÇOS ORSE'!$A:$D,4,0),IF(D149="SEINFRA",VLOOKUP(E149,'[1]SERVIÇOS SEINFRA'!$A:$D,4,0)))),IF(C149="INSUMO",IF(D149="SINAPI",VLOOKUP(E149,'[1]INSUMOS SINAPI'!$A:$D,4,0),IF(D149="ORSE",VLOOKUP(E149,'[1]INSUMOS ORSE'!$A:$D,4,0),IF(D149="SEINFRA",VLOOKUP(E149,'[1]INSUMOS SEINFRA'!$A:$D,4,0),))))) -> 5.23 | J149: 5.83 | K149: 227.37 | L149: 5
B150: 2.6.12 | C150: INSUMO | D150: SINAPI | E150: 38055 | F150: =IF(C150="SERVIÇO",IF(D150="SINAPI",VLOOKUP(E150,'[1]SERVIÇOS SINAPI'!$A:$D,2,0),IF(D150="ORSE",VLOOKUP(E150,'[1]SERVIÇOS ORSE'!$A:$D,2,0),IF(D150="SEINFRA",VLOOKUP(E150,'[1]SERVIÇOS SEINFRA'!$A:$D,2,0)))),IF(C150="INSUMO",IF(D150="SINAPI",VLOOKUP(E150,'[1]INSUMOS SINAPI'!$A:$D,2,0),IF(D150="ORSE",VLOOKUP(E150,'[1]INSUMOS ORSE'!$A:$D,2,0),IF(D150="SEINFRA",VLOOKUP(E150,'[1]INSUMOS SEINFRA'!$A:$D,2,0),))))) -> GRAMPO METALICO TIPO OLHAL PARA HASTE DE ATERRAMENTO DE 1/2'', CONDUTOR DE *10* A 50 MM2 | G150: =IF(C150="SERVIÇO",IF(D150="SINAPI",VLOOKUP(E150,'[1]SERVIÇOS SINAPI'!$A:$D,3,0),IF(D150="ORSE",VLOOKUP(E150,'[1]SERVIÇOS ORSE'!$A:$D,3,0),IF(D150="SEINFRA",VLOOKUP(E150,'[1]SERVIÇOS SEINFRA'!$A:$D,3,0)))),IF(C150="INSUMO",IF(D150="SINAPI",VLOOKUP(E150,'[1]INSUMOS SINAPI'!$A:$D,3,0),IF(D150="ORSE",VLOOKUP(E150,'[1]INSUMOS ORSE'!$A:$D,3,0),IF(D150="SEINFRA",VLOOKUP(E150,'[1]INSUMOS SEINFRA'!$A:$D,3,0),))))) -> UN | H150: ='[1]Memória de Cálculo'!$L$867*$G$7 -> 6 | I150: =IF(C150="SERVIÇO",IF(D150="SINAPI",VLOOKUP(E150,'[1]SERVIÇOS SINAPI'!$A:$D,4,0),IF(D150="ORSE",VLOOKUP(E150,'[1]SERVIÇOS ORSE'!$A:$D,4,0),IF(D150="SEINFRA",VLOOKUP(E150,'[1]SERVIÇOS SEINFRA'!$A:$D,4,0)))),IF(C150="INSUMO",IF(D150="SINAPI",VLOOKUP(E150,'[1]INSUMOS SINAPI'!$A:$D,4,0),IF(D150="ORSE",VLOOKUP(E150,'[1]INSUMOS ORSE'!$A:$D,4,0),IF(D150="SEINFRA",VLOOKUP(E150,'[1]INSUMOS SEINFRA'!$A:$D,4,0),))))) -> 5.62 | J150: 6.26 | K150: 37.56 | L150: 5
B151: 2.6.13 | C151: INSUMO | D151: SINAPI | E151: 3380 | F151: =IF(C151="SERVIÇO",IF(D151="SINAPI",VLOOKUP(E151,'[1]SERVIÇOS SINAPI'!$A:$D,2,0),IF(D151="ORSE",VLOOKUP(E151,'[1]SERVIÇOS ORSE'!$A:$D,2,0),IF(D151="SEINFRA",VLOOKUP(E151,'[1]SERVIÇOS SEINFRA'!$A:$D,2,0)))),IF(C151="INSUMO",IF(D151="SINAPI",VLOOKUP(E151,'[1]INSUMOS SINAPI'!$A:$D,2,0),IF(D151="ORSE",VLOOKUP(E151,'[1]INSUMOS ORSE'!$A:$D,2,0),IF(D151="SEINFRA",VLOOKUP(E151,'[1]INSUMOS SEINFRA'!$A:$D,2,0),))))) -> !EM PROCESSO DE DESATIVACAO! HASTE DE ATERRAMENTO EM ACO COM 3,00 M DE COMPRIMENTO E DN = 5/8", REVESTIDA COM BAIXA CAMADA DE COBRE, COM CONECTOR TIPO GRAMPO | G151: =IF(C151="SERVIÇO",IF(D151="SINAPI",VLOOKUP(E151,'[1]SERVIÇOS SINAPI'!$A:$D,3,0),IF(D151="ORSE",VLOOKUP(E151,'[1]SERVIÇOS ORSE'!$A:$D,3,0),IF(D151="SEINFRA",VLOOKUP(E151,'[1]SERVIÇOS SEINFRA'!$A:$D,3,0)))),IF(C151="INSUMO",IF(D151="SINAPI",VLOOKUP(E151,'[1]INSUMOS SINAPI'!$A:$D,3,0),IF(D151="ORSE",VLOOKUP(E151,'[1]INSUMOS ORSE'!$A:$D,3,0),IF(D151="SEINFRA",VLOOKUP(E151,'[1]INSUMOS SEINFRA'!$A:$D,3,0),))))) -> UN | H151: ='[1]Memória de Cálculo'!$L$871*$G$7 -> 6 | I151: =IF(C151="SERVIÇO",IF(D151="SINAPI",VLOOKUP(E151,'[1]SERVIÇOS SINAPI'!$A:$D,4,0),IF(D151="ORSE",VLOOKUP(E151,'[1]SERVIÇOS ORSE'!$A:$D,4,0),IF(D151="SEINFRA",VLOOKUP(E151,'[1]SERVIÇOS SEINFRA'!$A:$D,4,0)))),IF(C151="INSUMO",IF(D151="SINAPI",VLOOKUP(E151,'[1]INSUMOS SINAPI'!$A:$D,4,0),IF(D151="ORSE",VLOOKUP(E151,'[1]INSUMOS ORSE'!$A:$D,4,0),IF(D151="SEINFRA",VLOOKUP(E151,'[1]INSUMOS SEINFRA'!$A:$D,4,0),))))) -> 63 | J151: 70.2 | K151: 421.2 | L151: 5
B152: 2.7 | C152: INSUMOS PARA INSTALAÇÃO HIDRAULICA DA UNIDADE DE MELHORAMENTO GENETICO | K152: =SUM(K153:K172) -> 11789.33
B153: 2.7.1 | C153: INSUMO | D153: SINAPI | E153: 9867 | F153: =IF(C153="SERVIÇO",IF(D153="SINAPI",VLOOKUP(E153,'[1]SERVIÇOS SINAPI'!$A:$D,2,0),IF(D153="ORSE",VLOOKUP(E153,'[1]SERVIÇOS ORSE'!$A:$D,2,0),IF(D153="SEINFRA",VLOOKUP(E153,'[1]SERVIÇOS SEINFRA'!$A:$D,2,0)))),IF(C153="INSUMO",IF(D153="SINAPI",VLOOKUP(E153,'[1]INSUMOS SINAPI'!$A:$D,2,0),IF(D153="ORSE",VLOOKUP(E153,'[1]INSUMOS ORSE'!$A:$D,2,0),IF(D153="SEINFRA",VLOOKUP(E153,'[1]INSUMOS SEINFRA'!$A:$D,2,0),))))) -> TUBO PVC, SOLDAVEL, DN 20 MM, AGUA FRIA (NBR-5648) | G153: =IF(C153="SERVIÇO",IF(D153="SINAPI",VLOOKUP(E153,'[1]SERVIÇOS SINAPI'!$A:$D,3,0),IF(D153="ORSE",VLOOKUP(E153,'[1]SERVIÇOS ORSE'!$A:$D,3,0),IF(D153="SEINFRA",VLOOKUP(E153,'[1]SERVIÇOS SEINFRA'!$A:$D,3,0)))),IF(C153="INSUMO",IF(D153="SINAPI",VLOOKUP(E153,'[1]INSUMOS SINAPI'!$A:$D,3,0),IF(D153="ORSE",VLOOKUP(E153,'[1]INSUMOS ORSE'!$A:$D,3,0),IF(D153="SEINFRA",VLOOKUP(E153,'[1]INSUMOS SEINFRA'!$A:$D,3,0),))))) -> M | H153: ='[1]Memória de Cálculo'!$L$876*$G$7 -> 6 | I153: =IF(C153="SERVIÇO",IF(D153="SINAPI",VLOOKUP(E153,'[1]SERVIÇOS SINAPI'!$A:$D,4,0),IF(D153="ORSE",VLOOKUP(E153,'[1]SERVIÇOS ORSE'!$A:$D,4,0),IF(D153="SEINFRA",VLOOKUP(E153,'[1]SERVIÇOS SEINFRA'!$A:$D,4,0)))),IF(C153="INSUMO",IF(D153="SINAPI",VLOOKUP(E153,'[1]INSUMOS SINAPI'!$A:$D,4,0),IF(D153="ORSE",VLOOKUP(E153,'[1]INSUMOS ORSE'!$A:$D,4,0),IF(D153="SEINFRA",VLOOKUP(E153,'[1]INSUMOS SEINFRA'!$A:$D,4,0),))))) -> 3.53 | J153: =IF(C153="SERVIÇO",I153*(1+$I$8),IF(C153="INSUMO",(I153*(1+$K$8)))) -> 3.93 | K153: =J153*H153 -> 23.58 | L153: 4
B154: 2.7.2 | C154: INSUMO | D154: SINAPI | E154: 9868 | F154: =IF(C154="SERVIÇO",IF(D154="SINAPI",VLOOKUP(E154,'[1]SERVIÇOS SINAPI'!$A:$D,2,0),IF(D154="ORSE",VLOOKUP(E154,'[1]SERVIÇOS ORSE'!$A:$D,2,0),IF(D154="SEINFRA",VLOOKUP(E154,'[1]SERVIÇOS SEINFRA'!$A:$D,2,0)))),IF(C154="INSUMO",IF(D154="SINAPI",VLOOKUP(E154,'[1]INSUMOS SINAPI'!$A:$D,2,0),IF(D154="ORSE",VLOOKUP(E154,'[1]INSUMOS ORSE'!$A:$D,2,0),IF(D154="SEINFRA",VLOOKUP(E154,'[1]INSUMOS SEINFRA'!$A:$D,2,0),))))) -> TUBO PVC, SOLDAVEL, DN 25 MM, AGUA FRIA (NBR-5648) | G154: =IF(C154="SERVIÇO",IF(D154="SINAPI",VLOOKUP(E154,'[1]SERVIÇOS SINAPI'!$A:$D,3,0),IF(D154="ORSE",VLOOKUP(E154,'[1]SERVIÇOS ORSE'!$A:$D,3,0),IF(D154="SEINFRA",VLOOKUP(E154,'[1]SERVIÇOS SEINFRA'!$A:$D,3,0)))),IF(C154="INSUMO",IF(D154="SINAPI",VLOOKUP(E154,'[1]INSUMOS SINAPI'!$A:$D,3,0),IF(D154="ORSE",VLOOKUP(E154,'[1]INSUMOS ORSE'!$A:$D,3,0),IF(D154="SEINFRA",VLOOKUP(E154,'[1]INSUMOS SEINFRA'!$A:$D,3,0),))))) -> M | H154: ='[1]Memória de Cálculo'!$L$880*$G$7 -> 72 | I154: =IF(C154="SERVIÇO",IF(D154="SINAPI",VLOOKUP(E154,'[1]SERVIÇOS SINAPI'!$A:$D,4,0),IF(D154="ORSE",VLOOKUP(E154,'[1]SERVIÇOS ORSE'!$A:$D,4,0),IF(D154="SEINFRA",VLOOKUP(E154,'[1]SERVIÇOS SEINFRA'!$A:$D,4,0)))),IF(C154="INSUMO",IF(D154="SINAPI",VLOOKUP(E154,'[1]INSUMOS SINAPI'!$A:$D,4,0),IF(D154="ORSE",VLOOKUP(E154,'[1]INSUMOS ORSE'!$A:$D,4,0),IF(D154="SEINFRA",VLOOKUP(E154,'[1]INSUMOS SEINFRA'!$A:$D,4,0),))))) -> 4.53 | J154: 5.05 | K154: 363.6 | L154: 4
B155: 2.7.3 | C155: INSUMO | D155: SINAPI | E155: 9869 | F155: =IF(C155="SERVIÇO",IF(D155="SINAPI",VLOOKUP(E155,'[1]SERVIÇOS SINAPI'!$A:$D,2,0),IF(D155="ORSE",VLOOKUP(E155,'[1]SERVIÇOS ORSE'!$A:$D,2,0),IF(D155="SEINFRA",VLOOKUP(E155,'[1]SERVIÇOS SEINFRA'!$A:$D,2,0)))),IF(C155="INSUMO",IF(D155="SINAPI",VLOOKUP(E155,'[1]INSUMOS SINAPI'!$A:$D,2,0),IF(D155="ORSE",VLOOKUP(E155,'[1]INSUMOS ORSE'!$A:$D,2,0),IF(D155="SEINFRA",VLOOKUP(E155,'[1]INSUMOS SEINFRA'!$A:$D,2,0),))))) -> TUBO PVC, SOLDAVEL, DN 32 MM, AGUA FRIA (NBR-5648) | G155: =IF(C155="SERVIÇO",IF(D155="SINAPI",VLOOKUP(E155,'[1]SERVIÇOS SINAPI'!$A:$D,3,0),IF(D155="ORSE",VLOOKUP(E155,'[1]SERVIÇOS ORSE'!$A:$D,3,0),IF(D155="SEINFRA",VLOOKUP(E155,'[1]SERVIÇOS SEINFRA'!$A:$D,3,0)))),IF(C155="INSUMO",IF(D155="SINAPI",VLOOKUP(E155,'[1]INSUMOS SINAPI'!$A:$D,3,0),IF(D155="ORSE",VLOOKUP(E155,'[1]INSUMOS ORSE'!$A:$D,3,0),IF(D155="SEINFRA",VLOOKUP(E155,'[1]INSUMOS SEINFRA'!$A:$D,3,0),))))) -> M | H155: ='[1]Memória de Cálculo'!$L$885*$G$7 -> 90 | I155: =IF(C155="SERVIÇO",IF(D155="SINAPI",VLOOKUP(E155,'[1]SERVIÇOS SINAPI'!$A:$D,4,0),IF(D155="ORSE",VLOOKUP(E155,'[1]SERVIÇOS ORSE'!$A:$D,4,0),IF(D155="SEINFRA",VLOOKUP(E155,'[1]SERVIÇOS SEINFRA'!$A:$D,4,0)))),IF(C155="INSUMO",IF(D155="SINAPI",VLOOKUP(E155,'[1]INSUMOS SINAPI'!$A:$D,4,0),IF(D155="ORSE",VLOOKUP(E155,'[1]INSUMOS ORSE'!$A:$D,4,0),IF(D155="SEINFRA",VLOOKUP(E155,'[1]INSUMOS SEINFRA'!$A:$D,4,0),))))) -> 10.17 | J155: 11.33 | K155: 1019.7 | L155: 4
B156: 2.7.4 | C156: INSUMO | D156: SINAPI | E156: 9875 | F156: =IF(C156="SERVIÇO",IF(D156="SINAPI",VLOOKUP(E156,'[1]SERVIÇOS SINAPI'!$A:$D,2,0),IF(D156="ORSE",VLOOKUP(E156,'[1]SERVIÇOS ORSE'!$A:$D,2,0),IF(D156="SEINFRA",VLOOKUP(E156,'[1]SERVIÇOS SEINFRA'!$A:$D,2,0)))),IF(C156="INSUMO",IF(D156="SINAPI",VLOOKUP(E156,'[1]INSUMOS SINAPI'!$A:$D,2,0),IF(D156="ORSE",VLOOKUP(E156,'[1]INSUMOS ORSE'!$A:$D,2,0),IF(D156="SEINFRA",VLOOKUP(E156,'[1]INSUMOS SEINFRA'!$A:$D,2,0),))))) -> TUBO PVC, SOLDAVEL, DN 50 MM, PARA AGUA FRIA (NBR-5648) | G156: =IF(C156="SERVIÇO",IF(D156="SINAPI",VLOOKUP(E156,'[1]SERVIÇOS SINAPI'!$A:$D,3,0),IF(D156="ORSE",VLOOKUP(E156,'[1]SERVIÇOS ORSE'!$A:$D,3,0),IF(D156="SEINFRA",VLOOKUP(E156,'[1]SERVIÇOS SEINFRA'!$A:$D,3,0)))),IF(C156="INSUMO",IF(D156="SINAPI",VLOOKUP(E156,'[1]INSUMOS SINAPI'!$A:$D,3,0),IF(D156="ORSE",VLOOKUP(E156,'[1]INSUMOS ORSE'!$A:$D,3,0),IF(D156="SEINFRA",VLOOKUP(E156,'[1]INSUMOS SEINFRA'!$A:$D,3,0),))))) -> M | H156: ='[1]Memória de Cálculo'!$L$891*$G$7 -> 54.06 | I156: =IF(C156="SERVIÇO",IF(D156="SINAPI",VLOOKUP(E156,'[1]SERVIÇOS SINAPI'!$A:$D,4,0),IF(D156="ORSE",VLOOKUP(E156,'[1]SERVIÇOS ORSE'!$A:$D,4,0),IF(D156="SEINFRA",VLOOKUP(E156,'[1]SERVIÇOS SEINFRA'!$A:$D,4,0)))),IF(C156="INSUMO",IF(D156="SINAPI",VLOOKUP(E156,'[1]INSUMOS SINAPI'!$A:$D,4,0),IF(D156="ORSE",VLOOKUP(E156,'[1]INSUMOS ORSE'!$A:$D,4,0),IF(D156="SEINFRA",VLOOKUP(E156,'[1]INSUMOS SEINFRA'!$A:$D,4,0),))))) -> 16.96 | J156: 18.9 | K156: 1021.73 | L156: 4
B157: 2.7.5 | C157: INSUMO | D157: SINAPI | E157: 3540 | F157: =IF(C157="SERVIÇO",IF(D157="SINAPI",VLOOKUP(E157,'[1]SERVIÇOS SINAPI'!$A:$D,2,0),IF(D157="ORSE",VLOOKUP(E157,'[1]SERVIÇOS ORSE'!$A:$D,2,0),IF(D157="SEINFRA",VLOOKUP(E157,'[1]SERVIÇOS SEINFRA'!$A:$D,2,0)))),IF(C157="INSUMO",IF(D157="SINAPI",VLOOKUP(E157,'[1]INSUMOS SINAPI'!$A:$D,2,0),IF(D157="ORSE",VLOOKUP(E157,'[1]INSUMOS ORSE'!$A:$D,2,0),IF(D157="SEINFRA",VLOOKUP(E157,'[1]INSUMOS SEINFRA'!$A:$D,2,0),))))) -> JOELHO PVC, SOLDAVEL, 90 GRAUS, 50 MM, PARA AGUA FRIA PREDIAL | G157: =IF(C157="SERVIÇO",IF(D157="SINAPI",VLOOKUP(E157,'[1]SERVIÇOS SINAPI'!$A:$D,3,0),IF(D157="ORSE",VLOOKUP(E157,'[1]SERVIÇOS ORSE'!$A:$D,3,0),IF(D157="SEINFRA",VLOOKUP(E157,'[1]SERVIÇOS SEINFRA'!$A:$D,3,0)))),IF(C157="INSUMO",IF(D157="SINAPI",VLOOKUP(E157,'[1]INSUMOS SINAPI'!$A:$D,3,0),IF(D157="ORSE",VLOOKUP(E157,'[1]INSUMOS ORSE'!$A:$D,3,0),IF(D157="SEINFRA",VLOOKUP(E157,'[1]INSUMOS SEINFRA'!$A:$D,3,0),))))) -> UN | H157: ='[1]Memória de Cálculo'!$L$897*$G$7 -> 36 | I157: =IF(C157="SERVIÇO",IF(D157="SINAPI",VLOOKUP(E157,'[1]SERVIÇOS SINAPI'!$A:$D,4,0),IF(D157="ORSE",VLOOKUP(E157,'[1]SERVIÇOS ORSE'!$A:$D,4,0),IF(D157="SEINFRA",VLOOKUP(E157,'[1]SERVIÇOS SEINFRA'!$A:$D,4,0)))),IF(C157="INSUMO",IF(D157="SINAPI",VLOOKUP(E157,'[1]INSUMOS SINAPI'!$A:$D,4,0),IF(D157="ORSE",VLOOKUP(E157,'[1]INSUMOS ORSE'!$A:$D,4,0),IF(D157="SEINFRA",VLOOKUP(E157,'[1]INSUMOS SEINFRA'!$A:$D,4,0),))))) -> 6.85 | J157: 7.63 | K157: 274.68 | L157: 4
B158: 2.7.6 | C158: INSUMO | D158: SINAPI | E158: 3542 | F158: =IF(C158="SERVIÇO",IF(D158="SINAPI",VLOOKUP(E158,'[1]SERVIÇOS SINAPI'!$A:$D,2,0),IF(D158="ORSE",VLOOKUP(E158,'[1]SERVIÇOS ORSE'!$A:$D,2,0),IF(D158="SEINFRA",VLOOKUP(E158,'[1]SERVIÇOS SEINFRA'!$A:$D,2,0)))),IF(C158="INSUMO",IF(D158="SINAPI",VLOOKUP(E158,'[1]INSUMOS SINAPI'!$A:$D,2,0),IF(D158="ORSE",VLOOKUP(E158,'[1]INSUMOS ORSE'!$A:$D,2,0),IF(D158="SEINFRA",VLOOKUP(E158,'[1]INSUMOS SEINFRA'!$A:$D,2,0),))))) -> JOELHO PVC, SOLDAVEL, 90 GRAUS, 20 MM, PARA AGUA FRIA PREDIAL | G158: =IF(C158="SERVIÇO",IF(D158="SINAPI",VLOOKUP(E158,'[1]SERVIÇOS SINAPI'!$A:$D,3,0),IF(D158="ORSE",VLOOKUP(E158,'[1]SERVIÇOS ORSE'!$A:$D,3,0),IF(D158="SEINFRA",VLOOKUP(E158,'[1]SERVIÇOS SEINFRA'!$A:$D,3,0)))),IF(C158="INSUMO",IF(D158="SINAPI",VLOOKUP(E158,'[1]INSUMOS SINAPI'!$A:$D,3,0),IF(D158="ORSE",VLOOKUP(E158,'[1]INSUMOS ORSE'!$A:$D,3,0),IF(D158="SEINFRA",VLOOKUP(E158,'[1]INSUMOS SEINFRA'!$A:$D,3,0),))))) -> UN | H158: ='[1]Memória de Cálculo'!$L$901*$G$7 -> 12 | I158: =IF(C158="SERVIÇO",IF(D158="SINAPI",VLOOKUP(E158,'[1]SERVIÇOS SINAPI'!$A:$D,4,0),IF(D158="ORSE",VLOOKUP(E158,'[1]SERVIÇOS ORSE'!$A:$D,4,0),IF(D158="SEINFRA",VLOOKUP(E158,'[1]SERVIÇOS SEINFRA'!$A:$D,4,0)))),IF(C158="INSUMO",IF(D158="SINAPI",VLOOKUP(E158,'[1]INSUMOS SINAPI'!$A:$D,4,0),IF(D158="ORSE",VLOOKUP(E158,'[1]INSUMOS ORSE'!$A:$D,4,0),IF(D158="SEINFRA",VLOOKUP(E158,'[1]INSUMOS SEINFRA'!$A:$D,4,0),))))) -> 0.65 | J158: 0.72 | K158: 8.64 | L158: 4
B159: 2.7.7 | C159: INSUMO | D159: SINAPI | E159: 3529 | F159: =IF(C159="SERVIÇO",IF(D159="SINAPI",VLOOKUP(E159,'[1]SERVIÇOS SINAPI'!$A:$D,2,0),IF(D159="ORSE",VLOOKUP(E159,'[1]SERVIÇOS ORSE'!$A:$D,2,0),IF(D159="SEINFRA",VLOOKUP(E159,'[1]SERVIÇOS SEINFRA'!$A:$D,2,0)))),IF(C159="INSUMO",IF(D159="SINAPI",VLOOKUP(E159,'[1]INSUMOS SINAPI'!$A:$D,2,0),IF(D159="ORSE",VLOOKUP(E159,'[1]INSUMOS ORSE'!$A:$D,2,0),IF(D159="SEINFRA",VLOOKUP(E159,'[1]INSUMOS SEINFRA'!$A:$D,2,0),))))) -> JOELHO PVC, SOLDAVEL, 90 GRAUS, 25 MM, PARA AGUA FRIA PREDIAL | G159: =IF(C159="SERVIÇO",IF(D159="SINAPI",VLOOKUP(E159,'[1]SERVIÇOS SINAPI'!$A:$D,3,0),IF(D159="ORSE",VLOOKUP(E159,'[1]SERVIÇOS ORSE'!$A:$D,3,0),IF(D159="SEINFRA",VLOOKUP(E159,'[1]SERVIÇOS SEINFRA'!$A:$D,3,0)))),IF(C159="INSUMO",IF(D159="SINAPI",VLOOKUP(E159,'[1]INSUMOS SINAPI'!$A:$D,3,0),IF(D159="ORSE",VLOOKUP(E159,'[1]INSUMOS ORSE'!$A:$D,3,0),IF(D159="SEINFRA",VLOOKUP(E159,'[1]INSUMOS SEINFRA'!$A:$D,3,0),))))) -> UN | H159: ='[1]Memória de Cálculo'!$L$908*$G$7 -> 120 | I159: =IF(C159="SERVIÇO",IF(D159="SINAPI",VLOOKUP(E159,'[1]SERVIÇOS SINAPI'!$A:$D,4,0),IF(D159="ORSE",VLOOKUP(E159,'[1]SERVIÇOS ORSE'!$A:$D,4,0),IF(D159="SEINFRA",VLOOKUP(E159,'[1]SERVIÇOS SEINFRA'!$A:$D,4,0)))),IF(C159="INSUMO",IF(D159="SINAPI",VLOOKUP(E159,'[1]INSUMOS SINAPI'!$A:$D,4,0),IF(D159="ORSE",VLOOKUP(E159,'[1]INSUMOS ORSE'!$A:$D,4,0),IF(D159="SEINFRA",VLOOKUP(E159,'[1]INSUMOS SEINFRA'!$A:$D,4,0),))))) -> 0.89 | J159: 0.99 | K159: 118.8 | L159: 4
B160: 2.7.8 | C160: INSUMO | D160: SINAPI | E160: 11670 | F160: =IF(C160="SERVIÇO",IF(D160="SINAPI",VLOOKUP(E160,'[1]SERVIÇOS SINAPI'!$A:$D,2,0),IF(D160="ORSE",VLOOKUP(E160,'[1]SERVIÇOS ORSE'!$A:$D,2,0),IF(D160="SEINFRA",VLOOKUP(E160,'[1]SERVIÇOS SEINFRA'!$A:$D,2,0)))),IF(C160="INSUMO",IF(D160="SINAPI",VLOOKUP(E160,'[1]INSUMOS SINAPI'!$A:$D,2,0),IF(D160="ORSE",VLOOKUP(E160,'[1]INSUMOS ORSE'!$A:$D,2,0),IF(D160="SEINFRA",VLOOKUP(E160,'[1]INSUMOS SEINFRA'!$A:$D,2,0),))))) -> REGISTRO DE ESFERA, PVC, COM VOLANTE, VS, ROSCAVEL, DN 1/2", COM CORPO DIVIDIDO | G160: =IF(C160="SERVIÇO",IF(D160="SINAPI",VLOOKUP(E160,'[1]SERVIÇOS SINAPI'!$A:$D,3,0),IF(D160="ORSE",VLOOKUP(E160,'[1]SERVIÇOS ORSE'!$A:$D,3,0),IF(D160="SEINFRA",VLOOKUP(E160,'[1]SERVIÇOS SEINFRA'!$A:$D,3,0)))),IF(C160="INSUMO",IF(D160="SINAPI",VLOOKUP(E160,'[1]INSUMOS SINAPI'!$A:$D,3,0),IF(D160="ORSE",VLOOKUP(E160,'[1]INSUMOS ORSE'!$A:$D,3,0),IF(D160="SEINFRA",VLOOKUP(E160,'[1]INSUMOS SEINFRA'!$A:$D,3,0),))))) -> UN | H160: ='[1]Memória de Cálculo'!$L$912*$G$7 -> 72 | I160: =IF(C160="SERVIÇO",IF(D160="SINAPI",VLOOKUP(E160,'[1]SERVIÇOS SINAPI'!$A:$D,4,0),IF(D160="ORSE",VLOOKUP(E160,'[1]SERVIÇOS ORSE'!$A:$D,4,0),IF(D160="SEINFRA",VLOOKUP(E160,'[1]SERVIÇOS SEINFRA'!$A:$D,4,0)))),IF(C160="INSUMO",IF(D160="SINAPI",VLOOKUP(E160,'[1]INSUMOS SINAPI'!$A:$D,4,0),IF(D160="ORSE",VLOOKUP(E160,'[1]INSUMOS ORSE'!$A:$D,4,0),IF(D160="SEINFRA",VLOOKUP(E160,'[1]INSUMOS SEINFRA'!$A:$D,4,0),))))) -> 16.65 | J160: 18.55 | K160: 1335.6 | L160: 5
B161: 2.7.9 | C161: INSUMO | D161: ORSE | E161: 1954 | F161: =IF(C161="SERVIÇO",IF(D161="SINAPI",VLOOKUP(E161,'[1]SERVIÇOS SINAPI'!$A:$D,2,0),IF(D161="ORSE",VLOOKUP(E161,'[1]SERVIÇOS ORSE'!$A:$D,2,0),IF(D161="SEINFRA",VLOOKUP(E161,'[1]SERVIÇOS SEINFRA'!$A:$D,2,0)))),IF(C161="INSUMO",IF(D161="SINAPI",VLOOKUP(E161,'[1]INSUMOS SINAPI'!$A:$D,2,0),IF(D161="ORSE",VLOOKUP(E161,'[1]INSUMOS ORSE'!$A:$D,2,0),IF(D161="SEINFRA",VLOOKUP(E161,'[1]INSUMOS SEINFRA'!$A:$D,2,0),))))) -> REGISTRO GAVETA BRUTO, C/ VOLANTE, D = 50MM (2") | G161: =IF(C161="SERVIÇO",IF(D161="SINAPI",VLOOKUP(E161,'[1]SERVIÇOS SINAPI'!$A:$D,3,0),IF(D161="ORSE",VLOOKUP(E161,'[1]SERVIÇOS ORSE'!$A:$D,3,0),IF(D161="SEINFRA",VLOOKUP(E161,'[1]SERVIÇOS SEINFRA'!$A:$D,3,0)))),IF(C161="INSUMO",IF(D161="SINAPI",VLOOKUP(E161,'[1]INSUMOS SINAPI'!$A:$D,3,0),IF(D161="ORSE",VLOOKUP(E161,'[1]INSUMOS ORSE'!$A:$D,3,0),IF(D161="SEINFRA",VLOOKUP(E161,'[1]INSUMOS SEINFRA'!$A:$D,3,0),))))) -> UN | H161: ='[1]Memória de Cálculo'!$L$918*$G$7 -> 18 | I161: =IF(C161="SERVIÇO",IF(D161="SINAPI",VLOOKUP(E161,'[1]SERVIÇOS SINAPI'!$A:$D,4,0),IF(D161="ORSE",VLOOKUP(E161,'[1]SERVIÇOS ORSE'!$A:$D,4,0),IF(D161="SEINFRA",VLOOKUP(E161,'[1]SERVIÇOS SEINFRA'!$A:$D,4,0)))),IF(C161="INSUMO",IF(D161="SINAPI",VLOOKUP(E161,'[1]INSUMOS SINAPI'!$A:$D,4,0),IF(D161="ORSE",VLOOKUP(E161,'[1]INSUMOS ORSE'!$A:$D,4,0),IF(D161="SEINFRA",VLOOKUP(E161,'[1]INSUMOS SEINFRA'!$A:$D,4,0),))))) -> 107.46 | J161: 119.74 | K161: 2155.32 | L161: 5
B162: 2.7.10 | C162: INSUMO | D162: SINAPI | E162: 113 | F162: =IF(C162="SERVIÇO",IF(D162="SINAPI",VLOOKUP(E162,'[1]SERVIÇOS SINAPI'!$A:$D,2,0),IF(D162="ORSE",VLOOKUP(E162,'[1]SERVIÇOS ORSE'!$A:$D,2,0),IF(D162="SEINFRA",VLOOKUP(E162,'[1]SERVIÇOS SEINFRA'!$A:$D,2,0)))),IF(C162="INSUMO",IF(D162="SINAPI",VLOOKUP(E162,'[1]INSUMOS SINAPI'!$A:$D,2,0),IF(D162="ORSE",VLOOKUP(E162,'[1]INSUMOS ORSE'!$A:$D,2,0),IF(D162="SEINFRA",VLOOKUP(E162,'[1]INSUMOS SEINFRA'!$A:$D,2,0),))))) -> ADAPTADOR PVC SOLDAVEL CURTO COM BOLSA E ROSCA, 60 MM X 2", PARA AGUA FRIA | G162: =IF(C162="SERVIÇO",IF(D162="SINAPI",VLOOKUP(E162,'[1]SERVIÇOS SINAPI'!$A:$D,3,0),IF(D162="ORSE",VLOOKUP(E162,'[1]SERVIÇOS ORSE'!$A:$D,3,0),IF(D162="SEINFRA",VLOOKUP(E162,'[1]SERVIÇOS SEINFRA'!$A:$D,3,0)))),IF(C162="INSUMO",IF(D162="SINAPI",VLOOKUP(E162,'[1]INSUMOS SINAPI'!$A:$D,3,0),IF(D162="ORSE",VLOOKUP(E162,'[1]INSUMOS ORSE'!$A:$D,3,0),IF(D162="SEINFRA",VLOOKUP(E162,'[1]INSUMOS SEINFRA'!$A:$D,3,0),))))) -> UN | H162: ='[1]Memória de Cálculo'!$L$924*$G$7 -> 18 | I162: =IF(C162="SERVIÇO",IF(D162="SINAPI",VLOOKUP(E162,'[1]SERVIÇOS SINAPI'!$A:$D,4,0),IF(D162="ORSE",VLOOKUP(E162,'[1]SERVIÇOS ORSE'!$A:$D,4,0),IF(D162="SEINFRA",VLOOKUP(E162,'[1]SERVIÇOS SEINFRA'!$A:$D,4,0)))),IF(C162="INSUMO",IF(D162="SINAPI",VLOOKUP(E162,'[1]INSUMOS SINAPI'!$A:$D,4,0),IF(D162="ORSE",VLOOKUP(E162,'[1]INSUMOS ORSE'!$A:$D,4,0),IF(D162="SEINFRA",VLOOKUP(E162,'[1]INSUMOS SEINFRA'!$A:$D,4,0),))))) -> 14.63 | J162: 16.3 | K162: 293.4 | L162: 4
B163: 2.7.11 | C163: INSUMO | D163: ORSE | E163: 2110 | F163: =IF(C163="SERVIÇO",IF(D163="SINAPI",VLOOKUP(E163,'[1]SERVIÇOS SINAPI'!$A:$D,2,0),IF(D163="ORSE",VLOOKUP(E163,'[1]SERVIÇOS ORSE'!$A:$D,2,0),IF(D163="SEINFRA",VLOOKUP(E163,'[1]SERVIÇOS SEINFRA'!$A:$D,2,0)))),IF(C163="INSUMO",IF(D163="SINAPI",VLOOKUP(E163,'[1]INSUMOS SINAPI'!$A:$D,2,0),IF(D163="ORSE",VLOOKUP(E163,'[1]INSUMOS ORSE'!$A:$D,2,0),IF(D163="SEINFRA",VLOOKUP(E163,'[1]INSUMOS SEINFRA'!$A:$D,2,0),))))) -> TE 90° PVC RIGIDO SOLDAVEL, MARROM, D= 25MM | G163: =IF(C163="SERVIÇO",IF(D163="SINAPI",VLOOKUP(E163,'[1]SERVIÇOS SINAPI'!$A:$D,3,0),IF(D163="ORSE",VLOOKUP(E163,'[1]SERVIÇOS ORSE'!$A:$D,3,0),IF(D163="SEINFRA",VLOOKUP(E163,'[1]SERVIÇOS SEINFRA'!$A:$D,3,0)))),IF(C163="INSUMO",IF(D163="SINAPI",VLOOKUP(E163,'[1]INSUMOS SINAPI'!$A:$D,3,0),IF(D163="ORSE",VLOOKUP(E163,'[1]INSUMOS ORSE'!$A:$D,3,0),IF(D163="SEINFRA",VLOOKUP(E163,'[1]INSUMOS SEINFRA'!$A:$D,3,0),))))) -> UN | H163: ='[1]Memória de Cálculo'!$L$931*$G$7 -> 54 | I163: =IF(C163="SERVIÇO",IF(D163="SINAPI",VLOOKUP(E163,'[1]SERVIÇOS SINAPI'!$A:$D,4,0),IF(D163="ORSE",VLOOKUP(E163,'[1]SERVIÇOS ORSE'!$A:$D,4,0),IF(D163="SEINFRA",VLOOKUP(E163,'[1]SERVIÇOS SEINFRA'!$A:$D,4,0)))),IF(C163="INSUMO",IF(D163="SINAPI",VLOOKUP(E163,'[1]INSUMOS SINAPI'!$A:$D,4,0),IF(D163="ORSE",VLOOKUP(E163,'[1]INSUMOS ORSE'!$A:$D,4,0),IF(D163="SEINFRA",VLOOKUP(E163,'[1]INSUMOS SEINFRA'!$A:$D,4,0),))))) -> 1.49 | J163: 1.66 | K163: 89.64 | L163: 4
B164: 2.7.12 | C164: INSUMO | D164: ORSE | E164: 2111 | F164: =IF(C164="SERVIÇO",IF(D164="SINAPI",VLOOKUP(E164,'[1]SERVIÇOS SINAPI'!$A:$D,2,0),IF(D164="ORSE",VLOOKUP(E164,'[1]SERVIÇOS ORSE'!$A:$D,2,0),IF(D164="SEINFRA",VLOOKUP(E164,'[1]SERVIÇOS SEINFRA'!$A:$D,2,0)))),IF(C164="INSUMO",IF(D164="SINAPI",VLOOKUP(E164,'[1]INSUMOS SINAPI'!$A:$D,2,0),IF(D164="ORSE",VLOOKUP(E164,'[1]INSUMOS ORSE'!$A:$D,2,0),IF(D164="SEINFRA",VLOOKUP(E164,'[1]INSUMOS SEINFRA'!$A:$D,2,0),))))) -> TE 90° PVC RIGIDO SOLDAVEL, MARROM, D= 32MM | G164: =IF(C164="SERVIÇO",IF(D164="SINAPI",VLOOKUP(E164,'[1]SERVIÇOS SINAPI'!$A:$D,3,0),IF(D164="ORSE",VLOOKUP(E164,'[1]SERVIÇOS ORSE'!$A:$D,3,0),IF(D164="SEINFRA",VLOOKUP(E164,'[1]SERVIÇOS SEINFRA'!$A:$D,3,0)))),IF(C164="INSUMO",IF(D164="SINAPI",VLOOKUP(E164,'[1]INSUMOS SINAPI'!$A:$D,3,0),IF(D164="ORSE",VLOOKUP(E164,'[1]INSUMOS ORSE'!$A:$D,3,0),IF(D164="SEINFRA",VLOOKUP(E164,'[1]INSUMOS SEINFRA'!$A:$D,3,0),))))) -> UN | H164: ='[1]Memória de Cálculo'!$L$935*$G$7 -> 6 | I164: =IF(C164="SERVIÇO",IF(D164="SINAPI",VLOOKUP(E164,'[1]SERVIÇOS SINAPI'!$A:$D,4,0),IF(D164="ORSE",VLOOKUP(E164,'[1]SERVIÇOS ORSE'!$A:$D,4,0),IF(D164="SEINFRA",VLOOKUP(E164,'[1]SERVIÇOS SEINFRA'!$A:$D,4,0)))),IF(C164="INSUMO",IF(D164="SINAPI",VLOOKUP(E164,'[1]INSUMOS SINAPI'!$A:$D,4,0),IF(D164="ORSE",VLOOKUP(E164,'[1]INSUMOS ORSE'!$A:$D,4,0),IF(D164="SEINFRA",VLOOKUP(E164,'[1]INSUMOS SEINFRA'!$A:$D,4,0),))))) -> 4.95 | J164: 5.52 | K164: 33.12 | L164: 4
B165: 2.7.13 | C165: INSUMO | D165: ORSE | E165: 2153 | F165: =IF(C165="SERVIÇO",IF(D165="SINAPI",VLOOKUP(E165,'[1]SERVIÇOS SINAPI'!$A:$D,2,0),IF(D165="ORSE",VLOOKUP(E165,'[1]SERVIÇOS ORSE'!$A:$D,2,0),IF(D165="SEINFRA",VLOOKUP(E165,'[1]SERVIÇOS SEINFRA'!$A:$D,2,0)))),IF(C165="INSUMO",IF(D165="SINAPI",VLOOKUP(E165,'[1]INSUMOS SINAPI'!$A:$D,2,0),IF(D165="ORSE",VLOOKUP(E165,'[1]INSUMOS ORSE'!$A:$D,2,0),IF(D165="SEINFRA",VLOOKUP(E165,'[1]INSUMOS SEINFRA'!$A:$D,2,0),))))) -> TE 90° REDUCAO PVC RIGIDO SOLDAVEL, MARROM, D= 32 X 25MM | G165: =IF(C165="SERVIÇO",IF(D165="SINAPI",VLOOKUP(E165,'[1]SERVIÇOS SINAPI'!$A:$D,3,0),IF(D165="ORSE",VLOOKUP(E165,'[1]SERVIÇOS ORSE'!$A:$D,3,0),IF(D165="SEINFRA",VLOOKUP(E165,'[1]SERVIÇOS SEINFRA'!$A:$D,3,0)))),IF(C165="INSUMO",IF(D165="SINAPI",VLOOKUP(E165,'[1]INSUMOS SINAPI'!$A:$D,3,0),IF(D165="ORSE",VLOOKUP(E165,'[1]INSUMOS ORSE'!$A:$D,3,0),IF(D165="SEINFRA",VLOOKUP(E165,'[1]INSUMOS SEINFRA'!$A:$D,3,0),))))) -> UN | H165: ='[1]Memória de Cálculo'!$L$940*$G$7 -> 42 | I165: =IF(C165="SERVIÇO",IF(D165="SINAPI",VLOOKUP(E165,'[1]SERVIÇOS SINAPI'!$A:$D,4,0),IF(D165="ORSE",VLOOKUP(E165,'[1]SERVIÇOS ORSE'!$A:$D,4,0),IF(D165="SEINFRA",VLOOKUP(E165,'[1]SERVIÇOS SEINFRA'!$A:$D,4,0)))),IF(C165="INSUMO",IF(D165="SINAPI",VLOOKUP(E165,'[1]INSUMOS SINAPI'!$A:$D,4,0),IF(D165="ORSE",VLOOKUP(E165,'[1]INSUMOS ORSE'!$A:$D,4,0),IF(D165="SEINFRA",VLOOKUP(E165,'[1]INSUMOS SEINFRA'!$A:$D,4,0),))))) -> 7.35 | J165: 8.19 | K165: 343.98 | L165: 4
B166: 2.7.14 | C166: INSUMO | D166: ORSE | E166: 361 | F166: =IF(C166="SERVIÇO",IF(D166="SINAPI",VLOOKUP(E166,'[1]SERVIÇOS SINAPI'!$A:$D,2,0),IF(D166="ORSE",VLOOKUP(E166,'[1]SERVIÇOS ORSE'!$A:$D,2,0),IF(D166="SEINFRA",VLOOKUP(E166,'[1]SERVIÇOS SEINFRA'!$A:$D,2,0)))),IF(C166="INSUMO",IF(D166="SINAPI",VLOOKUP(E166,'[1]INSUMOS SINAPI'!$A:$D,2,0),IF(D166="ORSE",VLOOKUP(E166,'[1]INSUMOS ORSE'!$A:$D,2,0),IF(D166="SEINFRA",VLOOKUP(E166,'[1]INSUMOS SEINFRA'!$A:$D,2,0),))))) -> BUCHA REDUCAO LONGA PVC RIGIDO SOLDAVEL, MARROM, D= 60 X 32MM | G166: =IF(C166="SERVIÇO",IF(D166="SINAPI",VLOOKUP(E166,'[1]SERVIÇOS SINAPI'!$A:$D,3,0),IF(D166="ORSE",VLOOKUP(E166,'[1]SERVIÇOS ORSE'!$A:$D,3,0),IF(D166="SEINFRA",VLOOKUP(E166,'[1]SERVIÇOS SEINFRA'!$A:$D,3,0)))),IF(C166="INSUMO",IF(D166="SINAPI",VLOOKUP(E166,'[1]INSUMOS SINAPI'!$A:$D,3,0),IF(D166="ORSE",VLOOKUP(E166,'[1]INSUMOS ORSE'!$A:$D,3,0),IF(D166="SEINFRA",VLOOKUP(E166,'[1]INSUMOS SEINFRA'!$A:$D,3,0),))))) -> UN | H166: ='[1]Memória de Cálculo'!$L$945*$G$7 -> 12 | I166: =IF(C166="SERVIÇO",IF(D166="SINAPI",VLOOKUP(E166,'[1]SERVIÇOS SINAPI'!$A:$D,4,0),IF(D166="ORSE",VLOOKUP(E166,'[1]SERVIÇOS ORSE'!$A:$D,4,0),IF(D166="SEINFRA",VLOOKUP(E166,'[1]SERVIÇOS SEINFRA'!$A:$D,4,0)))),IF(C166="INSUMO",IF(D166="SINAPI",VLOOKUP(E166,'[1]INSUMOS SINAPI'!$A:$D,4,0),IF(D166="ORSE",VLOOKUP(E166,'[1]INSUMOS ORSE'!$A:$D,4,0),IF(D166="SEINFRA",VLOOKUP(E166,'[1]INSUMOS SEINFRA'!$A:$D,4,0),))))) -> 13.04 | J166: 14.53 | K166: 174.36 | L166: 4
B167: 2.7.15 | C167: INSUMO | D167: SINAPI | E167: 11831 | F167: =IF(C167="SERVIÇO",IF(D167="SINAPI",VLOOKUP(E167,'[1]SERVIÇOS SINAPI'!$A:$D,2,0),IF(D167="ORSE",VLOOKUP(E167,'[1]SERVIÇOS ORSE'!$A:$D,2,0),IF(D167="SEINFRA",VLOOKUP(E167,'[1]SERVIÇOS SEINFRA'!$A:$D,2,0)))),IF(C167="INSUMO",IF(D167="SINAPI",VLOOKUP(E167,'[1]INSUMOS SINAPI'!$A:$D,2,0),IF(D167="ORSE",VLOOKUP(E167,'[1]INSUMOS ORSE'!$A:$D,2,0),IF(D167="SEINFRA",VLOOKUP(E167,'[1]INSUMOS SEINFRA'!$A:$D,2,0),))))) -> TORNEIRA PLASTICA PARA TANQUE 1/2 " OU 3/4 " COM BICO PARA MANGUEIRA | G167: =IF(C167="SERVIÇO",IF(D167="SINAPI",VLOOKUP(E167,'[1]SERVIÇOS SINAPI'!$A:$D,3,0),IF(D167="ORSE",VLOOKUP(E167,'[1]SERVIÇOS ORSE'!$A:$D,3,0),IF(D167="SEINFRA",VLOOKUP(E167,'[1]SERVIÇOS SEINFRA'!$A:$D,3,0)))),IF(C167="INSUMO",IF(D167="SINAPI",VLOOKUP(E167,'[1]INSUMOS SINAPI'!$A:$D,3,0),IF(D167="ORSE",VLOOKUP(E167,'[1]INSUMOS ORSE'!$A:$D,3,0),IF(D167="SEINFRA",VLOOKUP(E167,'[1]INSUMOS SEINFRA'!$A:$D,3,0),))))) -> UN | H167: ='[1]Memória de Cálculo'!$L$950*$G$7 -> 12 | I167: =IF(C167="SERVIÇO",IF(D167="SINAPI",VLOOKUP(E167,'[1]SERVIÇOS SINAPI'!$A:$D,4,0),IF(D167="ORSE",VLOOKUP(E167,'[1]SERVIÇOS ORSE'!$A:$D,4,0),IF(D167="SEINFRA",VLOOKUP(E167,'[1]SERVIÇOS SEINFRA'!$A:$D,4,0)))),IF(C167="INSUMO",IF(D167="SINAPI",VLOOKUP(E167,'[1]INSUMOS SINAPI'!$A:$D,4,0),IF(D167="ORSE",VLOOKUP(E167,'[1]INSUMOS ORSE'!$A:$D,4,0),IF(D167="SEINFRA",VLOOKUP(E167,'[1]INSUMOS SEINFRA'!$A:$D,4,0),))))) -> 34.6 | J167: 38.55 | K167: 462.6 | L167: 4
B168: 2.7.16 | C168: INSUMO | D168: SINAPI | E168: 20080 | F168: =IF(C168="SERVIÇO",IF(D168="SINAPI",VLOOKUP(E168,'[1]SERVIÇOS SINAPI'!$A:$D,2,0),IF(D168="ORSE",VLOOKUP(E168,'[1]SERVIÇOS ORSE'!$A:$D,2,0),IF(D168="SEINFRA",VLOOKUP(E168,'[1]SERVIÇOS SEINFRA'!$A:$D,2,0)))),IF(C168="INSUMO",IF(D168="SINAPI",VLOOKUP(E168,'[1]INSUMOS SINAPI'!$A:$D,2,0),IF(D168="ORSE",VLOOKUP(E168,'[1]INSUMOS ORSE'!$A:$D,2,0),IF(D168="SEINFRA",VLOOKUP(E168,'[1]INSUMOS SEINFRA'!$A:$D,2,0),))))) -> ADESIVO PLASTICO PARA PVC, FRASCO COM 175 GR | G168: =IF(C168="SERVIÇO",IF(D168="SINAPI",VLOOKUP(E168,'[1]SERVIÇOS SINAPI'!$A:$D,3,0),IF(D168="ORSE",VLOOKUP(E168,'[1]SERVIÇOS ORSE'!$A:$D,3,0),IF(D168="SEINFRA",VLOOKUP(E168,'[1]SERVIÇOS SEINFRA'!$A:$D,3,0)))),IF(C168="INSUMO",IF(D168="SINAPI",VLOOKUP(E168,'[1]INSUMOS SINAPI'!$A:$D,3,0),IF(D168="ORSE",VLOOKUP(E168,'[1]INSUMOS ORSE'!$A:$D,3,0),IF(D168="SEINFRA",VLOOKUP(E168,'[1]INSUMOS SEINFRA'!$A:$D,3,0),))))) -> UN | H168: ='[1]Memória de Cálculo'!$L$954*$G$7 -> 12 | I168: =IF(C168="SERVIÇO",IF(D168="SINAPI",VLOOKUP(E168,'[1]SERVIÇOS SINAPI'!$A:$D,4,0),IF(D168="ORSE",VLOOKUP(E168,'[1]SERVIÇOS ORSE'!$A:$D,4,0),IF(D168="SEINFRA",VLOOKUP(E168,'[1]SERVIÇOS SEINFRA'!$A:$D,4,0)))),IF(C168="INSUMO",IF(D168="SINAPI",VLOOKUP(E168,'[1]INSUMOS SINAPI'!$A:$D,4,0),IF(D168="ORSE",VLOOKUP(E168,'[1]INSUMOS ORSE'!$A:$D,4,0),IF(D168="SEINFRA",VLOOKUP(E168,'[1]INSUMOS SEINFRA'!$A:$D,4,0),))))) -> 19.78 | J168: 22.04 | K168: 264.48 | L168: 4
B169: 2.7.17 | C169: INSUMO | D169: ORSE | E169: 11831 | F169: =IF(C169="SERVIÇO",IF(D169="SINAPI",VLOOKUP(E169,'[1]SERVIÇOS SINAPI'!$A:$D,2,0),IF(D169="ORSE",VLOOKUP(E169,'[1]SERVIÇOS ORSE'!$A:$D,2,0),IF(D169="SEINFRA",VLOOKUP(E169,'[1]SERVIÇOS SEINFRA'!$A:$D,2,0)))),IF(C169="INSUMO",IF(D169="SINAPI",VLOOKUP(E169,'[1]INSUMOS SINAPI'!$A:$D,2,0),IF(D169="ORSE",VLOOKUP(E169,'[1]INSUMOS ORSE'!$A:$D,2,0),IF(D169="SEINFRA",VLOOKUP(E169,'[1]INSUMOS SEINFRA'!$A:$D,2,0),))))) -> FITA VEDACAO TEFLON LARG= 1/2" COM 50M | G169: =IF(C169="SERVIÇO",IF(D169="SINAPI",VLOOKUP(E169,'[1]SERVIÇOS SINAPI'!$A:$D,3,0),IF(D169="ORSE",VLOOKUP(E169,'[1]SERVIÇOS ORSE'!$A:$D,3,0),IF(D169="SEINFRA",VLOOKUP(E169,'[1]SERVIÇOS SEINFRA'!$A:$D,3,0)))),IF(C169="INSUMO",IF(D169="SINAPI",VLOOKUP(E169,'[1]INSUMOS SINAPI'!$A:$D,3,0),IF(D169="ORSE",VLOOKUP(E169,'[1]INSUMOS ORSE'!$A:$D,3,0),IF(D169="SEINFRA",VLOOKUP(E169,'[1]INSUMOS SEINFRA'!$A:$D,3,0),))))) -> UN | H169: ='[1]Memória de Cálculo'!$L$958*$G$7 -> 24 | I169: =IF(C169="SERVIÇO",IF(D169="SINAPI",VLOOKUP(E169,'[1]SERVIÇOS SINAPI'!$A:$D,4,0),IF(D169="ORSE",VLOOKUP(E169,'[1]SERVIÇOS ORSE'!$A:$D,4,0),IF(D169="SEINFRA",VLOOKUP(E169,'[1]SERVIÇOS SEINFRA'!$A:$D,4,0)))),IF(C169="INSUMO",IF(D169="SINAPI",VLOOKUP(E169,'[1]INSUMOS SINAPI'!$A:$D,4,0),IF(D169="ORSE",VLOOKUP(E169,'[1]INSUMOS ORSE'!$A:$D,4,0),IF(D169="SEINFRA",VLOOKUP(E169,'[1]INSUMOS SEINFRA'!$A:$D,4,0),))))) -> 14.45 | J169: 16.1 | K169: 386.4 | L169: 4
B170: 2.7.18 | C170: INSUMO | D170: ORSE | E170: 3578 | F170: =IF(C170="SERVIÇO",IF(D170="SINAPI",VLOOKUP(E170,'[1]SERVIÇOS SINAPI'!$A:$D,2,0),IF(D170="ORSE",VLOOKUP(E170,'[1]SERVIÇOS ORSE'!$A:$D,2,0),IF(D170="SEINFRA",VLOOKUP(E170,'[1]SERVIÇOS SEINFRA'!$A:$D,2,0)))),IF(C170="INSUMO",IF(D170="SINAPI",VLOOKUP(E170,'[1]INSUMOS SINAPI'!$A:$D,2,0),IF(D170="ORSE",VLOOKUP(E170,'[1]INSUMOS ORSE'!$A:$D,2,0),IF(D170="SEINFRA",VLOOKUP(E170,'[1]INSUMOS SEINFRA'!$A:$D,2,0),))))) -> ENGATE EM PVC (LIGAÇÃO FLEXÍVEL), ACABAMENTO BRANCO, 1/2" X 40CM, AMANCO OU S IMILAR | G170: =IF(C170="SERVIÇO",IF(D170="SINAPI",VLOOKUP(E170,'[1]SERVIÇOS SINAPI'!$A:$D,3,0),IF(D170="ORSE",VLOOKUP(E170,'[1]SERVIÇOS ORSE'!$A:$D,3,0),IF(D170="SEINFRA",VLOOKUP(E170,'[1]SERVIÇOS SEINFRA'!$A:$D,3,0)))),IF(C170="INSUMO",IF(D170="SINAPI",VLOOKUP(E170,'[1]INSUMOS SINAPI'!$A:$D,3,0),IF(D170="ORSE",VLOOKUP(E170,'[1]INSUMOS ORSE'!$A:$D,3,0),IF(D170="SEINFRA",VLOOKUP(E170,'[1]INSUMOS SEINFRA'!$A:$D,3,0),))))) -> UN | H170: ='[1]Memória de Cálculo'!$L$963*$G$7 -> 84 | I170: =IF(C170="SERVIÇO",IF(D170="SINAPI",VLOOKUP(E170,'[1]SERVIÇOS SINAPI'!$A:$D,4,0),IF(D170="ORSE",VLOOKUP(E170,'[1]SERVIÇOS ORSE'!$A:$D,4,0),IF(D170="SEINFRA",VLOOKUP(E170,'[1]SERVIÇOS SEINFRA'!$A:$D,4,0)))),IF(C170="INSUMO",IF(D170="SINAPI",VLOOKUP(E170,'[1]INSUMOS SINAPI'!$A:$D,4,0),IF(D170="ORSE",VLOOKUP(E170,'[1]INSUMOS ORSE'!$A:$D,4,0),IF(D170="SEINFRA",VLOOKUP(E170,'[1]INSUMOS SEINFRA'!$A:$D,4,0),))))) -> 4.76 | J170: 5.3 | K170: 445.2 | L170: 4
B171: 2.7.19 | C171: INSUMO | D171: SINAPI | E171: 107 | F171: =IF(C171="SERVIÇO",IF(D171="SINAPI",VLOOKUP(E171,'[1]SERVIÇOS SINAPI'!$A:$D,2,0),IF(D171="ORSE",VLOOKUP(E171,'[1]SERVIÇOS ORSE'!$A:$D,2,0),IF(D171="SEINFRA",VLOOKUP(E171,'[1]SERVIÇOS SEINFRA'!$A:$D,2,0)))),IF(C171="INSUMO",IF(D171="SINAPI",VLOOKUP(E171,'[1]INSUMOS SINAPI'!$A:$D,2,0),IF(D171="ORSE",VLOOKUP(E171,'[1]INSUMOS ORSE'!$A:$D,2,0),IF(D171="SEINFRA",VLOOKUP(E171,'[1]INSUMOS SEINFRA'!$A:$D,2,0),))))) -> ADAPTADOR PVC SOLDAVEL CURTO COM BOLSA E ROSCA, 20 MM X 1/2", PARA AGUA FRIA | G171: =IF(C171="SERVIÇO",IF(D171="SINAPI",VLOOKUP(E171,'[1]SERVIÇOS SINAPI'!$A:$D,3,0),IF(D171="ORSE",VLOOKUP(E171,'[1]SERVIÇOS ORSE'!$A:$D,3,0),IF(D171="SEINFRA",VLOOKUP(E171,'[1]SERVIÇOS SEINFRA'!$A:$D,3,0)))),IF(C171="INSUMO",IF(D171="SINAPI",VLOOKUP(E171,'[1]INSUMOS SINAPI'!$A:$D,3,0),IF(D171="ORSE",VLOOKUP(E171,'[1]INSUMOS ORSE'!$A:$D,3,0),IF(D171="SEINFRA",VLOOKUP(E171,'[1]INSUMOS SEINFRA'!$A:$D,3,0),))))) -> UN | H171: ='[1]Memória de Cálculo'!$L$968*$G$7 -> 18 | I171: =IF(C171="SERVIÇO",IF(D171="SINAPI",VLOOKUP(E171,'[1]SERVIÇOS SINAPI'!$A:$D,4,0),IF(D171="ORSE",VLOOKUP(E171,'[1]SERVIÇOS ORSE'!$A:$D,4,0),IF(D171="SEINFRA",VLOOKUP(E171,'[1]SERVIÇOS SEINFRA'!$A:$D,4,0)))),IF(C171="INSUMO",IF(D171="SINAPI",VLOOKUP(E171,'[1]INSUMOS SINAPI'!$A:$D,4,0),IF(D171="ORSE",VLOOKUP(E171,'[1]INSUMOS ORSE'!$A:$D,4,0),IF(D171="SEINFRA",VLOOKUP(E171,'[1]INSUMOS SEINFRA'!$A:$D,4,0),))))) -> 0.87 | J171: 0.97 | K171: 17.46 | L171: 4
B172: 2.7.20 | C172: INSUMO | D172: SINAPI | E172: 12623 | F172: =IF(C172="SERVIÇO",IF(D172="SINAPI",VLOOKUP(E172,'[1]SERVIÇOS SINAPI'!$A:$D,2,0),IF(D172="ORSE",VLOOKUP(E172,'[1]SERVIÇOS ORSE'!$A:$D,2,0),IF(D172="SEINFRA",VLOOKUP(E172,'[1]SERVIÇOS SEINFRA'!$A:$D,2,0)))),IF(C172="INSUMO",IF(D172="SINAPI",VLOOKUP(E172,'[1]INSUMOS SINAPI'!$A:$D,2,0),IF(D172="ORSE",VLOOKUP(E172,'[1]INSUMOS ORSE'!$A:$D,2,0),IF(D172="SEINFRA",VLOOKUP(E172,'[1]INSUMOS SEINFRA'!$A:$D,2,0),))))) -> CONDUTOR PLUVIAL, PVC, CIRCULAR, DIAMETRO ENTRE 80 E 100 MM, PARA DRENAGEM PREDIAL | G172: =IF(C172="SERVIÇO",IF(D172="SINAPI",VLOOKUP(E172,'[1]SERVIÇOS SINAPI'!$A:$D,3,0),IF(D172="ORSE",VLOOKUP(E172,'[1]SERVIÇOS ORSE'!$A:$D,3,0),IF(D172="SEINFRA",VLOOKUP(E172,'[1]SERVIÇOS SEINFRA'!$A:$D,3,0)))),IF(C172="INSUMO",IF(D172="SINAPI",VLOOKUP(E172,'[1]INSUMOS SINAPI'!$A:$D,3,0),IF(D172="ORSE",VLOOKUP(E172,'[1]INSUMOS ORSE'!$A:$D,3,0),IF(D172="SEINFRA",VLOOKUP(E172,'[1]INSUMOS SEINFRA'!$A:$D,3,0),))))) -> M | H172: ='[1]Memória de Cálculo'!$L$973*$G$7 -> 216 | I172: =IF(C172="SERVIÇO",IF(D172="SINAPI",VLOOKUP(E172,'[1]SERVIÇOS SINAPI'!$A:$D,4,0),IF(D172="ORSE",VLOOKUP(E172,'[1]SERVIÇOS ORSE'!$A:$D,4,0),IF(D172="SEINFRA",VLOOKUP(E172,'[1]SERVIÇOS SEINFRA'!$A:$D,4,0)))),IF(C172="INSUMO",IF(D172="SINAPI",VLOOKUP(E172,'[1]INSUMOS SINAPI'!$A:$D,4,0),IF(D172="ORSE",VLOOKUP(E172,'[1]INSUMOS ORSE'!$A:$D,4,0),IF(D172="SEINFRA",VLOOKUP(E172,'[1]INSUMOS SEINFRA'!$A:$D,4,0),))))) -> 12.29 | J172: 13.69 | K172: 2957.04 | L172: 4
B173: 2.8 | C173: INSTALAÇÃO ELETRICA DO RAMAL DE ENTRADA E MEDIÇÃO NO PADRÃO CELPE PARA A UNIDADE DE MELHORAMENTO GENETICO | K173: =SUM(K174:K184) -> 17734.8
B174: 2.8.1 | C174: INSUMO | D174: SINAPI | E174: 39259 | F174: =IF(C174="SERVIÇO",IF(D174="SINAPI",VLOOKUP(E174,'[1]SERVIÇOS SINAPI'!$A:$D,2,0),IF(D174="ORSE",VLOOKUP(E174,'[1]SERVIÇOS ORSE'!$A:$D,2,0),IF(D174="SEINFRA",VLOOKUP(E174,'[1]SERVIÇOS SEINFRA'!$A:$D,2,0)))),IF(C174="INSUMO",IF(D174="SINAPI",VLOOKUP(E174,'[1]INSUMOS SINAPI'!$A:$D,2,0),IF(D174="ORSE",VLOOKUP(E174,'[1]INSUMOS ORSE'!$A:$D,2,0),IF(D174="SEINFRA",VLOOKUP(E174,'[1]INSUMOS SEINFRA'!$A:$D,2,0),))))) -> CABO MULTIPOLAR DE COBRE, FLEXIVEL, CLASSE 4 OU 5, ISOLACAO EM HEPR, COBERTURA EM PVC-ST2, ANTICHAMA BWF-B, 0,6/1 KV, 3 CONDUTORES DE 4 MM2 | G174: =IF(C174="SERVIÇO",IF(D174="SINAPI",VLOOKUP(E174,'[1]SERVIÇOS SINAPI'!$A:$D,3,0),IF(D174="ORSE",VLOOKUP(E174,'[1]SERVIÇOS ORSE'!$A:$D,3,0),IF(D174="SEINFRA",VLOOKUP(E174,'[1]SERVIÇOS SEINFRA'!$A:$D,3,0)))),IF(C174="INSUMO",IF(D174="SINAPI",VLOOKUP(E174,'[1]INSUMOS SINAPI'!$A:$D,3,0),IF(D174="ORSE",VLOOKUP(E174,'[1]INSUMOS ORSE'!$A:$D,3,0),IF(D174="SEINFRA",VLOOKUP(E174,'[1]INSUMOS SEINFRA'!$A:$D,3,0),))))) -> M | H174: ='[1]Memória de Cálculo'!$L$979*$G$7 -> 36 | I174: =IF(C174="SERVIÇO",IF(D174="SINAPI",VLOOKUP(E174,'[1]SERVIÇOS SINAPI'!$A:$D,4,0),IF(D174="ORSE",VLOOKUP(E174,'[1]SERVIÇOS ORSE'!$A:$D,4,0),IF(D174="SEINFRA",VLOOKUP(E174,'[1]SERVIÇOS SEINFRA'!$A:$D,4,0)))),IF(C174="INSUMO",IF(D174="SINAPI",VLOOKUP(E174,'[1]INSUMOS SINAPI'!$A:$D,4,0),IF(D174="ORSE",VLOOKUP(E174,'[1]INSUMOS ORSE'!$A:$D,4,0),IF(D174="SEINFRA",VLOOKUP(E174,'[1]INSUMOS SEINFRA'!$A:$D,4,0),))))) -> 15.13 | J174: =IF(C174="SERVIÇO",I174*(1+$I$8),IF(C174="INSUMO",(I174*(1+$K$8)))) -> 16.86 | K174: =J174*H174 -> 606.96 | L174: 5
B175: 2.8.2 | C175: SERVIÇO | D175: ORSE | E175: 11123 | F175: =IF(C175="SERVIÇO",IF(D175="SINAPI",VLOOKUP(E175,'[1]SERVIÇOS SINAPI'!$A:$D,2,0),IF(D175="ORSE",VLOOKUP(E175,'[1]SERVIÇOS ORSE'!$A:$D,2,0),IF(D175="SEINFRA",VLOOKUP(E175,'[1]SERVIÇOS SEINFRA'!$A:$D,2,0)))),IF(C175="INSUMO",IF(D175="SINAPI",VLOOKUP(E175,'[1]INSUMOS SINAPI'!$A:$D,2,0),IF(D175="ORSE",VLOOKUP(E175,'[1]INSUMOS ORSE'!$A:$D,2,0),IF(D175="SEINFRA",VLOOKUP(E175,'[1]INSUMOS SEINFRA'!$A:$D,2,0),))))) -> ENTRADA DE ENERGIA ELÉTRICA MONOFÁSICA DEMANDA ENTRE 3,8 E 6,3 KW - REV 01 | G175: =IF(C175="SERVIÇO",IF(D175="SINAPI",VLOOKUP(E175,'[1]SERVIÇOS SINAPI'!$A:$D,3,0),IF(D175="ORSE",VLOOKUP(E175,'[1]SERVIÇOS ORSE'!$A:$D,3,0),IF(D175="SEINFRA",VLOOKUP(E175,'[1]SERVIÇOS SEINFRA'!$A:$D,3,0)))),IF(C175="INSUMO",IF(D175="SINAPI",VLOOKUP(E175,'[1]INSUMOS SINAPI'!$A:$D,3,0),IF(D175="ORSE",VLOOKUP(E175,'[1]INSUMOS ORSE'!$A:$D,3,0),IF(D175="SEINFRA",VLOOKUP(E175,'[1]INSUMOS SEINFRA'!$A:$D,3,0),))))) -> UN | H175: ='[1]Memória de Cálculo'!$L$983*$G$7 -> 6 | I175: =IF(C175="SERVIÇO",IF(D175="SINAPI",VLOOKUP(E175,'[1]SERVIÇOS SINAPI'!$A:$D,4,0),IF(D175="ORSE",VLOOKUP(E175,'[1]SERVIÇOS ORSE'!$A:$D,4,0),IF(D175="SEINFRA",VLOOKUP(E175,'[1]SERVIÇOS SEINFRA'!$A:$D,4,0)))),IF(C175="INSUMO",IF(D175="SINAPI",VLOOKUP(E175,'[1]INSUMOS SINAPI'!$A:$D,4,0),IF(D175="ORSE",VLOOKUP(E175,'[1]INSUMOS ORSE'!$A:$D,4,0),IF(D175="SEINFRA",VLOOKUP(E175,'[1]INSUMOS SEINFRA'!$A:$D,4,0),))))) -> 1841.69 | J175: 2274.49 | K175: 13646.94 | L175: 5
B176: 2.8.3 | C176: INSUMO | D176: SINAPI | E176: 868 | F176: =IF(C176="SERVIÇO",IF(D176="SINAPI",VLOOKUP(E176,'[1]SERVIÇOS SINAPI'!$A:$D,2,0),IF(D176="ORSE",VLOOKUP(E176,'[1]SERVIÇOS ORSE'!$A:$D,2,0),IF(D176="SEINFRA",VLOOKUP(E176,'[1]SERVIÇOS SEINFRA'!$A:$D,2,0)))),IF(C176="INSUMO",IF(D176="SINAPI",VLOOKUP(E176,'[1]INSUMOS SINAPI'!$A:$D,2,0),IF(D176="ORSE",VLOOKUP(E176,'[1]INSUMOS ORSE'!$A:$D,2,0),IF(D176="SEINFRA",VLOOKUP(E176,'[1]INSUMOS SEINFRA'!$A:$D,2,0),))))) -> CABO DE COBRE NU 25 MM2 MEIO-DURO | G176: =IF(C176="SERVIÇO",IF(D176="SINAPI",VLOOKUP(E176,'[1]SERVIÇOS SINAPI'!$A:$D,3,0),IF(D176="ORSE",VLOOKUP(E176,'[1]SERVIÇOS ORSE'!$A:$D,3,0),IF(D176="SEINFRA",VLOOKUP(E176,'[1]SERVIÇOS SEINFRA'!$A:$D,3,0)))),IF(C176="INSUMO",IF(D176="SINAPI",VLOOKUP(E176,'[1]INSUMOS SINAPI'!$A:$D,3,0),IF(D176="ORSE",VLOOKUP(E176,'[1]INSUMOS ORSE'!$A:$D,3,0),IF(D176="SEINFRA",VLOOKUP(E176,'[1]INSUMOS SEINFRA'!$A:$D,3,0),))))) -> M | H176: ='[1]Memória de Cálculo'!$L$987*$G$7 -> 48 | I176: =IF(C176="SERVIÇO",IF(D176="SINAPI",VLOOKUP(E176,'[1]SERVIÇOS SINAPI'!$A:$D,4,0),IF(D176="ORSE",VLOOKUP(E176,'[1]SERVIÇOS ORSE'!$A:$D,4,0),IF(D176="SEINFRA",VLOOKUP(E176,'[1]SERVIÇOS SEINFRA'!$A:$D,4,0)))),IF(C176="INSUMO",IF(D176="SINAPI",VLOOKUP(E176,'[1]INSUMOS SINAPI'!$A:$D,4,0),IF(D176="ORSE",VLOOKUP(E176,'[1]INSUMOS ORSE'!$A:$D,4,0),IF(D176="SEINFRA",VLOOKUP(E176,'[1]INSUMOS SEINFRA'!$A:$D,4,0),))))) -> 28.17 | J176: 31.39 | K176: 1506.72 | L176: 5
B177: 2.8.4 | C177: INSUMO | D177: SINAPI | E177: 3379 | F177: =IF(C177="SERVIÇO",IF(D177="SINAPI",VLOOKUP(E177,'[1]SERVIÇOS SINAPI'!$A:$D,2,0),IF(D177="ORSE",VLOOKUP(E177,'[1]SERVIÇOS ORSE'!$A:$D,2,0),IF(D177="SEINFRA",VLOOKUP(E177,'[1]SERVIÇOS SEINFRA'!$A:$D,2,0)))),IF(C177="INSUMO",IF(D177="SINAPI",VLOOKUP(E177,'[1]INSUMOS SINAPI'!$A:$D,2,0),IF(D177="ORSE",VLOOKUP(E177,'[1]INSUMOS ORSE'!$A:$D,2,0),IF(D177="SEINFRA",VLOOKUP(E177,'[1]INSUMOS SEINFRA'!$A:$D,2,0),))))) -> !EM PROCESSO DE DESATIVACAO! HASTE DE ATERRAMENTO EM ACO COM 3,00 M DE COMPRIMENTO E DN = 5/8", REVESTIDA COM BAIXA CAMADA DE COBRE, SEM CONECTOR | G177: =IF(C177="SERVIÇO",IF(D177="SINAPI",VLOOKUP(E177,'[1]SERVIÇOS SINAPI'!$A:$D,3,0),IF(D177="ORSE",VLOOKUP(E177,'[1]SERVIÇOS ORSE'!$A:$D,3,0),IF(D177="SEINFRA",VLOOKUP(E177,'[1]SERVIÇOS SEINFRA'!$A:$D,3,0)))),IF(C177="INSUMO",IF(D177="SINAPI",VLOOKUP(E177,'[1]INSUMOS SINAPI'!$A:$D,3,0),IF(D177="ORSE",VLOOKUP(E177,'[1]INSUMOS ORSE'!$A:$D,3,0),IF(D177="SEINFRA",VLOOKUP(E177,'[1]INSUMOS SEINFRA'!$A:$D,3,0),))))) -> UN | H177: ='[1]Memória de Cálculo'!$L$991*$G$7 -> 6 | I177: =IF(C177="SERVIÇO",IF(D177="SINAPI",VLOOKUP(E177,'[1]SERVIÇOS SINAPI'!$A:$D,4,0),IF(D177="ORSE",VLOOKUP(E177,'[1]SERVIÇOS ORSE'!$A:$D,4,0),IF(D177="SEINFRA",VLOOKUP(E177,'[1]SERVIÇOS SEINFRA'!$A:$D,4,0)))),IF(C177="INSUMO",IF(D177="SINAPI",VLOOKUP(E177,'[1]INSUMOS SINAPI'!$A:$D,4,0),IF(D177="ORSE",VLOOKUP(E177,'[1]INSUMOS ORSE'!$A:$D,4,0),IF(D177="SEINFRA",VLOOKUP(E177,'[1]INSUMOS SEINFRA'!$A:$D,4,0),))))) -> 60.82 | J177: 67.77 | K177: 406.62 | L177: 5
B178: 2.8.5 | C178: INSUMO | D178: ORSE | E178: 11848 | F178: =IF(C178="SERVIÇO",IF(D178="SINAPI",VLOOKUP(E178,'[1]SERVIÇOS SINAPI'!$A:$D,2,0),IF(D178="ORSE",VLOOKUP(E178,'[1]SERVIÇOS ORSE'!$A:$D,2,0),IF(D178="SEINFRA",VLOOKUP(E178,'[1]SERVIÇOS SEINFRA'!$A:$D,2,0)))),IF(C178="INSUMO",IF(D178="SINAPI",VLOOKUP(E178,'[1]INSUMOS SINAPI'!$A:$D,2,0),IF(D178="ORSE",VLOOKUP(E178,'[1]INSUMOS ORSE'!$A:$D,2,0),IF(D178="SEINFRA",VLOOKUP(E178,'[1]INSUMOS SEINFRA'!$A:$D,2,0),))))) -> CONECTOR CABO-HASTE EM BRONZE NATURAL PARA 2 CABOS COBRE DE 16MM² A 70MM² COM GRAMPO "U" E PORCAS DE AÇO GALV.REF:TEL-583 OU SIMILAR | G178: =IF(C178="SERVIÇO",IF(D178="SINAPI",VLOOKUP(E178,'[1]SERVIÇOS SINAPI'!$A:$D,3,0),IF(D178="ORSE",VLOOKUP(E178,'[1]SERVIÇOS ORSE'!$A:$D,3,0),IF(D178="SEINFRA",VLOOKUP(E178,'[1]SERVIÇOS SEINFRA'!$A:$D,3,0)))),IF(C178="INSUMO",IF(D178="SINAPI",VLOOKUP(E178,'[1]INSUMOS SINAPI'!$A:$D,3,0),IF(D178="ORSE",VLOOKUP(E178,'[1]INSUMOS ORSE'!$A:$D,3,0),IF(D178="SEINFRA",VLOOKUP(E178,'[1]INSUMOS SEINFRA'!$A:$D,3,0),))))) -> UN | H178: ='[1]Memória de Cálculo'!$L$991*$G$7 -> 6 | I178: =IF(C178="SERVIÇO",IF(D178="SINAPI",VLOOKUP(E178,'[1]SERVIÇOS SINAPI'!$A:$D,4,0),IF(D178="ORSE",VLOOKUP(E178,'[1]SERVIÇOS ORSE'!$A:$D,4,0),IF(D178="SEINFRA",VLOOKUP(E178,'[1]SERVIÇOS SEINFRA'!$A:$D,4,0)))),IF(C178="INSUMO",IF(D178="SINAPI",VLOOKUP(E178,'[1]INSUMOS SINAPI'!$A:$D,4,0),IF(D178="ORSE",VLOOKUP(E178,'[1]INSUMOS ORSE'!$A:$D,4,0),IF(D178="SEINFRA",VLOOKUP(E178,'[1]INSUMOS SEINFRA'!$A:$D,4,0),))))) -> 3.9 | J178: 4.35 | K178: 26.1 | L178: 5
B179: 2.8.6 | C179: INSUMO | D179: ORSE | E179: 3721 | F179: =IF(C179="SERVIÇO",IF(D179="SINAPI",VLOOKUP(E179,'[1]SERVIÇOS SINAPI'!$A:$D,2,0),IF(D179="ORSE",VLOOKUP(E179,'[1]SERVIÇOS ORSE'!$A:$D,2,0),IF(D179="SEINFRA",VLOOKUP(E179,'[1]SERVIÇOS SEINFRA'!$A:$D,2,0)))),IF(C179="INSUMO",IF(D179="SINAPI",VLOOKUP(E179,'[1]INSUMOS SINAPI'!$A:$D,2,0),IF(D179="ORSE",VLOOKUP(E179,'[1]INSUMOS ORSE'!$A:$D,2,0),IF(D179="SEINFRA",VLOOKUP(E179,'[1]INSUMOS SEINFRA'!$A:$D,2,0),))))) -> DISJUNTOR MONOPOLAR 40 A, PADRÃO NEMA ( LINHA PRETA ), CORRENTE DE INTERRUPÇÃ O 5KA, REF.: ELETROMAR OU SIMILAR | G179: =IF(C179="SERVIÇO",IF(D179="SINAPI",VLOOKUP(E179,'[1]SERVIÇOS SINAPI'!$A:$D,3,0),IF(D179="ORSE",VLOOKUP(E179,'[1]SERVIÇOS ORSE'!$A:$D,3,0),IF(D179="SEINFRA",VLOOKUP(E179,'[1]SERVIÇOS SEINFRA'!$A:$D,3,0)))),IF(C179="INSUMO",IF(D179="SINAPI",VLOOKUP(E179,'[1]INSUMOS SINAPI'!$A:$D,3,0),IF(D179="ORSE",VLOOKUP(E179,'[1]INSUMOS ORSE'!$A:$D,3,0),IF(D179="SEINFRA",VLOOKUP(E179,'[1]INSUMOS SEINFRA'!$A:$D,3,0),))))) -> UN | H179: ='[1]Memória de Cálculo'!$L$999*$G$7 -> 6 | I179: =IF(C179="SERVIÇO",IF(D179="SINAPI",VLOOKUP(E179,'[1]SERVIÇOS SINAPI'!$A:$D,4,0),IF(D179="ORSE",VLOOKUP(E179,'[1]SERVIÇOS ORSE'!$A:$D,4,0),IF(D179="SEINFRA",VLOOKUP(E179,'[1]SERVIÇOS SEINFRA'!$A:$D,4,0)))),IF(C179="INSUMO",IF(D179="SINAPI",VLOOKUP(E179,'[1]INSUMOS SINAPI'!$A:$D,4,0),IF(D179="ORSE",VLOOKUP(E179,'[1]INSUMOS ORSE'!$A:$D,4,0),IF(D179="SEINFRA",VLOOKUP(E179,'[1]INSUMOS SEINFRA'!$A:$D,4,0),))))) -> 12.75 | J179: 14.21 | K179: 85.26 | L179: 4
B180: 2.8.7 | C180: INSUMO | D180: SINAPI | E180: 2685 | F180: =IF(C180="SERVIÇO",IF(D180="SINAPI",VLOOKUP(E180,'[1]SERVIÇOS SINAPI'!$A:$D,2,0),IF(D180="ORSE",VLOOKUP(E180,'[1]SERVIÇOS ORSE'!$A:$D,2,0),IF(D180="SEINFRA",VLOOKUP(E180,'[1]SERVIÇOS SEINFRA'!$A:$D,2,0)))),IF(C180="INSUMO",IF(D180="SINAPI",VLOOKUP(E180,'[1]INSUMOS SINAPI'!$A:$D,2,0),IF(D180="ORSE",VLOOKUP(E180,'[1]INSUMOS ORSE'!$A:$D,2,0),IF(D180="SEINFRA",VLOOKUP(E180,'[1]INSUMOS SEINFRA'!$A:$D,2,0),))))) -> ELETRODUTO DE PVC RIGIDO ROSCAVEL DE 1 ", SEM LUVA | G180: =IF(C180="SERVIÇO",IF(D180="SINAPI",VLOOKUP(E180,'[1]SERVIÇOS SINAPI'!$A:$D,3,0),IF(D180="ORSE",VLOOKUP(E180,'[1]SERVIÇOS ORSE'!$A:$D,3,0),IF(D180="SEINFRA",VLOOKUP(E180,'[1]SERVIÇOS SEINFRA'!$A:$D,3,0)))),IF(C180="INSUMO",IF(D180="SINAPI",VLOOKUP(E180,'[1]INSUMOS SINAPI'!$A:$D,3,0),IF(D180="ORSE",VLOOKUP(E180,'[1]INSUMOS ORSE'!$A:$D,3,0),IF(D180="SEINFRA",VLOOKUP(E180,'[1]INSUMOS SEINFRA'!$A:$D,3,0),))))) -> M | H180: ='[1]Memória de Cálculo'!$L$1003*$G$7 -> 12 | I180: =IF(C180="SERVIÇO",IF(D180="SINAPI",VLOOKUP(E180,'[1]SERVIÇOS SINAPI'!$A:$D,4,0),IF(D180="ORSE",VLOOKUP(E180,'[1]SERVIÇOS ORSE'!$A:$D,4,0),IF(D180="SEINFRA",VLOOKUP(E180,'[1]SERVIÇOS SEINFRA'!$A:$D,4,0)))),IF(C180="INSUMO",IF(D180="SINAPI",VLOOKUP(E180,'[1]INSUMOS SINAPI'!$A:$D,4,0),IF(D180="ORSE",VLOOKUP(E180,'[1]INSUMOS ORSE'!$A:$D,4,0),IF(D180="SEINFRA",VLOOKUP(E180,'[1]INSUMOS SEINFRA'!$A:$D,4,0),))))) -> 7.45 | J180: 8.3 | K180: 99.6 | L180: 4
B181: 2.8.8 | C181: INSUMO | D181: SINAPI | E181: 1892 | F181: =IF(C181="SERVIÇO",IF(D181="SINAPI",VLOOKUP(E181,'[1]SERVIÇOS SINAPI'!$A:$D,2,0),IF(D181="ORSE",VLOOKUP(E181,'[1]SERVIÇOS ORSE'!$A:$D,2,0),IF(D181="SEINFRA",VLOOKUP(E181,'[1]SERVIÇOS SEINFRA'!$A:$D,2,0)))),IF(C181="INSUMO",IF(D181="SINAPI",VLOOKUP(E181,'[1]INSUMOS SINAPI'!$A:$D,2,0),IF(D181="ORSE",VLOOKUP(E181,'[1]INSUMOS ORSE'!$A:$D,2,0),IF(D181="SEINFRA",VLOOKUP(E181,'[1]INSUMOS SEINFRA'!$A:$D,2,0),))))) -> LUVA EM PVC RIGIDO ROSCAVEL, DE 1", PARA ELETRODUTO | G181: =IF(C181="SERVIÇO",IF(D181="SINAPI",VLOOKUP(E181,'[1]SERVIÇOS SINAPI'!$A:$D,3,0),IF(D181="ORSE",VLOOKUP(E181,'[1]SERVIÇOS ORSE'!$A:$D,3,0),IF(D181="SEINFRA",VLOOKUP(E181,'[1]SERVIÇOS SEINFRA'!$A:$D,3,0)))),IF(C181="INSUMO",IF(D181="SINAPI",VLOOKUP(E181,'[1]INSUMOS SINAPI'!$A:$D,3,0),IF(D181="ORSE",VLOOKUP(E181,'[1]INSUMOS ORSE'!$A:$D,3,0),IF(D181="SEINFRA",VLOOKUP(E181,'[1]INSUMOS SEINFRA'!$A:$D,3,0),))))) -> UN | H181: ='[1]Memória de Cálculo'!$L$1007*$G$7 -> 6 | I181: =IF(C181="SERVIÇO",IF(D181="SINAPI",VLOOKUP(E181,'[1]SERVIÇOS SINAPI'!$A:$D,4,0),IF(D181="ORSE",VLOOKUP(E181,'[1]SERVIÇOS ORSE'!$A:$D,4,0),IF(D181="SEINFRA",VLOOKUP(E181,'[1]SERVIÇOS SEINFRA'!$A:$D,4,0)))),IF(C181="INSUMO",IF(D181="SINAPI",VLOOKUP(E181,'[1]INSUMOS SINAPI'!$A:$D,4,0),IF(D181="ORSE",VLOOKUP(E181,'[1]INSUMOS ORSE'!$A:$D,4,0),IF(D181="SEINFRA",VLOOKUP(E181,'[1]INSUMOS SEINFRA'!$A:$D,4,0),))))) -> 1.83 | J181: 2.04 | K181: 12.24 | L181: 4
B182: 2.8.9 | C182: INSUMO | D182: SINAPI | E182: 1884 | F182: =IF(C182="SERVIÇO",IF(D182="SINAPI",VLOOKUP(E182,'[1]SERVIÇOS SINAPI'!$A:$D,2,0),IF(D182="ORSE",VLOOKUP(E182,'[1]SERVIÇOS ORSE'!$A:$D,2,0),IF(D182="SEINFRA",VLOOKUP(E182,'[1]SERVIÇOS SEINFRA'!$A:$D,2,0)))),IF(C182="INSUMO",IF(D182="SINAPI",VLOOKUP(E182,'[1]INSUMOS SINAPI'!$A:$D,2,0),IF(D182="ORSE",VLOOKUP(E182,'[1]INSUMOS ORSE'!$A:$D,2,0),IF(D182="SEINFRA",VLOOKUP(E182,'[1]INSUMOS SEINFRA'!$A:$D,2,0),))))) -> CURVA 90 GRAUS, LONGA, DE PVC RIGIDO ROSCAVEL, DE 1", PARA ELETRODUTO | G182: =IF(C182="SERVIÇO",IF(D182="SINAPI",VLOOKUP(E182,'[1]SERVIÇOS SINAPI'!$A:$D,3,0),IF(D182="ORSE",VLOOKUP(E182,'[1]SERVIÇOS ORSE'!$A:$D,3,0),IF(D182="SEINFRA",VLOOKUP(E182,'[1]SERVIÇOS SEINFRA'!$A:$D,3,0)))),IF(C182="INSUMO",IF(D182="SINAPI",VLOOKUP(E182,'[1]INSUMOS SINAPI'!$A:$D,3,0),IF(D182="ORSE",VLOOKUP(E182,'[1]INSUMOS ORSE'!$A:$D,3,0),IF(D182="SEINFRA",VLOOKUP(E182,'[1]INSUMOS SEINFRA'!$A:$D,3,0),))))) -> UN | H182: ='[1]Memória de Cálculo'!$L$1011*$G$7 -> 6 | I182: =IF(C182="SERVIÇO",IF(D182="SINAPI",VLOOKUP(E182,'[1]SERVIÇOS SINAPI'!$A:$D,4,0),IF(D182="ORSE",VLOOKUP(E182,'[1]SERVIÇOS ORSE'!$A:$D,4,0),IF(D182="SEINFRA",VLOOKUP(E182,'[1]SERVIÇOS SEINFRA'!$A:$D,4,0)))),IF(C182="INSUMO",IF(D182="SINAPI",VLOOKUP(E182,'[1]INSUMOS SINAPI'!$A:$D,4,0),IF(D182="ORSE",VLOOKUP(E182,'[1]INSUMOS ORSE'!$A:$D,4,0),IF(D182="SEINFRA",VLOOKUP(E182,'[1]INSUMOS SEINFRA'!$A:$D,4,0),))))) -> 4.59 | J182: 5.11 | K182: 30.66 | L182: 4
B183: 2.8.10 | C183: INSUMO | D183: ORSE | E183: 9722 | F183: =IF(C183="SERVIÇO",IF(D183="SINAPI",VLOOKUP(E183,'[1]SERVIÇOS SINAPI'!$A:$D,2,0),IF(D183="ORSE",VLOOKUP(E183,'[1]SERVIÇOS ORSE'!$A:$D,2,0),IF(D183="SEINFRA",VLOOKUP(E183,'[1]SERVIÇOS SEINFRA'!$A:$D,2,0)))),IF(C183="INSUMO",IF(D183="SINAPI",VLOOKUP(E183,'[1]INSUMOS SINAPI'!$A:$D,2,0),IF(D183="ORSE",VLOOKUP(E183,'[1]INSUMOS ORSE'!$A:$D,2,0),IF(D183="SEINFRA",VLOOKUP(E183,'[1]INSUMOS SEINFRA'!$A:$D,2,0),))))) -> CORPO DA CAIXA DE INSPEÇÃO EM PVC P/ATERRAMENTO D=300MM, REDONDA, H=300MM, RE F: TEL-552 OU SIMILAR (SPDA) | G183: =IF(C183="SERVIÇO",IF(D183="SINAPI",VLOOKUP(E183,'[1]SERVIÇOS SINAPI'!$A:$D,3,0),IF(D183="ORSE",VLOOKUP(E183,'[1]SERVIÇOS ORSE'!$A:$D,3,0),IF(D183="SEINFRA",VLOOKUP(E183,'[1]SERVIÇOS SEINFRA'!$A:$D,3,0)))),IF(C183="INSUMO",IF(D183="SINAPI",VLOOKUP(E183,'[1]INSUMOS SINAPI'!$A:$D,3,0),IF(D183="ORSE",VLOOKUP(E183,'[1]INSUMOS ORSE'!$A:$D,3,0),IF(D183="SEINFRA",VLOOKUP(E183,'[1]INSUMOS SEINFRA'!$A:$D,3,0),))))) -> UN | H183: ='[1]Memória de Cálculo'!$L$1015*$G$7 -> 6 | I183: =IF(C183="SERVIÇO",IF(D183="SINAPI",VLOOKUP(E183,'[1]SERVIÇOS SINAPI'!$A:$D,4,0),IF(D183="ORSE",VLOOKUP(E183,'[1]SERVIÇOS ORSE'!$A:$D,4,0),IF(D183="SEINFRA",VLOOKUP(E183,'[1]SERVIÇOS SEINFRA'!$A:$D,4,0)))),IF(C183="INSUMO",IF(D183="SINAPI",VLOOKUP(E183,'[1]INSUMOS SINAPI'!$A:$D,4,0),IF(D183="ORSE",VLOOKUP(E183,'[1]INSUMOS ORSE'!$A:$D,4,0),IF(D183="SEINFRA",VLOOKUP(E183,'[1]INSUMOS SEINFRA'!$A:$D,4,0),))))) -> 26.6 | J183: 29.64 | K183: 177.84 | L183: 4
B184: 2.8.11 | C184: INSUMO | D184: ORSE | E184: 9723 | F184: =IF(C184="SERVIÇO",IF(D184="SINAPI",VLOOKUP(E184,'[1]SERVIÇOS SINAPI'!$A:$D,2,0),IF(D184="ORSE",VLOOKUP(E184,'[1]SERVIÇOS ORSE'!$A:$D,2,0),IF(D184="SEINFRA",VLOOKUP(E184,'[1]SERVIÇOS SEINFRA'!$A:$D,2,0)))),IF(C184="INSUMO",IF(D184="SINAPI",VLOOKUP(E184,'[1]INSUMOS SINAPI'!$A:$D,2,0),IF(D184="ORSE",VLOOKUP(E184,'[1]INSUMOS ORSE'!$A:$D,2,0),IF(D184="SEINFRA",VLOOKUP(E184,'[1]INSUMOS SEINFRA'!$A:$D,2,0),))))) -> TAMPA REFORÇADA EM FERRO FUNDIDO D=300MM, C/ESCOTILHA QUADRADA E ARTICULADA, P/CX.ATERRAMENTO, REF:TEL-536 OU SIMILAR (SPDA) | G184: =IF(C184="SERVIÇO",IF(D184="SINAPI",VLOOKUP(E184,'[1]SERVIÇOS SINAPI'!$A:$D,3,0),IF(D184="ORSE",VLOOKUP(E184,'[1]SERVIÇOS ORSE'!$A:$D,3,0),IF(D184="SEINFRA",VLOOKUP(E184,'[1]SERVIÇOS SEINFRA'!$A:$D,3,0)))),IF(C184="INSUMO",IF(D184="SINAPI",VLOOKUP(E184,'[1]INSUMOS SINAPI'!$A:$D,3,0),IF(D184="ORSE",VLOOKUP(E184,'[1]INSUMOS ORSE'!$A:$D,3,0),IF(D184="SEINFRA",VLOOKUP(E184,'[1]INSUMOS SEINFRA'!$A:$D,3,0),))))) -> UN | H184: ='[1]Memória de Cálculo'!$L$1019*$G$7 -> 6 | I184: =IF(C184="SERVIÇO",IF(D184="SINAPI",VLOOKUP(E184,'[1]SERVIÇOS SINAPI'!$A:$D,4,0),IF(D184="ORSE",VLOOKUP(E184,'[1]SERVIÇOS ORSE'!$A:$D,4,0),IF(D184="SEINFRA",VLOOKUP(E184,'[1]SERVIÇOS SEINFRA'!$A:$D,4,0)))),IF(C184="INSUMO",IF(D184="SINAPI",VLOOKUP(E184,'[1]INSUMOS SINAPI'!$A:$D,4,0),IF(D184="ORSE",VLOOKUP(E184,'[1]INSUMOS ORSE'!$A:$D,4,0),IF(D184="SEINFRA",VLOOKUP(E184,'[1]INSUMOS SEINFRA'!$A:$D,4,0),))))) -> 169.89 | J184: 189.31 | K184: 1135.86 | L184: 5
B185: 2.9 | C185: INSUMOS PARA INSTALAÇÃO DO SPDA DA UNIDADE DE MELHORAMENTO GENETICO | K185: =SUM(K186:K196) -> 10215.67
B186: 2.9.1 | C186: INSUMO | D186: ORSE | E186: 11513 | F186: =IF(C186="SERVIÇO",IF(D186="SINAPI",VLOOKUP(E186,'[1]SERVIÇOS SINAPI'!$A:$D,2,0),IF(D186="ORSE",VLOOKUP(E186,'[1]SERVIÇOS ORSE'!$A:$D,2,0),IF(D186="SEINFRA",VLOOKUP(E186,'[1]SERVIÇOS SEINFRA'!$A:$D,2,0)))),IF(C186="INSUMO",IF(D186="SINAPI",VLOOKUP(E186,'[1]INSUMOS SINAPI'!$A:$D,2,0),IF(D186="ORSE",VLOOKUP(E186,'[1]INSUMOS ORSE'!$A:$D,2,0),IF(D186="SEINFRA",VLOOKUP(E186,'[1]INSUMOS SEINFRA'!$A:$D,2,0),))))) -> CAIXA INSPEÇÃO EM POLIAMIDA 150X110X70MM, REF:TEL-541 OU SIMILAR (P/SPDA) | G186: =IF(C186="SERVIÇO",IF(D186="SINAPI",VLOOKUP(E186,'[1]SERVIÇOS SINAPI'!$A:$D,3,0),IF(D186="ORSE",VLOOKUP(E186,'[1]SERVIÇOS ORSE'!$A:$D,3,0),IF(D186="SEINFRA",VLOOKUP(E186,'[1]SERVIÇOS SEINFRA'!$A:$D,3,0)))),IF(C186="INSUMO",IF(D186="SINAPI",VLOOKUP(E186,'[1]INSUMOS SINAPI'!$A:$D,3,0),IF(D186="ORSE",VLOOKUP(E186,'[1]INSUMOS ORSE'!$A:$D,3,0),IF(D186="SEINFRA",VLOOKUP(E186,'[1]INSUMOS SEINFRA'!$A:$D,3,0),))))) -> UN | H186: ='[1]Memória de Cálculo'!$L$1024*$G$7 -> 6 | I186: =IF(C186="SERVIÇO",IF(D186="SINAPI",VLOOKUP(E186,'[1]SERVIÇOS SINAPI'!$A:$D,4,0),IF(D186="ORSE",VLOOKUP(E186,'[1]SERVIÇOS ORSE'!$A:$D,4,0),IF(D186="SEINFRA",VLOOKUP(E186,'[1]SERVIÇOS SEINFRA'!$A:$D,4,0)))),IF(C186="INSUMO",IF(D186="SINAPI",VLOOKUP(E186,'[1]INSUMOS SINAPI'!$A:$D,4,0),IF(D186="ORSE",VLOOKUP(E186,'[1]INSUMOS ORSE'!$A:$D,4,0),IF(D186="SEINFRA",VLOOKUP(E186,'[1]INSUMOS SEINFRA'!$A:$D,4,0),))))) -> 85.15 | J186: =IF(C186="SERVIÇO",I186*(1+$I$8),IF(C186="INSUMO",(I186*(1+$K$8)))) -> 94.88 | K186: =J186*H186 -> 569.28 | L186: 4
B187: 2.9.2 | C187: INSUMO | D187: ORSE | E187: 398 | F187: =IF(C187="SERVIÇO",IF(D187="SINAPI",VLOOKUP(E187,'[1]SERVIÇOS SINAPI'!$A:$D,2,0),IF(D187="ORSE",VLOOKUP(E187,'[1]SERVIÇOS ORSE'!$A:$D,2,0),IF(D187="SEINFRA",VLOOKUP(E187,'[1]SERVIÇOS SEINFRA'!$A:$D,2,0)))),IF(C187="INSUMO",IF(D187="SINAPI",VLOOKUP(E187,'[1]INSUMOS SINAPI'!$A:$D,2,0),IF(D187="ORSE",VLOOKUP(E187,'[1]INSUMOS ORSE'!$A:$D,2,0),IF(D187="SEINFRA",VLOOKUP(E187,'[1]INSUMOS SEINFRA'!$A:$D,2,0),))))) -> CABO DE ALUMÍNIO NU ASC, SEM ALMA DE AÇO, 7X1 FIOS - 2/0 AWG | G187: =IF(C187="SERVIÇO",IF(D187="SINAPI",VLOOKUP(E187,'[1]SERVIÇOS SINAPI'!$A:$D,3,0),IF(D187="ORSE",VLOOKUP(E187,'[1]SERVIÇOS ORSE'!$A:$D,3,0),IF(D187="SEINFRA",VLOOKUP(E187,'[1]SERVIÇOS SEINFRA'!$A:$D,3,0)))),IF(C187="INSUMO",IF(D187="SINAPI",VLOOKUP(E187,'[1]INSUMOS SINAPI'!$A:$D,3,0),IF(D187="ORSE",VLOOKUP(E187,'[1]INSUMOS ORSE'!$A:$D,3,0),IF(D187="SEINFRA",VLOOKUP(E187,'[1]INSUMOS SEINFRA'!$A:$D,3,0),))))) -> KG | H187: ='[1]Memória de Cálculo'!$L$1028*$G$7 -> 21.6 | I187: =IF(C187="SERVIÇO",IF(D187="SINAPI",VLOOKUP(E187,'[1]SERVIÇOS SINAPI'!$A:$D,4,0),IF(D187="ORSE",VLOOKUP(E187,'[1]SERVIÇOS ORSE'!$A:$D,4,0),IF(D187="SEINFRA",VLOOKUP(E187,'[1]SERVIÇOS SEINFRA'!$A:$D,4,0)))),IF(C187="INSUMO",IF(D187="SINAPI",VLOOKUP(E187,'[1]INSUMOS SINAPI'!$A:$D,4,0),IF(D187="ORSE",VLOOKUP(E187,'[1]INSUMOS ORSE'!$A:$D,4,0),IF(D187="SEINFRA",VLOOKUP(E187,'[1]INSUMOS SEINFRA'!$A:$D,4,0),))))) -> 34.12 | J187: 38.02 | K187: 821.23 | L187: 5
B188: 2.9.3 | C188: INSUMO | D188: ORSE | E188: 9329 | F188: =IF(C188="SERVIÇO",IF(D188="SINAPI",VLOOKUP(E188,'[1]SERVIÇOS SINAPI'!$A:$D,2,0),IF(D188="ORSE",VLOOKUP(E188,'[1]SERVIÇOS ORSE'!$A:$D,2,0),IF(D188="SEINFRA",VLOOKUP(E188,'[1]SERVIÇOS SEINFRA'!$A:$D,2,0)))),IF(C188="INSUMO",IF(D188="SINAPI",VLOOKUP(E188,'[1]INSUMOS SINAPI'!$A:$D,2,0),IF(D188="ORSE",VLOOKUP(E188,'[1]INSUMOS ORSE'!$A:$D,2,0),IF(D188="SEINFRA",VLOOKUP(E188,'[1]INSUMOS SEINFRA'!$A:$D,2,0),))))) -> CONECTOR DE MEDIÇÃO EM BRONZE C/4 PARAFUSOS P/CABOS DE COBRE 16-70MM² REF.TEL -560 (PÁRA-RAIO) | G188: =IF(C188="SERVIÇO",IF(D188="SINAPI",VLOOKUP(E188,'[1]SERVIÇOS SINAPI'!$A:$D,3,0),IF(D188="ORSE",VLOOKUP(E188,'[1]SERVIÇOS ORSE'!$A:$D,3,0),IF(D188="SEINFRA",VLOOKUP(E188,'[1]SERVIÇOS SEINFRA'!$A:$D,3,0)))),IF(C188="INSUMO",IF(D188="SINAPI",VLOOKUP(E188,'[1]INSUMOS SINAPI'!$A:$D,3,0),IF(D188="ORSE",VLOOKUP(E188,'[1]INSUMOS ORSE'!$A:$D,3,0),IF(D188="SEINFRA",VLOOKUP(E188,'[1]INSUMOS SEINFRA'!$A:$D,3,0),))))) -> UN | H188: ='[1]Memória de Cálculo'!$L$1032*$G$7 -> 6 | I188: =IF(C188="SERVIÇO",IF(D188="SINAPI",VLOOKUP(E188,'[1]SERVIÇOS SINAPI'!$A:$D,4,0),IF(D188="ORSE",VLOOKUP(E188,'[1]SERVIÇOS ORSE'!$A:$D,4,0),IF(D188="SEINFRA",VLOOKUP(E188,'[1]SERVIÇOS SEINFRA'!$A:$D,4,0)))),IF(C188="INSUMO",IF(D188="SINAPI",VLOOKUP(E188,'[1]INSUMOS SINAPI'!$A:$D,4,0),IF(D188="ORSE",VLOOKUP(E188,'[1]INSUMOS ORSE'!$A:$D,4,0),IF(D188="SEINFRA",VLOOKUP(E188,'[1]INSUMOS SEINFRA'!$A:$D,4,0),))))) -> 35.5 | J188: 39.56 | K188: 237.36 | L188: 5
B189: 2.9.4 | C189: INSUMO | D189: SINAPI | E189: 2685 | F189: =IF(C189="SERVIÇO",IF(D189="SINAPI",VLOOKUP(E189,'[1]SERVIÇOS SINAPI'!$A:$D,2,0),IF(D189="ORSE",VLOOKUP(E189,'[1]SERVIÇOS ORSE'!$A:$D,2,0),IF(D189="SEINFRA",VLOOKUP(E189,'[1]SERVIÇOS SEINFRA'!$A:$D,2,0)))),IF(C189="INSUMO",IF(D189="SINAPI",VLOOKUP(E189,'[1]INSUMOS SINAPI'!$A:$D,2,0),IF(D189="ORSE",VLOOKUP(E189,'[1]INSUMOS ORSE'!$A:$D,2,0),IF(D189="SEINFRA",VLOOKUP(E189,'[1]INSUMOS SEINFRA'!$A:$D,2,0),))))) -> ELETRODUTO DE PVC RIGIDO ROSCAVEL DE 1 ", SEM LUVA | G189: =IF(C189="SERVIÇO",IF(D189="SINAPI",VLOOKUP(E189,'[1]SERVIÇOS SINAPI'!$A:$D,3,0),IF(D189="ORSE",VLOOKUP(E189,'[1]SERVIÇOS ORSE'!$A:$D,3,0),IF(D189="SEINFRA",VLOOKUP(E189,'[1]SERVIÇOS SEINFRA'!$A:$D,3,0)))),IF(C189="INSUMO",IF(D189="SINAPI",VLOOKUP(E189,'[1]INSUMOS SINAPI'!$A:$D,3,0),IF(D189="ORSE",VLOOKUP(E189,'[1]INSUMOS ORSE'!$A:$D,3,0),IF(D189="SEINFRA",VLOOKUP(E189,'[1]INSUMOS SEINFRA'!$A:$D,3,0),))))) -> M | H189: ='[1]Memória de Cálculo'!$L$1036*$G$7 -> 18 | I189: =IF(C189="SERVIÇO",IF(D189="SINAPI",VLOOKUP(E189,'[1]SERVIÇOS SINAPI'!$A:$D,4,0),IF(D189="ORSE",VLOOKUP(E189,'[1]SERVIÇOS ORSE'!$A:$D,4,0),IF(D189="SEINFRA",VLOOKUP(E189,'[1]SERVIÇOS SEINFRA'!$A:$D,4,0)))),IF(C189="INSUMO",IF(D189="SINAPI",VLOOKUP(E189,'[1]INSUMOS SINAPI'!$A:$D,4,0),IF(D189="ORSE",VLOOKUP(E189,'[1]INSUMOS ORSE'!$A:$D,4,0),IF(D189="SEINFRA",VLOOKUP(E189,'[1]INSUMOS SEINFRA'!$A:$D,4,0),))))) -> 7.45 | J189: 8.3 | K189: 149.4 | L189: 4
B190: 2.9.5 | C190: INSUMO | D190: ORSE | E190: 6667 | F190: =IF(C190="SERVIÇO",IF(D190="SINAPI",VLOOKUP(E190,'[1]SERVIÇOS SINAPI'!$A:$D,2,0),IF(D190="ORSE",VLOOKUP(E190,'[1]SERVIÇOS ORSE'!$A:$D,2,0),IF(D190="SEINFRA",VLOOKUP(E190,'[1]SERVIÇOS SEINFRA'!$A:$D,2,0)))),IF(C190="INSUMO",IF(D190="SINAPI",VLOOKUP(E190,'[1]INSUMOS SINAPI'!$A:$D,2,0),IF(D190="ORSE",VLOOKUP(E190,'[1]INSUMOS ORSE'!$A:$D,2,0),IF(D190="SEINFRA",VLOOKUP(E190,'[1]INSUMOS SEINFRA'!$A:$D,2,0),))))) -> CAPTOR COM BASE DE FIXAÇÃO HORIZONTAL 3/8" X 400MM (PÁRA-RAIO) | G190: =IF(C190="SERVIÇO",IF(D190="SINAPI",VLOOKUP(E190,'[1]SERVIÇOS SINAPI'!$A:$D,3,0),IF(D190="ORSE",VLOOKUP(E190,'[1]SERVIÇOS ORSE'!$A:$D,3,0),IF(D190="SEINFRA",VLOOKUP(E190,'[1]SERVIÇOS SEINFRA'!$A:$D,3,0)))),IF(C190="INSUMO",IF(D190="SINAPI",VLOOKUP(E190,'[1]INSUMOS SINAPI'!$A:$D,3,0),IF(D190="ORSE",VLOOKUP(E190,'[1]INSUMOS ORSE'!$A:$D,3,0),IF(D190="SEINFRA",VLOOKUP(E190,'[1]INSUMOS SEINFRA'!$A:$D,3,0),))))) -> UN | H190: ='[1]Memória de Cálculo'!$L$1040*$G$7 -> 6 | I190: =IF(C190="SERVIÇO",IF(D190="SINAPI",VLOOKUP(E190,'[1]SERVIÇOS SINAPI'!$A:$D,4,0),IF(D190="ORSE",VLOOKUP(E190,'[1]SERVIÇOS ORSE'!$A:$D,4,0),IF(D190="SEINFRA",VLOOKUP(E190,'[1]SERVIÇOS SEINFRA'!$A:$D,4,0)))),IF(C190="INSUMO",IF(D190="SINAPI",VLOOKUP(E190,'[1]INSUMOS SINAPI'!$A:$D,4,0),IF(D190="ORSE",VLOOKUP(E190,'[1]INSUMOS ORSE'!$A:$D,4,0),IF(D190="SEINFRA",VLOOKUP(E190,'[1]INSUMOS SEINFRA'!$A:$D,4,0),))))) -> 16.18 | J190: 18.03 | K190: 108.18 | L190: 5
B191: 2.9.6 | C191: INSUMO | D191: ORSE | E191: 6779 | F191: =IF(C191="SERVIÇO",IF(D191="SINAPI",VLOOKUP(E191,'[1]SERVIÇOS SINAPI'!$A:$D,2,0),IF(D191="ORSE",VLOOKUP(E191,'[1]SERVIÇOS ORSE'!$A:$D,2,0),IF(D191="SEINFRA",VLOOKUP(E191,'[1]SERVIÇOS SEINFRA'!$A:$D,2,0)))),IF(C191="INSUMO",IF(D191="SINAPI",VLOOKUP(E191,'[1]INSUMOS SINAPI'!$A:$D,2,0),IF(D191="ORSE",VLOOKUP(E191,'[1]INSUMOS ORSE'!$A:$D,2,0),IF(D191="SEINFRA",VLOOKUP(E191,'[1]INSUMOS SEINFRA'!$A:$D,2,0),))))) -> SINALIZADOR DUPLO C/ CÉLULA PARA MASTRO (PÁRA-RAIO) | G191: =IF(C191="SERVIÇO",IF(D191="SINAPI",VLOOKUP(E191,'[1]SERVIÇOS SINAPI'!$A:$D,3,0),IF(D191="ORSE",VLOOKUP(E191,'[1]SERVIÇOS ORSE'!$A:$D,3,0),IF(D191="SEINFRA",VLOOKUP(E191,'[1]SERVIÇOS SEINFRA'!$A:$D,3,0)))),IF(C191="INSUMO",IF(D191="SINAPI",VLOOKUP(E191,'[1]INSUMOS SINAPI'!$A:$D,3,0),IF(D191="ORSE",VLOOKUP(E191,'[1]INSUMOS ORSE'!$A:$D,3,0),IF(D191="SEINFRA",VLOOKUP(E191,'[1]INSUMOS SEINFRA'!$A:$D,3,0),))))) -> UN | H191: ='[1]Memória de Cálculo'!$L$1044*$G$7 -> 6 | I191: =IF(C191="SERVIÇO",IF(D191="SINAPI",VLOOKUP(E191,'[1]SERVIÇOS SINAPI'!$A:$D,4,0),IF(D191="ORSE",VLOOKUP(E191,'[1]SERVIÇOS ORSE'!$A:$D,4,0),IF(D191="SEINFRA",VLOOKUP(E191,'[1]SERVIÇOS SEINFRA'!$A:$D,4,0)))),IF(C191="INSUMO",IF(D191="SINAPI",VLOOKUP(E191,'[1]INSUMOS SINAPI'!$A:$D,4,0),IF(D191="ORSE",VLOOKUP(E191,'[1]INSUMOS ORSE'!$A:$D,4,0),IF(D191="SEINFRA",VLOOKUP(E191,'[1]INSUMOS SEINFRA'!$A:$D,4,0),))))) -> 415 | J191: 462.43 | K191: 2774.58 | L191: 5
B192: 2.9.7 | C192: INSUMO | D192: ORSE | E192: 12429 | F192: =IF(C192="SERVIÇO",IF(D192="SINAPI",VLOOKUP(E192,'[1]SERVIÇOS SINAPI'!$A:$D,2,0),IF(D192="ORSE",VLOOKUP(E192,'[1]SERVIÇOS ORSE'!$A:$D,2,0),IF(D192="SEINFRA",VLOOKUP(E192,'[1]SERVIÇOS SEINFRA'!$A:$D,2,0)))),IF(C192="INSUMO",IF(D192="SINAPI",VLOOKUP(E192,'[1]INSUMOS SINAPI'!$A:$D,2,0),IF(D192="ORSE",VLOOKUP(E192,'[1]INSUMOS ORSE'!$A:$D,2,0),IF(D192="SEINFRA",VLOOKUP(E192,'[1]INSUMOS SEINFRA'!$A:$D,2,0),))))) -> SUPORTE GUIA SIMPLES TIPO CURTO CHAPA ENCOSTO COM ROLDANA EM POLIPROPILENO, H = 50 CM (TEL-241) | G192: =IF(C192="SERVIÇO",IF(D192="SINAPI",VLOOKUP(E192,'[1]SERVIÇOS SINAPI'!$A:$D,3,0),IF(D192="ORSE",VLOOKUP(E192,'[1]SERVIÇOS ORSE'!$A:$D,3,0),IF(D192="SEINFRA",VLOOKUP(E192,'[1]SERVIÇOS SEINFRA'!$A:$D,3,0)))),IF(C192="INSUMO",IF(D192="SINAPI",VLOOKUP(E192,'[1]INSUMOS SINAPI'!$A:$D,3,0),IF(D192="ORSE",VLOOKUP(E192,'[1]INSUMOS ORSE'!$A:$D,3,0),IF(D192="SEINFRA",VLOOKUP(E192,'[1]INSUMOS SEINFRA'!$A:$D,3,0),))))) -> UN | H192: ='[1]Memória de Cálculo'!$L$1048*$G$7 -> 18 | I192: =IF(C192="SERVIÇO",IF(D192="SINAPI",VLOOKUP(E192,'[1]SERVIÇOS SINAPI'!$A:$D,4,0),IF(D192="ORSE",VLOOKUP(E192,'[1]SERVIÇOS ORSE'!$A:$D,4,0),IF(D192="SEINFRA",VLOOKUP(E192,'[1]SERVIÇOS SEINFRA'!$A:$D,4,0)))),IF(C192="INSUMO",IF(D192="SINAPI",VLOOKUP(E192,'[1]INSUMOS SINAPI'!$A:$D,4,0),IF(D192="ORSE",VLOOKUP(E192,'[1]INSUMOS ORSE'!$A:$D,4,0),IF(D192="SEINFRA",VLOOKUP(E192,'[1]INSUMOS SEINFRA'!$A:$D,4,0),))))) -> 14.99 | J192: 16.7 | K192: 300.6 | L192: 5
B193: 2.9.8 | C193: INSUMO | D193: ORSE | E193: 1094 | F193: =IF(C193="SERVIÇO",IF(D193="SINAPI",VLOOKUP(E193,'[1]SERVIÇOS SINAPI'!$A:$D,2,0),IF(D193="ORSE",VLOOKUP(E193,'[1]SERVIÇOS ORSE'!$A:$D,2,0),IF(D193="SEINFRA",VLOOKUP(E193,'[1]SERVIÇOS SEINFRA'!$A:$D,2,0)))),IF(C193="INSUMO",IF(D193="SINAPI",VLOOKUP(E193,'[1]INSUMOS SINAPI'!$A:$D,2,0),IF(D193="ORSE",VLOOKUP(E193,'[1]INSUMOS ORSE'!$A:$D,2,0),IF(D193="SEINFRA",VLOOKUP(E193,'[1]INSUMOS SEINFRA'!$A:$D,2,0),))))) -> HASTE COBREADA COPPERWELD P/ ATERRAMENTO 254 MICR D= 3/4" X 3,00 M C/CONECTOR | G193: =IF(C193="SERVIÇO",IF(D193="SINAPI",VLOOKUP(E193,'[1]SERVIÇOS SINAPI'!$A:$D,3,0),IF(D193="ORSE",VLOOKUP(E193,'[1]SERVIÇOS ORSE'!$A:$D,3,0),IF(D193="SEINFRA",VLOOKUP(E193,'[1]SERVIÇOS SEINFRA'!$A:$D,3,0)))),IF(C193="INSUMO",IF(D193="SINAPI",VLOOKUP(E193,'[1]INSUMOS SINAPI'!$A:$D,3,0),IF(D193="ORSE",VLOOKUP(E193,'[1]INSUMOS ORSE'!$A:$D,3,0),IF(D193="SEINFRA",VLOOKUP(E193,'[1]INSUMOS SEINFRA'!$A:$D,3,0),))))) -> UN | H193: ='[1]Memória de Cálculo'!$L$1052*$G$7 -> 12 | I193: =IF(C193="SERVIÇO",IF(D193="SINAPI",VLOOKUP(E193,'[1]SERVIÇOS SINAPI'!$A:$D,4,0),IF(D193="ORSE",VLOOKUP(E193,'[1]SERVIÇOS ORSE'!$A:$D,4,0),IF(D193="SEINFRA",VLOOKUP(E193,'[1]SERVIÇOS SEINFRA'!$A:$D,4,0)))),IF(C193="INSUMO",IF(D193="SINAPI",VLOOKUP(E193,'[1]INSUMOS SINAPI'!$A:$D,4,0),IF(D193="ORSE",VLOOKUP(E193,'[1]INSUMOS ORSE'!$A:$D,4,0),IF(D193="SEINFRA",VLOOKUP(E193,'[1]INSUMOS SEINFRA'!$A:$D,4,0),))))) -> 112 | J193: 124.8 | K193: 1497.6 | L193: 5
B194: 2.9.9 | C194: INSUMO | D194: ORSE | E194: 9723 | F194: =IF(C194="SERVIÇO",IF(D194="SINAPI",VLOOKUP(E194,'[1]SERVIÇOS SINAPI'!$A:$D,2,0),IF(D194="ORSE",VLOOKUP(E194,'[1]SERVIÇOS ORSE'!$A:$D,2,0),IF(D194="SEINFRA",VLOOKUP(E194,'[1]SERVIÇOS SEINFRA'!$A:$D,2,0)))),IF(C194="INSUMO",IF(D194="SINAPI",VLOOKUP(E194,'[1]INSUMOS SINAPI'!$A:$D,2,0),IF(D194="ORSE",VLOOKUP(E194,'[1]INSUMOS ORSE'!$A:$D,2,0),IF(D194="SEINFRA",VLOOKUP(E194,'[1]INSUMOS SEINFRA'!$A:$D,2,0),))))) -> TAMPA REFORÇADA EM FERRO FUNDIDO D=300MM, C/ESCOTILHA QUADRADA E ARTICULADA, P/CX.ATERRAMENTO, REF:TEL-536 OU SIMILAR (SPDA) | G194: =IF(C194="SERVIÇO",IF(D194="SINAPI",VLOOKUP(E194,'[1]SERVIÇOS SINAPI'!$A:$D,3,0),IF(D194="ORSE",VLOOKUP(E194,'[1]SERVIÇOS ORSE'!$A:$D,3,0),IF(D194="SEINFRA",VLOOKUP(E194,'[1]SERVIÇOS SEINFRA'!$A:$D,3,0)))),IF(C194="INSUMO",IF(D194="SINAPI",VLOOKUP(E194,'[1]INSUMOS SINAPI'!$A:$D,3,0),IF(D194="ORSE",VLOOKUP(E194,'[1]INSUMOS ORSE'!$A:$D,3,0),IF(D194="SEINFRA",VLOOKUP(E194,'[1]INSUMOS SEINFRA'!$A:$D,3,0),))))) -> UN | H194: ='[1]Memória de Cálculo'!$L$1056*$G$7 -> 12 | I194: =IF(C194="SERVIÇO",IF(D194="SINAPI",VLOOKUP(E194,'[1]SERVIÇOS SINAPI'!$A:$D,4,0),IF(D194="ORSE",VLOOKUP(E194,'[1]SERVIÇOS ORSE'!$A:$D,4,0),IF(D194="SEINFRA",VLOOKUP(E194,'[1]SERVIÇOS SEINFRA'!$A:$D,4,0)))),IF(C194="INSUMO",IF(D194="SINAPI",VLOOKUP(E194,'[1]INSUMOS SINAPI'!$A:$D,4,0),IF(D194="ORSE",VLOOKUP(E194,'[1]INSUMOS ORSE'!$A:$D,4,0),IF(D194="SEINFRA",VLOOKUP(E194,'[1]INSUMOS SEINFRA'!$A:$D,4,0),))))) -> 169.89 | J194: 189.31 | K194: 2271.72 | L194: 5
B195: 2.9.10 | C195: INSUMO | D195: ORSE | E195: 9722 | F195: =IF(C195="SERVIÇO",IF(D195="SINAPI",VLOOKUP(E195,'[1]SERVIÇOS SINAPI'!$A:$D,2,0),IF(D195="ORSE",VLOOKUP(E195,'[1]SERVIÇOS ORSE'!$A:$D,2,0),IF(D195="SEINFRA",VLOOKUP(E195,'[1]SERVIÇOS SEINFRA'!$A:$D,2,0)))),IF(C195="INSUMO",IF(D195="SINAPI",VLOOKUP(E195,'[1]INSUMOS SINAPI'!$A:$D,2,0),IF(D195="ORSE",VLOOKUP(E195,'[1]INSUMOS ORSE'!$A:$D,2,0),IF(D195="SEINFRA",VLOOKUP(E195,'[1]INSUMOS SEINFRA'!$A:$D,2,0),))))) -> CORPO DA CAIXA DE INSPEÇÃO EM PVC P/ATERRAMENTO D=300MM, REDONDA, H=300MM, RE F: TEL-552 OU SIMILAR (SPDA) | G195: =IF(C195="SERVIÇO",IF(D195="SINAPI",VLOOKUP(E195,'[1]SERVIÇOS SINAPI'!$A:$D,3,0),IF(D195="ORSE",VLOOKUP(E195,'[1]SERVIÇOS ORSE'!$A:$D,3,0),IF(D195="SEINFRA",VLOOKUP(E195,'[1]SERVIÇOS SEINFRA'!$A:$D,3,0)))),IF(C195="INSUMO",IF(D195="SINAPI",VLOOKUP(E195,'[1]INSUMOS SINAPI'!$A:$D,3,0),IF(D195="ORSE",VLOOKUP(E195,'[1]INSUMOS ORSE'!$A:$D,3,0),IF(D195="SEINFRA",VLOOKUP(E195,'[1]INSUMOS SEINFRA'!$A:$D,3,0),))))) -> UN | H195: ='[1]Memória de Cálculo'!$L$1060*$G$7 -> 12 | I195: =IF(C195="SERVIÇO",IF(D195="SINAPI",VLOOKUP(E195,'[1]SERVIÇOS SINAPI'!$A:$D,4,0),IF(D195="ORSE",VLOOKUP(E195,'[1]SERVIÇOS ORSE'!$A:$D,4,0),IF(D195="SEINFRA",VLOOKUP(E195,'[1]SERVIÇOS SEINFRA'!$A:$D,4,0)))),IF(C195="INSUMO",IF(D195="SINAPI",VLOOKUP(E195,'[1]INSUMOS SINAPI'!$A:$D,4,0),IF(D195="ORSE",VLOOKUP(E195,'[1]INSUMOS ORSE'!$A:$D,4,0),IF(D195="SEINFRA",VLOOKUP(E195,'[1]INSUMOS SEINFRA'!$A:$D,4,0),))))) -> 26.6 | J195: 29.64 | K195: 355.68 | L195: 4
B196: 2.9.11 | C196: INSUMO | D196: SINAPI | E196: 868 | F196: =IF(C196="SERVIÇO",IF(D196="SINAPI",VLOOKUP(E196,'[1]SERVIÇOS SINAPI'!$A:$D,2,0),IF(D196="ORSE",VLOOKUP(E196,'[1]SERVIÇOS ORSE'!$A:$D,2,0),IF(D196="SEINFRA",VLOOKUP(E196,'[1]SERVIÇOS SEINFRA'!$A:$D,2,0)))),IF(C196="INSUMO",IF(D196="SINAPI",VLOOKUP(E196,'[1]INSUMOS SINAPI'!$A:$D,2,0),IF(D196="ORSE",VLOOKUP(E196,'[1]INSUMOS ORSE'!$A:$D,2,0),IF(D196="SEINFRA",VLOOKUP(E196,'[1]INSUMOS SEINFRA'!$A:$D,2,0),))))) -> CABO DE COBRE NU 25 MM2 MEIO-DURO | G196: =IF(C196="SERVIÇO",IF(D196="SINAPI",VLOOKUP(E196,'[1]SERVIÇOS SINAPI'!$A:$D,3,0),IF(D196="ORSE",VLOOKUP(E196,'[1]SERVIÇOS ORSE'!$A:$D,3,0),IF(D196="SEINFRA",VLOOKUP(E196,'[1]SERVIÇOS SEINFRA'!$A:$D,3,0)))),IF(C196="INSUMO",IF(D196="SINAPI",VLOOKUP(E196,'[1]INSUMOS SINAPI'!$A:$D,3,0),IF(D196="ORSE",VLOOKUP(E196,'[1]INSUMOS ORSE'!$A:$D,3,0),IF(D196="SEINFRA",VLOOKUP(E196,'[1]INSUMOS SEINFRA'!$A:$D,3,0),))))) -> M | H196: ='[1]Memória de Cálculo'!$L$1064*$G$7 -> 36 | I196: =IF(C196="SERVIÇO",IF(D196="SINAPI",VLOOKUP(E196,'[1]SERVIÇOS SINAPI'!$A:$D,4,0),IF(D196="ORSE",VLOOKUP(E196,'[1]SERVIÇOS ORSE'!$A:$D,4,0),IF(D196="SEINFRA",VLOOKUP(E196,'[1]SERVIÇOS SEINFRA'!$A:$D,4,0)))),IF(C196="INSUMO",IF(D196="SINAPI",VLOOKUP(E196,'[1]INSUMOS SINAPI'!$A:$D,4,0),IF(D196="ORSE",VLOOKUP(E196,'[1]INSUMOS ORSE'!$A:$D,4,0),IF(D196="SEINFRA",VLOOKUP(E196,'[1]INSUMOS SEINFRA'!$A:$D,4,0),))))) -> 28.17 | J196: 31.39 | K196: 1130.04 | L196: 5
B197: 2.10 | C197: INSTALAÇÃO DA EXTRUTURA DOS BOX DE CRIAÇÃO | K197: =SUM(K198:K203) -> 125864.17
B198: 2.10.1 | C198: SERVIÇO | D198: CODEVASF | E198: =[1]Composições!I146 -> COMPO. 10 | F198: COCHO TIPO BEBEDOURO PARA CAPRINOS E OVINOS, PRODUZIDO EM PLÁSTICO INDUSTRIAL, PROVIDO DE POTE DE ÁGUA COM CAPACIDADE DE 5 LITROS, ABASTECIMENTO AUTOMÁTICO MEDIANTE BOIA DE NÍVEL REGULÁVEL COM ROSCA DE 1/2”, PROTEÇÃO DA BOIA EM AÇO GALVANIZADO, BORDAS ABAULADAS PARA MAIOR CONFORTO DO AMINAL, INCLUSO ADAPTADORES DE ENTRADA, SAÍDA FORNECIDO E INSTALDO. | G198: =[1]Composições!I161 -> M² | H198: ='[1]Memória de Cálculo'!$L$1069*$G$7 -> 72 | I198: =[1]Composições!$I$158 -> 141.68 | J198: =IF(C198="SERVIÇO",I198*(1+$I$8),IF(C198="INSUMO",(I198*(1+$K$8)))) -> 174.97 | K198: =J198*H198 -> 12597.84 | L198: 4 | N198: =H198*J198 -> 12597.84
B199: 2.10.2 | C199: SERVIÇO | D199: CODEVASF | E199: =[1]Composições!I162 -> COMPO. 11 | F199: =[1]Composições!E162 -> PORTEIRA DE MADEIRA PARA CURRAL EM RÊGUA DE MADEIRA 10 x 2,5 CM, INCLUSIVE DOBRADIÇAS, FORNECIMENTO E INSTALAÇÃO. | G199: =[1]Composições!I161 -> M² | H199: ='[1]Memória de Cálculo'!$L$1075*$G$7 -> 224.4 | I199: =[1]Composições!I178 -> 255.65 | J199: 315.73 | K199: =J199*H199 -> 70849.81 | L199: 2
B200: 2.10.3 | C200: SERVIÇO | D200: SEINFRA | E200: C0741 | F200: =IF(C200="SERVIÇO",IF(D200="SINAPI",VLOOKUP(E200,'[1]SERVIÇOS SINAPI'!$A:$D,2,0),IF(D200="ORSE",VLOOKUP(E200,'[1]SERVIÇOS ORSE'!$A:$D,2,0),IF(D200="SEINFRA",VLOOKUP(E200,'[1]SERVIÇOS SEINFRA'!$A:$D,2,0)))),IF(C200="INSUMO",IF(D200="SINAPI",VLOOKUP(E200,'[1]INSUMOS SINAPI'!$A:$D,2,0),IF(D200="ORSE",VLOOKUP(E200,'[1]INSUMOS ORSE'!$A:$D,2,0),IF(D200="SEINFRA",VLOOKUP(E200,'[1]INSUMOS SEINFRA'!$A:$D,2,0),))))) -> CERCA DE MADEIRA C/ TRAVESSAS DE MADEIRA | G200: =IF(C200="SERVIÇO",IF(D200="SINAPI",VLOOKUP(E200,'[1]SERVIÇOS SINAPI'!$A:$D,3,0),IF(D200="ORSE",VLOOKUP(E200,'[1]SERVIÇOS ORSE'!$A:$D,3,0),IF(D200="SEINFRA",VLOOKUP(E200,'[1]SERVIÇOS SEINFRA'!$A:$D,3,0)))),IF(C200="INSUMO",IF(D200="SINAPI",VLOOKUP(E200,'[1]INSUMOS SINAPI'!$A:$D,3,0),IF(D200="ORSE",VLOOKUP(E200,'[1]INSUMOS ORSE'!$A:$D,3,0),IF(D200="SEINFRA",VLOOKUP(E200,'[1]INSUMOS SEINFRA'!$A:$D,3,0),))))) -> M² | H200: ='[1]Memória de Cálculo'!$L$1081*$G$7 -> 148.38 | I200: =IF(C200="SERVIÇO",IF(D200="SINAPI",VLOOKUP(E200,'[1]SERVIÇOS SINAPI'!$A:$D,4,0),IF(D200="ORSE",VLOOKUP(E200,'[1]SERVIÇOS ORSE'!$A:$D,4,0),IF(D200="SEINFRA",VLOOKUP(E200,'[1]SERVIÇOS SEINFRA'!$A:$D,4,0)))),IF(C200="INSUMO",IF(D200="SINAPI",VLOOKUP(E200,'[1]INSUMOS SINAPI'!$A:$D,4,0),IF(D200="ORSE",VLOOKUP(E200,'[1]INSUMOS ORSE'!$A:$D,4,0),IF(D200="SEINFRA",VLOOKUP(E200,'[1]INSUMOS SEINFRA'!$A:$D,4,0),))))) -> 184.05 | J200: 227.3 | K200: 33726.77 | L200: 2
B201: 2.10.4 | C201: INSUMO | D201: SINAPI | E201: 368 | F201: =IF(C201="SERVIÇO",IF(D201="SINAPI",VLOOKUP(E201,'[1]SERVIÇOS SINAPI'!$A:$D,2,0),IF(D201="ORSE",VLOOKUP(E201,'[1]SERVIÇOS ORSE'!$A:$D,2,0),IF(D201="SEINFRA",VLOOKUP(E201,'[1]SERVIÇOS SEINFRA'!$A:$D,2,0)))),IF(C201="INSUMO",IF(D201="SINAPI",VLOOKUP(E201,'[1]INSUMOS SINAPI'!$A:$D,2,0),IF(D201="ORSE",VLOOKUP(E201,'[1]INSUMOS ORSE'!$A:$D,2,0),IF(D201="SEINFRA",VLOOKUP(E201,'[1]INSUMOS SEINFRA'!$A:$D,2,0),))))) -> AREIA PARA ATERRO - POSTO JAZIDA/FORNECEDOR (RETIRADO NA JAZIDA, SEM TRANSPORTE) | G201: =IF(C201="SERVIÇO",IF(D201="SINAPI",VLOOKUP(E201,'[1]SERVIÇOS SINAPI'!$A:$D,3,0),IF(D201="ORSE",VLOOKUP(E201,'[1]SERVIÇOS ORSE'!$A:$D,3,0),IF(D201="SEINFRA",VLOOKUP(E201,'[1]SERVIÇOS SEINFRA'!$A:$D,3,0)))),IF(C201="INSUMO",IF(D201="SINAPI",VLOOKUP(E201,'[1]INSUMOS SINAPI'!$A:$D,3,0),IF(D201="ORSE",VLOOKUP(E201,'[1]INSUMOS ORSE'!$A:$D,3,0),IF(D201="SEINFRA",VLOOKUP(E201,'[1]INSUMOS SEINFRA'!$A:$D,3,0),))))) -> M³ | H201: ='[1]Memória de Cálculo'!$L$1085*$G$7 -> 57.72 | I201: =IF(C201="SERVIÇO",IF(D201="SINAPI",VLOOKUP(E201,'[1]SERVIÇOS SINAPI'!$A:$D,4,0),IF(D201="ORSE",VLOOKUP(E201,'[1]SERVIÇOS ORSE'!$A:$D,4,0),IF(D201="SEINFRA",VLOOKUP(E201,'[1]SERVIÇOS SEINFRA'!$A:$D,4,0)))),IF(C201="INSUMO",IF(D201="SINAPI",VLOOKUP(E201,'[1]INSUMOS SINAPI'!$A:$D,4,0),IF(D201="ORSE",VLOOKUP(E201,'[1]INSUMOS ORSE'!$A:$D,4,0),IF(D201="SEINFRA",VLOOKUP(E201,'[1]INSUMOS SEINFRA'!$A:$D,4,0),))))) -> 71.25 | J201: 79.39 | K201: 4582.39 | L201: 2
... 19 more rows
